Workbook

Sheet PI vs gap
A1: Measurement | B1: Hall
A2: Type | B2: Gap dependence
A4: PS type | B4: HXR
A5: PS serial no | B5: 16334
A7: Measurement date | B7: ='DF raw data'!B2 -> 3. mar 2017
C11: Nominal gap [mm] | D11: Encoder [counts] | E11: Encoder [mm] | F11: PI [T^2mm^3] | H11: Encoder offset
C12: 10 | D12: =' 10 mm'!B3 -> 17255017 | E12: =(D12-$H$12)*-0.00025+10 -> 10 | F12: =' 10 mm'!Q3 -> 710.1688129 | H12: 17255017
C13: 12 | D13: =' 12 mm'!B3 -> 17247022 | E13: =(D13-$H$12)*-0.00025+10 -> 11.99875 | F13: =' 12 mm'!Q3 -> 544.7659803
C14: 15 | D14: =' 15 mm'!B3 -> 17234998 | E14: 15.00475 | F14: =' 15 mm'!Q3 -> 371.114791
C15: 20 | D15: =' 20 mm'!B3 -> 17214976 | E15: 20.01025 | F15: =' 20 mm'!Q3 -> 203.2359334
C16: 30 | D16: =' 30 mm'!B3 -> 17174973 | E16: 30.011 | F16: =' 30 mm'!Q3 -> 68.36389952
C17: 100 | D17: =' 100 mm'!B3 -> 16895020 | E17: 99.99925 | F17: =' 100 mm'!Q3 -> 0.3884964613
A41: Measuring series at 10 mm gap:
A42: Reference magnet
A43: Tref | B43: 20.97 | C43: degC
A44: Hall ref field | B44: 0.5053 | C44: T
A45: NMR ref field | B45: 0.50647 | C45: T
A47: Measuring series at larger gaps:
A48: Reference magnet
A49: Tref | B49: 20.86 | C49: degC
A50: Hall ref field | B50: 0.50533 | C50: T
A51: NMR ref field | B51: 0.50652 | C51: T
A53: Offset from Faro | B53: -0.2703333333

Sheet 10 mm
A1: dz | B1: ='DF raw data'!B7 -> 0.50013 | C1: mm | F1: T_coeff | G1: -0.0008 | H1: /degC | L1: Hallref | M1: ='PI vs gap'!B44 -> 0.5053 | N1: T | P1: IBy total | Q1: =L1203*1000 -> 13.05042596 | R1: muTm | X1: DF ref | Y1: 18
A2: Tref | B2: ='DF raw data'!B8 -> 21.43 | C2: degC | F2: Tcorr | G2: 20 | H2: degC | L2: NMRref | M2: ='PI vs gap'!B45 -> 0.50647 | N2: T | P2: JBy total | Q2: =M1203 -> 2.856587011 | R2: muTm^2
A3: Encoder | B3: ='DF raw data'!B9 -> 17255017 | P3: PI total | Q3: =N1203 -> 710.1688129 | R3: T^2mm^3
A5: z [mm] | B5: Bx | C5: By | D5: Bz | F5: Bx_corr | G5: By_corr | H5: Bz_corr | J5: Ix | K5: Jx | L5: Iy | M5: Jy | N5: PI
A6: ='PI vs gap'!B53 -> -0.2703333333 | B6: ='DF raw data'!A11 -> -1.7430372e-06 | C6: ='DF raw data'!B11 -> -7.7888649e-07 | D6: ='DF raw data'!C11 -> -6.7354028e-07 | F6: =(1-$G$1*($B$2-$G$2))*B6 -> -1.745031235e-06 | G6: =(1-$G$1*($B$2-$G$2))*C6*$M$2/$M$1 -> -7.815830768e-07 | H6: =(1-$G$1*($B$2-$G$2))*D6 -> -6.743108101e-07 | J6: =F6*$B$1 -> -8.727424713e-07 | K6: =J6*$B$1 -> -4.364846922e-07 | L6: =G6*$B$1 -> -3.908931442e-07 | M6: =L6*$B$1 -> -1.954973882e-07 | N6: =(J6^2+L6^2)*$B$1 -> 4.573573177e-13
A7: =A6+$B$1 -> 0.2297966667 | B7: ='DF raw data'!A12 -> -1.9113793e-06 | C7: ='DF raw data'!B12 -> 2.9959022e-06 | D7: ='DF raw data'!C12 -> -5.6305557e-06 | F7: =(1-$G$1*($B$2-$G$2))*B7 -> -1.913565918e-06 | G7: =(1-$G$1*($B$2-$G$2))*C7*$M$2/$M$1 -> 3.006274328e-06 | H7: =(1-$G$1*($B$2-$G$2))*D7 -> -5.636997056e-06 | J7: =F7*$B$1+J6 -> -1.829774194e-06 | K7: =J7*$B$1+K6 -> -1.35160966e-06 | L7: =G7*$B$1+L6 -> 1.112634836e-06 | M7: =L7*$B$1+M6 -> 3.609646721e-07 | N7: =(J7^2+L7^2)*$B$1+N6 -> 2.75096844e-12
A8: =A7+$B$1 -> 0.7299266667 | B8: ='DF raw data'!A13 -> -1.572893e-06 | C8: ='DF raw data'!B13 -> -6.1704113e-06 | D8: ='DF raw data'!C13 -> -5.5429714e-06 | F8: -1.57469239e-06 | G8: -6.191773912e-06 | H8: -5.549312559e-06 | J8: =F8*$B$1+J7 -> -2.617325099e-06 | K8: =J8*$B$1+K7 -> -2.660612461e-06 | L8: =G8*$B$1+L7 -> -1.984057051e-06 | M8: =L8*$B$1+M7 -> -6.313217809e-07 | N8: =(J8^2+L8^2)*$B$1+N7 -> 8.145807261e-12
A9: 1.230056667 | B9: ='DF raw data'!A14 -> -1.9321385e-06 | C9: ='DF raw data'!B14 -> 4.8127777e-06 | D9: ='DF raw data'!C14 -> 1.3453088e-06 | F9: -1.934348866e-06 | G9: 4.829440042e-06 | H9: 1.346847833e-06 | J9: -3.584750997e-06 | K9: -4.453453978e-06 | L9: 4.31290797e-07 | M9: -4.156203146e-07 | N9: 1.466572773e-11
A10: 1.730186667 | B10: ='DF raw data'!A15 -> -2.1683647e-06 | C10: ='DF raw data'!B15 -> 1.0796321e-05 | D10: ='DF raw data'!C15 -> -8.2016174e-07 | F10: -2.170845309e-06 | G10: 1.0833699e-05 | H10: -8.21100005e-07 | J10: -4.670455862e-06 | K10: -6.789289068e-06 | L10: 5.849548677e-06 | M10: 2.509914465e-06 | N10: 4.268820052e-11
A11: 2.230316667 | B11: ='DF raw data'!A16 -> -1.9308702e-06 | C11: ='DF raw data'!B16 -> 3.9332272e-06 | D11: ='DF raw data'!C16 -> -2.1393294e-06 | F11: =(1-$G$1*($B$2-$G$2))*B11 -> -1.933079116e-06 | G11: 3.946844446e-06 | H11: =(1-$G$1*($B$2-$G$2))*D11 -> -2.141776793e-06 | J11: -5.63724672e-06 | K11: -9.60864527e-06 | L11: 7.823483989e-06 | M11: 6.422673513e-06 | N11: 8.919301478e-11
A12: 2.730446667 | B12: ='DF raw data'!A17 -> -1.7720064e-06 | C12: ='DF raw data'!B17 -> 1.0270498e-06 | D12: ='DF raw data'!C17 -> 6.7556234e-06 | F12: -1.774033575e-06 | G12: 1.030605554e-06 | H12: 6.763351833e-06 | J12: -6.524494132e-06 | K12: -1.287174052e-05 | L12: 8.338920745e-06 | M12: 1.059321794e-05 | N12: 1.452609001e-10
A13: 3.230576667 | B13: ='DF raw data'!A18 -> -1.1173948e-06 | C13: ='DF raw data'!B18 -> -1.6175311e-05 | D13: ='DF raw data'!C18 -> 9.8748778e-06 | F13: -1.1186731e-06 | G13: -1.623131163e-05 | H13: 9.88617466e-06 | J13: -7.083976109e-06 | K13: -1.641464949e-05 | L13: 2.211548617e-07 | M13: 1.070382413e-05 | N13: 1.703832437e-10
A14: 3.730706667 | B14: ='DF raw data'!A19 -> -1.3082314e-06 | C14: ='DF raw data'!B19 -> -1.1954747e-05 | D14: ='DF raw data'!C19 -> 2.9208445e-06 | F14: -1.309728017e-06 | G14: -1.199613559e-05 | H14: 2.924185946e-06 | J14: -7.739010382e-06 | K14: -2.028516075e-05 | L14: -5.778472431e-06 | M14: 7.813836709e-06 | N14: 2.170368831e-10
A15: 4.230836667 | B15: ='DF raw data'!A20 -> -1.982334e-06 | C15: ='DF raw data'!B20 -> 5.2630976e-06 | D15: ='DF raw data'!C20 -> -4.3362102e-06 | F15: -1.98460179e-06 | G15: 5.281318997e-06 | H15: -4.341170824e-06 | J15: -8.731569275e-06 | K15: -2.46520805e-05 | L15: -3.137126361e-06 | M15: 6.244865702e-06 | N15: 2.600890057e-10
A16: 4.730966667 | B16: ='DF raw data'!A21 -> -1.5504651e-06 | C16: ='DF raw data'!B21 -> -6.0643351e-06 | D16: ='DF raw data'!C21 -> -1.514983e-06 | F16: -1.552238832e-06 | G16: -6.085330465e-06 | H16: -1.516716141e-06 | J16: -9.507890483e-06 | K16: -2.940726176e-05 | L16: -6.180582687e-06 | M16: 3.153770883e-06 | N16: 3.244055155e-10
A17: 5.231096667 | B17: ='DF raw data'!A22 -> -1.8841455e-06 | C17: ='DF raw data'!B22 -> 4.1575195e-06 | D17: ='DF raw data'!C22 -> 5.0776603e-06 | F17: -1.886300962e-06 | G17: 4.171913269e-06 | H17: 5.083469143e-06 | J17: -1.045128618e-05 | K17: -3.463426352e-05 | L17: -4.094083703e-06 | M17: 1.1061968e-06 | N17: 3.874173465e-10
A18: 5.731226667 | B18: ='DF raw data'!A23 -> -2.0012242e-06 | C18: ='DF raw data'!B23 -> 7.055155e-06 | D18: ='DF raw data'!C23 -> 3.5667495e-06 | F18: -2.0035136e-06 | G18: 7.079580688e-06 | H18: 3.570829861e-06 | J18: -1.145330344e-05 | K18: -4.036240417e-05 | L18: -5.533730139e-07 | M18: 8.29438355e-07 | N18: 4.531766301e-10
A19: 6.231356667 | B19: ='DF raw data'!A24 -> -2.3165485e-06 | C19: ='DF raw data'!B24 -> 1.4183771e-05 | D19: ='DF raw data'!C24 -> -4.4998028e-06 | F19: -2.319198631e-06 | G19: 1.423287671e-05 | H19: -4.504950574e-06 | J19: -1.261320425e-05 | K19: -4.667064601e-05 | L19: 6.564915613e-06 | M19: 4.1127496e-06 | N19: 5.542984342e-10
A20: 6.731486667 | B20: ='DF raw data'!A25 -> -1.8598488e-06 | C20: ='DF raw data'!B25 -> 2.6281753e-06 | D20: ='DF raw data'!C25 -> 1.1137005e-06 | F20: -1.861976467e-06 | G20: 2.637274319e-06 | H20: 1.114974573e-06 | J20: -1.354443454e-05 | K20: -5.344462406e-05 | L20: 7.883895618e-06 | M20: 8.055722316e-06 | N20: 6.771341218e-10
A21: 7.231616667 | B21: ='DF raw data'!A26 -> -1.7188071e-06 | C21: ='DF raw data'!B26 -> -2.2628617e-06 | D21: ='DF raw data'!C26 -> -5.5755822e-06 | F21: -1.720773415e-06 | G21: -2.270695965e-06 | H21: -5.581960666e-06 | J21: -1.440504495e-05 | K21: -6.064901919e-05 | L21: 6.748252445e-06 | M21: 1.143072581e-05 | N21: 8.036891331e-10
A22: 7.731746667 | B22: ='DF raw data'!A27 -> -2.6007008e-06 | C22: ='DF raw data'!B27 -> 1.120781e-05 | D22: ='DF raw data'!C27 -> -1.0886663e-05 | F22: -2.603676002e-06 | G22: 1.124661262e-05 | H22: -1.089911734e-05 | J22: -1.570722143e-05 | K22: -6.850467184e-05 | L22: 1.237302081e-05 | M22: 1.761884471e-05 | N22: 1.003645333e-09
A23: 8.231876667 | B23: ='DF raw data'!A28 -> -2.7992803e-06 | C23: ='DF raw data'!B28 -> 7.8152925e-06 | D23: ='DF raw data'!C28 -> -4.4758431e-06 | F23: -2.802482677e-06 | G23: 7.842349864e-06 | H23: -4.480963465e-06 | J23: -1.710882709e-05 | K23: -7.706130954e-05 | L23: 1.629521525e-05 | M23: 2.576857071e-05 | N23: 1.282840907e-09
A24: 8.732006667 | B24: ='DF raw data'!A29 -> 8.8462099e-07 | C24: ='DF raw data'!B29 -> -5.7948118e-06 | D24: ='DF raw data'!C29 -> 3.2414996e-06 | F24: 8.856329964e-07 | G24: -5.814874047e-06 | H24: 3.245207876e-06 | J24: -1.666589546e-05 | K24: -8.539642383e-05 | L24: 1.338702229e-05 | M24: 3.246382217e-05 | N24: 1.511382531e-09
A25: 9.232136667 | B25: ='DF raw data'!A30 -> 5.7409093e-06 | C25: ='DF raw data'!B30 -> 2.1781282e-06 | D25: ='DF raw data'!C30 -> -5.906162e-07 | F25: 5.7474769e-06 | G25: 2.185669109e-06 | H25: -5.912918649e-07 | J25: -1.379140984e-05 | K25: -9.229392163e-05 | L25: 1.448014098e-05 | M25: 3.970577508e-05 | N25: 1.711373249e-09
A26: 9.732266667 | B26: ='DF raw data'!A31 -> 4.6604359e-06 | C26: ='DF raw data'!B31 -> 4.7510011e-06 | D26: ='DF raw data'!C31 -> -1.4484989e-06 | F26: 4.665767439e-06 | G26: 4.767449565e-06 | H26: -1.450155983e-06 | J26: -1.145791957e-05 | K26: -9.802437095e-05 | L26: 1.686448553e-05 | M26: 4.814021023e-05 | N26: 1.919274686e-09
A27: 10.23239667 | B27: ='DF raw data'!A32 -> 9.4115791e-07 | C27: ='DF raw data'!B32 -> -1.4293189e-05 | D27: ='DF raw data'!C32 -> 5.6987433e-06 | F27: 9.422345946e-07 | G27: -1.434267352e-05 | H27: 5.705262662e-06 | J27: -1.098667978e-05 | K27: -0.0001035191391 | L27: 9.691284226e-06 | M27: 5.298711221e-05 | N27: 2.026616649e-09
A28: 10.73252667 | B28: ='DF raw data'!A33 -> -1.2128465e-06 | C28: ='DF raw data'!B33 -> 6.4899587e-06 | D28: ='DF raw data'!C33 -> 1.0126455e-05 | F28: -1.214233996e-06 | G28: 6.512427619e-06 | H28: 1.013803966e-05 | J28: -1.159395463e-05 | K28: -0.0001093176236 | L28: 1.294834465e-05 | M28: 5.946296782e-05 | N28: 2.177695626e-09
A29: 11.23265667 | B29: ='DF raw data'!A34 -> -1.2813981e-06 | C29: ='DF raw data'!B34 -> -8.4987073e-07 | D29: ='DF raw data'!C34 -> 2.1923429e-06 | F29: -1.282864019e-06 | G29: -8.528130717e-07 | H29: 2.19485094e-06 | J29: -1.223555341e-05 | K29: -0.000115436991 | L29: 1.252182725e-05 | M29: 6.572550928e-05 | N29: 2.330987934e-09
A30: 11.73278667 | B30: ='DF raw data'!A35 -> -3.3873428e-06 | C30: ='DF raw data'!B35 -> -9.9908348e-06 | D30: ='DF raw data'!C35 -> -6.1709084e-06 | F30: -3.39121792e-06 | G30: -1.002542412e-05 | H30: -6.177967919e-06 | J30: -1.393160323e-05 | K30: -0.0001224046037 | L30: 7.507811885e-06 | M30: 6.948039124e-05 | N30: 2.456248897e-09
A31: 12.23291667 | B31: ='DF raw data'!A36 -> -4.5874976e-06 | C31: ='DF raw data'!B36 -> 4.5167044e-06 | D31: ='DF raw data'!C36 -> 6.6199811e-07 | F31: -4.592745697e-06 | G31: 4.532341705e-06 | H31: 6.627554358e-07 | J31: -1.622857314e-05 | K31: -0.000130521 | L31: 9.774571942e-06 | M31: 7.436894791e-05 | N31: 2.635749977e-09
A32: 12.73304667 | B32: ='DF raw data'!A37 -> -5.2146088e-06 | C32: ='DF raw data'!B37 -> -2.1570547e-06 | D32: ='DF raw data'!C37 -> 4.6209666e-06 | F32: -5.220574312e-06 | G32: -2.16452265e-06 | H32: 4.626252986e-06 | J32: -1.883953897e-05 | K32: -0.0001399432186 | L32: 8.692029229e-06 | M32: 7.871609249e-05 | N32: 2.851045739e-09
A33: 13.23317667 | B33: ='DF raw data'!A38 -> 7.5966597e-07 | C33: ='DF raw data'!B38 -> -8.2490724e-06 | D33: ='DF raw data'!C38 -> -1.6924836e-06 | F33: 7.605350279e-07 | G33: -8.277631555e-06 | H33: -1.694419801e-06 | J33: -1.845917258e-05 | K33: -0.0001491752046 | L33: 4.552137359e-06 | M33: 8.099275294e-05 | N33: 3.031824233e-09
A34: 13.73330667 | B34: ='DF raw data'!A39 -> 8.5852362e-06 | C34: ='DF raw data'!B39 -> -5.01253e-06 | D34: ='DF raw data'!C39 -> -8.3212699e-06 | F34: 8.59505771e-06 | G34: -5.029883905e-06 | H34: -8.330789433e-06 | J34: -1.416052637e-05 | K34: -0.0001562573086 | L34: 2.036541521e-06 | M34: 8.201128845e-05 | N34: 3.134184844e-09
A35: 14.23343667 | B35: ='DF raw data'!A40 -> 9.9997906e-06 | C35: ='DF raw data'!B40 -> 3.9962042e-06 | D35: ='DF raw data'!C40 -> -6.8908244e-06 | F35: 1.001123036e-05 | G35: 4.010039479e-06 | H35: -6.898707503e-06 | J35: -9.15360973e-06 | K35: -0.0001608353035 | L35: 4.042082566e-06 | M35: 8.403285521e-05 | N35: 3.184261362e-09
A36: 14.73356667 | B36: ='DF raw data'!A41 -> 3.48618e-06 | C36: ='DF raw data'!B41 -> -7.1891254e-06 | D36: ='DF raw data'!C41 -> -4.103405e-06 | F36: 3.49016819e-06 | G36: -7.214014907e-06 | H36: -4.108099295e-06 | J36: -7.408071913e-06 | K36: -0.0001645403025 | L36: 4.341372902e-07 | M36: 8.424998029e-05 | N36: 3.211802523e-09
A37: 15.23369667 | B37: ='DF raw data'!A42 -> -5.0844474e-06 | C37: ='DF raw data'!B42 -> -6.610323e-06 | D37: ='DF raw data'!C42 -> -7.9045758e-06 | F37: -5.090264008e-06 | G37: -6.633208633e-06 | H37: -7.913618635e-06 | J37: -9.953865651e-06 | K37: -0.0001695185293 | L37: -2.883329343e-06 | M37: 8.280794079e-05 | N37: 3.265512999e-09
A38: 15.73382667 | B38: ='DF raw data'!A43 -> -5.7090883e-06 | C38: ='DF raw data'!B43 -> -2.6915648e-06 | D38: ='DF raw data'!C43 -> -7.1082554e-06 | F38: -5.715619497e-06 | G38: -2.70088328e-06 | H38: -7.116387244e-06 | J38: -1.281241843e-05 | K38: -0.0001759264041 | L38: -4.234122098e-06 | M38: 8.06903293e-05 | N38: 3.356579598e-09
A39: 16.23395667 | B39: ='DF raw data'!A44 -> -2.5147942e-06 | C39: ='DF raw data'!B44 -> -1.6374895e-06 | D39: ='DF raw data'!C44 -> -2.1421888e-06 | F39: -2.517671125e-06 | G39: -1.643158661e-06 | H39: -2.144639464e-06 | J39: -1.407158129e-05 | K39: -0.0001829640241 | L39: -5.055915039e-06 | M39: 7.816171451e-05 | N39: 3.468394501e-09
A40: 16.73408667 | B40: ='DF raw data'!A45 -> -2.1393287e-06 | C40: ='DF raw data'!B45 -> -6.7856445e-06 | D40: ='DF raw data'!C45 -> -8.7211929e-06 | F40: -2.141776092e-06 | G40: -6.809137114e-06 | H40: -8.731169945e-06 | J40: -1.514274777e-05 | K40: -0.0001905373665 | L40: -8.461368784e-06 | M40: 7.392993014e-05 | N40: 3.618882403e-09
A41: 17.23421667 | B41: ='DF raw data'!A46 -> 2.2113142e-07 | C41: ='DF raw data'!B46 -> 1.3554138e-06 | D41: ='DF raw data'!C46 -> -9.102082e-06 | F41: 2.213843943e-07 | G41: 1.360106385e-06 | H41: -9.112494782e-06 | J41: -1.503202679e-05 | K41: -0.0001980553341 | L41: -7.781138778e-06 | M41: 7.003834921e-05 | N41: 3.762173624e-09
A42: 17.73434667 | B42: ='DF raw data'!A47 -> 1.6906694e-07 | C42: ='DF raw data'!B47 -> -1.5791626e-07 | D42: ='DF raw data'!C47 -> 2.4778587e-06 | F42: 1.692603526e-07 | G42: -1.584629827e-07 | H42: 2.48069337e-06 | J42: -1.494737461e-05 | K42: -0.0002055309645 | L42: -7.860390869e-06 | M42: 6.610713192e-05 | N42: 3.904815578e-09
A43: 18.23447667 | B43: ='DF raw data'!A48 -> -2.5442976e-06 | C43: ='DF raw data'!B48 -> -5.2412279e-06 | D43: ='DF raw data'!C48 -> 5.0018557e-06 | F43: -2.547208276e-06 | G43: -5.259373582e-06 | H43: 5.007577823e-06 | J43: -1.622130988e-05 | K43: -0.0002136437283 | L43: -1.049076138e-05 | M43: 6.086038743e-05 | N43: 4.091457576e-09
A44: 18.73460667 | B44: ='DF raw data'!A49 -> -1.6193504e-06 | C44: ='DF raw data'!B49 -> 1.1392073e-05 | D44: ='DF raw data'!C49 -> -2.7754632e-07 | F44: -1.621202937e-06 | G44: 1.143151355e-05 | H44: -2.77863833e-07 | J44: -1.703212211e-05 | K44: -0.0002221620035 | L44: -4.773518505e-06 | M44: 5.847300762e-05 | N44: 4.247938082e-09
A45: 19.23473667 | B45: ='DF raw data'!A50 -> 2.8294321e-06 | C45: ='DF raw data'!B50 -> 1.0099732e-06 | D45: ='DF raw data'!C50 -> -1.8776464e-07 | F45: 2.83266897e-06 | G45: 1.013469833e-06 | H45: -1.879794427e-07 | J45: -1.561541938e-05 | K45: -0.0002299717432 | L45: -4.266651837e-06 | M45: 5.633912704e-05 | N45: 4.378994968e-09
A46: 19.73486667 | B46: ='DF raw data'!A51 -> 4.4602543e-06 | C46: ='DF raw data'!B51 -> -1.3207343e-06 | D46: ='DF raw data'!C51 -> -3.4693453e-06 | F46: 4.465356831e-06 | G46: -1.325306821e-06 | H46: -3.473314231e-06 | J46: -1.338216047e-05 | K46: -0.0002366645631 | L46: -4.929477538e-06 | M46: 5.387374744e-05 | N46: 4.480712391e-09
A47: 20.23499667 | B47: ='DF raw data'!A52 -> 5.6943177e-06 | C47: ='DF raw data'!B52 -> -2.5214456e-06 | D47: ='DF raw data'!C52 -> 3.247626e-06 | F47: 5.700831999e-06 | G47: -2.53017511e-06 | H47: 3.251341284e-06 | J47: -1.053100336e-05 | K47: -0.0002419314338 | L47: -6.194894015e-06 | M47: 5.07754951e-05 | N47: 4.555371169e-09
A48: 20.73512667 | B48: ='DF raw data'!A53 -> 1.138117e-05 | C48: ='DF raw data'!B53 -> 7.5125467e-07 | D48: ='DF raw data'!C53 -> 7.1190757e-06 | F48: 1.139419006e-05 | G48: 7.538555926e-07 | H48: 7.127219923e-06 | J48: -4.832427084e-06 | K48: -0.0002443482756 | L48: -5.817868218e-06 | M48: 4.786580466e-05 | N48: 4.583978577e-09
A49: 21.23525667 | B49: ='DF raw data'!A54 -> 1.4032456e-05 | C49: ='DF raw data'!B54 -> 4.707771e-06 | D49: ='DF raw data'!C54 -> 2.1019609e-06 | F49: 1.404850913e-05 | G49: 4.724069798e-06 | H49: 2.104365543e-06 | J49: 2.193653787e-06 | K49: -0.0002432511635 | L49: -3.45521919e-06 | M49: 4.613774589e-05 | N49: 4.592356082e-09
A50: 21.73538667 | B50: ='DF raw data'!A55 -> 1.3429176e-05 | C50: ='DF raw data'!B55 -> -2.3369164e-06 | D50: ='DF raw data'!C55 -> -1.7991055e-06 | F50: 1.344453898e-05 | G50: -2.34500705e-06 | H50: -1.801163677e-06 | J50: 8.917671066e-06 | K50: -0.0002387911687 | L50: -4.628027566e-06 | M50: 4.382313046e-05 | N50: 4.642840953e-09
A51: 22.23551667 | B51: ='DF raw data'!A56 -> 7.6395308e-06 | C51: ='DF raw data'!B56 -> -7.287329e-06 | D51: ='DF raw data'!C56 -> 2.6343937e-06 | F51: 7.648270423e-06 | G51: -7.312558499e-06 | H51: 2.637407446e-06 | J51: 1.274280055e-05 | K51: -0.0002324181118 | L51: -8.285257447e-06 | M51: 3.967942466e-05 | N51: 4.758383215e-09
A52: 22.73564667 | B52: ='DF raw data'!A57 -> -3.0616723e-06 | C52: ='DF raw data'!B57 -> 3.6829199e-06 | D52: ='DF raw data'!C57 -> 3.5291473e-06 | F52: -3.065174853e-06 | G52: 3.695670556e-06 | H52: 3.533184645e-06 | J52: 1.120981465e-05 | K52: -0.0002268117472 | L52: -6.436941732e-06 | M52: 3.646011699e-05 | N52: 4.841952019e-09
A53: 23.23577667 | B53: ='DF raw data'!A58 -> -7.9628162e-06 | C53: ='DF raw data'!B58 -> 2.1028729e-06 | D53: ='DF raw data'!C58 -> -4.4086974e-07 | F53: -7.971925662e-06 | G53: 2.110153267e-06 | H53: -4.41374095e-07 | J53: 7.222815472e-06 | K53: -0.0002231994005 | L53: -5.381590779e-06 | M53: 3.376862199e-05 | N53: 4.882527857e-09
A54: 23.73590667 | B54: ='DF raw data'!A59 -> -7.2459943e-06 | C54: ='DF raw data'!B59 -> -3.282649e-06 | D54: ='DF raw data'!C59 -> -3.6413198e-06 | F54: -7.254283717e-06 | G54: -3.294013876e-06 | H54: -3.64548547e-06 | J54: 3.594730557e-06 | K54: -0.0002214015679 | L54: -7.029025939e-06 | M54: 3.025319525e-05 | N54: 4.913700607e-09
A55: 24.23603667 | B55: ='DF raw data'!A60 -> -6.5977902e-06 | C55: ='DF raw data'!B60 -> -5.8057549e-06 | D55: ='DF raw data'!C60 -> 1.5883658e-06 | F55: -6.605338072e-06 | G55: -5.825855033e-06 | H55: 1.59018289e-06 | J55: 2.912028269e-07 | K55: -0.0002212559286 | L55: -9.942710817e-06 | M55: 2.528054729e-05 | N55: 4.963184618e-09
A56: 24.73616667 | B56: ='DF raw data'!A61 -> -1.0488749e-05 | C56: ='DF raw data'!B61 -> 5.3897174e-06 | D56: ='DF raw data'!C61 -> 2.6812509e-06 | F56: -1.050074813e-05 | G56: 5.408377168e-06 | H56: 2.684318251e-06 | J56: -4.960536335e-06 | K56: -0.0002237368417 | L56: -7.237819144e-06 | M56: 2.16606968e-05 | N56: 5.0016911e-09
A57: 25.23629667 | B57: ='DF raw data'!A62 -> -1.3695458e-05 | C57: ='DF raw data'!B62 -> -6.9625667e-06 | D57: ='DF raw data'!C62 -> 8.5972954e-07 | F57: -1.37111256e-05 | G57: -6.986671837e-06 | H57: 8.607130706e-07 | J57: -1.181788158e-05 | K57: -0.0002296473188 | L57: -1.073206333e-05 | M57: 1.629326997e-05 | N57: 5.129143984e-09
A58: 25.73642667 | B58: ='DF raw data'!A63 -> -1.0203461e-05 | C58: ='DF raw data'!B63 -> -7.4637201e-06 | D58: ='DF raw data'!C63 -> 2.6984876e-06 | F58: -1.021513376e-05 | G58: -7.489560283e-06 | H58: 2.70157467e-06 | J58: -1.692677643e-05 | K58: -0.0002381129075 | L58: -1.447781711e-05 | M58: 9.052479293e-06 | N58: 5.377269954e-09
A59: 26.23655667 | B59: ='DF raw data'!A64 -> -5.318404e-06 | C59: ='DF raw data'!B64 -> 1.1304944e-05 | D59: ='DF raw data'!C64 -> 1.6366818e-06 | F59: -5.324488254e-06 | G59: 1.13440829e-05 | H59: 1.638554164e-06 | J59: -1.958971274e-05 | K59: -0.0002479103105 | L59: -8.804300931e-06 | M59: 4.649184269e-06 | N59: 5.6079662e-09
A60: 26.73668667 | B60: ='DF raw data'!A65 -> -4.3755193e-07 | C60: ='DF raw data'!B65 -> -1.9147508e-06 | D60: ='DF raw data'!C65 -> -1.9242266e-06 | F60: -4.380524894e-07 | G60: -1.921379868e-06 | H60: -1.926427915e-06 | J60: -1.980879593e-05 | K60: -0.0002578172836 | L60: -9.765240645e-06 | M60: -2.347055351e-07 | N60: 5.851903767e-09
A61: 27.23681667 | B61: ='DF raw data'!A66 -> 8.1006198e-07 | C61: ='DF raw data'!B66 -> -1.6325528e-06 | D61: ='DF raw data'!C66 -> -1.1141977e-06 | F61: 8.109886909e-07 | G61: -1.638204869e-06 | H61: -1.115472342e-06 | J61: -1.940319616e-05 | K61: -0.0002675214041 | L61: -1.058455605e-05 | M61: -5.52835955e-06 | N61: 6.096225698e-09
A62: 27.73694667 | B62: ='DF raw data'!A67 -> 2.3045818e-06 | C62: ='DF raw data'!B67 -> 5.7799925e-06 | D62: ='DF raw data'!C67 -> 5.732089e-06 | F62: 2.307218242e-06 | G62: 5.800003441e-06 | H62: 5.73864651e-06 | J62: -1.82492871e-05 | K62: -0.0002766484201 | L62: -7.683800325e-06 | M62: -9.371258607e-06 | N62: 6.292315302e-09
A63: 28.23707667 | B63: ='DF raw data'!A68 -> 6.2506083e-06 | C63: ='DF raw data'!B68 -> -1.1606905e-05 | D63: ='DF raw data'!C68 -> 8.9484483e-06 | F63: 6.257758996e-06 | G63: -1.164708932e-05 | H63: 8.958685325e-06 | J63: -1.511959409e-05 | K63: -0.0002842101827 | L63: -1.350885911e-05 | M63: -1.612744431e-05 | N63: 6.497914444e-09
A64: 28.73720667 | B64: ='DF raw data'!A69 -> 3.0549122e-06 | C64: ='DF raw data'!B69 -> -1.1163523e-05 | D64: ='DF raw data'!C69 -> 4.1377193e-06 | F64: 3.05840702e-06 | G64: -1.120217229e-05 | H64: 4.142452851e-06 | J64: -1.358999299e-05 | K64: -0.0002910069459 | L64: -1.911140154e-05 | M64: -2.568562956e-05 | N64: 6.772952724e-09
A65: 29.23733667 | B65: ='DF raw data'!A70 -> -3.2398932e-06 | C65: ='DF raw data'!B70 -> -2.4471253e-06 | D65: ='DF raw data'!C70 -> -1.9496488e-06 | F65: -3.243599638e-06 | G65: -2.455597505e-06 | H65: -1.951879198e-06 | J65: -1.521221448e-05 | K65: -0.0002986150307 | L65: -2.033951952e-05 | M65: -3.585803346e-05 | N65: 7.09559035e-09
A66: 29.73746667 | B66: ='DF raw data'!A71 -> -3.6303775e-06 | C66: ='DF raw data'!B71 -> 2.1136814e-06 | D66: ='DF raw data'!C71 -> 4.1375333e-07 | F66: -3.634530652e-06 | G66: 2.120999187e-06 | H66: 4.142266638e-07 | J66: -1.702995229e-05 | K66: -0.0003071322207 | L66: -1.927874419e-05 | M66: -4.549991179e-05 | N66: 7.426520996e-09
A67: 30.23759667 | B67: ='DF raw data'!A72 -> 1.1728449e-06 | C67: ='DF raw data'!B72 -> 4.5990282e-06 | D67: ='DF raw data'!C72 -> 5.0471813e-06 | F67: 1.174186635e-06 | G67: 4.614950519e-06 | H67: 5.052955275e-06 | J67: -1.644270633e-05 | K67: -0.0003153557115 | L67: -1.697066899e-05 | M67: -5.398745247e-05 | N67: 7.705776682e-09
A68: 30.73772667 | B68: ='DF raw data'!A73 -> 5.2912178e-06 | C68: ='DF raw data'!B73 -> -7.7517898e-06 | D68: ='DF raw data'!C73 -> 5.184213e-06 | F68: 5.297270953e-06 | G68: -7.778627311e-06 | H68: 5.19014374e-06 | J68: -1.379338221e-05 | K68: -0.0003222541957 | L68: -2.086099387e-05 | M68: -6.442066134e-05 | N68: 8.018577218e-09
A69: 31.23785667 | B69: ='DF raw data'!A74 -> 2.7367173e-06 | C69: ='DF raw data'!B74 -> 3.3418776e-06 | D69: ='DF raw data'!C74 -> -2.4797532e-06 | F69: 2.739848105e-06 | G69: 3.353447531e-06 | H69: -2.482590038e-06 | J69: -1.242310198e-05 | K69: -0.0003284673617 | L69: -1.918383415e-05 | M69: -7.401507231e-05 | N69: 8.279821602e-09
A70: 31.73798667 | B70: ='DF raw data'!A75 -> -1.7995739e-06 | C70: ='DF raw data'!B75 -> -6.923211e-06 | D70: ='DF raw data'!C75 -> -5.7307202e-06 | F70: -1.801632613e-06 | G70: -6.947179884e-06 | H70: -5.737276144e-06 | J70: -1.332415249e-05 | K70: -0.0003351311701 | L70: -2.265832723e-05 | M70: -8.534718151e-05 | N70: 8.625377839e-09
A71: 32.23811667 | B71: ='DF raw data'!A76 -> -3.0310343e-06 | C71: ='DF raw data'!B76 -> 8.7947888e-07 | D71: ='DF raw data'!C76 -> 1.3859741e-06 | F71: -3.034501803e-06 | G71: =(1-$G$1*($B$2-$G$2))*C71*$M$2/$M$1 -> 8.825237283e-07 | H71: 1.387559654e-06 | J71: -1.484179788e-05 | K71: -0.0003425539985 | L71: -2.221695064e-05 | M71: -9.645854503e-05 | N71: 8.982406573e-09
A72: =A71+$B$1 -> 32.73824667 | B72: ='DF raw data'!A77 -> 1.276822e-07 | C72: ='DF raw data'!B77 -> 6.4251185e-07 | D72: ='DF raw data'!C77 -> 5.2339988e-06 | F72: 1.278282684e-07 | G72: 6.447362935e-07 | H72: 5.239986495e-06 | J72: =F72*$B$1+J71 -> -1.477786713e-05 | K72: =J72*$B$1+K71 -> -0.0003499448531 | L72: =G72*$B$1+L71 -> -2.189449867e-05 | M72: =L72*$B$1+M71 -> -0.0001074086407 | N72: =(J72^2+L72^2)*$B$1+N71 -> 9.331374495e-09
A73: 33.23837667 | B73: ='DF raw data'!A78 -> 1.9443351e-06 | C73: ='DF raw data'!B78 -> 2.9826926e-06 | D73: ='DF raw data'!C78 -> 1.0122736e-06 | F73: 1.946559419e-06 | G73: 2.993018995e-06 | H73: 1.013431641e-06 | J73: -1.380433437e-05 | K73: -0.0003568488149 | L73: -2.039760008e-05 | M73: -0.0001176100924 | N73: 9.634764224e-09
A74: 33.73850667 | B74: ='DF raw data'!A79 -> 3.2324656e-06 | C74: ='DF raw data'!B79 -> 1.7863833e-06 | D74: ='DF raw data'!C79 -> -1.9877857e-06 | F74: 3.236163541e-06 | G74: 1.792567947e-06 | H74: -1.990059727e-06 | J74: -1.21858319e-05 | K74: -0.000362943315 | L74: -1.950108308e-05 | M74: -0.0001273631691 | N74: 9.899226337e-09
A75: 34.23863667 | B75: ='DF raw data'!A80 -> 3.6430415e-06 | C75: ='DF raw data'!B80 -> 3.1840329e-06 | D75: ='DF raw data'!C80 -> 2.2453841e-07 | F75: =(1-$G$1*($B$2-$G$2))*B75 -> 3.647209139e-06 | G75: 3.195056356e-06 | H75: =(1-$G$1*($B$2-$G$2))*D75 -> 2.247952819e-07 | J75: -1.036175319e-05 | K75: -0.0003681255386 | L75: -1.790313954e-05 | M75: -0.0001363170662 | N75: 1.011322613e-08
A76: 34.73876667 | B76: ='DF raw data'!A81 -> 1.426226e-06 | C76: ='DF raw data'!B81 -> 7.8989515e-06 | D76: ='DF raw data'!C81 -> 1.4115964e-06 | F76: 1.427857603e-06 | G76: 7.9262985e-06 | H76: 1.413211266e-06 | J76: -9.647638765e-06 | K76: -0.0003729506122 | L76: -1.393895987e-05 | M76: -0.0001432883582 | N76: 1.025694926e-08
A77: 35.23889667 | B77: ='DF raw data'!A82 -> -2.0894001e-06 | C77: ='DF raw data'!B82 -> 4.4158342e-06 | D77: ='DF raw data'!C82 -> -2.2243853e-06 | F77: -2.091790374e-06 | G77: 4.431122282e-06 | H77: -2.226929997e-06 | J77: -1.069380589e-05 | K77: -0.0003782989053 | L77: -1.172282269e-05 | M77: -0.0001491512935 | N77: 1.038287302e-08
A78: 35.73902667 | B78: ='DF raw data'!A83 -> -7.6149181e-06 | C78: ='DF raw data'!B83 -> -5.3404688e-07 | D78: ='DF raw data'!C83 -> -4.8585948e-06 | F78: -7.623629566e-06 | G78: -5.358958064e-07 | H78: -4.864153032e-06 | J78: -1.450661174e-05 | K78: -0.0003855540971 | L78: -1.199084025e-05 | M78: -0.0001551482725 | N78: 1.056003008e-08
A79: 36.23915667 | B79: ='DF raw data'!A84 -> -9.6928952e-06 | C79: ='DF raw data'!B84 -> 7.34683e-06 | D79: ='DF raw data'!C84 -> -7.5773946e-06 | F79: -9.703983872e-06 | G79: 7.372265497e-06 | H79: -7.586063139e-06 | J79: -1.935986519e-05 | K79: -0.0003952365464 | L79: -8.303749112e-06 | M79: -0.0001593012265 | N79: 1.078196608e-08
A80: 36.73928667 | B80: ='DF raw data'!A85 -> -5.0158287e-06 | C80: ='DF raw data'!B85 -> 3.6734466e-06 | D80: ='DF raw data'!C85 -> 1.2567931e-06 | F80: -5.021566808e-06 | G80: 3.686164458e-06 | H80: 1.258230871e-06 | J80: -2.18713014e-05 | K80: -0.0004061750404 | L80: -6.460187681e-06 | M80: -0.0001625321602 | N80: 1.104207762e-08
A81: 37.23941667 | B81: ='DF raw data'!A86 -> -3.1399844e-07 | C81: ='DF raw data'!B86 -> 1.6137459e-07 | D81: ='DF raw data'!C86 -> 4.6748087e-06 | F81: -3.143576542e-07 | G81: 1.619332858e-07 | H81: 4.680156681e-06 | J81: -2.20285211e-05 | K81: -0.0004171921647 | L81: -6.379199987e-06 | M81: -0.0001657225895 | N81: 1.130512096e-08
A82: 37.73954667 | B82: ='DF raw data'!A87 -> 4.1642181e-08 | C82: ='DF raw data'!B87 -> -2.3954915e-06 | D82: ='DF raw data'!C87 -> 2.3181951e-06 | F82: 4.168981966e-08 | G82: -2.403784943e-06 | H82: 2.320847115e-06 | J82: -2.200767077e-05 | K82: -0.000428198861 | L82: -7.581404951e-06 | M82: -0.0001695142775 | N82: 1.157609903e-08
A83: 38.23967667 | B83: ='DF raw data'!A88 -> -1.4786427e-06 | C83: ='DF raw data'!B88 -> 1.4103873e-06 | D83: ='DF raw data'!C88 -> 1.983763e-06 | F83: -1.480334267e-06 | G83: 1.415270209e-06 | H83: 1.986032425e-06 | J83: -2.274803034e-05 | K83: -0.0004395758335 | L83: -6.873585861e-06 | M83: -0.000172951964 | N83: 1.185853198e-08
A84: 38.73980667 | B84: ='DF raw data'!A89 -> -2.1699e-06 | C84: ='DF raw data'!B89 -> -1.9306306e-06 | D84: ='DF raw data'!C89 -> -8.9057482e-07 | F84: -2.172382366e-06 | G84: -1.937314646e-06 | H84: -8.915936376e-07 | J84: -2.383450394e-05 | K84: -0.0004514961839 | L84: -7.842495035e-06 | M84: -0.0001768742311 | N84: 1.217340798e-08
A85: 39.23993667 | B85: ='DF raw data'!A90 -> -3.2963633e-06 | C85: ='DF raw data'!B90 -> 6.4611386e-06 | D85: ='DF raw data'!C90 -> -7.1923146e-06 | F85: -3.30013434e-06 | G85: 6.483507741e-06 | H85: -7.200542608e-06 | J85: -2.548500012e-05 | K85: -0.000464241997 | L85: -4.599898309e-06 | M85: -0.0001791747782 | N85: 1.250881731e-08
A86: 39.74006667 | B86: ='DF raw data'!A91 -> 6.8290416e-07 | C86: ='DF raw data'!B91 -> -5.8880823e-06 | D86: ='DF raw data'!C91 -> -6.3284401e-06 | F86: 6.836854024e-07 | G86: -5.908467459e-06 | H86: -6.335679835e-06 | J86: -2.514306854e-05 | K86: -0.0004768167999 | L86: -7.554900139e-06 | M86: -0.0001829532104 | N86: 1.285353212e-08
A87: 40.24019667 | B87: ='DF raw data'!A92 -> -2.1102037e-08 | C87: ='DF raw data'!B92 -> -1.431478e-06 | D87: ='DF raw data'!C92 -> 4.0706313e-06 | F87: -2.112617773e-08 | G87: -1.436433927e-06 | H87: 4.075288102e-06 | J87: -2.515363438e-05 | K87: -0.0004893968871 | L87: -8.273303839e-06 | M87: -0.0001870909379 | N87: 1.320419971e-08
A88: 40.74032667 | B88: ='DF raw data'!A93 -> -4.1333346e-06 | C88: ='DF raw data'!B93 -> 3.959246e-06 | D88: ='DF raw data'!C93 -> 3.726213e-06 | F88: -4.138063135e-06 | G88: 3.972953326e-06 | H88: 3.730475788e-06 | J88: -2.722320389e-05 | K88: -0.000503012028 | L88: -6.286310692e-06 | M88: -0.0001902349104 | N88: 1.359461146e-08
A89: 41.24045667 | B89: ='DF raw data'!A94 -> -7.9152409e-07 | C89: ='DF raw data'!B94 -> 5.307128e-06 | D89: ='DF raw data'!C94 -> -5.4458665e-06 | F89: -7.924295936e-07 | G89: 5.325501835e-06 | H89: -5.452096571e-06 | J89: -2.761952171e-05 | K89: -0.0005168253794 | L89: -3.62286746e-06 | M89: -0.0001920468151 | N89: 1.398269391e-08
A90: 41.74058667 | B90: ='DF raw data'!A95 -> 6.4710143e-06 | C90: ='DF raw data'!B95 -> 2.463262e-06 | D90: ='DF raw data'!C95 -> -3.6013894e-06 | F90: 6.47841714e-06 | G90: 2.471790072e-06 | H90: -3.605509389e-06 | J90: -2.437947094e-05 | K90: -0.0005290182842 | L90: -2.386651091e-06 | M90: -0.000193240451 | N90: 1.428279927e-08
A91: 42.24071667 | B91: ='DF raw data'!A96 -> 1.1552183e-05 | C91: ='DF raw data'!B96 -> 6.5270515e-06 | D91: ='DF raw data'!C96 -> 8.3584446e-06 | F91: 1.15653987e-05 | G91: 6.549648838e-06 | H91: 8.368006661e-06 | J91: -1.859526809e-05 | K91: -0.0005383183356 | L91: 8.89024782e-07 | M91: -0.000192795823 | N91: 1.44561315e-08
A92: 42.74084667 | B92: ='DF raw data'!A97 -> 1.2755473e-05 | C92: ='DF raw data'!B97 -> -9.4548586e-06 | D92: ='DF raw data'!C97 -> 6.6327652e-06 | F92: 1.277006526e-05 | G92: -9.487592314e-06 | H92: 6.640353083e-06 | J92: -1.220857535e-05 | K92: -0.0005444242104 | L92: -3.856004762e-06 | M92: -0.0001947243267 | N92: 1.453811185e-08
A93: 43.24097667 | B93: ='DF raw data'!A98 -> 7.9443753e-06 | C93: ='DF raw data'!B98 -> -9.5495916e-06 | D93: ='DF raw data'!C98 -> 3.6516812e-07 | F93: 7.953463665e-06 | G93: -9.582653289e-06 | H93: 3.655858723e-07 | J93: -8.230809569e-06 | K93: -0.0005485406852 | L93: -8.648577151e-06 | M93: -0.0001990497395 | N93: 1.460940244e-08
A94: 43.74110667 | B94: ='DF raw data'!A99 -> 3.4030104e-06 | C94: ='DF raw data'!B99 -> -4.9462169e-06 | D94: ='DF raw data'!C99 -> 2.9209755e-06 | F94: 3.406903444e-06 | G94: -4.963341222e-06 | H94: 2.924317096e-06 | J94: -6.52691495e-06 | K94: -0.0005518049912 | L94: -1.1130893e-05 | M94: -0.0002046166331 | N94: 1.469267278e-08
A95: 44.24123667 | B95: ='DF raw data'!A100 -> 4.5562234e-07 | C95: ='DF raw data'!B100 -> -1.963718e-06 | D95: ='DF raw data'!C100 -> 2.5908034e-06 | F95: 4.56143572e-07 | G95: -1.970516598e-06 | H95: 2.593767279e-06 | J95: -6.298783865e-06 | K95: -0.000554955202 | L95: -1.211640746e-05 | M95: -0.0002106764119 | N95: 1.478593803e-08
A96: 44.74136667 | B96: ='DF raw data'!A101 -> -1.3578261e-06 | C96: ='DF raw data'!B101 -> 9.6980989e-07 | D96: ='DF raw data'!C101 -> -8.7766364e-07 | F96: -1.359379453e-06 | G96: 9.731674737e-07 | H96: -8.786676872e-07 | J96: -6.978650311e-06 | K96: -0.0005584454344 | L96: -1.162969721e-05 | M96: -0.0002164927724 | N96: 1.487793765e-08
A97: 45.24149667 | B97: ='DF raw data'!A102 -> 4.8717595e-08 | C97: ='DF raw data'!B102 -> 4.3665978e-06 | D97: ='DF raw data'!C102 -> 2.2111112e-06 | F97: 4.877332793e-08 | G97: 4.38171542e-06 | H97: 2.213640711e-06 | J97: -6.954257306e-06 | K97: -0.0005619234671 | L97: -9.438269881e-06 | M97: -0.0002212131343 | N97: 1.494667684e-08
A98: 45.74162667 | B98: ='DF raw data'!A103 -> 2.7674891e-06 | C98: ='DF raw data'!B103 -> 1.1679488e-06 | D98: ='DF raw data'!C103 -> 2.9889948e-06 | F98: 2.770655108e-06 | G98: 1.171992361e-06 | H98: 2.99241421e-06 | J98: -5.568569567e-06 | K98: -0.0005647084758 | L98: -8.852121342e-06 | M98: -0.0002256403458 | N98: 1.500137556e-08
A99: 46.24175667 | B99: ='DF raw data'!A104 -> 1.0179198e-06 | C99: ='DF raw data'!B104 -> 7.6855986e-06 | D99: ='DF raw data'!C104 -> -2.9116213e-06 | F99: 1.0190843e-06 | G99: 7.71220695e-06 | H99: -2.914952195e-06 | J99: -5.058894936e-06 | K99: -0.0005672385809 | L99: -4.99501528e-06 | M99: -0.0002281385027 | N99: 1.502665343e-08
A100: 46.74188667 | B100: ='DF raw data'!A105 -> -4.6178178e-07 | C100: ='DF raw data'!B105 -> 5.8639171e-06 | D100: ='DF raw data'!C105 -> -1.6848293e-06 | F100: -4.623100584e-07 | G100: 5.884218597e-06 | H100: -1.686756745e-06 | J100: -5.290110066e-06 | K100: -0.0005698843236 | L100: -2.052141033e-06 | M100: -0.00022916484 | N100: 1.504275589e-08
A101: 47.24201667 | B101: ='DF raw data'!A106 -> -1.3015564e-06 | C101: ='DF raw data'!B106 -> -5.5002083e-06 | D101: ='DF raw data'!C106 -> 7.3620561e-07 | F101: -1.303045381e-06 | G101: -5.519250599e-06 | H101: 7.370478292e-07 | J101: -5.941802152e-06 | K101: -0.0005728559971 | L101: -4.812483835e-06 | M101: -0.0002315717076 | N101: 1.5071996e-08
A102: 47.74214667 | B102: ='DF raw data'!A107 -> -3.8436419e-06 | C102: ='DF raw data'!B107 -> -3.2699706e-06 | D102: ='DF raw data'!C107 -> -6.7398119e-06 | F102: -3.848039026e-06 | G102: -3.281291582e-06 | H102: -6.747522245e-06 | J102: -7.86632191e-06 | K102: -0.0005767901807 | L102: -6.453556194e-06 | M102: -0.0002347993246 | N102: 1.512377316e-08
A103: 48.24227667 | B103: ='DF raw data'!A108 -> -3.3304723e-06 | C103: ='DF raw data'!B108 -> 2.2611166e-08 | D103: ='DF raw data'!C108 -> -6.0352045e-06 | F103: -3.33428236e-06 | G103: 2.268944823e-08 | H103: -6.042108774e-06 | J103: -9.533896547e-06 | K103: -0.0005815583684 | L103: -6.44220852e-06 | M103: -0.0002380212664 | N103: 1.518998899e-08
A104: 48.74240667 | B104: ='DF raw data'!A109 -> 2.647858e-07 | C104: ='DF raw data'!B109 -> -6.9882913e-07 | D104: ='DF raw data'!C109 -> 3.4395818e-08 | F104: 2.65088715e-07 | G104: -7.012485499e-07 | H104: 3.443516682e-08 | J104: -9.401317728e-06 | K104: -0.0005862602494 | L104: -6.792923957e-06 | M104: -0.0002414186114 | N104: 1.525727077e-08
A105: 49.24253667 | B105: ='DF raw data'!A110 -> 2.3261242e-07 | C105: ='DF raw data'!B110 -> 1.6992574e-06 | D105: ='DF raw data'!C110 -> 6.7688657e-06 | F105: 2.328785286e-07 | G105: 1.705140408e-06 | H105: 6.776609282e-06 | J105: -9.28484819e-06 | K105: -0.0005909038806 | L105: -5.940132085e-06 | M105: -0.0002443894497 | N105: 1.531803336e-08
A106: 49.74266667 | B106: ='DF raw data'!A111 -> -2.1040851e-06 | C106: ='DF raw data'!B111 -> 3.0502063e-06 | D106: ='DF raw data'!C111 -> 1.4682943e-05 | F106: -2.106492173e-06 | G106: 3.060766435e-06 | H106: 1.469974029e-05 | J106: -1.033836812e-05 | K106: -0.0005960744086 | L106: -4.409350968e-06 | M106: -0.0002465946984 | N106: 1.538121189e-08
A107: 50.24279667 | B107: ='DF raw data'!A112 -> -1.75612e-06 | C107: ='DF raw data'!B112 -> 4.7228505e-06 | D107: ='DF raw data'!C112 -> 1.1382464e-05 | F107: -1.758129001e-06 | G107: 4.739201505e-06 | H107: 1.139548554e-05 | J107: -1.121766118e-05 | K107: -0.0006016846975 | L107: -2.03913412e-06 | M107: -0.0002476145306 | N107: 1.544622579e-08
A108: 50.74292667 | B108: ='DF raw data'!A113 -> 2.9181424e-06 | C108: ='DF raw data'!B113 -> 5.3813137e-06 | D108: ='DF raw data'!C113 -> 1.3976884e-06 | F108: 2.921480755e-06 | G108: 5.399944373e-06 | H108: 1.399287356e-06 | J108: -9.756541008e-06 | K108: -0.0006065642363 | L108: 6.615400596e-07 | M108: -0.0002472836745 | N108: 1.549405208e-08
A109: 51.24305667 | B109: ='DF raw data'!A114 -> 1.0232546e-05 | C109: ='DF raw data'!B114 -> -6.127716e-06 | D109: ='DF raw data'!C114 -> -2.6719622e-06 | F109: 1.024425203e-05 | G109: -6.148930796e-06 | H109: -2.675018925e-06 | J109: -4.633083239e-06 | K109: -0.0006088813803 | L109: -2.4137247e-06 | M109: -0.0002484908507 | N109: 1.55077014e-08
A110: 51.74318667 | B110: ='DF raw data'!A115 -> 1.4502707e-05 | C110: ='DF raw data'!B115 -> 3.6166068e-06 | D110: ='DF raw data'!C115 -> -3.3153387e-06 | F110: 1.45192981e-05 | G110: 3.629127873e-06 | H110: -3.319131447e-06 | J110: 2.628453319e-06 | K110: -0.0006075668119 | L110: -5.986889767e-07 | M110: -0.000248790273 | N110: 1.551133594e-08
A111: 52.24331667 | B111: ='DF raw data'!A116 -> 6.1325277e-06 | C111: ='DF raw data'!B116 -> -1.258423e-06 | D111: ='DF raw data'!C116 -> -2.6764878e-06 | F111: 6.139543312e-06 | G111: -1.262779793e-06 | H111: -2.679549702e-06 | J111: 5.699023115e-06 | K111: -0.0006047165595 | L111: -1.230243034e-06 | M111: -0.0002494055544 | N111: 1.552833654e-08
A112: 52.74344667 | B112: ='DF raw data'!A117 -> -7.9341144e-06 | C112: ='DF raw data'!B117 -> 4.4115632e-06 | D112: ='DF raw data'!C117 -> -4.6063556e-06 | F112: -7.943191027e-06 | G112: 4.426836495e-06 | H112: -4.611625271e-06 | J112: 1.726394987e-06 | K112: -0.0006038531375 | L112: 9.83750702e-07 | M112: -0.0002489135512 | N112: 1.553031115e-08
A113: 53.24357667 | B113: ='DF raw data'!A118 -> -1.1041834e-05 | C113: ='DF raw data'!B118 -> 1.4089169e-05 | D113: ='DF raw data'!C118 -> -1.0467096e-06 | F113: -1.105446586e-05 | G113: 1.413794718e-05 | H113: -1.047907036e-06 | J113: -3.802275023e-06 | K113: -0.0006057547694 | L113: 8.054562227e-06 | M113: -0.000244885223 | N113: 1.55699881e-08
A114: 53.74370667 | B114: ='DF raw data'!A119 -> -6.4292481e-06 | C114: ='DF raw data'!B119 -> -2.6219157e-06 | D114: ='DF raw data'!C119 -> 8.3843281e-07 | F114: -6.43660316e-06 | G114: -2.630993048e-06 | H114: 8.393919771e-07 | J114: -7.021413361e-06 | K114: -0.0006092663888 | L114: 6.738723674e-06 | M114: -0.0002415149851 | N114: 1.561735574e-08
A115: 54.24383667 | B115: ='DF raw data'!A120 -> -6.6581988e-06 | C115: ='DF raw data'!B120 -> -1.647363e-06 | D115: ='DF raw data'!C120 -> -1.0678754e-06 | F115: -6.665815779e-06 | G115: -1.653066344e-06 | H115: -1.069097049e-06 | J115: -1.035518781e-05 | K115: -0.0006144453289 | L115: 5.911975603e-06 | M115: -0.0002385582287 | N115: 1.56884649e-08
A116: 54.74396667 | B116: ='DF raw data'!A121 -> -9.3277085e-06 | C116: ='DF raw data'!B121 -> 5.0174754e-07 | D116: ='DF raw data'!C121 -> 1.4088679e-06 | F116: -9.338379399e-06 | G116: 5.034846427e-07 | H116: 1.410479645e-06 | J116: -1.50255915e-05 | K116: -0.000621960078 | L116: 6.163783378e-06 | M116: -0.0002354755358 | N116: 1.582037951e-08
A117: 55.24409667 | B117: ='DF raw data'!A122 -> -6.9470902e-06 | C117: ='DF raw data'!B122 -> 7.2030275e-07 | D117: ='DF raw data'!C122 -> 6.2413039e-07 | F117: -6.955037671e-06 | G117: 7.227965138e-07 | H117: 6.248443952e-07 | J117: -1.850401449e-05 | K117: -0.0006312144907 | L117: 6.525275598e-06 | M117: -0.0002322120497 | N117: 1.601291844e-08
A118: 55.74422667 | B118: ='DF raw data'!A123 -> 1.0127798e-06 | C118: ='DF raw data'!B123 -> 2.7688086e-06 | D118: ='DF raw data'!C123 -> -2.1823885e-06 | F118: 1.01393842e-06 | G118: 2.778394506e-06 | H118: -2.184885152e-06 | J118: -1.799691346e-05 | K118: -0.0006402152871 | L118: 7.914834042e-06 | M118: -0.0002282536037 | N118: 1.620623543e-08
A119: 56.24435667 | B119: ='DF raw data'!A124 -> 5.6054082e-06 | C119: ='DF raw data'!B124 -> 1.4751237e-05 | D119: ='DF raw data'!C124 -> 1.6790236e-07 | F119: 5.611820787e-06 | G119: 1.480230733e-05 | H119: 1.680944403e-07 | J119: -1.519027353e-05 | K119: -0.0006478123986 | L119: 1.531791201e-05 | M119: -0.0002205926564 | N119: 1.643898735e-08
A120: 56.74448667 | B120: ='DF raw data'!A125 -> 5.1000475e-06 | C120: ='DF raw data'!B125 -> 1.0558954e-05 | D120: ='DF raw data'!C125 -> -7.1806551e-07 | F120: 5.105881954e-06 | G120: 1.059551021e-05 | H120: -7.188869769e-07 | J120: -1.263666879e-05 | K120: -0.0006541323757 | L120: 2.061704453e-05 | M120: -0.0002102814539 | N120: 1.673143733e-08
A121: 57.24461667 | B121: ='DF raw data'!A126 -> 3.5090084e-06 | C121: ='DF raw data'!B126 -> 7.2572993e-06 | D121: ='DF raw data'!C126 -> -5.3757881e-06 | F121: 3.513022706e-06 | G121: 7.282424833e-06 | H121: -5.381938002e-06 | J121: -1.087970075e-05 | K121: -0.0006595736405 | L121: 2.425920366e-05 | M121: -0.0001981486984 | N121: 1.708496765e-08
A122: 57.74474667 | B122: ='DF raw data'!A127 -> 2.2632639e-06 | C122: ='DF raw data'!B127 -> -3.7000088e-06 | D122: ='DF raw data'!C127 -> -5.0060785e-06 | F122: 2.265853074e-06 | G122: -3.712818619e-06 | H122: -5.011805454e-06 | J122: -9.746479648e-06 | K122: -0.0006644481473 | L122: 2.240231168e-05 | M122: -0.0001869446303 | N122: 1.738347396e-08
A123: 58.24487667 | B123: ='DF raw data'!A128 -> 6.2302985e-07 | C123: ='DF raw data'!B128 -> -8.9945306e-06 | D123: ='DF raw data'!C128 -> -8.7766364e-07 | F123: 6.237425961e-07 | G123: -9.02567061e-06 | H123: -8.786676872e-07 | J123: -9.434527264e-06 | K123: -0.0006691666375 | L123: 1.788830304e-05 | M123: -0.0001779981533 | N123: 1.758802798e-08
A124: 58.74500667 | B124: ='DF raw data'!A129 -> -3.501284e-06 | C124: ='DF raw data'!B129 -> -1.8452363e-06 | D124: ='DF raw data'!C129 -> -1.7327487e-06 | F124: -3.505289469e-06 | G124: -1.851624702e-06 | H124: -1.734730965e-06 | J124: -1.118762769e-05 | K124: -0.0006747619057 | L124: 1.696224998e-05 | M124: -0.0001695148232 | N124: 1.779452212e-08
A125: 59.24513667 | B125: ='DF raw data'!A130 -> -5.2002574e-06 | C125: ='DF raw data'!B130 -> -4.9458167e-06 | D125: ='DF raw data'!C130 -> -3.4957679e-06 | F125: -5.206206494e-06 | G125: -4.962939637e-06 | H125: -3.499767058e-06 | J125: -1.379140774e-05 | K125: -0.0006816594024 | L125: 1.448013498e-05 | M125: -0.0001622728733 | N125: 1.799451272e-08
A126: 59.74526667 | B126: ='DF raw data'!A131 -> -4.7177928e-06 | C126: ='DF raw data'!B131 -> -7.9463166e-07 | D126: ='DF raw data'!C131 -> -5.1556249e-06 | F126: -4.723189955e-06 | G126: -7.973827583e-07 | H126: -5.161522935e-06 | J126: -1.615361673e-05 | K126: -0.0006897383108 | L126: 1.408133994e-05 | M126: -0.0001552303727 | N126: 1.822418415e-08
A127: 60.24539667 | B127: ='DF raw data'!A132 -> -5.1841039e-06 | C127: ='DF raw data'!B132 -> 3.1508109e-06 | D127: ='DF raw data'!C132 -> -2.9568778e-06 | F127: -5.190034515e-06 | G127: 3.161719338e-06 | H127: -2.960260468e-06 | J127: -1.874930869e-05 | K127: -0.0006991154025 | L127: 1.566261063e-05 | M127: -0.0001473970313 | N127: 1.852268872e-08
A128: 60.74552667 | B128: ='DF raw data'!A133 -> -5.4788029e-06 | C128: ='DF raw data'!B133 -> 2.2412362e-06 | D128: ='DF raw data'!C133 -> 3.6932711e-06 | F128: -5.485070651e-06 | G128: 2.248995595e-06 | H128: 3.697496202e-06 | J128: -2.149255708e-05 | K128: -0.0007098644751 | L128: 1.67874008e-05 | M128: -0.0001390011485 | N128: 1.889465882e-08
A129: 61.24565667 | B129: ='DF raw data'!A134 -> -1.7254152e-06 | C129: ='DF raw data'!B134 -> -6.2611425e-06 | D129: ='DF raw data'!C134 -> 7.4603654e-06 | F129: -1.727389075e-06 | G129: -6.282819233e-06 | H129: 7.468900058e-06 | J129: -2.235647618e-05 | K129: -0.0007210456195 | L129: 1.364517442e-05 | M129: -0.0001321767874 | N129: 1.923774941e-08
A130: 61.74578667 | B130: ='DF raw data'!A135 -> 5.3253275e-06 | C130: ='DF raw data'!B135 -> -6.8628901e-07 | D130: ='DF raw data'!C135 -> 3.4125464e-06 | F130: 5.331419675e-06 | G130: -6.886650146e-07 | H130: 3.416450353e-06 | J130: -1.969007325e-05 | K130: -0.0007308932159 | L130: 1.330075238e-05 | M130: -0.0001255246821 | N130: 1.952012731e-08
A131: 62.24591667 | B131: ='DF raw data'!A136 -> 7.6532806e-06 | C131: ='DF raw data'!B136 -> -7.5572525e-06 | D131: ='DF raw data'!C136 -> -8.2950473e-06 | F131: 7.662035953e-06 | G131: -7.583416502e-06 | H131: -8.304536834e-06 | J131: -1.585805921e-05 | K131: -0.000738824307 | L131: 9.508058288e-06 | M131: -0.0001207694169 | N131: 1.969111236e-08
A132: 62.74604667 | B132: ='DF raw data'!A137 -> 7.277014e-06 | C132: ='DF raw data'!B137 -> -3.1409461e-06 | D132: ='DF raw data'!C137 -> -8.6515111e-06 | F132: 7.285338904e-06 | G132: -3.151820385e-06 | H132: -8.661408429e-06 | J132: -1.221444267e-05 | K132: -0.0007449331162 | L132: 7.931738359e-06 | M132: -0.0001168025166 | N132: 1.979719248e-08
A133: 63.24617667 | B133: ='DF raw data'!A138 -> 6.9490738e-06 | C133: ='DF raw data'!B138 -> 9.0201402e-06 | D133: ='DF raw data'!C138 -> -2.2899417e-06 | F133: 6.95702354e-06 | G133: 9.051368873e-06 | H133: -2.292561393e-06 | J133: -8.735026484e-06 | K133: -0.000749301765 | L133: 1.245859947e-05 | M133: -0.0001105715973 | N133: 1.991298127e-08
A134: 63.74630667 | B134: ='DF raw data'!A139 -> 5.0454469e-06 | C134: ='DF raw data'!B139 -> 4.0973437e-06 | D134: ='DF raw data'!C139 -> 2.6886354e-07 | F134: 5.051218891e-06 | G134: 4.111529134e-06 | H134: 2.691711199e-07 | J134: -6.20876038e-06 | K134: -0.0007524069524 | L134: 1.451489854e-05 | M134: -0.0001033122611 | N134: 2.003762916e-08
A135: 64.24643667 | B135: ='DF raw data'!A140 -> 2.3914226e-06 | C135: ='DF raw data'!B140 -> -6.2432655e-06 | D135: ='DF raw data'!C140 -> 6.5598201e-06 | F135: 2.394158387e-06 | G135: =(1-$G$1*($B$2-$G$2))*C135*$M$2/$M$1 -> -6.264880341e-06 | H135: 6.567324534e-06 | J135: -5.011369946e-06 | K135: -0.0007549132888 | L135: 1.138164393e-05 | M135: -9.761995949e-05 | N135: 2.011497709e-08
A136: =A135+$B$1 -> 64.74656667 | B136: ='DF raw data'!A141 -> 4.1136769e-07 | C136: ='DF raw data'!B141 -> -1.1462135e-05 | D136: ='DF raw data'!C141 -> 7.3428296e-06 | F136: 4.118382946e-07 | G136: -1.150181812e-05 | H136: 7.351229797e-06 | J136: =F136*$B$1+J135 -> -4.805397259e-06 | K136: =J136*$B$1+K135 -> -0.0007573166121 | L136: =G136*$B$1+L135 -> 5.62923964e-06 | M136: =L136*$B$1+M135 -> -9.480460787e-05 | N136: =(J136^2+L136^2)*$B$1+N135 -> 2.01423743e-08
A137: 65.24669667 | B137: ='DF raw data'!A142 -> -1.498e-06 | C137: ='DF raw data'!B142 -> -1.2552365e-05 | D137: ='DF raw data'!C142 -> 3.8001107e-07 | F137: -1.499713712e-06 | G137: -1.259582261e-05 | H137: 3.804458027e-07 | J137: -5.555449078e-06 | K137: -0.0007600950589 | L137: -6.703091198e-07 | M137: -9.513984957e-05 | N137: 2.015803454e-08
A138: 65.74682667 | B138: ='DF raw data'!A143 -> -4.497052e-06 | C138: ='DF raw data'!B143 -> 6.4384699e-07 | D138: ='DF raw data'!C143 -> -2.5503664e-06 | F138: -4.502196627e-06 | G138: 6.460760559e-07 | H138: -2.553284019e-06 | J138: -7.807132677e-06 | K138: -0.0007639996402 | L138: -3.47187102e-07 | M138: -9.531348825e-05 | N138: 2.018857841e-08
A139: 66.24695667 | B139: ='DF raw data'!A144 -> -2.792138e-06 | C139: ='DF raw data'!B144 -> 6.0552529e-06 | D139: ='DF raw data'!C144 -> 4.2923225e-06 | F139: =(1-$G$1*($B$2-$G$2))*B139 -> -2.795332206e-06 | G139: 6.076216822e-06 | H139: =(1-$G$1*($B$2-$G$2))*D139 -> 4.297232917e-06 | J139: -9.205162174e-06 | K139: -0.0007686034179 | L139: 2.691711217e-06 | M139: -9.396728272e-05 | N139: 2.023458052e-08
A140: 66.74708667 | B140: ='DF raw data'!A145 -> 5.377911e-07 | C140: ='DF raw data'!B145 -> 1.9757183e-06 | D140: ='DF raw data'!C145 -> 1.1851268e-05 | F140: 5.38406333e-07 | G140: 1.982558444e-06 | H140: 1.186482585e-05 | J140: -8.935889014e-06 | K140: -0.0007730725241 | L140: 3.683248172e-06 | M140: -9.212517981e-05 | N140: 2.028130088e-08
A141: 67.24721667 | B141: ='DF raw data'!A146 -> -2.0467473e-06 | C141: ='DF raw data'!B146 -> 7.1016007e-07 | D141: ='DF raw data'!C146 -> 6.6733614e-06 | F141: -2.049088779e-06 | G141: 7.126187188e-07 | H141: 6.680995725e-06 | J141: -9.960699785e-06 | K141: -0.0007780541689 | L141: 4.039650172e-06 | M141: -9.010482957e-05 | N141: 2.033908306e-08
A142: 67.74734667 | B142: ='DF raw data'!A147 -> -1.1715953e-06 | C142: ='DF raw data'!B147 -> -1.1551266e-05 | D142: ='DF raw data'!C147 -> -4.9273453e-06 | F142: -1.172935605e-06 | G142: -1.15912577e-05 | H142: -4.932982183e-06 | J142: -1.054732007e-05 | K142: -0.0007833292001 | L142: -1.75748554e-06 | M142: -9.098380082e-05 | N142: 2.039626528e-08
A143: 68.24747667 | B143: ='DF raw data'!A148 -> 4.545494e-06 | C143: ='DF raw data'!B148 -> -6.9550942e-06 | D143: ='DF raw data'!C148 -> -6.4035826e-06 | F143: 4.550694045e-06 | G143: -6.979173467e-06 | H143: -6.410908298e-06 | J143: -8.271381457e-06 | K143: -0.0007874659661 | L143: -5.247979566e-06 | M143: -9.360847284e-05 | N143: 2.044425627e-08
A144: 68.74760667 | B144: ='DF raw data'!A149 -> 6.6628522e-06 | C144: ='DF raw data'!B149 -> 1.2814974e-06 | D144: ='DF raw data'!C149 -> -5.1045768e-06 | F144: 6.670474503e-06 | G144: 1.285934079e-06 | H144: -5.110416436e-06 | J144: -4.935277043e-06 | K144: -0.0007899342462 | L144: -4.604845355e-06 | M144: -9.591149414e-05 | N144: 2.046704298e-08
A145: 69.24773667 | B145: ='DF raw data'!A150 -> 3.4530053e-06 | C145: ='DF raw data'!B150 -> -3.5026703e-06 | D145: ='DF raw data'!C150 -> -5.8630299e-06 | F145: 3.456955538e-06 | G145: -3.514796913e-06 | H145: -5.869737206e-06 | J145: -3.20634987e-06 | K145: -0.0007915378379 | L145: -6.362700735e-06 | M145: -9.909367166e-05 | N145: 2.04924319e-08
A146: 69.74786667 | B146: ='DF raw data'!A151 -> 4.7751615e-07 | C146: ='DF raw data'!B151 -> 7.5596445e-06 | D146: ='DF raw data'!C151 -> -5.2842747e-06 | F146: 4.780624285e-07 | G146: 7.585816783e-06 | H146: -5.29031991e-06 | J146: -2.967256508e-06 | K146: -0.0007930218519 | L146: -2.568806187e-06 | M146: -0.0001003784087 | N146: 2.050013559e-08
A147: 70.24799667 | B147: ='DF raw data'!A152 -> 6.7756406e-07 | C147: ='DF raw data'!B152 -> -2.4400531e-06 | D147: ='DF raw data'!C152 -> -7.4916074e-06 | F147: 6.783391933e-07 | G147: -2.44850082e-06 | H147: -7.500177799e-06 | J147: -2.627998727e-06 | K147: -0.0007943361929 | L147: -3.793374902e-06 | M147: -0.0001022755893 | N147: 2.051078639e-08
A148: 70.74812667 | B148: ='DF raw data'!A153 -> 6.4712646e-07 | C148: ='DF raw data'!B153 -> -4.3231112e-06 | D148: ='DF raw data'!C153 -> -5.8891833e-06 | F148: 6.478667727e-07 | G148: -4.338078265e-06 | H148: -5.895920526e-06 | J148: -2.303981118e-06 | K148: -0.000795488483 | L148: -5.962977985e-06 | M148: -0.0001052578535 | N148: 2.053122442e-08
A149: 71.24825667 | B149: ='DF raw data'!A154 -> 1.2670286e-06 | C149: ='DF raw data'!B154 -> 1.5085909e-06 | D149: ='DF raw data'!C154 -> -1.593385e-06 | F149: 1.268478081e-06 | G149: 1.5138138e-06 | H149: -1.595207832e-06 | J149: -1.669577176e-06 | K149: -0.0007963234886 | L149: -5.205874289e-06 | M149: -0.0001078614674 | N149: 2.054617261e-08
A150: 71.74838667 | B150: ='DF raw data'!A155 -> 4.2710203e-06 | C150: ='DF raw data'!B155 -> -7.857735e-06 | D150: ='DF raw data'!C155 -> 3.9759238e-06 | F150: 4.275906347e-06 | G150: -7.884939304e-06 | H150: 3.980472257e-06 | J150: 4.689318659e-07 | K150: -0.0007960889618 | L150: -9.149368983e-06 | M150: -0.0001124373413 | N150: 2.058814895e-08
A151: 72.24851667 | B151: ='DF raw data'!A156 -> 5.2319451e-06 | C151: ='DF raw data'!B156 -> -2.9988466e-06 | D151: ='DF raw data'!C156 -> 2.3794914e-06 | F151: 5.237930445e-06 | G151: -3.009228922e-06 | H151: 2.382213538e-06 | J151: 3.088578019e-06 | K151: -0.0007945442712 | L151: -1.065437464e-05 | M151: -0.0001177659137 | N151: 2.064969245e-08
A152: 72.74864667 | B152: ='DF raw data'!A157 -> 3.299549e-06 | C152: ='DF raw data'!B157 -> -8.5576894e-06 | D152: ='DF raw data'!C157 -> -4.9011703e-07 | F152: 3.303323684e-06 | G152: -8.58731702e-06 | H152: -4.906777239e-07 | J152: 4.740669294e-06 | K152: -0.0007921733203 | L152: -1.494914951e-05 | M152: -0.0001252424318 | N152: 2.077269994e-08
A153: 73.24877667 | B153: ='DF raw data'!A158 -> -1.1123885e-06 | C153: ='DF raw data'!B158 -> -8.6373466e-06 | D153: ='DF raw data'!C158 -> -2.4559936e-06 | F153: -1.113661072e-06 | G153: -8.667250001e-06 | H153: -2.458803257e-06 | J153: 4.183693981e-06 | K153: -0.0007900809294 | L153: -1.928390125e-05 | M153: -0.0001348868894 | N153: 2.096743663e-08
A154: 73.74890667 | B154: ='DF raw data'!A159 -> -2.8902598e-06 | C154: ='DF raw data'!B159 -> 1.1156441e-05 | D154: ='DF raw data'!C159 -> -2.3802545e-06 | F154: -2.893566257e-06 | G154: 1.119506577e-05 | H154: -2.382977511e-06 | J154: 2.736534689e-06 | K154: -0.0007887123063 | L154: -1.3684913e-05 | M154: -0.0001417311249 | N154: 2.106484468e-08
A155: 74.24903667 | B155: ='DF raw data'!A160 -> 2.1278771e-07 | C155: ='DF raw data'!B160 -> 8.895383e-06 | D155: ='DF raw data'!C160 -> -3.1713839e-06 | F155: 2.130311391e-07 | G155: 8.92617975e-06 | H155: -3.175011963e-06 | J155: 2.843077953e-06 | K155: -0.0007872903978 | L155: -9.220662726e-06 | M155: -0.0001463426549 | N155: 2.111140864e-08
A156: 74.74916667 | B156: ='DF raw data'!A161 -> 1.1356657e-06 | C156: ='DF raw data'!B161 -> -6.2851605e-06 | D156: ='DF raw data'!C161 -> -1.4337039e-07 | F156: 1.136964902e-06 | G156: -6.306920386e-06 | H156: -1.435344057e-07 | J156: 3.411708209e-06 | K156: -0.0007855841001 | L156: -1.237494282e-05 | M156: -0.0001525317351 | N156: 2.119381954e-08
A157: 75.24929667 | B157: ='DF raw data'!A162 -> 1.9885897e-06 | C157: ='DF raw data'!B162 -> -4.7448766e-06 | D157: ='DF raw data'!C162 -> 3.7821214e-06 | F157: 1.990864647e-06 | G157: -4.761303861e-06 | H157: 3.786448147e-06 | J157: 4.407399345e-06 | K157: -0.0007833798275 | L157: -1.475621372e-05 | M157: -0.0001599117603 | N157: 2.131243588e-08
A158: 75.74942667 | B158: ='DF raw data'!A163 -> 2.4366118e-06 | C158: ='DF raw data'!B163 -> 1.2489244e-05 | D158: ='DF raw data'!C163 -> 1.0144488e-05 | F158: 2.439399284e-06 | G158: 1.253248307e-05 | H158: 1.015609329e-05 | J158: 5.627416109e-06 | K158: -0.0007805653879 | L158: -8.488342958e-06 | M158: -0.0001641570352 | N158: 2.136430925e-08
A159: 76.24955667 | B159: ='DF raw data'!A164 -> -2.6897446e-06 | C159: ='DF raw data'!B164 -> 8.834676e-06 | D159: ='DF raw data'!C164 -> 8.1599128e-06 | F159: -2.692821668e-06 | G159: 8.865262576e-06 | H159: 8.16924774e-06 | J159: 4.280655208e-06 | K159: -0.0007784245038 | L159: -4.054559186e-06 | M159: -0.0001661848419 | N159: 2.13816955e-08
A160: 76.74968667 | B160: ='DF raw data'!A165 -> -4.5728793e-06 | C160: ='DF raw data'!B165 -> 1.5540875e-06 | D160: ='DF raw data'!C165 -> 5.001408e-07 | F160: -4.578110674e-06 | G160: 1.559467914e-06 | H160: 5.007129611e-07 | J160: 1.991004716e-06 | K160: -0.0007774287426 | L160: -3.274622498e-06 | M160: -0.0001678225789 | N160: 2.138904104e-08
A161: 77.24981667 | B161: ='DF raw data'!A166 -> -7.0308118e-07 | C161: ='DF raw data'!B166 -> -3.5515029e-06 | D161: ='DF raw data'!C166 -> 2.4476453e-06 | F161: -7.038855049e-07 | G161: -3.563798576e-06 | H161: 2.450445406e-06 | J161: 1.638970459e-06 | K161: -0.0007766090443 | L161: -5.05698508e-06 | M161: -0.0001703517288 | N161: 2.140317437e-08
A162: 77.74994667 | B162: ='DF raw data'!A167 -> -8.5780624e-07 | C162: ='DF raw data'!B167 -> -8.452952e-06 | D162: ='DF raw data'!C167 -> 4.8640891e-06 | F162: -8.587875703e-07 | G162: -8.482217008e-06 | H162: 4.869653618e-06 | J162: 1.209465031e-06 | K162: -0.0007760041546 | L162: -9.299196272e-06 | M162: -0.0001750025358 | N162: 2.144715473e-08
A163: 78.25007667 | B163: ='DF raw data'!A168 -> -7.7496188e-06 | C163: ='DF raw data'!B168 -> 4.2651927e-06 | D163: ='DF raw data'!C168 -> 7.7946845e-07 | F163: -7.758484364e-06 | G163: 4.279959245e-06 | H163: 7.803601619e-07 | J163: -2.670785754e-06 | K163: -0.0007773398946 | L163: -7.158660255e-06 | M163: -0.0001785827966 | N163: 2.147635208e-08
A164: 78.75020667 | B164: ='DF raw data'!A169 -> -9.7761313e-06 | C164: ='DF raw data'!B169 -> 1.4483315e-05 | D164: ='DF raw data'!C169 -> 1.5930224e-06 | F164: -9.787315194e-06 | G164: 1.453345776e-05 | H164: 1.594844818e-06 | J164: -7.565715702e-06 | K164: -0.000781123736 | L164: 1.099579737e-07 | M164: -0.0001785278033 | N164: 2.150498559e-08
A165: 79.25033667 | B165: ='DF raw data'!A170 -> -7.1522113e-06 | C165: ='DF raw data'!B170 -> 4.234641e-06 | D165: ='DF raw data'!C170 -> 4.1785156e-06 | F165: -7.16039343e-06 | G165: 4.249301772e-06 | H165: 4.183295822e-06 | J165: -1.114684327e-05 | K165: -0.0007866986067 | L165: 2.235161269e-06 | M165: -0.0001774099321 | N165: 2.156962643e-08
A166: 79.75046667 | B166: ='DF raw data'!A171 -> -6.4776414e-06 | C166: ='DF raw data'!B171 -> 4.324168e-06 | D166: ='DF raw data'!C171 -> 1.130206e-06 | F166: -6.485051822e-06 | G166: 4.339138724e-06 | H166: 1.131498956e-06 | J166: -1.439021224e-05 | K166: -0.0007938955836 | L166: 4.405294719e-06 | M166: -0.0001752067121 | N166: 2.168289828e-08
A167: 80.25059667 | B167: ='DF raw data'!A172 -> -9.9558874e-06 | C167: ='DF raw data'!B172 -> -5.2483001e-06 | D167: ='DF raw data'!C172 -> -4.0431746e-06 | F167: -9.967276935e-06 | G167: -5.266470266e-06 | H167: -4.047799992e-06 | J167: -1.937514645e-05 | K167: -0.0008035856756 | L167: 1.771374945e-06 | M167: -0.0001743207943 | N167: 2.187221453e-08
A168: 80.75072667 | B168: ='DF raw data'!A173 -> -1.3310047e-05 | C168: ='DF raw data'!B173 -> -1.1776999e-06 | D168: ='DF raw data'!C173 -> -2.5166896e-06 | F168: -1.332527369e-05 | G168: -1.181777221e-06 | H168: -2.519568693e-06 | J168: -2.603951558e-05 | K168: -0.0008166088185 | L168: 1.180332703e-06 | M168: -0.0001737304745 | N168: 2.221202763e-08
A169: 81.25085667 | B169: ='DF raw data'!A174 -> -1.123801e-05 | C169: ='DF raw data'!B174 -> -3.6732308e-09 | D169: ='DF raw data'!C174 -> -2.1942374e-06 | F169: -1.125086628e-05 | G169: -3.685947911e-09 | H169: -2.196747608e-06 | J169: -3.166641134e-05 | K169: -0.0008324461408 | L169: 1.17848925e-06 | M169: -0.0001731410767 | N169: 2.27142334e-08
A170: 81.75098667 | B170: ='DF raw data'!A175 -> -7.5193998e-06 | C170: ='DF raw data'!B175 -> 2.4588564e-06 | D170: ='DF raw data'!C175 -> -1.2110527e-05 | F170: -7.528001993e-06 | G170: 2.467369219e-06 | H170: -1.212438144e-05 | J170: -3.543139097e-05 | K170: -0.0008501664424 | L170: 2.412494618e-06 | M170: -0.0001719345158 | N170: 2.334499915e-08
A171: 82.25111667 | B171: ='DF raw data'!A176 -> -3.1572574e-06 | C171: ='DF raw data'!B176 -> 4.7783551e-06 | D171: ='DF raw data'!C176 -> -7.4395625e-06 | F171: -3.160869302e-06 | G171: 4.794898267e-06 | H171: -7.448073359e-06 | J171: -3.701223654e-05 | K171: -0.0008686773722 | L171: 4.810567088e-06 | M171: -0.0001695286068 | N171: 2.404170385e-08
A172: 82.75124667 | B172: ='DF raw data'!A177 -> -3.2464347e-06 | C172: ='DF raw data'!B177 -> 1.2404119e-05 | D172: ='DF raw data'!C177 -> 1.2639817e-06 | F172: -3.250148621e-06 | G172: 1.244706336e-05 | H172: 1.265427695e-06 | J172: -3.863773337e-05 | K172: -0.0008880012618 | L172: 1.103571689e-05 | M172: -0.0001640093137 | N172: 2.48492445e-08
A173: 83.25137667 | B173: ='DF raw data'!A178 -> -7.096342e-06 | C173: ='DF raw data'!B178 -> 1.4360427e-05 | D173: ='DF raw data'!C178 -> 5.9364088e-06 | F173: -7.104460215e-06 | G173: 1.441014431e-05 | H173: 5.943200052e-06 | J173: -4.219088705e-05 | K173: -0.0009091021902 | L173: 1.824266236e-05 | M173: -0.000154885611 | N173: 2.590595201e-08
A174: 83.75150667 | B174: ='DF raw data'!A179 -> -6.1990959e-06 | C174: ='DF raw data'!B179 -> -9.8336523e-06 | D174: ='DF raw data'!C179 -> 7.2568423e-06 | F174: -6.206187666e-06 | G174: -9.867697437e-06 | H174: 7.265144128e-06 | J174: -4.529478769e-05 | K174: -0.0009317554723 | L174: 1.330753084e-05 | M174: -0.0001482301156 | N174: 2.702059583e-08
A175: 84.25163667 | B175: ='DF raw data'!A180 -> -5.1366451e-06 | C175: ='DF raw data'!B180 -> -1.2227202e-05 | D175: ='DF raw data'!C180 -> 9.296723e-06 | F175: -5.142521422e-06 | G175: -1.226953386e-05 | H175: 9.307358451e-06 | J175: -4.786671693e-05 | K175: -0.0009556950535 | L175: 7.171168872e-06 | M175: -0.0001446435989 | N175: 2.81922245e-08
A176: 84.75176667 | B176: ='DF raw data'!A181 -> -9.8540277e-06 | C176: ='DF raw data'!B181 -> -2.1583899e-06 | D176: ='DF raw data'!C181 -> 1.1766678e-05 | F176: -9.865300708e-06 | G176: -2.165862473e-06 | H176: 1.178013908e-05 | J176: -5.280064977e-05 | K176: -0.0009821022425 | L176: 6.087956074e-06 | M176: -0.0001415988295 | N176: 2.960507766e-08
A177: 85.25189667 | B177: ='DF raw data'!A182 -> -1.1344476e-05 | C177: ='DF raw data'!B182 -> 3.4083253e-06 | D177: ='DF raw data'!C182 -> 5.505472e-06 | F177: -1.135745408e-05 | G177: 3.42012528e-06 | H177: 5.51177026e-06 | J177: -5.848085328e-05 | K177: -0.001011350272 | L177: 7.79846333e-06 | M177: -0.000137698584 | N177: 3.134594328e-08
A178: 85.75202667 | B178: ='DF raw data'!A183 -> -6.9530975e-06 | C178: ='DF raw data'!B183 -> 1.2874048e-05 | D178: ='DF raw data'!C183 -> -7.6139384e-07 | F178: -6.961051844e-06 | G178: 1.291861931e-05 | H178: -7.622648746e-07 | J178: -6.196228414e-05 | K178: -0.001042339469 | L178: 1.42594524e-05 | M178: -0.0001305670041 | N178: 3.336779715e-08
A179: 86.25215667 | B179: ='DF raw data'!A184 -> -4.0589089e-06 | C179: ='DF raw data'!B184 -> 6.0452448e-06 | D179: ='DF raw data'!C184 -> 3.6237202e-06 | F179: -4.063552292e-06 | G179: 6.066174073e-06 | H179: 3.627865736e-06 | J179: -6.399458855e-05 | K179: -0.001074345082 | L179: 1.729332804e-05 | M179: -0.0001219180919 | N179: 3.556555169e-08
A180: 86.75228667 | B180: ='DF raw data'!A185 -> -3.9904908e-06 | C180: ='DF raw data'!B185 -> -5.6665876e-06 | D180: ='DF raw data'!C185 -> 1.0494298e-05 | F180: -3.995055921e-06 | G180: -5.686205922e-06 | H180: 1.050630348e-05 | J180: -6.599263587e-05 | K180: -0.001107349979 | L180: 1.444948588e-05 | M180: -0.0001146914705 | N180: 3.784805281e-08
A181: 87.25241667 | B181: ='DF raw data'!A186 -> -1.8037125e-06 | C181: ='DF raw data'!B186 -> -5.3787871e-06 | D181: ='DF raw data'!C186 -> 9.4643756e-06 | F181: -1.805775947e-06 | G181: -5.397409026e-06 | H181: 9.475202846e-06 | J181: -6.689575859e-05 | K181: -0.001140806555 | L181: 1.17500797e-05 | M181: -0.0001088149032 | N181: 4.015520595e-08
A182: 87.75254667 | B182: ='DF raw data'!A187 -> 1.6082519e-06 | C182: ='DF raw data'!B187 -> 2.7139697e-06 | D182: ='DF raw data'!C187 -> 2.8930249e-06 | F182: 1.61009174e-06 | G182: 2.723365748e-06 | H182: 2.89633452e-06 | J182: -6.609050341e-05 | K182: -0.001173860399 | L182: 1.311211661e-05 | M182: -0.0001022571403 | N182: 4.242573726e-08
A183: 88.25267667 | B183: ='DF raw data'!A188 -> 5.3018135e-07 | C183: ='DF raw data'!B188 -> 6.212988e-07 | D183: ='DF raw data'!C188 -> -3.902745e-06 | F183: 5.307878775e-07 | G183: 6.234498017e-07 | H183: -3.90720974e-06 | J183: -6.582504047e-05 | K183: -0.001206781476 | L183: 1.342392256e-05 | M183: -9.554343391e-05 | N183: 4.468289279e-08
A184: 88.75280667 | B184: ='DF raw data'!A189 -> -1.2787281e-06 | C184: ='DF raw data'!B189 -> 1.6368115e-06 | D184: ='DF raw data'!C189 -> -7.6410879e-06 | F184: -1.280190965e-06 | G184: 1.642478313e-06 | H184: -7.649829305e-06 | J184: -6.646530238e-05 | K184: -0.001240022768 | L184: 1.424537524e-05 | M184: -8.841889439e-05 | N184: 4.699377704e-08
A185: 89.25293667 | B185: ='DF raw data'!A190 -> -1.2896902e-07 | C185: ='DF raw data'!B190 -> -4.5905026e-06 | D185: ='DF raw data'!C190 -> -4.5752727e-06 | F185: -1.291165606e-07 | G185: -4.606395402e-06 | H185: -4.580506812e-06 | J185: -6.652987744e-05 | K185: -0.001273296355 | L185: 1.194157871e-05 | M185: -8.244655263e-05 | N185: 4.927878393e-08
A186: 89.75306667 | B186: ='DF raw data'!A191 -> -2.6617765e-06 | C186: ='DF raw data'!B191 -> -3.0307372e-06 | D186: ='DF raw data'!C191 -> 1.8994384e-06 | F186: -2.664821572e-06 | G186: -3.041229931e-06 | H186: 1.901611358e-06 | J186: -6.786263465e-05 | K186: -0.001307236495 | L186: 1.042056838e-05 | M186: -7.723491377e-05 | N186: 5.163635945e-08
A187: 90.25319667 | B187: ='DF raw data'!A192 -> -2.8229097e-06 | C187: ='DF raw data'!B192 -> 9.3071617e-07 | D187: ='DF raw data'!C192 -> 3.4669852e-06 | F187: -2.826139109e-06 | G187: 9.339384071e-07 | H187: 3.470951431e-06 | J187: -6.927607161e-05 | K187: -0.001341883536 | L187: 1.0887659e-05 | M187: -7.178966887e-05 | N187: 5.409585636e-08
A188: 90.75332667 | B188: ='DF raw data'!A193 -> 7.4324549e-07 | C188: ='DF raw data'!B193 -> -3.9688416e-07 | D188: ='DF raw data'!C193 -> -9.6564816e-07 | F188: 7.440957628e-07 | G188: -3.982582147e-07 | H188: -9.667528615e-07 | J188: -6.890392699e-05 | K188: -0.001376344457 | L188: 1.068847812e-05 | M188: -6.644404031e-05 | N188: 5.652748578e-08
A189: 91.25345667 | B189: ='DF raw data'!A194 -> 3.8644489e-06 | C189: ='DF raw data'!B194 -> -2.9868377e-06 | D189: ='DF raw data'!C194 -> -6.244354e-08 | F189: 3.86886983e-06 | G189: -2.997178446e-06 | H189: -6.251497541e-08 | J189: -6.696898912e-05 | K189: -0.001409837658 | L189: 9.18949926e-06 | M189: -6.184809605e-05 | N189: 5.881272599e-08
A190: 91.75358667 | B190: ='DF raw data'!A195 -> 4.7402013e-06 | C190: ='DF raw data'!B195 -> -1.6318618e-05 | D190: ='DF raw data'!C195 -> 4.5413676e-06 | F190: 4.74562409e-06 | G190: -1.637511477e-05 | H190: 4.546562925e-06 | J190: -6.459556015e-05 | K190: -0.001442143835 | L190: 9.998131102e-07 | M190: -6.134805952e-05 | N190: 6.090006157e-08
A191: 92.25371667 | B191: ='DF raw data'!A196 -> 2.8547817e-07 | C191: ='DF raw data'!B196 -> -1.8807284e-06 | D191: ='DF raw data'!C196 -> 5.6657323e-06 | F191: 2.85804757e-07 | G191: -1.887239679e-06 | H191: 5.672213898e-06 | J191: -6.445262061e-05 | K191: -0.001474378525 | L191: 5.594792943e-08 | M191: -6.132007828e-05 | N191: 6.297767332e-08
A192: 92.75384667 | B192: ='DF raw data'!A197 -> -3.6118879e-06 | C192: ='DF raw data'!B197 -> 6.3852176e-06 | D192: ='DF raw data'!C197 -> 4.4889225e-06 | F192: -3.6160199e-06 | G192: 6.407323894e-06 | H192: 4.494057827e-06 | J192: -6.626110065e-05 | K192: -0.001507517689 | L192: 3.260442829e-06 | M192: -5.968943301e-05 | N192: 6.517882745e-08
A193: 93.25397667 | B193: ='DF raw data'!A198 -> -7.3037991e-06 | C193: ='DF raw data'!B198 -> -1.1785003e-06 | D193: ='DF raw data'!C198 -> 7.2893185e-06 | F193: -7.312154646e-06 | G193: -1.182580392e-06 | H193: 7.29765748e-06 | J193: -6.991812855e-05 | K193: -0.001542485843 | L193: 2.668998897e-06 | M193: -5.835458659e-05 | N193: 6.762729801e-08
A194: 93.75410667 | B194: ='DF raw data'!A199 -> -9.0188587e-06 | C194: ='DF raw data'!B199 -> 4.2032852e-06 | D194: ='DF raw data'!C199 -> 6.8897957e-06 | F194: -9.029176274e-06 | G194: 4.217837415e-06 | H194: 6.897677626e-06 | J194: -7.443389048e-05 | K194: -0.001579712464 | L194: 4.778465924e-06 | M194: -5.596473243e-05 | N194: 7.040964013e-08
A195: 94.25423667 | B195: ='DF raw data'!A200 -> -9.8656562e-07 | C195: ='DF raw data'!B200 -> 2.2721918e-06 | D195: ='DF raw data'!C200 -> -3.7143959e-06 | F195: -9.876942511e-07 | G195: 2.280058367e-06 | H195: -3.718645169e-06 | J195: -7.492786601e-05 | K195: -0.001617186138 | L195: 5.918791514e-06 | M195: -5.300456723e-05 | N195: 7.323498312e-08
A196: 94.75436667 | B196: ='DF raw data'!A201 -> 4.0335922e-06 | C196: ='DF raw data'!B201 -> 6.3410812e-07 | D196: ='DF raw data'!C201 -> -2.7845686e-06 | F196: 4.038206629e-06 | G196: 6.363034689e-07 | H196: -2.787754146e-06 | J196: -7.290823772e-05 | K196: -0.001653649735 | L196: 6.237025968e-06 | M196: -4.988524343e-05 | N196: 7.591293502e-08
A197: 95.25449667 | B197: ='DF raw data'!A202 -> 3.3512129e-06 | C197: ='DF raw data'!B202 -> 6.9015814e-06 | D197: ='DF raw data'!C202 -> 3.3833298e-06 | F197: 3.355046688e-06 | G197: 6.9254754e-06 | H197: 3.387200329e-06 | J197: -7.123027823e-05 | K197: -0.001689274134 | L197: 9.70066398e-06 | M197: -4.503365035e-05 | N197: 7.849753455e-08
A198: 95.75462667 | B198: ='DF raw data'!A203 -> 2.8665449e-06 | C198: ='DF raw data'!B203 -> 6.369607e-06 | D198: ='DF raw data'!C203 -> 5.9812651e-06 | F198: 2.869824227e-06 | G198: 6.391659249e-06 | H198: 5.988107667e-06 | J198: -6.979499303e-05 | K198: -0.001724180704 | L198: 1.289732452e-05 | M198: -3.858331144e-05 | N198: 8.101703047e-08
A199: 96.25475667 | B199: ='DF raw data'!A204 -> -2.3722175e-06 | C199: ='DF raw data'!B204 -> 9.7014172e-06 | D199: ='DF raw data'!C204 -> 3.7869781e-06 | F199: -2.374931317e-06 | G199: =(1-$G$1*($B$2-$G$2))*C199*$M$2/$M$1 -> 9.735004525e-06 | H199: 3.791310403e-06 | J199: -7.098276743e-05 | K199: -0.001759681315 | L199: 1.776609233e-05 | M199: -2.969795568e-05 | N199: 8.369482016e-08
A200: =A199+$B$1 -> 96.75488667 | B200: ='DF raw data'!A205 -> -5.1369789e-06 | C200: ='DF raw data'!B205 -> -8.1145763e-06 | D200: ='DF raw data'!C205 -> 1.5895627e-06 | F200: -5.142855604e-06 | G200: -8.142669816e-06 | H200: 1.59138116e-06 | J200: =F200*$B$1+J199 -> -7.355486381e-05 | K200: =J200*$B$1+K199 -> -0.001796468309 | L200: =G200*$B$1+L199 -> 1.369369888e-05 | M200: =L200*$B$1+M199 -> -2.284932606e-05 | N200: =(J200^2+L200^2)*$B$1+N199 -> 8.649446557e-08
A201: 97.25501667 | B201: ='DF raw data'!A206 -> -5.3541148e-06 | C201: ='DF raw data'!B206 -> -2.7959056e-06 | D201: ='DF raw data'!C206 -> 1.709619e-07 | F201: -5.360239907e-06 | G201: -2.805585319e-06 | H201: 1.711574804e-07 | J201: -7.623568059e-05 | K201: -0.00183459606 | L201: 1.229054149e-05 | M201: -1.670245755e-05 | N201: 8.947670896e-08
... 1002 more rows

Sheet 12 mm
A1: dz | B1: ='DF raw data'!E7 -> 0.50018 | C1: mm | F1: T_coeff | G1: -0.0008 | H1: /degC | L1: Hallref | M1: ='PI vs gap'!B50 -> 0.50533 | N1: T | P1: IBy total | Q1: =L1203*1000 -> 12.42704777 | R1: muTm | X1: DF ref | Y1: 19
A2: Tref | B2: ='DF raw data'!E8 -> 21.46 | C2: degC | F2: Tcorr | G2: 20 | H2: degC | L2: NMRref | M2: ='PI vs gap'!B51 -> 0.50652 | N2: T | P2: JBy total | Q2: =M1203 -> 2.679160582 | R2: muTm^2
A3: Encoder | B3: ='DF raw data'!E9 -> 17247022 | P3: PI total | Q3: =N1203 -> 544.7659803 | R3: T^2mm^3
A5: z [mm] | B5: Bx | C5: By | D5: Bz | F5: Bx_corr | G5: By_corr | H5: Bz_corr | J5: Ix | K5: Jx | L5: Iy | M5: Jy | N5: PI
A6: ='PI vs gap'!B53 -> -0.2703333333 | B6: ='DF raw data'!D11 -> 5.9261297e-06 | C6: ='DF raw data'!E11 -> 8.5618274e-07 | D6: ='DF raw data'!F11 -> -2.400971e-06 | F6: =(1-$G$1*($B$2-$G$2))*B6 -> 5.933051419e-06 | G6: =(1-$G$1*($B$2-$G$2))*C6*$M$2/$M$1 -> 8.592013384e-07 | H6: =(1-$G$1*($B$2-$G$2))*D6 -> -2.403775334e-06 | J6: =F6*$B$1 -> 2.967593659e-06 | K6: =J6*$B$1 -> 1.484330996e-06 | L6: =G6*$B$1 -> 4.297553254e-07 | M6: =L6*$B$1 -> 2.149550187e-07 | N6: =(J6^2+L6^2)*$B$1 -> 4.497269317e-12
A7: =A6+$B$1 -> 0.2298466667 | B7: ='DF raw data'!D12 -> 5.7969023e-06 | C7: ='DF raw data'!E12 -> 5.0029657e-06 | D7: ='DF raw data'!F12 -> 1.535504e-06 | F7: =(1-$G$1*($B$2-$G$2))*B7 -> 5.803673082e-06 | G7: =(1-$G$1*($B$2-$G$2))*C7*$M$2/$M$1 -> 5.020604393e-06 | H7: 1.537297469e-06 | J7: =F7*$B$1+J6 -> 5.870474861e-06 | K7: =J7*$B$1+K6 -> 4.420625112e-06 | L7: =G7*$B$1+L6 -> 2.940961231e-06 | M7: =L7*$B$1+M6 -> 1.685965007e-06 | N7: =(J7^2+L7^2)*$B$1+N6 -> 2.606089345e-11
A8: =A7+$B$1 -> 0.7300266667 | B8: ='DF raw data'!D13 -> 5.8541068e-06 | C8: ='DF raw data'!E13 -> 4.2150778e-06 | D8: ='DF raw data'!F13 -> 6.5315839e-06 | F8: 5.860944397e-06 | G8: 4.229938678e-06 | H8: 6.53921279e-06 | J8: =F8*$B$1+J7 -> 8.802002029e-06 | K8: =J8*$B$1+K7 -> 8.823210487e-06 | L8: =G8*$B$1+L7 -> 5.056691958e-06 | M8: =L8*$B$1+M7 -> 4.215221191e-06 | N8: =(J8^2+L8^2)*$B$1+N7 -> 7.760212827e-11
A9: 1.230206667 | B9: ='DF raw data'!D14 -> 5.8189967e-06 | C9: ='DF raw data'!E14 -> 3.3012357e-06 | D9: ='DF raw data'!F14 -> -4.6238088e-06 | F9: 5.825793288e-06 | G9: 3.312874693e-06 | H9: -4.629209409e-06 | J9: 1.171594732e-05 | K9: 1.468329302e-05 | L9: 6.713725622e-06 | M9: 7.573292472e-06 | N9: 1.688037156e-10
A10: 1.730386667 | B10: ='DF raw data'!D15 -> 6.0877296e-06 | C10: ='DF raw data'!E15 -> -4.8300872e-06 | D10: ='DF raw data'!F15 -> -9.5798923e-06 | F10: 6.094840068e-06 | G10: -4.847116384e-06 | H10: -9.591081614e-06 | J10: 1.476446442e-05 | K10: 2.206818283e-05 | L10: 4.289294949e-06 | M10: 9.71871202e-06 | N10: 2.870399958e-10
A11: 2.230566667 | B11: ='DF raw data'!D16 -> 5.4644238e-06 | C11: ='DF raw data'!E16 -> 1.2021769e-05 | D11: ='DF raw data'!F16 -> -1.0251954e-05 | F11: 5.470806247e-06 | G11: 1.206415352e-05 | H11: -1.026392828e-05 | J11: 1.750085229e-05 | K11: 3.082175913e-05 | L11: 1.032354326e-05 | M11: 1.488234189e-05 | N11: 4.935419979e-10
A12: 2.730746667 | B12: ='DF raw data'!D17 -> 6.0279222e-06 | C12: ='DF raw data'!E17 -> -2.83188e-06 | D12: ='DF raw data'!F17 -> -6.825619e-06 | F12: 6.034962813e-06 | G12: -2.84186421e-06 | H12: -6.833591323e-06 | J12: 2.051941999e-05 | K12: 4.108516262e-05 | L12: 8.902099615e-06 | M12: 1.933499407e-05 | N12: 7.437790379e-10
A13: 3.230926667 | B13: ='DF raw data'!D18 -> 6.0934703e-06 | C13: ='DF raw data'!E18 -> -4.4571543e-06 | D13: ='DF raw data'!F18 -> -6.1413079e-06 | F13: 6.100587473e-06 | G13: -4.472868654e-06 | H13: -6.148480948e-06 | J13: 2.357081183e-05 | K13: 5.287481128e-05 | L13: 6.664860172e-06 | M13: 2.266862383e-05 | N13: 1.043888804e-09
A14: 3.731106667 | B14: ='DF raw data'!D19 -> 6.0027583e-06 | C14: ='DF raw data'!E19 -> -2.5499476e-06 | D14: ='DF raw data'!F19 -> -1.0042443e-05 | F14: 6.009769522e-06 | G14: -2.558937816e-06 | H14: -1.005417257e-05 | J14: 2.657677835e-05 | K14: 6.616798428e-05 | L14: 5.384930655e-06 | M14: 2.536205845e-05 | N14: 1.411682475e-09
A15: 4.231286667 | B15: ='DF raw data'!D20 -> 5.9155159e-06 | C15: ='DF raw data'!E20 -> 3.8852056e-07 | D15: ='DF raw data'!F20 -> -6.711743e-06 | F15: 5.922425223e-06 | G15: 3.898903465e-07 | H15: -6.719582316e-06 | J15: 2.9539057e-05 | K15: 8.094282981e-05 | L15: 5.579946008e-06 | M15: 2.815303584e-05 | N15: 1.863690983e-09
A16: 4.731466667 | B16: ='DF raw data'!D21 -> 5.714734e-06 | C16: ='DF raw data'!E21 -> 5.7793795e-06 | D16: ='DF raw data'!F21 -> -6.983551e-06 | F16: 5.721408809e-06 | G16: 5.799755554e-06 | H16: -6.991707788e-06 | J16: 3.240079126e-05 | K16: 9.714905758e-05 | L16: 8.480867741e-06 | M16: 3.239499627e-05 | N16: 2.424761091e-09
A17: 5.231646667 | B17: ='DF raw data'!D22 -> 6.1830483e-06 | C17: ='DF raw data'!E22 -> -6.5695722e-06 | D17: ='DF raw data'!F22 -> -4.4961594e-06 | F17: 6.1902701e-06 | G17: -6.592734195e-06 | H17: -4.501410914e-06 | J17: 3.549704056e-05 | K17: 0.0001149039673 | L17: 5.183313952e-06 | M17: 3.498758624e-05 | N17: 3.06844605e-09
A18: 5.731826667 | B18: ='DF raw data'!D23 -> 5.7563852e-06 | C18: ='DF raw data'!E23 -> 6.7029605e-06 | D18: ='DF raw data'!F23 -> 4.9915911e-06 | F18: 5.763108658e-06 | G18: 6.726592775e-06 | H18: 4.997421278e-06 | J18: 3.837963225e-05 | K18: 0.0001341006918 | L18: 8.547821126e-06 | M18: 3.926303541e-05 | N18: 3.84175505e-09
A19: 6.232006667 | B19: ='DF raw data'!D24 -> 6.0152402e-06 | C19: ='DF raw data'!E24 -> -1.8068124e-07 | D19: ='DF raw data'!F24 -> 5.9985546e-06 | F19: 6.022266001e-06 | G19: -1.813182583e-07 | H19: 6.005560912e-06 | J19: 4.139184925e-05 | K19: 0.0001548040669 | L19: 8.457129359e-06 | M19: 4.349312237e-05 | N19: 4.734480426e-09
A20: 6.732186667 | B20: ='DF raw data'!D25 -> 5.539116e-06 | C20: ='DF raw data'!E25 -> 1.0416773e-05 | D20: ='DF raw data'!F25 -> -7.9706142e-06 | F20: 5.545585687e-06 | G20: 1.045349887e-05 | H20: -7.979923877e-06 | J20: 4.41656403e-05 | K20: 0.0001768948369 | L20: 1.368576042e-05 | M20: 5.033846602e-05 | N20: 5.80381716e-09
A21: 7.232366667 | B21: ='DF raw data'!D26 -> 5.7738075e-06 | C21: ='DF raw data'!E26 -> 5.125984e-06 | D21: ='DF raw data'!F26 -> -8.2869838e-07 | F21: 5.780551307e-06 | G21: 5.144056412e-06 | H21: -8.296662997e-07 | J21: 4.705695646e-05 | K21: 0.0002004317854 | L21: 1.625871456e-05 | M21: 5.847074987e-05 | N21: 7.043614801e-09
A22: 7.732546667 | B22: ='DF raw data'!D27 -> 4.4226649e-06 | C22: ='DF raw data'!E27 -> 2.7756641e-06 | D22: ='DF raw data'!F27 -> 9.3764402e-06 | F22: 4.427830573e-06 | G22: 2.785450113e-06 | H22: 9.387391882e-06 | J22: 4.927166875e-05 | K22: 0.0002250764887 | L22: 1.7651941e-05 | M22: 6.729989772e-05 | N22: 8.413752054e-09
A23: 8.232726667 | B23: ='DF raw data'!D28 -> -5.8754722e-07 | C23: ='DF raw data'!E28 -> -1.1859203e-06 | D23: ='DF raw data'!F28 -> 6.7814294e-06 | F23: =(1-$G$1*($B$2-$G$2))*B23 -> -5.882334752e-07 | G23: -1.190101437e-06 | H23: 6.78935011e-06 | J23: 4.897744613e-05 | K23: 0.0002495740277 | L23: 1.705667606e-05 | M23: 7.583130595e-05 | N23: 9.759096418e-09
A24: 8.732906667 | B24: ='DF raw data'!D29 -> -6.8862241e-06 | C24: ='DF raw data'!E29 -> -7.0037431e-06 | D24: ='DF raw data'!F29 -> -9.0110871e-07 | F24: -6.89426721e-06 | G24: -7.028435828e-06 | H24: -9.02161205e-07 | J24: 4.552907156e-05 | K24: 0.0002723467587 | L24: 1.354119303e-05 | M24: 8.260433988e-05 | N24: 1.088763268e-08
A25: 9.233086667 | B25: ='DF raw data'!D30 -> -1.0251063e-05 | C25: ='DF raw data'!E30 -> -1.0380837e-06 | D25: ='DF raw data'!F30 -> -7.0604215e-06 | F25: -1.026303624e-05 | G25: -1.041743617e-06 | H25: -7.068668072e-06 | J25: 4.039570609e-05 | K25: 0.000292551883 | L25: 1.302013371e-05 | M25: 8.911675036e-05 | N25: 1.178862539e-08
A26: 9.733266667 | B26: ='DF raw data'!D31 -> -7.3269039e-06 | C26: ='DF raw data'!E31 -> -1.6903376e-05 | D26: ='DF raw data'!F31 -> -8.7558865e-06 | F26: -7.335461724e-06 | G26: -1.696297134e-05 | H26: -8.766113375e-06 | J26: 3.672665485e-05 | K26: 0.0003109218212 | L26: 4.535594699e-06 | M26: 9.138536411e-05 | N26: 1.247358129e-08
A27: 10.23344667 | B27: ='DF raw data'!D32 -> -5.1963284e-06 | C27: ='DF raw data'!E32 -> 3.4174509e-06 | D27: ='DF raw data'!F32 -> -2.4014366e-06 | F27: -5.202397712e-06 | G27: 3.429499627e-06 | H27: -2.404241478e-06 | J27: 3.412451956e-05 | K27: 0.0003279902234 | L27: 6.250961822e-06 | M27: 9.45119702e-05 | N27: 1.307557661e-08
A28: 10.73362667 | B28: ='DF raw data'!D33 -> -3.5581641e-06 | C28: ='DF raw data'!E33 -> 9.5291659e-07 | D28: ='DF raw data'!F33 -> 1.8234828e-06 | F28: -3.562320036e-06 | G28: 9.562762378e-07 | H28: 1.825612628e-06 | J28: 3.234271832e-05 | K28: 0.0003441674042 | L28: 6.729272071e-06 | M28: 9.78778175e-05 | N28: 1.362144031e-08
A29: 11.23380667 | B29: ='DF raw data'!D34 -> 2.6023739e-07 | C29: ='DF raw data'!E34 -> -5.5303108e-06 | D29: ='DF raw data'!F34 -> 3.0138694e-06 | F29: 2.605413473e-07 | G29: -5.549808725e-06 | H29: 3.017389599e-06 | J29: 3.247303589e-05 | K29: 0.0003604097673 | L29: 3.953368743e-06 | M29: 9.985521348e-05 | N29: 1.415669653e-08
A30: 11.73398667 | B30: ='DF raw data'!D35 -> 2.3075095e-06 | C30: ='DF raw data'!E35 -> -1.0249359e-05 | D30: ='DF raw data'!F35 -> 1.1534322e-05 | F30: 2.310204671e-06 | G30: -1.028549463e-05 | H30: 1.154779409e-05 | J30: 3.362855407e-05 | K30: 0.0003772300975 | L30: -1.191229959e-06 | M30: 9.925938408e-05 | N30: 1.472304968e-08
A31: 12.23416667 | B31: ='DF raw data'!D36 -> 3.3463971e-06 | C31: ='DF raw data'!E36 -> -2.5240633e-06 | D31: ='DF raw data'!F36 -> 1.1446603e-05 | F31: 3.350305692e-06 | G31: -2.532962257e-06 | H31: 1.145997263e-05 | J31: 3.530430997e-05 | K31: 0.0003948886072 | L31: -2.458167021e-06 | M31: 9.80298581e-05 | N31: 1.534949356e-08
A32: 12.73434667 | B32: ='DF raw data'!D37 -> 6.7926708e-06 | C32: ='DF raw data'!E37 -> -6.91275e-06 | D32: ='DF raw data'!F37 -> 8.4053472e-06 | F32: 6.800604639e-06 | G32: -6.937121919e-06 | H32: 8.415164646e-06 | J32: 3.87058364e-05 | K32: 0.0004142484925 | L32: -5.927976662e-06 | M32: 9.506480273e-05 | N32: 1.611641089e-08
A33: 13.23452667 | B33: ='DF raw data'!D38 -> 8.8821953e-06 | C33: ='DF raw data'!E38 -> -2.0522648e-06 | D33: ='DF raw data'!F38 -> 3.0416236e-06 | F33: 8.892569704e-06 | G33: -2.059500362e-06 | H33: 3.045176216e-06 | J33: 4.315372191e-05 | K33: 0.0004358331211 | L33: -6.958097553e-06 | M33: 9.15845015e-05 | N33: 1.707208423e-08
A34: 13.73470667 | B34: ='DF raw data'!D39 -> 1.0234406e-05 | C34: ='DF raw data'!E39 -> -1.5890047e-06 | D34: ='DF raw data'!F39 -> -3.0958613e-06 | F34: 1.024635979e-05 | G34: -1.59460697e-06 | H34: -3.099477266e-06 | J34: 4.827874615e-05 | K34: 0.0004599811844 | L34: -7.755688067e-06 | M34: 8.770526144e-05 | N34: 1.826800862e-08
A35: 14.23488667 | B35: ='DF raw data'!D40 -> 7.5919947e-06 | C35: ='DF raw data'!E40 -> -1.2242767e-05 | D35: ='DF raw data'!F40 -> 2.5242302e-06 | F35: 7.60086215e-06 | G35: -1.228593068e-05 | H35: 2.527178501e-06 | J35: 5.208054538e-05 | K35: 0.0004860308316 | L35: -1.390086487e-05 | M35: 8.075232685e-05 | N35: 1.972134026e-08
A36: 14.73506667 | B36: ='DF raw data'!D41 -> 1.690611e-06 | C36: ='DF raw data'!E41 -> -1.6257853e-05 | D36: ='DF raw data'!F41 -> 7.9201027e-06 | F36: 1.692585634e-06 | G36: -1.631517246e-05 | H36: 7.92935338e-06 | J36: 5.292714286e-05 | K36: 0.0005125039299 | L36: -2.206138783e-05 | M36: 6.971766188e-05 | N36: 2.136592574e-08
A37: 15.23524667 | B37: ='DF raw data'!D42 -> -4.3954019e-06 | C37: ='DF raw data'!E42 -> -1.3778911e-05 | D37: ='DF raw data'!F42 -> -1.3090826e-06 | F37: -4.400535729e-06 | G37: -1.382749058e-05 | H37: -1.310611608e-06 | J37: 5.07260829e-05 | K37: 0.000537876102 | L37: -2.897762207e-05 | M37: 5.522363487e-05 | N37: 2.307295908e-08
A38: 15.73542667 | B38: ='DF raw data'!D43 -> -5.4442362e-06 | C38: ='DF raw data'!E43 -> -8.4087305e-06 | D38: ='DF raw data'!F43 -> -7.7438626e-06 | F38: -5.450595068e-06 | G38: -8.438376718e-06 | H38: -7.752907432e-06 | J38: 4.799980426e-05 | K38: 0.0005618846441 | L38: -3.319832934e-05 | M38: 3.86184945e-05 | N38: 2.477662732e-08
A39: 16.23560667 | B39: ='DF raw data'!D44 -> 8.3021087e-07 | C39: ='DF raw data'!E44 -> -2.0251764e-06 | D39: ='DF raw data'!F44 -> -3.0173283e-06 | F39: 8.311805563e-07 | G39: -2.032316458e-06 | H39: -3.020852539e-06 | J39: 4.841554415e-05 | K39: 0.000586101131 | L39: -3.421485338e-05 | M39: 2.150490914e-05 | N39: 2.653462053e-08
A40: 16.73578667 | B40: ='DF raw data'!D45 -> 8.0159216e-06 | C40: ='DF raw data'!E45 -> -5.1848701e-06 | D40: ='DF raw data'!F45 -> -1.3983986e-06 | F40: 8.025284196e-06 | G40: -5.203150123e-06 | H40: -1.40003193e-06 | J40: 5.24296308e-05 | K40: 0.0006123253837 | L40: -3.681736501e-05 | M40: 3.089599506e-06 | N40: 2.858755159e-08
A41: 17.23596667 | B41: ='DF raw data'!D46 -> 1.0673817e-05 | C41: ='DF raw data'!E46 -> -3.1878635e-06 | D41: ='DF raw data'!F46 -> -3.195491e-06 | F41: 1.068628402e-05 | G41: -3.199102782e-06 | H41: -3.199223333e-06 | J41: 5.777469634e-05 | K41: 0.0006412231313 | L41: -3.841749224e-05 | M41: -1.612606176e-05 | N41: 3.09953277e-08
A42: 17.73614667 | B42: ='DF raw data'!D47 -> 9.6413369e-06 | C42: ='DF raw data'!E47 -> 3.6383688e-07 | D42: ='DF raw data'!F47 -> -6.4596384e-06 | F42: 9.652597981e-06 | G42: 3.651196405e-07 | H42: -6.467183258e-06 | J42: 6.26027328e-05 | K42: 0.0006725357662 | L42: -3.82348667e-05 | M42: -3.525037739e-05 | N42: 3.368679988e-08
A43: 18.23632667 | B43: ='DF raw data'!D48 -> 5.6418435e-06 | C43: ='DF raw data'!E48 -> 1.5198483e-06 | D43: ='DF raw data'!F48 -> -1.1277257e-06 | F43: 5.648433173e-06 | G43: 1.525206749e-06 | H43: -1.129042884e-06 | J43: 6.54279661e-05 | K43: 0.0007052615263 | L43: -3.747198879e-05 | M43: -5.399311674e-05 | N43: 3.653030752e-08
A44: 18.73650667 | B44: ='DF raw data'!D49 -> -1.8838544e-07 | C44: ='DF raw data'!E49 -> 2.914031e-06 | D44: ='DF raw data'!F49 -> 2.8301115e-06 | F44: -1.886054742e-07 | G44: 2.924304846e-06 | H44: 2.83341707e-06 | J44: 6.533362942e-05 | K44: 0.0007379401011 | L44: -3.600930999e-05 | M44: -7.200425341e-05 | N44: 3.931388601e-08
A45: 19.23668667 | B45: ='DF raw data'!D50 -> -4.724711e-07 | C45: ='DF raw data'!E50 -> 5.9733327e-07 | D45: ='DF raw data'!F50 -> 4.438924e-06 | F45: -4.730229462e-07 | G45: 5.994392564e-07 | H45: 4.444108663e-06 | J45: 6.50970328e-05 | K45: 0.0007705003349 | L45: -3.570948246e-05 | M45: -8.986542235e-05 | N45: 4.207127372e-08
A46: 19.73686667 | B46: ='DF raw data'!D51 -> 5.8422925e-06 | C46: ='DF raw data'!E51 -> -1.6413565e-05 | D46: ='DF raw data'!F51 -> 7.895077e-06 | F46: 5.849116298e-06 | G46: -1.647143344e-05 | H46: 7.90429845e-06 | J46: 6.802264379e-05 | K46: 0.0008045239009 | L46: -4.394816404e-05 | M46: -0.000111847415 | N46: 4.535171485e-08
A47: 20.23704667 | B47: ='DF raw data'!D52 -> 9.3529798e-06 | C47: ='DF raw data'!E52 -> -1.2268248e-05 | D47: ='DF raw data'!F52 -> 5.7732e-06 | F47: 9.36390408e-06 | G47: -1.231150152e-05 | H47: 5.779943098e-06 | J47: 7.270628133e-05 | K47: 0.0008408901287 | L47: -5.010613087e-05 | M47: -0.0001369094996 | N47: 4.925153213e-08
A48: 20.73722667 | B48: ='DF raw data'!D53 -> 6.1532114e-06 | C48: ='DF raw data'!E53 -> -9.0730691e-06 | D48: ='DF raw data'!F53 -> 9.0876392e-07 | F48: 6.160398351e-06 | G48: -9.105057542e-06 | H48: 9.098253563e-07 | J48: 7.578758938e-05 | K48: 0.0008787975652 | L48: -5.466029855e-05 | M48: -0.0001642494877 | N48: 5.361885727e-08
A49: 21.23740667 | B49: ='DF raw data'!D54 -> 7.6940205e-07 | C49: ='DF raw data'!E54 -> -3.9042891e-07 | D49: ='DF raw data'!F54 -> 1.1399065e-06 | F49: 7.703007116e-07 | G49: -3.918054246e-07 | H49: 1.141237911e-06 | J49: 7.617287839e-05 | K49: 0.0009168977155 | L49: -5.485627179e-05 | M49: -0.0001916874977 | N49: 5.802620232e-08
A50: 21.73758667 | B50: ='DF raw data'!D55 -> -3.7359177e-06 | C50: ='DF raw data'!E55 -> 2.8509194e-06 | D50: ='DF raw data'!F55 -> 8.6489354e-06 | F50: -3.740281252e-06 | G50: 2.860970736e-06 | H50: 8.659037357e-06 | J50: 7.430206451e-05 | K50: 0.0009540621221 | L50: -5.342527145e-05 | M50: -0.00021840975 | N50: 6.221523804e-08
A51: 22.23776667 | B51: ='DF raw data'!D56 -> -5.2641462e-06 | C51: ='DF raw data'!E56 -> 2.5068846e-07 | D51: ='DF raw data'!F56 -> 1.7117386e-06 | F51: -5.270294723e-06 | G51: 2.515722991e-07 | H51: 1.713737911e-06 | J51: 7.16659685e-05 | K51: 0.0009899080062 | L51: -5.329944001e-05 | M51: -0.0002450690639 | N51: 6.620509455e-08
A52: 22.73794667 | B52: ='DF raw data'!D57 -> -3.1672125e-06 | C52: ='DF raw data'!E57 -> 9.1506836e-06 | D52: ='DF raw data'!F57 -> -3.1737941e-06 | F52: -3.170911804e-06 | G52: 9.182945683e-06 | H52: -3.177501092e-06 | J52: 7.007994183e-05 | K52: 0.001024960592 | L52: -4.870631424e-05 | M52: -0.0002694309882 | N52: 6.984815723e-08
A53: 23.23812667 | B53: ='DF raw data'!D58 -> -1.7109401e-06 | C53: ='DF raw data'!E58 -> 1.077129e-05 | D53: ='DF raw data'!F58 -> -8.405942e-06 | F53: -1.712938478e-06 | G53: 1.080926577e-05 | H53: -8.41576014e-06 | J53: 6.922316426e-05 | K53: 0.001059584634 | L53: -4.329973569e-05 | M53: -0.00029108865 | N53: 7.318271403e-08
A54: 23.73830667 | B54: ='DF raw data'!D59 -> -4.4706953e-06 | C54: ='DF raw data'!E59 -> 2.9040229e-06 | D54: ='DF raw data'!F59 -> -7.5203093e-06 | F54: -4.475917072e-06 | G54: 2.914261461e-06 | H54: -7.529093021e-06 | J54: 6.698440006e-05 | K54: 0.001093088891 | L54: -4.184208039e-05 | M54: -0.0003120172217 | N54: 7.630267158e-08
A55: 24.23848667 | B55: ='DF raw data'!D60 -> -8.4606427e-06 | C55: ='DF raw data'!E60 -> 1.7415294e-05 | D55: ='DF raw data'!F60 -> -1.7165289e-06 | F55: -8.470524731e-06 | G55: 1.747669418e-05 | H55: -1.718533806e-06 | J55: 6.2747613e-05 | K55: 0.001124473992 | L55: -3.31005875e-05 | M55: -0.0003285734736 | N55: 7.882003342e-08
A56: 24.73866667 | B56: ='DF raw data'!D61 -> -6.8351605e-06 | C56: ='DF raw data'!E61 -> 6.7525514e-07 | D56: ='DF raw data'!F61 -> -8.3415534e-07 | F56: -6.843143967e-06 | G56: 6.776358515e-07 | H56: -8.351296334e-07 | J56: 5.932480925e-05 | K56: 0.001154147075 | L56: -3.276164759e-05 | M56: -0.0003449601945 | N56: 8.111723939e-08
A57: 25.23884667 | B57: ='DF raw data'!D62 -> -4.6116702e-06 | C57: ='DF raw data'!E62 -> -4.6794457e-06 | D57: ='DF raw data'!F62 -> -8.5644888e-07 | F57: -4.617056631e-06 | G57: -4.695943775e-06 | H57: -8.574492123e-07 | J57: 5.701544987e-05 | K57: 0.001182665063 | L57: -3.511046475e-05 | M57: -0.0003625217467 | N57: 8.335979955e-08
A58: 25.73902667 | B58: ='DF raw data'!D63 -> -2.7966198e-06 | C58: ='DF raw data'!E63 -> 1.9618919e-06 | D58: ='DF raw data'!F63 -> 4.811362e-06 | F58: -2.799886252e-06 | G58: 1.968808839e-06 | H58: 4.816981671e-06 | J58: 5.561500276e-05 | K58: 0.001210482575 | L58: -3.412570595e-05 | M58: -0.0003795907423 | N58: 8.548936208e-08
A59: 26.23920667 | B59: ='DF raw data'!D64 -> 1.7900679e-06 | C59: ='DF raw data'!E64 -> -1.1292151e-06 | D59: ='DF raw data'!F64 -> 5.9830459e-06 | F59: 1.792158699e-06 | G59: -1.133196314e-06 | H59: 5.990034098e-06 | J59: 5.65114047e-05 | K59: 0.001238748449 | L59: -3.469250808e-05 | M59: -0.000396943241 | N59: 8.768870805e-08
A60: 26.73938667 | B60: ='DF raw data'!D65 -> 2.0027978e-06 | C60: ='DF raw data'!E65 -> -8.6838636e-06 | D60: ='DF raw data'!F65 -> 1.2143796e-06 | F60: 2.005137068e-06 | G60: -8.71447984e-06 | H60: 1.215797995e-06 | J60: 5.751433416e-05 | K60: 0.001267515969 | L60: -3.905131661e-05 | M60: -0.0004164759286 | N60: 9.010602996e-08
A61: 27.23956667 | B61: ='DF raw data'!D66 -> -9.8337114e-07 | C61: ='DF raw data'!E66 -> -5.4522543e-06 | D61: ='DF raw data'!F66 -> -1.5084802e-06 | F61: -9.845197175e-07 | G61: -5.471477026e-06 | H61: -1.510242105e-06 | J61: 5.702189709e-05 | K61: 0.001296037182 | L61: -4.178803999e-05 | M61: -0.0004373774704 | N61: 9.260579807e-08
A62: 27.73974667 | B62: ='DF raw data'!D67 -> -1.3607059e-06 | C62: ='DF raw data'!E67 -> -5.3895428e-06 | D62: ='DF raw data'!F67 -> 1.7233874e-06 | F62: -1.362295204e-06 | G62: -5.408544427e-06 | H62: 1.725400316e-06 | J62: 5.634050427e-05 | K62: 0.001324217575 | L62: -4.449328574e-05 | M62: -0.0004596321221 | N62: 9.518367822e-08
A63: 28.23992667 | B63: ='DF raw data'!D68 -> 8.8214165e-07 | C63: ='DF raw data'!E68 -> -1.3883301e-06 | D63: ='DF raw data'!F68 -> 5.6580616e-06 | F63: 8.831719914e-07 | G63: -1.393224862e-06 | H63: 5.664670216e-06 | J63: 5.678224924e-05 | K63: 0.00135261892 | L63: -4.519014895e-05 | M63: -0.0004822353308 | N63: 9.781781286e-08
A64: 28.74010667 | B64: ='DF raw data'!D69 -> 2.9497055e-06 | C64: ='DF raw data'!E69 -> -5.5080245e-06 | D64: ='DF raw data'!F69 -> 7.4098034e-07 | F64: 2.953150756e-06 | G64: -5.527443852e-06 | H64: 7.41845805e-07 | J64: 5.825935618e-05 | K64: 0.001381759085 | L64: -4.795486581e-05 | M64: -0.0005062213956 | N64: 1.006657486e-07
A65: 29.24028667 | B65: ='DF raw data'!D70 -> -2.4506576e-06 | C65: ='DF raw data'!E70 -> -2.2265203e-06 | D65: ='DF raw data'!F70 -> -1.2681517e-06 | F65: -2.453519968e-06 | G65: -2.234370225e-06 | H65: -1.269632901e-06 | J65: 5.703215457e-05 | K65: 0.001410285428 | L65: -4.907245311e-05 | M65: -0.0005307664552 | N65: 1.034971537e-07
A66: 29.74046667 | B66: ='DF raw data'!D71 -> -5.5972259e-06 | C66: ='DF raw data'!E71 -> 5.7300085e-06 | D66: ='DF raw data'!F71 -> 1.458699e-06 | F66: -5.60376346e-06 | G66: 5.750210489e-06 | H66: 1.46040276e-06 | J66: 5.422926416e-05 | K66: 0.001437409822 | L66: -4.619631283e-05 | M66: -0.0005538729269 | N66: 1.060355234e-07
A67: 30.24064667 | B67: ='DF raw data'!D72 -> -1.9865488e-06 | C67: ='DF raw data'!E72 -> 1.3169908e-05 | D67: ='DF raw data'!F72 -> 5.1188404e-06 | F67: -1.988869089e-06 | G67: 1.321634045e-05 | H67: 5.124819206e-06 | J67: 5.323447162e-05 | K67: 0.00146403664 | L67: -3.958576366e-05 | M67: -0.0005736729342 | N67: 1.082367864e-07
A68: 30.74082667 | B68: ='DF raw data'!D73 -> 5.7696343e-07 | C68: ='DF raw data'!E73 -> 5.2200512e-06 | D68: ='DF raw data'!F73 -> 1.9352269e-06 | F68: 5.776373233e-07 | G68: 5.23845526e-06 | H68: 1.937487245e-06 | J68: 5.352339425e-05 | K68: 0.001490807971 | L68: -3.696559311e-05 | M68: -0.0005921623845 | N68: 1.103531524e-07
A69: 31.24100667 | B69: ='DF raw data'!D74 -> -3.3734016e-06 | C69: ='DF raw data'!E74 -> -6.8033414e-06 | D69: ='DF raw data'!F74 -> -2.2477611e-06 | F69: -3.377341733e-06 | G69: -6.827327582e-06 | H69: -2.250386485e-06 | J69: 5.183411547e-05 | K69: 0.001516734359 | L69: -4.038048582e-05 | M69: -0.0006123598959 | N69: 1.125126091e-07
A70: 31.74118667 | B70: ='DF raw data'!D75 -> -1.0317813e-05 | C70: ='DF raw data'!E75 -> 2.6776877e-07 | D70: ='DF raw data'!F75 -> -1.1090228e-06 | F70: -1.032986421e-05 | G70: 2.687128282e-07 | H70: -1.110318139e-06 | J70: 4.666732399e-05 | K70: 0.001540076421 | L70: -4.024608104e-05 | M70: -0.0006324901808 | N70: 1.144120858e-07
A71: 32.24136667 | B71: ='DF raw data'!D76 -> -9.8561068e-06 | C71: ='DF raw data'!E76 -> 6.081417e-07 | D71: ='DF raw data'!F76 -> 6.7943406e-06 | F71: -9.867618733e-06 | G71: =(1-$G$1*($B$2-$G$2))*C71*$M$2/$M$1 -> 6.102857932e-07 | H71: 6.80227639e-06 | J71: 4.173173845e-05 | K71: 0.001560949802 | L71: -3.994082829e-05 | M71: -0.0006524677843 | N71: 1.160810903e-07
A72: =A71+$B$1 -> 32.74154667 | B72: ='DF raw data'!D77 -> 1.2340116e-07 | C72: ='DF raw data'!E77 -> 4.9023611e-06 | D72: ='DF raw data'!F77 -> 7.8093553e-06 | F72: 1.235452926e-07 | G72: 4.919645096e-06 | H72: 7.818476627e-06 | J72: =F72*$B$1+J71 -> 4.179353333e-05 | K72: =J72*$B$1+K71 -> 0.001581854091 | L72: =G72*$B$1+L71 -> -3.748012021e-05 | M72: =L72*$B$1+M71 -> -0.0006712145908 | N72: =(J72^2+L72^2)*$B$1+N71 -> 1.17657387e-07
A73: 33.24172667 | B73: ='DF raw data'!D78 -> 7.4355344e-06 | C73: ='DF raw data'!E78 -> 4.4016078e-06 | D73: ='DF raw data'!F78 -> 8.0082873e-06 | F73: 7.444219104e-06 | G73: 4.417126317e-06 | H73: 8.01764098e-06 | J73: 4.551698285e-05 | K73: 0.001604620776 | L73: -3.527076197e-05 | M73: -0.0006888563205 | N73: 1.19315895e-07
A74: 33.74190667 | B74: ='DF raw data'!D79 -> 7.6876477e-06 | C74: ='DF raw data'!E79 -> -6.10605e-06 | D74: ='DF raw data'!F79 -> 1.1132667e-05 | F74: 7.696626873e-06 | G74: -6.127577779e-06 | H74: 1.114566996e-05 | J74: 4.936668167e-05 | K74: 0.001629313003 | L74: -3.833565382e-05 | M74: -0.0007080310478 | N74: 1.21269944e-07
A75: 34.24208667 | B75: ='DF raw data'!D80 -> 4.4068461e-06 | C75: ='DF raw data'!E80 -> 4.6457251e-07 | D75: ='DF raw data'!F80 -> 2.3617727e-06 | F75: 4.411993296e-06 | G75: 4.662104288e-07 | H75: 2.364531251e-06 | J75: 5.157347248e-05 | K75: 0.001655109022 | L75: -3.810246469e-05 | M75: -0.0007270891386 | N75: 1.233264945e-07
A76: 34.74226667 | B76: ='DF raw data'!D81 -> -8.4232988e-07 | C76: ='DF raw data'!E81 -> -1.90616e-06 | D76: ='DF raw data'!F81 -> -2.8623213e-06 | F76: -8.433137213e-07 | G76: -1.912880448e-06 | H76: -2.865664491e-06 | J76: 5.115166382e-05 | K76: 0.001680694061 | L76: -3.905924923e-05 | M76: -0.0007466257939 | N76: 1.253982989e-07
A77: 35.24244667 | B77: ='DF raw data'!D82 -> -3.1654104e-06 | C77: ='DF raw data'!E82 -> 1.1667921e-05 | D77: ='DF raw data'!F82 -> -2.3391731e-08 | F77: -3.169107599e-06 | G77: 1.170905797e-05 | H77: -2.341905254e-08 | J77: 4.956653959e-05 | K77: 0.001705486253 | L77: -3.320261261e-05 | M77: -0.0007632330767 | N77: 1.271785673e-07
A78: 35.74262667 | B78: ='DF raw data'!D83 -> 7.8054927e-07 | C78: ='DF raw data'!E83 -> 4.2923339e-06 | D78: ='DF raw data'!F83 -> 2.5290215e-06 | F78: 7.814609515e-07 | G78: 4.307467156e-06 | H78: 2.531975397e-06 | J78: 4.995741072e-05 | K78: 0.001730473951 | L78: -3.104810369e-05 | M78: -0.0007787627172 | N78: 1.289090538e-07
A79: 36.24280667 | B79: ='DF raw data'!D84 -> 2.4669066e-06 | C79: ='DF raw data'!E84 -> -8.0375403e-06 | D79: ='DF raw data'!F84 -> -3.7040986e-06 | F79: 2.469787947e-06 | G79: -8.065877832e-06 | H79: -3.708424987e-06 | J79: 5.119274926e-05 | K79: 0.00175607954 | L79: -3.508249447e-05 | M79: -0.0007963102793 | N79: 1.308354866e-07
A80: 36.74298667 | B80: ='DF raw data'!D85 -> 8.9315563e-07 | C80: ='DF raw data'!E85 -> -5.9483966e-07 | D80: ='DF raw data'!F85 -> -1.0897594e-05 | F80: 8.941988358e-07 | G80: -5.969368549e-07 | H80: -1.091032239e-05 | J80: 5.164000963e-05 | K80: 0.00178190884 | L80: -3.538107034e-05 | M80: -0.000814007183 | N80: 1.327954473e-07
A81: 37.24316667 | B81: ='DF raw data'!D86 -> 2.5549493e-06 | C81: ='DF raw data'!E86 -> 2.0689031e-06 | D81: ='DF raw data'!F86 -> -9.10789e-06 | F81: 2.557933481e-06 | G81: 2.076197323e-06 | H81: -9.118528016e-06 | J81: 5.29194368e-05 | K81: 0.001808378084 | L81: -3.434259796e-05 | M81: -0.0008311846637 | N81: 1.347861041e-07
A82: 37.74334667 | B82: ='DF raw data'!D87 -> 4.7272429e-06 | C82: ='DF raw data'!E87 -> 2.3428283e-06 | D82: ='DF raw data'!F87 -> -1.0433846e-05 | F82: 4.73276432e-06 | G82: 2.351088286e-06 | H82: -1.044603273e-05 | J82: 5.528667086e-05 | K82: 0.001836031371 | L82: -3.316663063e-05 | M82: -0.000847773949 | N82: 1.36865173e-07
A83: 38.24352667 | B83: ='DF raw data'!D88 -> 5.6645381e-06 | C83: ='DF raw data'!E88 -> 8.578415e-06 | D83: ='DF raw data'!F88 -> -1.2803105e-05 | F83: 5.671154281e-06 | G83: 8.608659466e-06 | H83: -1.281805903e-05 | J83: 5.812326881e-05 | K83: 0.001865103468 | L83: -2.886075133e-05 | M83: -0.0008622095196 | N83: 1.389715597e-07
A84: 38.74370667 | B84: ='DF raw data'!D89 -> 3.3705605e-06 | C84: ='DF raw data'!E89 -> 1.5317552e-05 | D84: ='DF raw data'!F89 -> -7.0701385e-06 | F84: 3.374497315e-06 | G84: 1.537155629e-05 | H84: -7.078396422e-06 | J84: 5.981112487e-05 | K84: 0.001895019796 | L84: -2.117220631e-05 | M84: -0.0008727994337 | N84: 1.409851008e-07
A85: 39.24388667 | B85: ='DF raw data'!D90 -> -1.2499686e-06 | C85: ='DF raw data'!E90 -> 3.6474803e-06 | D85: ='DF raw data'!F90 -> 6.2950176e-07 | F85: -1.251428563e-06 | G85: 3.660340029e-06 | H85: 6.302370181e-07 | J85: 5.918518533e-05 | K85: 0.001924623042 | L85: -1.934137743e-05 | M85: -0.0008824736039 | N85: 1.429242862e-07
A86: 39.74406667 | B86: ='DF raw data'!D91 -> -3.2585258e-06 | C86: ='DF raw data'!E91 -> -4.4380731e-06 | D86: ='DF raw data'!F91 -> 4.4419871e-06 | F86: -3.262331758e-06 | G86: -4.453720181e-06 | H86: 4.447175341e-06 | J86: 5.755343224e-05 | K86: 0.001953410118 | L86: -2.156903919e-05 | M86: -0.0008932620059 | N86: 1.448137766e-07
A87: 40.24424667 | B87: ='DF raw data'!D92 -> -1.3560334e-06 | C87: ='DF raw data'!E92 -> 1.1313138e-05 | D87: ='DF raw data'!F92 -> -5.1511847e-06 | F87: =(1-$G$1*($B$2-$G$2))*B87 -> -1.357617247e-06 | G87: 1.135302413e-05 | H87: -5.157201284e-06 | J87: 5.687437924e-05 | K87: 0.001981857545 | L87: -1.589048358e-05 | M87: -0.000901210108 | N87: 1.465580056e-07
A88: 40.74442667 | B88: ='DF raw data'!D93 -> 2.6128878e-06 | C88: ='DF raw data'!E93 -> 5.4941111e-06 | D88: ='DF raw data'!F93 -> -5.3728759e-06 | F88: 2.615939653e-06 | G88: 5.513481398e-06 | H88: -5.379151419e-06 | J88: 5.818281994e-05 | K88: 0.002010959428 | L88: -1.313275046e-05 | M88: -0.0009077788471 | N88: 1.483375008e-07
A89: 41.24460667 | B89: ='DF raw data'!D94 -> -7.2137982e-07 | C89: ='DF raw data'!E94 -> 8.6245461e-07 | D89: ='DF raw data'!F94 -> 1.241599e-06 | F89: -7.222223916e-07 | G89: 8.654953208e-07 | H89: 1.243049188e-06 | J89: 5.782157874e-05 | K89: 0.002039880625 | L89: -1.269984701e-05 | M89: -0.0009141310566 | N89: 1.500904422e-07
A90: 41.74478667 | B90: ='DF raw data'!D95 -> -6.4424739e-06 | C90: ='DF raw data'!E95 -> 9.2867767e-06 | D90: ='DF raw data'!F95 -> 4.2230131e-08 | F90: -6.44999871e-06 | G90: 9.319518599e-06 | H90: 4.227945579e-08 | J90: 5.459541839e-05 | K90: 0.002067188161 | L90: -8.038410195e-06 | M90: -0.0009181517086 | N90: 1.516136282e-07
A91: 42.24496667 | B91: ='DF raw data'!D96 -> -8.2342958e-06 | C91: ='DF raw data'!E96 -> 6.1743222e-06 | D91: ='DF raw data'!F96 -> -3.1290724e-06 | F91: -8.243913457e-06 | G91: 6.196090683e-06 | H91: -3.132727157e-06 | J91: 5.047197775e-05 | K91: 0.002092433235 | L91: -4.939249557e-06 | M91: -0.0009206222225 | N91: 1.528999995e-07
A92: 42.74514667 | B92: ='DF raw data'!D97 -> -6.4333958e-06 | C92: ='DF raw data'!E97 -> -7.3924175e-06 | D92: ='DF raw data'!F97 -> -5.3487161e-06 | F92: -6.440910006e-06 | G92: -7.418480557e-06 | H92: -5.3549634e-06 | J92: 4.725036339e-05 | K92: 0.002116066922 | L92: -8.649825162e-06 | M92: -0.000924948692 | N92: 1.54054123e-07
A93: 43.24532667 | B93: ='DF raw data'!D98 -> -3.8290332e-06 | C93: ='DF raw data'!E98 -> -1.2258143e-06 | D93: ='DF raw data'!F98 -> -8.5034435e-06 | F93: -3.833505511e-06 | G93: -1.230136089e-06 | H93: -8.513375522e-06 | J93: 4.53329206e-05 | K93: 0.002138741542 | L93: -9.265114631e-06 | M93: -0.000929582917 | N93: 1.551249664e-07
A94: 43.74550667 | B94: ='DF raw data'!D99 -> -1.4323282e-06 | C94: ='DF raw data'!E99 -> -5.2599091e-07 | D94: ='DF raw data'!F99 -> -7.2237449e-06 | F94: -1.434001159e-06 | G94: -5.278453684e-07 | H94: -7.232182234e-06 | J94: 4.46156619e-05 | K94: 0.002161057404 | L94: -9.529132327e-06 | M94: -0.0009343491984 | N94: 1.561660218e-07
A95: 44.24568667 | B95: ='DF raw data'!D100 -> -1.1560523e-06 | C95: ='DF raw data'!E100 -> 3.9448887e-06 | D95: ='DF raw data'!F100 -> -2.3672942e-06 | F95: -1.157402569e-06 | G95: 3.958796986e-06 | H95: -2.3700592e-06 | J95: 4.403675228e-05 | K95: 0.002183083707 | L95: -7.549021251e-06 | M95: -0.0009381250679 | N95: 1.571644928e-07
A96: 44.74586667 | B96: ='DF raw data'!D101 -> 2.726529e-07 | C96: ='DF raw data'!E101 -> -2.6480166e-06 | D96: ='DF raw data'!F101 -> 4.7973194e-06 | F96: 2.729713586e-07 | G96: -2.657352573e-06 | H96: 4.802922669e-06 | J96: 4.41732871e-05 | K96: 0.002205178301 | L96: -8.878175861e-06 | M96: -0.0009425657539 | N96: 1.581799089e-07
A97: 45.24604667 | B97: ='DF raw data'!D102 -> 3.0320075e-06 | C97: ='DF raw data'!E102 -> -1.3554484e-05 | D97: ='DF raw data'!F102 -> 2.9829212e-06 | F97: 3.035548885e-06 | G97: -1.360227233e-05 | H97: 2.986405252e-06 | J97: 4.569160794e-05 | K97: 0.00222803233 | L97: -1.568176043e-05 | M97: -0.0009504094568 | N97: 1.593471492e-07
A98: 45.74622667 | B98: ='DF raw data'!D103 -> 2.7048686e-06 | C98: ='DF raw data'!E103 -> -6.8204181e-06 | D98: ='DF raw data'!F103 -> -6.4827323e-06 | F98: 2.708027887e-06 | G98: -6.844464489e-06 | H98: -6.490304131e-06 | J98: 4.704610933e-05 | K98: 0.002251563853 | L98: -1.910522468e-05 | M98: -0.0009599655081 | N98: 1.606367863e-07
A99: 46.24640667 | B99: ='DF raw data'!D104 -> 2.2859832e-07 | C99: ='DF raw data'!E104 -> 1.048082e-05 | D99: ='DF raw data'!F104 -> -1.7695052e-06 | F99: 2.288653228e-07 | G99: 1.051777167e-05 | H99: -1.771571982e-06 | J99: 4.716058318e-05 | K99: 0.002275152633 | L99: -1.384444565e-05 | M99: -0.0009668902229 | N99: 1.618451158e-07
A100: 46.74658667 | B100: ='DF raw data'!D105 -> 8.6832461e-07 | C100: ='DF raw data'!E105 -> 5.8794494e-06 | D100: ='DF raw data'!F105 -> 6.5405698e-06 | F100: 8.693388131e-07 | G100: 5.900178265e-06 | H100: 6.548209186e-06 | J100: 4.759540907e-05 | K100: 0.002298958905 | L100: -1.089329448e-05 | M100: -0.000972338831 | N100: 1.630375384e-07
A101: 47.24676667 | B101: ='DF raw data'!D106 -> 2.4605656e-06 | C101: ='DF raw data'!E106 -> -4.3413393e-06 | D101: ='DF raw data'!F106 -> 6.6959078e-06 | F101: 2.463439541e-06 | G101: -4.356645331e-06 | H101: 6.70372862e-06 | J101: 4.882757226e-05 | K101: 0.00232338148 | L101: -1.307240134e-05 | M101: -0.0009788773847 | N101: 1.64315508e-07
A102: 47.74694667 | B102: ='DF raw data'!D107 -> 3.588631e-06 | C102: ='DF raw data'!E107 -> -7.1721306e-06 | D102: ='DF raw data'!F107 -> 3.9144111e-06 | F102: 3.592822521e-06 | G102: -7.197417003e-06 | H102: 3.918983132e-06 | J102: 5.062463023e-05 | K102: 0.002348702908 | L102: -1.667240538e-05 | M102: -0.0009872165884 | N102: 1.657364305e-07
A103: 48.24712667 | B103: ='DF raw data'!D108 -> 1.3278282e-06 | C103: ='DF raw data'!E108 -> 5.7470888e-06 | D103: ='DF raw data'!F108 -> 3.268437e-06 | F103: 1.329379103e-06 | G103: 5.767351008e-06 | H103: 3.272254534e-06 | J103: 5.128955907e-05 | K103: 0.002374356919 | L103: -1.378769175e-05 | M103: -0.0009941129161 | N103: 1.671472979e-07
A104: 48.74730667 | B104: ='DF raw data'!D109 -> -1.6901145e-06 | C104: ='DF raw data'!E109 -> 8.8020379e-06 | D104: ='DF raw data'!F109 -> 6.8980994e-06 | F104: -1.692088554e-06 | G104: 8.833070781e-06 | H104: 6.90615638e-06 | J104: 5.044321022e-05 | K104: 0.002399587604 | L104: -9.369566409e-06 | M104: -0.0009987993858 | N104: 1.684639248e-07
A105: 49.24748667 | B105: ='DF raw data'!D110 -> -1.4572925e-06 | C105: ='DF raw data'!E110 -> 1.0241317e-05 | D105: ='DF raw data'!F110 -> 1.0826717e-05 | F105: -1.458994618e-06 | G105: 1.027742427e-05 | H105: 1.083936261e-05 | J105: 4.971345029e-05 | K105: 0.002424453278 | L105: -4.229004337e-06 | M105: -0.001000914649 | N105: 1.697090287e-07
A106: 49.74766667 | B106: ='DF raw data'!D111 -> -2.4891051e-06 | C106: ='DF raw data'!E111 -> 2.1450896e-06 | D106: ='DF raw data'!F111 -> 1.1277357e-05 | F106: -2.492012375e-06 | G106: 2.152652429e-06 | H106: 1.129052895e-05 | J106: 4.846699554e-05 | K106: 0.0024486955 | L106: -3.152290645e-06 | M106: -0.001002491362 | N106: 1.708889466e-07
A107: 50.24784667 | B107: ='DF raw data'!D112 -> -3.6500112e-06 | C107: ='DF raw data'!E112 -> -2.2657798e-07 | D107: ='DF raw data'!F112 -> 8.1199369e-07 | F107: -3.654274413e-06 | G107: -2.27376814e-07 | H107: 8.129420986e-07 | J107: 4.663920056e-05 | K107: 0.002472023495 | L107: -3.26601998e-06 | M107: -0.00100412496 | N107: 1.71982281e-07
A108: 50.74802667 | B108: ='DF raw data'!D113 -> -3.3176659e-06 | C108: ='DF raw data'!E113 -> 5.1705492e-06 | D108: ='DF raw data'!F113 -> -1.7804846e-06 | F108: -3.321540934e-06 | G108: 5.188778733e-06 | H108: -1.782564206e-06 | J108: 4.497783222e-05 | K108: 0.002494520507 | L108: -6.706966331e-07 | M108: -0.001004460429 | N108: 1.729943729e-07
A109: 51.24820667 | B109: ='DF raw data'!D114 -> -8.2944734e-07 | C109: ='DF raw data'!E114 -> 5.4879738e-06 | D109: ='DF raw data'!F114 -> 9.8469648e-08 | F109: -8.304161345e-07 | G109: 5.50732246e-06 | H109: 9.858466055e-08 | J109: 4.456247468e-05 | K109: 0.002516809766 | L109: 2.083955915e-06 | M109: -0.001003418076 | N109: 1.739898096e-07
A110: 51.74838667 | B110: ='DF raw data'!D115 -> 1.6130484e-06 | C110: ='DF raw data'!E115 -> 4.0492296e-06 | D110: ='DF raw data'!F115 -> -5.0836966e-06 | F110: 1.614932441e-06 | G110: 4.063505755e-06 | H110: -5.089634358e-06 | J110: 4.537023158e-05 | K110: 0.002539503048 | L110: 4.116440224e-06 | M110: -0.001001359115 | N110: 1.750278847e-07
A111: 52.24856667 | B111: ='DF raw data'!D116 -> -1.262651e-06 | C111: ='DF raw data'!E116 -> 6.8277141e-06 | D111: ='DF raw data'!F116 -> -3.7926834e-06 | F111: -1.264125776e-06 | G111: 6.851786212e-06 | H111: -3.797113254e-06 | J111: 4.473794115e-05 | K111: 0.002561880072 | L111: 7.543566651e-06 | M111: -0.0009975859735 | N111: 1.760574496e-07
A112: 52.74874667 | B112: ='DF raw data'!D117 -> -7.0140491e-06 | C112: ='DF raw data'!E117 -> 1.1092713e-05 | D112: ='DF raw data'!F117 -> -2.8202291e-07 | F112: -7.022241509e-06 | G112: 1.113182199e-05 | H112: -2.823523128e-07 | J112: 4.12255564e-05 | K112: 0.00258250027 | L112: 1.311148138e-05 | M112: -0.0009910278728 | N112: 1.769935152e-07
A113: 53.24892667 | B113: ='DF raw data'!D118 -> -7.1778522e-06 | C113: ='DF raw data'!E118 -> 2.9577923e-06 | D113: ='DF raw data'!F118 -> -3.4305e-07 | F113: -7.186235931e-06 | G113: 2.968220432e-06 | H113: -3.434506824e-07 | J113: 3.763114491e-05 | K113: 0.002601322616 | L113: 1.459612587e-05 | M113: -0.0009837271825 | N113: 1.778083834e-07
A114: 53.74910667 | B114: ='DF raw data'!D119 -> -3.25926e-06 | C114: ='DF raw data'!E119 -> -2.862701e-06 | D114: ='DF raw data'!F119 -> -7.5915882e-06 | F114: -3.263066816e-06 | G114: -2.872793874e-06 | H114: -7.600455175e-06 | J114: 3.599902415e-05 | K114: 0.002619328608 | L114: 1.315921183e-05 | M114: -0.000977145208 | N114: 1.785431951e-07
A115: 54.24928667 | B115: ='DF raw data'!D120 -> 8.768684e-07 | C115: ='DF raw data'!E120 -> -9.9999897e-06 | D115: ='DF raw data'!F120 -> -2.2511554e-06 | F115: 8.778925823e-07 | G115: -1.003524614e-05 | H115: -2.25378475e-06 | J115: 3.643812846e-05 | K115: 0.002637554231 | L115: 8.139782419e-06 | M115: -0.0009730738516 | N115: 1.792404427e-07
A116: 54.74946667 | B116: ='DF raw data'!D121 -> 4.2187453e-06 | C116: ='DF raw data'!E121 -> -1.7419605e-05 | D116: ='DF raw data'!F121 -> 6.0920615e-06 | F116: 4.223672795e-06 | G116: -1.748102038e-05 | H116: 6.099177028e-06 | J116: 3.855072512e-05 | K116: 0.002656836533 | L116: -6.038743561e-07 | M116: -0.0009733758975 | N116: 1.799839718e-07
A117: 55.24964667 | B117: ='DF raw data'!D122 -> 2.2894869e-06 | C117: ='DF raw data'!E122 -> -6.496587e-06 | D117: ='DF raw data'!F122 -> 4.3764962e-06 | F117: 2.292161021e-06 | G117: -6.519491675e-06 | H117: 4.381607948e-06 | J117: 3.969721822e-05 | K117: 0.002676692288 | L117: -3.864793702e-06 | M117: -0.00097530899 | N117: 1.80779661e-07
A118: 55.74982667 | B118: ='DF raw data'!D123 -> -2.5064601e-06 | C118: ='DF raw data'!E123 -> 5.0325862e-06 | D118: ='DF raw data'!F123 -> 1.967172e-06 | F118: -2.509387645e-06 | G118: 5.050329324e-06 | H118: 1.969469657e-06 | J118: 3.84420727e-05 | K118: 0.002695920244 | L118: -1.338719981e-06 | M118: -0.0009759785909 | N118: 1.815197199e-07
A119: 56.25000667 | B119: ='DF raw data'!D124 -> -2.4959804e-06 | C119: ='DF raw data'!E124 -> 1.5832315e-05 | D119: ='DF raw data'!F124 -> -8.1586286e-06 | F119: -2.498895705e-06 | G119: 1.588813416e-05 | H119: -8.168157878e-06 | J119: 3.719217505e-05 | K119: 0.002714523026 | L119: 6.608206963e-06 | M119: -0.000972673298 | N119: 1.822334399e-07
A120: 56.75018667 | B120: ='DF raw data'!D125 -> 3.7094474e-06 | C120: ='DF raw data'!E125 -> 9.876926e-06 | D120: ='DF raw data'!F125 -> -9.9288327e-06 | F120: 3.713780035e-06 | G120: 9.911748558e-06 | H120: -9.940429577e-06 | J120: 3.904973355e-05 | K120: 0.002734054921 | L120: 1.156586536e-05 | M120: -0.0009668882834 | N120: 1.830630639e-07
A121: 57.25036667 | B121: ='DF raw data'!D126 -> 7.2686612e-06 | C121: ='DF raw data'!E126 -> 1.7672236e-06 | D121: ='DF raw data'!F126 -> -3.5960798e-06 | F121: 7.277150996e-06 | G121: 1.773454207e-06 | H121: -3.600280021e-06 | J121: 4.268961893e-05 | K121: 0.002755407415 | L121: 1.245291168e-05 | M121: -0.0009606595861 | N121: 1.840521591e-07
A122: 57.75054667 | B122: ='DF raw data'!D127 -> 4.4855428e-06 | C122: ='DF raw data'!E127 -> 5.6923845e-06 | D122: ='DF raw data'!F127 -> -1.2973028e-06 | F122: 4.490781914e-06 | G122: 5.71245384e-06 | H122: -1.29881805e-06 | J122: 4.493581823e-05 | K122: 0.002777883413 | L122: 1.531016684e-05 | M122: -0.0009530017468 | N122: 1.851793793e-07
A123: 58.25072667 | B123: ='DF raw data'!D128 -> -2.2763423e-07 | C123: ='DF raw data'!E128 -> 5.4752991e-06 | D123: ='DF raw data'!F128 -> -2.6903467e-06 | F123: -2.279001068e-07 | G123: 5.494603074e-06 | H123: -2.693489025e-06 | J123: 4.482182716e-05 | K123: 0.002800302394 | L123: 1.805845741e-05 | M123: -0.0009439692676 | N123: 1.863473516e-07
A124: 58.75090667 | B124: ='DF raw data'!D129 -> -3.4352784e-06 | C124: ='DF raw data'!E129 -> -7.9686879e-06 | D124: ='DF raw data'!F129 -> -5.176476e-06 | F124: -3.439290805e-06 | G124: -7.996782683e-06 | H124: -5.182522124e-06 | J124: 4.310156268e-05 | K124: 0.002821860934 | L124: 1.405862665e-05 | M124: -0.0009369374237 | N124: 1.873754164e-07
A125: 59.25108667 | B125: ='DF raw data'!D130 -> -5.4034522e-06 | C125: ='DF raw data'!E130 -> -2.0689413e-06 | D125: ='DF raw data'!F130 -> -5.8703004e-06 | F125: -5.409763432e-06 | G125: -2.076235657e-06 | H125: -5.877156911e-06 | J125: 4.039570721e-05 | K125: 0.002842066059 | L125: 1.30201351e-05 | M125: -0.0009304250125 | N125: 1.882764092e-07
A126: 59.75126667 | B126: ='DF raw data'!D131 -> -4.3939335e-06 | C126: ='DF raw data'!E131 -> 9.6227477e-06 | D126: ='DF raw data'!F131 -> -7.2440448e-06 | F126: -4.399065614e-06 | G126: 9.656674115e-06 | H126: -7.252505844e-06 | J126: 3.819538257e-05 | K126: 0.002861170625 | L126: 1.785021035e-05 | M126: -0.0009214966943 | N126: 1.891654878e-07
A127: 60.25144667 | B127: ='DF raw data'!D132 -> -2.595704e-06 | C127: ='DF raw data'!E132 -> -5.266259e-06 | D127: ='DF raw data'!F132 -> -3.138334e-07 | F127: -2.598735782e-06 | G127: -5.284825972e-06 | H127: -3.141999574e-07 | J127: 3.689554691e-05 | K127: 0.00287962504 | L127: 1.52068461e-05 | M127: -0.000913890534 | N127: 1.899620392e-07
A128: 60.75162667 | B128: ='DF raw data'!D133 -> -5.8602855e-06 | C128: ='DF raw data'!E133 -> -2.6297357e-06 | D128: ='DF raw data'!F133 -> 7.5298271e-06 | F128: -5.867130313e-06 | G128: -2.639007221e-06 | H128: 7.538621938e-06 | J128: 3.396092567e-05 | K128: 0.002896611616 | L128: 1.388686747e-05 | M128: -0.0009069446007 | N128: 1.906353763e-07
A129: 61.25180667 | B129: ='DF raw data'!D134 -> -8.8060715e-06 | C129: ='DF raw data'!E134 -> -5.5961311e-07 | D129: ='DF raw data'!F134 -> 8.8188472e-06 | F129: -8.816356992e-06 | G129: -5.615861085e-07 | H129: 8.829147614e-06 | J129: 2.955116023e-05 | K129: 0.002911392515 | L129: 1.360597333e-05 | M129: -0.0009001391649 | N129: 1.911647636e-07
A130: 61.75198667 | B130: ='DF raw data'!D135 -> -6.633978e-06 | C130: ='DF raw data'!E135 -> 4.8684697e-06 | D130: ='DF raw data'!F135 -> 8.627504e-06 | F130: -6.641726486e-06 | G130: 4.885634207e-06 | H130: 8.637580925e-06 | J130: 2.622910147e-05 | K130: 0.002924511787 | L130: 1.604966985e-05 | M130: -0.0008921114411 | N130: 1.916377127e-07
A131: 62.25216667 | B131: ='DF raw data'!D136 -> -3.5807921e-06 | C131: ='DF raw data'!E136 -> 1.0708671e-06 | D131: ='DF raw data'!F136 -> 2.1187157e-06 | F131: -3.584974465e-06 | G131: 1.0746426e-06 | H131: 2.12119036e-06 | J131: 2.443596894e-05 | K131: 0.00293673417 | L131: 1.658718458e-05 | M131: -0.0008838148631 | N131: 1.920739953e-07
A132: 62.75234667 | B132: ='DF raw data'!D137 -> -6.4545557e-06 | C132: ='DF raw data'!E137 -> -2.6465468e-06 | D132: ='DF raw data'!F137 -> 1.872399e-06 | F132: -6.462094621e-06 | G132: -2.655877591e-06 | H132: 1.874585962e-06 | J132: 2.120375846e-05 | K132: 0.002947339866 | L132: 1.525876773e-05 | M132: -0.0008761827326 | N132: 1.924153328e-07
A133: 63.25252667 | B133: ='DF raw data'!D138 -> -1.3206461e-05 | C133: ='DF raw data'!E138 -> -4.6093965e-06 | D133: ='DF raw data'!F138 -> 1.2942442e-06 | F133: -1.322188615e-05 | G133: -4.625647606e-06 | H133: 1.295755877e-06 | J133: 1.459043544e-05 | K133: 0.00295463771 | L133: 1.294511131e-05 | M133: -0.0008697078469 | N133: 1.926056297e-07
A134: 63.75270667 | B134: ='DF raw data'!D139 -> -1.5421941e-05 | C134: ='DF raw data'!E139 -> 1.498366e-06 | D134: ='DF raw data'!F139 -> 1.045199e-06 | F134: -1.543995383e-05 | G134: 1.50364871e-06 | H134: 1.046419792e-06 | J134: 6.867679338e-06 | K134: 0.002958072785 | L134: 1.369720632e-05 | M134: -0.0008628567782 | N134: 1.927230612e-07
A135: 64.25288667 | B135: ='DF raw data'!D140 -> -1.1833692e-05 | C135: ='DF raw data'!E140 -> 1.2616986e-05 | D135: ='DF raw data'!F140 -> 2.9859843e-06 | F135: -1.184751375e-05 | G135: =(1-$G$1*($B$2-$G$2))*C135*$M$2/$M$1 -> 1.266146904e-05 | H135: 2.98947193e-06 | J135: 9.417899093e-07 | K135: 0.00295854385 | L135: 2.003021991e-05 | M135: -0.0008528380628 | N135: 1.929241819e-07
A136: =A135+$B$1 -> 64.75306667 | B136: ='DF raw data'!D141 -> -7.686016e-06 | C136: ='DF raw data'!E141 -> 3.7966483e-06 | D136: ='DF raw data'!F141 -> 1.126195e-06 | F136: -7.694993267e-06 | G136: 3.810033943e-06 | H136: 1.127510396e-06 | J136: =F136*$B$1+J135 -> -2.907091823e-06 | K136: =J136*$B$1+K135 -> 0.002957089781 | L136: =G136*$B$1+L135 -> 2.193592268e-05 | M136: =L136*$B$1+M135 -> -0.000841866153 | N136: =(J136^2+L136^2)*$B$1+N135 -> 1.93169088e-07
A137: 65.25324667 | B137: ='DF raw data'!D142 -> -6.7496549e-06 | C137: ='DF raw data'!E142 -> -1.6957466e-06 | D137: ='DF raw data'!F142 -> -4.6431475e-07 | F137: -6.757538497e-06 | G137: -1.701725204e-06 | H137: -4.648570696e-07 | J137: -6.287077428e-06 | K137: 0.00295394511 | L137: 2.108475377e-05 | M137: -0.0008313199809 | N137: 1.934112222e-07
A138: 65.75342667 | B138: ='DF raw data'!D143 -> -7.0691176e-06 | C138: ='DF raw data'!E143 -> -7.8560779e-06 | D138: ='DF raw data'!F143 -> -4.3091418e-06 | F138: -7.077374329e-06 | G138: -7.88377566e-06 | H138: -4.314174878e-06 | J138: -9.82703852e-06 | K138: 0.002949029822 | L138: 1.714144686e-05 | M138: -0.000822746172 | N138: 1.936064924e-07
A139: 66.25360667 | B139: ='DF raw data'!D144 -> -6.347022e-06 | C139: ='DF raw data'!E144 -> -4.0771529e-06 | D139: ='DF raw data'!F144 -> -5.160367e-06 | F139: -6.354435322e-06 | G139: -4.091527503e-06 | H139: -5.166394309e-06 | J139: -1.300539998e-05 | K139: 0.002942524781 | L139: 1.509494663e-05 | M139: -0.0008151959816 | N139: 1.938050628e-07
A140: 66.75378667 | B140: ='DF raw data'!D145 -> -7.5136018e-06 | C140: ='DF raw data'!E145 -> 6.4409096e-06 | D140: ='DF raw data'!F145 -> -3.7448294e-06 | F140: -7.522377687e-06 | G140: 6.463617976e-06 | H140: -3.749203361e-06 | J140: -1.676794285e-05 | K140: 0.002934137792 | L140: 1.832791907e-05 | M140: -0.000806028723 | N140: 1.941137121e-07
A141: 67.25396667 | B141: ='DF raw data'!D146 -> -1.1548338e-05 | C141: ='DF raw data'!E146 -> 3.0103647e-06 | D141: ='DF raw data'!F146 -> -5.0910853e-06 | F141: -1.156182646e-05 | G141: 3.020978184e-06 | H141: -5.097031688e-06 | J141: -2.255093721e-05 | K141: 0.002922858264 | L141: 1.983895194e-05 | M141: -0.000796105676 | N141: 1.945649389e-07
A142: 67.75414667 | B142: ='DF raw data'!D147 -> -1.4764126e-05 | C142: ='DF raw data'!E147 -> -2.4448063e-06 | D142: ='DF raw data'!F147 -> -1.5689106e-06 | F142: -1.47813705e-05 | G142: -2.453425825e-06 | H142: -1.570743088e-06 | J142: -2.994428311e-05 | K142: 0.002907880732 | L142: 1.861179741e-05 | M142: -0.0007867964272 | N142: 1.951866922e-07
A143: 68.25432667 | B143: ='DF raw data'!D148 -> -1.5302194e-05 | C143: ='DF raw data'!E148 -> -4.1697888e-07 | D143: ='DF raw data'!F148 -> -2.3424686e-06 | F143: -1.532006696e-05 | G143: -4.184490005e-07 | H143: -2.345204603e-06 | J143: -3.76070742e-05 | K143: 0.002889070426 | L143: 1.840249759e-05 | M143: -0.000777591866 | N143: 1.960634797e-07
A144: 68.75450667 | B144: ='DF raw data'!D149 -> -1.3516779e-05 | C144: ='DF raw data'!E149 -> -4.0728855e-06 | D144: ='DF raw data'!F149 -> -8.6641076e-06 | F144: -1.35325666e-05 | G144: -4.087245058e-06 | H144: -8.674227278e-06 | J144: -4.437579336e-05 | K144: 0.002866874542 | L144: 1.635813936e-05 | M144: -0.0007694098518 | N144: 1.971822822e-07
A145: 69.25468667 | B145: ='DF raw data'!D150 -> -1.0902538e-05 | C145: ='DF raw data'!E150 -> 4.5063489e-06 | D145: ='DF raw data'!F150 -> -9.1773718e-06 | F145: -1.091527216e-05 | G145: 4.522236697e-06 | H145: -9.18809097e-06 | J145: -4.983539419e-05 | K145: 0.002841947874 | L145: 1.862007171e-05 | M145: -0.0007600964643 | N145: 1.985979284e-07
A146: 69.75486667 | B146: ='DF raw data'!D151 -> -7.7007671e-06 | C146: ='DF raw data'!E151 -> 8.8552761e-06 | D146: ='DF raw data'!F151 -> -1.7136003e-06 | F146: -7.709761596e-06 | G146: 8.88649668e-06 | H146: -1.715601785e-06 | J146: -5.369166275e-05 | K146: 0.002815092378 | L146: 2.306491962e-05 | M146: -0.0007485598528 | N146: 2.003059357e-07
A147: 70.25504667 | B147: ='DF raw data'!D152 -> -5.9993909e-06 | C147: ='DF raw data'!E152 -> -2.033049e-06 | D147: ='DF raw data'!F152 -> 7.3618912e-07 | F147: -6.006398189e-06 | G147: -2.040216814e-06 | H147: 7.370489889e-07 | J147: -5.669594299e-05 | K147: 0.002786734202 | L147: 2.204444397e-05 | M147: -0.0007375336629 | N147: 2.021567955e-07
A148: 70.75522667 | B148: ='DF raw data'!D153 -> -7.3806373e-06 | C148: ='DF raw data'!E153 -> -4.3977789e-06 | D148: ='DF raw data'!F153 -> 6.6071561e-07 | F148: -7.389257884e-06 | G148: -4.413283917e-06 | H148: 6.614873258e-07 | J148: -6.0391902e-05 | K148: 0.00275652738 | L148: 1.983700762e-05 | M148: -0.0007276115884 | N148: 2.041778672e-07
A149: 71.25540667 | B149: ='DF raw data'!D154 -> -8.5017609e-06 | C149: ='DF raw data'!E154 -> 3.280019e-06 | D149: ='DF raw data'!F154 -> 2.4283913e-06 | F149: -8.511690957e-06 | G149: 3.29158319e-06 | H149: 2.431227661e-06 | J149: -6.464927958e-05 | K149: 0.002724191103 | L149: 2.14833917e-05 | M149: -0.0007168660255 | N149: 2.064992353e-07
A150: 71.75558667 | B150: ='DF raw data'!D155 -> -8.7179624e-06 | C150: ='DF raw data'!E155 -> 4.0352197e-06 | D150: ='DF raw data'!F155 -> -5.4750444e-07 | F150: -8.72814498e-06 | G150: 4.049446462e-06 | H150: -5.481439252e-07 | J150: -6.901492314e-05 | K150: 0.002689671219 | L150: 2.350884383e-05 | M150: -0.000705107372 | N150: 2.091580548e-07
A151: 72.25576667 | B151: ='DF raw data'!D156 -> -1.0519062e-05 | C151: ='DF raw data'!E156 -> 5.9887234e-06 | D151: ='DF raw data'!F156 -> 4.6231847e-07 | F151: =(1-$G$1*($B$2-$G$2))*B151 -> -1.053134826e-05 | G151: 6.009837527e-06 | H151: 4.62858458e-07 | J151: -7.428249291e-05 | K151: 0.002652516602 | L151: 2.651484437e-05 | M151: -0.0006918451772 | N151: 2.122696374e-07
A152: 72.75594667 | B152: ='DF raw data'!D157 -> -1.1470775e-05 | C152: ='DF raw data'!E157 -> 5.6311392e-06 | D152: ='DF raw data'!F157 -> 3.1027853e-06 | F152: -1.148417287e-05 | G152: 5.650992611e-06 | H152: 3.106409353e-06 | J152: -8.00266465e-05 | K152: 0.002612488874 | L152: 2.934135785e-05 | M152: -0.0006771692168 | N152: 2.159035349e-07
A153: 73.25612667 | B153: ='DF raw data'!D158 -> -9.9484214e-06 | C153: ='DF raw data'!E158 -> -5.4437123e-06 | D153: ='DF raw data'!F158 -> -1.3113454e-06 | F153: -9.960041156e-06 | G153: -5.46290491e-06 | H153: -1.312877051e-06 | J153: -8.500845988e-05 | K153: 0.002569969342 | L153: 2.660892208e-05 | M153: -0.0006638599661 | N153: 2.198721996e-07
A154: 73.75630667 | B154: ='DF raw data'!D159 -> -1.0300458e-05 | C154: ='DF raw data'!E159 -> 2.2734448e-06 | D154: ='DF raw data'!F159 -> -8.8252336e-06 | F154: -1.031248893e-05 | G154: 2.281460165e-06 | H154: -8.835541473e-06 | J154: -9.01665606e-05 | K154: 0.002524869832 | L154: 2.775006282e-05 | M154: -0.0006499799397 | N154: 2.243238389e-07
A155: 74.25648667 | B155: ='DF raw data'!D160 -> -9.7092579e-06 | C155: ='DF raw data'!E160 -> 1.4755157e-05 | D155: ='DF raw data'!F160 -> -9.7992515e-06 | F155: -9.720598313e-06 | G155: 1.480717848e-05 | H155: -9.810697026e-06 | J155: -9.502860946e-05 | K155: 0.002477338422 | L155: 3.515631735e-05 | M155: -0.0006323954529 | N155: 2.294588885e-07
A156: 74.75666667 | B156: ='DF raw data'!D161 -> -3.2602613e-06 | C156: ='DF raw data'!E161 -> 1.2020569e-05 | D156: ='DF raw data'!F161 -> -5.207155e-06 | F156: -3.264069285e-06 | G156: 1.206294929e-05 | H156: -5.213236957e-06 | J156: -9.666123164e-05 | K156: 0.002428990407 | L156: 4.118996333e-05 | M156: -0.0006117930571 | N156: 2.349808791e-07
A157: 75.25684667 | B157: ='DF raw data'!D162 -> 4.0172295e-06 | C157: ='DF raw data'!E162 -> -4.7321455e-06 | D157: ='DF raw data'!F162 -> -7.924692e-06 | F157: 4.021921624e-06 | G157: -4.748829376e-06 | H157: -7.93394804e-06 | J157: -9.464954688e-05 | K157: 0.002381648597 | L157: 3.881469385e-05 | M157: -0.0005923787235 | N157: 2.402153214e-07
A158: 75.75702667 | B158: ='DF raw data'!D163 -> 4.5731181e-06 | C158: ='DF raw data'!E163 -> -4.7505609e-06 | D158: ='DF raw data'!F163 -> -8.5164893e-06 | F158: 4.578459502e-06 | G158: -4.767309702e-06 | H158: -8.52643656e-06 | J158: -9.235949301e-05 | K158: 0.002335452226 | L158: 3.643018088e-05 | M158: -0.0005741570756 | N158: 2.451458127e-07
A159: 76.25720667 | B159: ='DF raw data'!D164 -> 2.7742876e-06 | C159: ='DF raw data'!E164 -> 4.6094892e-06 | D159: ='DF raw data'!F164 -> -3.5634034e-06 | F159: 2.777527968e-06 | G159: 4.625740633e-06 | H159: -3.567565455e-06 | J159: -9.097022907e-05 | K159: 0.002289950737 | L159: 3.874388383e-05 | M159: -0.0005547781598 | N159: 2.500359081e-07
A160: 76.75738667 | B160: ='DF raw data'!D165 -> 2.2884192e-06 | C160: ='DF raw data'!E165 -> -2.9436897e-06 | D160: ='DF raw data'!F165 -> 2.4667283e-06 | F160: 2.291092074e-06 | G160: -2.954068112e-06 | H160: 2.469609439e-06 | J160: -8.982427063e-05 | K160: 0.002245022433 | L160: 3.726631804e-05 | M160: -0.0005361382928 | N160: 2.547661994e-07
A161: 77.25756667 | B161: ='DF raw data'!D166 -> -1.3384783e-06 | C161: ='DF raw data'!E166 -> -2.1879578e-06 | D161: ='DF raw data'!F166 -> 9.8551618e-06 | F161: -1.340041643e-06 | G161: -2.195671768e-06 | H161: 9.866672629e-06 | J161: -9.049453266e-05 | K161: 0.002199758878 | L161: 3.616808694e-05 | M161: -0.0005180477391 | N161: 2.595166044e-07
A162: 77.75774667 | B162: ='DF raw data'!D167 -> -5.0749782e-06 | C162: ='DF raw data'!E167 -> -1.4222215e-06 | D162: ='DF raw data'!F167 -> 7.9004685e-06 | F162: -5.080905775e-06 | G162: -1.427235751e-06 | H162: 7.909696247e-06 | J162: -9.303590011e-05 | K162: 0.002153224181 | L162: 3.545421216e-05 | M162: -0.0005003142513 | N162: 2.644747286e-07
A163: 78.25792667 | B163: ='DF raw data'!D168 -> -3.7138236e-06 | C163: ='DF raw data'!E168 -> -4.4430099e-06 | D163: ='DF raw data'!F168 -> -7.706617e-07 | F163: -3.718161346e-06 | G163: -4.458674386e-06 | H163: -7.715618329e-07 | J163: -9.489565006e-05 | K163: 0.002105759275 | L163: 3.322407241e-05 | M163: -0.0004836962347 | N163: 2.6953106e-07
A164: 78.75810667 | B164: ='DF raw data'!D169 -> 1.2726928e-06 | C164: ='DF raw data'!E169 -> -1.1091951e-05 | D164: ='DF raw data'!F169 -> -5.4326406e-06 | F164: 1.274179305e-06 | G164: -1.113105731e-05 | H164: -5.438985924e-06 | J164: -9.425833105e-05 | K164: 0.002058613143 | L164: 2.765654016e-05 | M164: -0.0004698629865 | N164: 2.743575555e-07
A165: 79.25828667 | B165: ='DF raw data'!D170 -> 5.0404983e-06 | C165: ='DF raw data'!E170 -> -1.288228e-05 | D165: ='DF raw data'!F170 -> -4.9551813e-06 | F165: 5.046385602e-06 | G165: -1.292769838e-05 | H165: -4.960968952e-06 | J165: -9.17342299e-05 | K165: 0.002012729516 | L165: 2.119036399e-05 | M165: -0.0004592639902 | N165: 2.787912513e-07
A166: 79.75846667 | B166: ='DF raw data'!D171 -> 5.8624505e-06 | C166: ='DF raw data'!E171 -> -1.2909269e-06 | D166: ='DF raw data'!F171 -> -5.8089386e-06 | F166: 5.869297842e-06 | G166: -1.295478253e-06 | H166: -5.81572344e-06 | J166: -8.879852451e-05 | K166: 0.00196831427 | L166: 2.054239168e-05 | M166: -0.0004489890967 | N166: 2.829463304e-07
A167: 80.25864667 | B167: ='DF raw data'!D172 -> 4.0538748e-06 | C167: ='DF raw data'!E172 -> 1.613466e-05 | D167: ='DF raw data'!F172 -> -2.0470357e-06 | F167: 4.058609726e-06 | G167: 1.619154512e-05 | H167: -2.049426638e-06 | J167: -8.676848909e-05 | K167: 0.001924914407 | L167: 2.864107872e-05 | M167: -0.000434663402 | N167: 2.871223743e-07
A168: 80.75882667 | B168: ='DF raw data'!D173 -> 3.9371303e-06 | C168: ='DF raw data'!E173 -> 9.6998692e-06 | D168: ='DF raw data'!F173 -> 2.9540356e-06 | F168: 3.941728868e-06 | G168: 9.734067518e-06 | H168: 2.957485914e-06 | J168: -8.479691515e-05 | K168: 0.001882500686 | L168: 3.350986461e-05 | M168: -0.0004179024379 | N168: 2.912805847e-07
A169: 81.25900667 | B169: ='DF raw data'!D174 -> 5.3925346e-06 | C169: ='DF raw data'!E174 -> 9.5587011e-06 | D169: ='DF raw data'!F174 -> 5.600094e-06 | F169: 5.39883308e-06 | G169: 9.592401709e-06 | H169: 5.60663491e-06 | J169: -8.209652682e-05 | K169: 0.001841437645 | L169: 3.830779209e-05 | M169: -0.0003987416465 | N169: 2.953857253e-07
A170: 81.75918667 | B170: ='DF raw data'!D175 -> 1.8932619e-06 | C170: ='DF raw data'!E175 -> 8.6058999e-06 | D170: ='DF raw data'!F175 -> 1.0949379e-05 | F170: 1.89547323e-06 | G170: 8.636241268e-06 | H170: 1.096216787e-05 | J170: -8.114844902e-05 | K170: 0.001800848814 | L170: 4.262746725e-05 | M170: -0.0003774202399 | N170: 2.995883236e-07
A171: 82.25936667 | B171: ='DF raw data'!D176 -> -8.3275445e-06 | C171: ='DF raw data'!E176 -> 1.1139026e-07 | D171: ='DF raw data'!F176 -> 1.4266764e-05 | F171: -8.337271072e-06 | G171: 1.117829828e-07 | H171: 1.428342758e-05 | J171: -8.531858526e-05 | K171: 0.001758174164 | L171: 4.268337886e-05 | M171: -0.0003560708675 | N171: 3.041405277e-07
A172: 82.75954667 | B172: ='DF raw data'!D177 -> -1.6721286e-05 | C172: ='DF raw data'!E177 -> 5.9087032e-08 | D172: ='DF raw data'!F177 -> 4.7170445e-07 | F172: -1.674081646e-05 | G172: 5.929535204e-08 | H172: 4.722554008e-07 | J172: -9.369200684e-05 | K172: 0.001711311296 | L172: 4.271303721e-05 | M172: -0.0003347066605 | N172: 3.09443734e-07
A173: 83.25972667 | B173: ='DF raw data'!D178 -> -1.3860204e-05 | C173: ='DF raw data'!E178 -> -5.0831959e-06 | D173: ='DF raw data'!F178 -> -1.0596569e-05 | F173: -1.387639272e-05 | G173: -5.101117456e-06 | H173: -1.060894579e-05 | J173: -0.0001006327009 | K173: 0.001660976831 | L173: 4.016156028e-05 | M173: -0.0003146186513 | N173: 3.153157929e-07
A174: 83.75990667 | B174: ='DF raw data'!D179 -> -6.8455738e-06 | C174: ='DF raw data'!E179 -> -1.0598316e-06 | D174: ='DF raw data'!F179 -> -9.135244e-06 | F174: -6.85356943e-06 | G174: -1.063568192e-06 | H174: -9.145913965e-06 | J174: -0.0001040607193 | K174: 0.001608927741 | L174: 3.962958474e-05 | M174: -0.0002947967256 | N174: 3.215175934e-07
A175: 84.26008667 | B175: ='DF raw data'!D180 -> -4.2528918e-06 | C175: ='DF raw data'!E180 -> 1.1629224e-05 | D175: ='DF raw data'!F180 -> -2.5706172e-06 | F175: -4.257859178e-06 | G175: 1.167022454e-05 | H175: -2.573619681e-06 | J175: -0.0001061904153 | K175: 0.001555813419 | L175: 4.546679766e-05 | M175: -0.0002720551427 | N175: 3.281918122e-07
A176: 84.76026667 | B176: ='DF raw data'!D181 -> -2.1298597e-06 | C176: ='DF raw data'!E181 -> 1.6798284e-06 | D176: ='DF raw data'!F181 -> 3.8082585e-06 | F176: -2.132347376e-06 | G176: 1.685750882e-06 | H176: 3.812706546e-06 | J176: -0.0001072569728 | K176: 0.001502165626 | L176: 4.630997653e-05 | M176: -0.0002488918187 | N176: 3.350186051e-07
A177: 85.26044667 | B177: ='DF raw data'!D182 -> 7.2454623e-07 | C177: ='DF raw data'!E182 -> -6.6270813e-06 | D177: ='DF raw data'!F182 -> 4.7973194e-06 | F177: 7.253925e-07 | G177: -6.650446051e-06 | H177: 4.802922669e-06 | J177: -0.000106894146 | K177: 0.001448699312 | L177: 4.298355643e-05 | M177: -0.0002273923034 | N177: 3.416579667e-07
A178: 85.76062667 | B178: ='DF raw data'!D183 -> 1.9232998e-06 | C178: ='DF raw data'!E183 -> -9.8019818e-06 | D178: ='DF raw data'!F183 -> 1.0981753e-06 | F178: 1.925546214e-06 | G178: -9.836540131e-06 | H178: 1.099457969e-06 | J178: -0.0001059310263 | K178: 0.001395714732 | L178: 3.806351578e-05 | M178: -0.0002083536941 | N178: 3.479953541e-07
A179: 86.26080667 | B179: ='DF raw data'!D184 -> 7.8895982e-07 | C179: ='DF raw data'!E184 -> -9.1658012e-06 | D179: ='DF raw data'!F184 -> -2.774937e-06 | F179: 7.898813251e-07 | G179: -9.198116582e-06 | H179: -2.778178126e-06 | J179: -0.0001055359435 | K179: 0.001342927763 | L179: 3.346280183e-05 | M179: -0.0001916162699 | N179: 3.541263577e-07
A180: 86.76098667 | B180: ='DF raw data'!D185 -> -2.017387e-06 | C180: ='DF raw data'!E185 -> 3.8724384e-06 | D180: ='DF raw data'!F185 -> -7.1666395e-06 | F180: -2.019743308e-06 | G180: 3.886091252e-06 | H180: -7.175010135e-06 | J180: -0.0001065461787 | K180: 0.001289635496 | L180: 3.540654695e-05 | M180: -0.0001739066232 | N180: 3.604314826e-07
A181: 87.26116667 | B181: ='DF raw data'!D186 -> -3.3934932e-06 | C181: ='DF raw data'!E186 -> 1.1368508e-05 | D181: ='DF raw data'!F186 -> -6.771777e-06 | F181: -3.3974568e-06 | G181: 1.140858935e-05 | H181: -6.779686436e-06 | J181: -0.0001082455186 | K181: 0.001235493252 | L181: 4.111289518e-05 | M181: -0.0001533427753 | N181: 3.671375771e-07
A182: 87.76134667 | B182: ='DF raw data'!D187 -> -2.8482839e-06 | C182: ='DF raw data'!E187 -> 4.7167623e-06 | D182: ='DF raw data'!F187 -> -7.9231064e-08 | F182: -2.851610696e-06 | G182: 4.73339194e-06 | H182: -7.932360588e-08 | J182: -0.0001096718372 | K182: 0.001180637593 | L182: 4.348044316e-05 | M182: -0.0001315947273 | N182: 3.740993129e-07
A183: 88.26152667 | B183: ='DF raw data'!D188 -> -4.0683299e-06 | C183: ='DF raw data'!E188 -> 3.7367417e-06 | D183: ='DF raw data'!F188 -> 5.9143395e-07 | F183: -4.073081709e-06 | G183: 3.749916133e-06 | H183: 5.921247449e-07 | J183: -0.0001117091113 | K183: 0.001124762929 | L183: 4.535607621e-05 | M183: -0.0001089085251 | N183: 3.81369979e-07
A184: 88.76170667 | B184: ='DF raw data'!D189 -> -7.8047633e-06 | C184: ='DF raw data'!E189 -> 3.0327783e-06 | D184: ='DF raw data'!F189 -> 5.8331398e-07 | F184: -7.813879264e-06 | G184: 3.043470807e-06 | H184: 5.839952907e-07 | J184: -0.0001156174574 | K184: 0.00106693339 | L184: 4.687835944e-05 | M184: -8.546090723e-05 | N184: 3.891552692e-07
A185: 89.26188667 | B185: ='DF raw data'!D190 -> -9.2388746e-06 | C185: ='DF raw data'!E190 -> 4.1817211e-06 | D185: ='DF raw data'!F190 -> 6.5100216e-06 | F185: -9.249665606e-06 | G185: 4.196464374e-06 | H185: 6.517625305e-06 | J185: -0.0001202439551 | K185: 0.001006789768 | L185: 4.897734699e-05 | M185: -6.096341781e-05 | N185: 3.975869981e-07
A186: 89.76206667 | B186: ='DF raw data'!D191 -> -6.2876152e-06 | C186: ='DF raw data'!E191 -> -4.971248e-06 | D186: ='DF raw data'!F191 -> 8.1018597e-06 | F186: -6.294959135e-06 | G186: -4.988774867e-06 | H186: 8.111322672e-06 | J186: -0.0001233925678 | K186: 0.0009450712735 | L186: 4.648206157e-05 | M186: -3.771402026e-05 | N186: 4.062832816e-07
A187: 90.26224667 | B187: ='DF raw data'!D192 -> -4.3788482e-06 | C187: ='DF raw data'!E192 -> -7.0763281e-06 | D187: ='DF raw data'!F192 -> 6.864725e-07 | F187: -4.383962695e-06 | G187: -7.101276737e-06 | H187: 6.872742999e-07 | J187: -0.0001255853382 | K187: 0.000882255999 | L187: 4.293014497e-05 | M187: -1.624122034e-05 | N187: 4.150937895e-07
A188: 90.76242667 | B188: ='DF raw data'!D193 -> -6.9326816e-06 | C188: ='DF raw data'!E193 -> 9.2294058e-06 | D188: ='DF raw data'!F193 -> -2.9952967e-06 | F188: -6.940778972e-06 | G188: 9.26194543e-06 | H188: -2.998795207e-06 | J188: -0.0001290569771 | K188: 0.0008177042802 | L188: 4.756278484e-05 | M188: 7.548733377e-06 | N188: 4.245561556e-07
A189: 91.26260667 | B189: ='DF raw data'!D194 -> -8.6120972e-06 | C189: ='DF raw data'!E194 -> 7.3028486e-06 | D189: ='DF raw data'!F194 -> 3.4049413e-06 | F189: -8.62215613e-06 | G189: 7.328595869e-06 | H189: 3.408918271e-06 | J189: -0.0001333696071 | K189: 0.0007509954702 | L189: 5.122840192e-05 | M189: 3.317215545e-05 | N189: 4.347657304e-07
A190: 91.76278667 | B190: ='DF raw data'!D195 -> -4.8817383e-06 | C190: ='DF raw data'!E195 -> -1.2012069e-05 | D190: ='DF raw data'!F195 -> 6.9444873e-06 | F190: -4.88744017e-06 | G190: -1.205441932e-05 | H190: 6.952598461e-06 | J190: -0.0001358142069 | K190: 0.0006830639201 | L190: 4.519902247e-05 | M190: 5.577980251e-05 | N190: 4.450136435e-07
A191: 92.26296667 | B191: ='DF raw data'!D196 -> -2.6027126e-06 | C191: ='DF raw data'!E196 -> -6.1520777e-06 | D191: ='DF raw data'!F196 -> 5.134149e-06 | F191: -2.605752568e-06 | G191: -6.173767756e-06 | H191: 5.140145686e-06 | J191: -0.0001371175523 | K191: 0.0006144804628 | L191: 4.211102731e-05 | M191: 7.684289615e-05 | N191: 4.553046278e-07
A192: 92.76314667 | B192: ='DF raw data'!D197 -> -4.0529108e-06 | C192: ='DF raw data'!E197 -> 8.6807513e-06 | D192: ='DF raw data'!F197 -> -6.3462676e-07 | F192: -4.0576446e-06 | G192: 8.711356568e-06 | H192: -6.353680041e-07 | J192: -0.0001391471049 | K192: 0.0005448818639 | L192: 4.646827364e-05 | M192: 0.0001000853973 | N192: 4.660691103e-07
A193: 93.26332667 | B193: ='DF raw data'!D198 -> -5.0806516e-06 | C193: ='DF raw data'!E198 -> 7.9352931e-06 | D193: ='DF raw data'!F198 -> -4.4532312e-06 | F193: -5.086585801e-06 | G193: 7.963270145e-06 | H193: -4.458432574e-06 | J193: -0.0001416913134 | K193: 0.0004740107027 | L193: 5.04513421e-05 | M193: 0.0001253201495 | N193: 4.773840653e-07
A194: 93.76350667 | B194: ='DF raw data'!D199 -> -4.8298075e-06 | C194: ='DF raw data'!E199 -> 1.8283307e-06 | D194: ='DF raw data'!F199 -> -7.1442769e-06 | F194: -4.835448715e-06 | G194: 1.834776749e-06 | H194: -7.152621415e-06 | J194: -0.0001441099082 | K194: 0.0004019298089 | L194: 5.136906073e-05 | M194: 0.0001510139263 | N194: 4.890915015e-07
A195: 94.26368667 | B195: ='DF raw data'!D200 -> -5.1174306e-06 | C195: ='DF raw data'!E200 -> -1.089088e-05 | D195: ='DF raw data'!F200 -> -2.54426e-06 | F195: -5.123407759e-06 | G195: -1.09292774e-05 | H195: -2.547231696e-06 | J195: -0.0001466725343 | K195: 0.0003285671407 | L195: 4.590245476e-05 | M195: 0.0001739734162 | N195: 5.009056869e-07
A196: 94.76386667 | B196: ='DF raw data'!D201 -> -8.2636652e-06 | C196: ='DF raw data'!E201 -> -2.9827834e-06 | D196: ='DF raw data'!F201 -> -5.0050326e-06 | F196: -8.273317161e-06 | G196: -2.993299642e-06 | H196: -5.010878478e-06 | J196: -0.000150810682 | K196: 0.0002531346537 | L196: 4.440526615e-05 | M196: 0.0001961840422 | N196: 5.132679805e-07
A197: 95.26404667 | B197: ='DF raw data'!D202 -> -8.7911194e-06 | C197: ='DF raw data'!E202 -> 6.3369689e-06 | D197: ='DF raw data'!F202 -> -1.186682e-05 | F197: -8.801387427e-06 | G197: 6.359310817e-06 | H197: -1.188068045e-05 | J197: -0.00015521296 | K197: 0.0001755002354 | L197: 4.758606623e-05 | M197: 0.0002199856408 | N197: 5.264504728e-07
A198: 95.76422667 | B198: ='DF raw data'!D203 -> -3.6659644e-06 | C198: ='DF raw data'!E203 -> 5.623001e-06 | D198: ='DF raw data'!F203 -> -6.7492797e-06 | F198: -3.670246246e-06 | G198: 5.642825718e-06 | H198: -6.757162859e-06 | J198: -0.0001570487438 | K198: 9.694759473e-05 | L198: 5.04084948e-05 | M198: 0.0002451989617 | N198: 5.400580319e-07
A199: 96.26440667 | B199: ='DF raw data'!D204 -> 8.095185e-07 | C199: ='DF raw data'!E204 -> 3.7794371e-06 | D199: ='DF raw data'!F204 -> -2.8108795e-07 | F199: 8.104640176e-07 | G199: =(1-$G$1*($B$2-$G$2))*C199*$M$2/$M$1 -> 3.792762062e-06 | H199: -2.814162607e-07 | J199: -0.0001566433659 | K199: 1.859771599e-05 | L199: 5.230555853e-05 | M199: 0.000271361156 | N199: 5.536994488e-07
A200: =A199+$B$1 -> 96.76458667 | B200: ='DF raw data'!D205 -> 7.6686547e-07 | C200: ='DF raw data'!E205 -> -4.3094524e-06 | D200: ='DF raw data'!F205 -> 2.6383027e-06 | F200: 7.677611689e-07 | G200: -4.324646009e-06 | H200: 2.641384238e-06 | J200: =F200*$B$1+J199 -> -0.0001562593471 | K200: =J200*$B$1+K199 -> -5.956008424e-05 | L200: =G200*$B$1+L199 -> 5.014245709e-05 | M200: =L200*$B$1+M199 -> 0.0002964414102 | N200: =(J200^2+L200^2)*$B$1+N199 -> 5.671699212e-07
A201: 97.26476667 | B201: ='DF raw data'!D206 -> -4.495927e-06 | C201: ='DF raw data'!E206 -> 3.9595643e-06 | D201: ='DF raw data'!F206 -> -9.582759e-07 | F201: -4.501178243e-06 | G201: 3.973524327e-06 | H201: -9.593951663e-07 | J201: -0.0001585107464 | K201: -0.0001388439894 | L201: 5.212993449e-05 | M201: 0.0003225157608 | N201: 5.810965264e-07
... 1002 more rows

Sheet 15 mm
A1: dz | B1: ='DF raw data'!H7 -> 0.50014 | C1: mm | F1: T_coeff | G1: -0.0008 | H1: /degC | L1: Hallref | M1: ='PI vs gap'!B50 -> 0.50533 | N1: T | P1: IBy total | Q1: =L1203*1000 -> 10.81839406 | R1: muTm | X1: DF ref | Y1: 20
A2: Tref | B2: ='DF raw data'!H8 -> 21.48 | C2: degC | F2: Tcorr | G2: 20 | H2: degC | L2: NMRref | M2: ='PI vs gap'!B51 -> 0.50652 | N2: T | P2: JBy total | Q2: =M1203 -> 2.227175761 | R2: muTm^2
A3: Encoder | B3: ='DF raw data'!H9 -> 17234998 | P3: PI total | Q3: =N1203 -> 371.114791 | R3: T^2mm^3
A5: z [mm] | B5: Bx | C5: By | D5: Bz | F5: Bx_corr | G5: By_corr | H5: Bz_corr | J5: Ix | K5: Jx | L5: Iy | M5: Jy | N5: PI
A6: ='PI vs gap'!B53 -> -0.2703333333 | B6: ='DF raw data'!G11 -> -1.3899545e-05 | C6: ='DF raw data'!H11 -> 2.4598521e-06 | D6: ='DF raw data'!I11 -> -8.2809174e-07 | F6: =(1-$G$1*($B$2-$G$2))*B6 -> -1.391600206e-05 | G6: =(1-$G$1*($B$2-$G$2))*C6*$M$2/$M$1 -> 2.468564121e-06 | H6: =(1-$G$1*($B$2-$G$2))*D6 -> -8.290722006e-07 | J6: =F6*$B$1 -> -6.959949271e-06 | K6: =J6*$B$1 -> -3.480949028e-06 | L6: =G6*$B$1 -> 1.23462766e-06 | M6: =L6*$B$1 -> 6.174866777e-07 | N6: =(J6^2+L6^2)*$B$1 -> 2.498959478e-11
A7: =A6+$B$1 -> 0.2298066667 | B7: ='DF raw data'!G12 -> -1.3800622e-05 | C7: ='DF raw data'!H12 -> -1.0674303e-06 | D7: ='DF raw data'!I12 -> -5.8900591e-06 | F7: =(1-$G$1*($B$2-$G$2))*B7 -> -1.381696194e-05 | G7: =(1-$G$1*($B$2-$G$2))*C7*$M$2/$M$1 -> -1.071210802e-06 | H7: -5.89703293e-06 | J7: =F7*$B$1+J6 -> -1.387036461e-05 | K7: =J7*$B$1+K6 -> -1.041807319e-05 | L7: =G7*$B$1+L6 -> 6.988722892e-07 | M7: =L7*$B$1+M6 -> 9.670206644e-07 | N7: =(J7^2+L7^2)*$B$1+N6 -> 1.214543158e-10
A8: =A7+$B$1 -> 0.7299466667 | B8: ='DF raw data'!G13 -> -1.3371156e-05 | C8: ='DF raw data'!H13 -> -1.2199394e-05 | D8: ='DF raw data'!I13 -> -2.778725e-06 | F8: -1.338698745e-05 | G8: -1.224260041e-05 | H8: -2.78201501e-06 | J8: =F8*$B$1+J7 -> -2.056573252e-05 | K8: =J8*$B$1+K7 -> -2.070381865e-05 | L8: =G8*$B$1+L7 -> -5.42414188e-06 | M8: =L8*$B$1+M7 -> -1.745809656e-06 | N8: =(J8^2+L8^2)*$B$1+N7 -> 3.477029823e-10
A9: 1.230086667 | B9: ='DF raw data'!G14 -> -1.3458664e-05 | C9: ='DF raw data'!H14 -> -8.9422974e-06 | D9: ='DF raw data'!I14 -> 1.9915383e-06 | F9: -1.347459906e-05 | G9: -8.973968201e-06 | H9: 1.993896281e-06 | J9: -2.730491849e-05 | K9: -3.436010058e-05 | L9: -9.912382336e-06 | M9: -6.703388557e-06 | N9: 7.697280649e-10
A10: 1.730226667 | B10: ='DF raw data'!G15 -> -1.3490237e-05 | C10: ='DF raw data'!H15 -> -8.7348235e-06 | D10: ='DF raw data'!I15 -> -2.1726814e-06 | F10: -1.350620944e-05 | G10: -8.765759493e-06 | H10: -2.175253855e-06 | J10: -3.405991408e-05 | K10: -5.139482601e-05 | L10: -1.429648929e-05 | M10: -1.385363471e-05 | N10: 1.452152767e-09
A11: 2.230366667 | B11: ='DF raw data'!G16 -> -1.3312283e-05 | C11: ='DF raw data'!H16 -> -1.3408506e-05 | D11: ='DF raw data'!I16 -> -1.4107068e-06 | F11: -1.332804474e-05 | G11: -1.34559947e-05 | H11: -1.412377077e-06 | J11: -4.072580238e-05 | K11: -7.176342881e-05 | L11: -2.102637048e-05 | M11: -2.436976364e-05 | N11: 2.502796482e-09
A12: 2.730506667 | B12: ='DF raw data'!G17 -> -1.3547909e-05 | C12: ='DF raw data'!H17 -> -6.785318e-06 | D12: ='DF raw data'!I17 -> -5.345214e-07 | F12: -1.356394972e-05 | G12: -6.809349459e-06 | H12: -5.351542733e-07 | J12: -4.750967619e-05 | K12: -9.552491826e-05 | L12: -2.443199852e-05 | M12: -3.658918338e-05 | N12: 3.930241997e-09
A13: 3.230646667 | B13: ='DF raw data'!G18 -> -1.3658646e-05 | C13: ='DF raw data'!H18 -> -3.3154101e-06 | D13: ='DF raw data'!I18 -> 2.2648087e-06 | F13: -1.367481784e-05 | G13: -3.327152238e-06 | H13: 2.267490234e-06 | J13: -5.434899958e-05 | K13: -0.0001227070269 | L13: -2.609604044e-05 | M13: -4.964085705e-05 | N13: 5.748159412e-09
A14: 3.730786667 | B14: ='DF raw data'!G19 -> -1.3719721e-05 | C14: ='DF raw data'!H19 -> -8.3820123e-07 | D14: ='DF raw data'!I19 -> 7.4298036e-06 | F14: -1.373596515e-05 | G14: -8.411698747e-07 | H14: 7.438600487e-06 | J14: -6.121890519e-05 | K14: -0.0001533250502 | L14: -2.651674314e-05 | M14: -6.290294096e-05 | N14: 7.974228547e-09
A15: 4.230926667 | B15: ='DF raw data'!G20 -> -1.3582485e-05 | C15: ='DF raw data'!H20 -> -4.6099194e-06 | D15: ='DF raw data'!I20 -> 7.2821199e-06 | F15: -1.359856666e-05 | G15: -4.626246282e-06 | H15: 7.29074193e-06 | J15: -6.802009233e-05 | K15: -0.0001873446191 | L15: -2.883051396e-05 | M15: -7.732223421e-05 | N15: 1.070395841e-08
A16: 4.731066667 | B16: ='DF raw data'!G21 -> -1.3636218e-05 | C16: ='DF raw data'!H21 -> -3.6947422e-06 | D16: ='DF raw data'!I21 -> 3.7655368e-06 | F16: -1.365236328e-05 | G16: -3.707827813e-06 | H16: 3.769995196e-06 | J16: -7.48481853e-05 | K16: -0.0002247791905 | L16: -3.068494696e-05 | M16: -9.266900358e-05 | N16: 1.397678295e-08
A17: 5.231206667 | B17: ='DF raw data'!G22 -> -1.3923708e-05 | C17: ='DF raw data'!H22 -> 3.4795012e-06 | D17: ='DF raw data'!I22 -> -3.3499279e-07 | F17: -1.394019367e-05 | G17: 3.491824497e-06 | H17: -3.353894215e-07 | J17: -8.182023376e-05 | K17: -0.0002657007622 | L17: -2.893854585e-05 | M17: -0.0001071423279 | N17: 1.774383247e-08
A18: 5.731346667 | B18: ='DF raw data'!G23 -> -1.3804627e-05 | C18: ='DF raw data'!H23 -> -4.8648872e-07 | D18: ='DF raw data'!I23 -> -4.582937e-06 | F18: -1.382097168e-05 | G18: -4.882117098e-07 | H18: -4.588363197e-06 | J18: -8.873265453e-05 | K18: -0.0003100795121 | L18: -2.918272006e-05 | M18: -0.0001217377735 | N18: 2.210761155e-08
A19: 6.231486667 | B19: ='DF raw data'!G24 -> -1.4045325e-05 | C19: ='DF raw data'!H24 -> 6.2614599e-06 | D19: ='DF raw data'!I24 -> -3.185502e-06 | F19: -1.406195466e-05 | G19: 6.283636019e-06 | H19: -3.189273634e-06 | J19: -9.576560054e-05 | K19: -0.0003579757195 | L19: -2.604002234e-05 | M19: -0.0001347614303 | N19: 2.703355693e-08
A20: 6.731626667 | B20: ='DF raw data'!G25 -> -1.4077766e-05 | C20: ='DF raw data'!H25 -> 7.4915224e-06 | D20: ='DF raw data'!I25 -> -6.0313732e-07 | F20: -1.409443407e-05 | G20: 7.518055012e-06 | H20: -6.038514346e-07 | J20: -0.0001028147908 | K20: -0.000409397509 | L20: -2.227994231e-05 | M20: -0.0001459045206 | N20: 3.256874487e-08
A21: 7.231766667 | B21: ='DF raw data'!G26 -> -1.3739947e-05 | C21: ='DF raw data'!H26 -> -1.4761172e-06 | D21: ='DF raw data'!I26 -> 9.3592416e-07 | F21: -1.37562151e-05 | G21: -1.481345142e-06 | H21: 9.370322942e-07 | J21: -0.0001096948242 | K21: -0.0004642602784 | L21: -2.302082227e-05 | M21: -0.0001574181547 | N21: 3.885196004e-08
A22: 7.731906667 | B22: ='DF raw data'!G27 -> -1.0123062e-05 | C22: ='DF raw data'!H27 -> -5.967544e-06 | D22: ='DF raw data'!I27 -> 3.9630027e-06 | F22: -1.013504771e-05 | G22: -5.988679161e-06 | H22: 3.967694895e-06 | J22: -0.000114763767 | K22: -0.0005216582288 | L22: -2.601600026e-05 | M22: -0.0001704297971 | N22: 4.577767594e-08
A23: 8.232046667 | B23: ='DF raw data'!G28 -> -2.0525872e-06 | C23: ='DF raw data'!H28 -> 5.8342266e-06 | D23: ='DF raw data'!I28 -> -5.4503516e-07 | F23: =(1-$G$1*($B$2-$G$2))*B23 -> -2.055017463e-06 | G23: 5.854889593e-06 | H23: -5.456804816e-07 | J23: -0.0001157915634 | K23: -0.0005795702213 | L23: -2.308773578e-05 | M23: -0.0001819768972 | N23: 5.274999249e-08
A24: 8.732186667 | B24: ='DF raw data'!G29 -> 3.4705281e-06 | C24: ='DF raw data'!H29 -> 1.3945682e-06 | D24: ='DF raw data'!I29 -> -4.3472032e-06 | F24: 3.474637205e-06 | G24: 1.399507321e-06 | H24: -4.352350289e-06 | J24: -0.0001140537584 | K24: -0.000636613068 | L24: -2.238778619e-05 | M24: -0.0001931739246 | N24: 5.95066202e-08
A25: 9.232326667 | B25: ='DF raw data'!G30 -> 5.6700555e-06 | C25: ='DF raw data'!H30 -> 5.3382755e-06 | D25: ='DF raw data'!I30 -> -5.4085399e-06 | F25: 5.676768846e-06 | G25: 5.35718199e-06 | H25: -5.414943611e-06 | J25: -0.0001112145792 | K25: -0.0006922359277 | L25: -1.970844519e-05 | M25: -0.0002030309064 | N25: 6.588695891e-08
A26: 9.732466667 | B26: ='DF raw data'!G31 -> 6.025763e-06 | C26: ='DF raw data'!H31 -> 8.1338439e-06 | D26: ='DF raw data'!I31 -> -9.819214e-06 | F26: 6.032897503e-06 | G26: 8.162651413e-06 | H26: -9.830839949e-06 | J26: -0.0001081972858 | K26: -0.0007463497182 | L26: -1.562597671e-05 | M26: -0.0002108460824 | N26: 7.186404393e-08
A27: 10.23260667 | B27: ='DF raw data'!G32 -> 3.6620322e-06 | C27: ='DF raw data'!H32 -> 9.9552562e-06 | D27: ='DF raw data'!I32 -> -9.9442004e-06 | F27: 3.666368046e-06 | G27: 9.990514582e-06 | H27: -9.955974333e-06 | J27: -0.0001063635885 | K27: -0.0007995464034 | L27: -1.062932075e-05 | M27: -0.0002161622309 | N27: 7.757874131e-08
A28: 10.73274667 | B28: ='DF raw data'!G33 -> 2.2960051e-06 | C28: ='DF raw data'!H33 -> 9.877469e-06 | D28: ='DF raw data'!I33 -> -5.0206659e-06 | F28: 2.29872357e-06 | G28: 9.912451884e-06 | H28: -5.026610368e-06 | J28: -0.0001052139049 | K28: -0.0008521680858 | L28: -5.671707063e-06 | M28: -0.0002189988784 | N28: 8.313136263e-08
A29: 11.23288667 | B29: ='DF raw data'!G34 -> 1.6371882e-06 | C29: ='DF raw data'!H34 -> -4.7171961e-06 | D29: ='DF raw data'!I34 -> -6.2875229e-06 | F29: 1.639126631e-06 | G29: -4.733902923e-06 | H29: -6.294967327e-06 | J29: -0.0001043941121 | K29: -0.000904379757 | L29: -8.039321271e-06 | M29: -0.0002230196646 | N29: 8.861427808e-08
A30: 11.73302667 | B30: ='DF raw data'!G35 -> 4.5080558e-08 | C30: ='DF raw data'!H35 -> 5.4731718e-06 | D30: ='DF raw data'!I35 -> -8.1714679e-06 | F30: 4.513393338e-08 | G30: 5.49255605e-06 | H30: -8.181142918e-06 | J30: -0.0001043715388 | K30: -0.0009565801384 | L30: -5.292274288e-06 | M30: -0.0002256665426 | N30: 9.407652023e-08
A31: 12.23316667 | B31: ='DF raw data'!G36 -> 1.1542559e-06 | C31: ='DF raw data'!H36 -> 3.8344187e-06 | D31: ='DF raw data'!I36 -> -3.8496441e-06 | F31: 1.155622539e-06 | G31: 3.847999003e-06 | H31: -3.854202079e-06 | J31: -0.0001037935658 | K31: -0.001008491452 | L31: -3.367736066e-06 | M31: -0.0002273508822 | N31: 9.947025302e-08
A32: 12.73330667 | B32: ='DF raw data'!G37 -> -1.3111344e-06 | C32: ='DF raw data'!H37 -> 1.7947168e-06 | D32: ='DF raw data'!I37 -> -1.4557631e-06 | F32: -1.312686783e-06 | G32: 1.801073122e-06 | H32: -1.457486724e-06 | J32: -0.0001044500929 | K32: -0.001060731122 | L32: -2.466947355e-06 | M32: -0.0002285847012 | N32: 1.049297351e-07
A33: 13.23344667 | B33: ='DF raw data'!G38 -> -6.127173e-06 | C33: ='DF raw data'!H38 -> 1.6947815e-06 | D33: ='DF raw data'!I38 -> 3.6278357e-06 | F33: -6.134427573e-06 | G33: 1.700783882e-06 | H33: 3.632131057e-06 | J33: -0.0001075181655 | K33: -0.001114505257 | L33: -1.616317304e-06 | M33: -0.0002293930861 | N33: 1.107127381e-07
A34: 13.73358667 | B34: ='DF raw data'!G39 -> -5.693702e-06 | C34: ='DF raw data'!H39 -> -7.7535879e-07 | D34: ='DF raw data'!I39 -> -2.81027e-06 | F34: -5.700443343e-06 | G34: -7.781048666e-07 | H34: -2.81359736e-06 | J34: -0.0001103691853 | K34: -0.001169705302 | L34: -2.005478672e-06 | M34: -0.0002303961062 | N34: 1.168071336e-07
A35: 14.23372667 | B35: ='DF raw data'!G40 -> -5.6671356e-06 | C35: ='DF raw data'!H40 -> 4.7689427e-06 | D35: ='DF raw data'!I40 -> -1.3576522e-05 | F35: -5.673845489e-06 | G35: 4.785832793e-06 | H35: -1.35925966e-05 | J35: -0.0001132069024 | K35: -0.001226324602 | L35: 3.881077406e-07 | M35: -0.000230201998 | N35: 1.232169045e-07
A36: 14.73386667 | B36: ='DF raw data'!G41 -> -2.2197944e-06 | C36: ='DF raw data'!H41 -> -7.5414209e-07 | D36: ='DF raw data'!I41 -> -1.0038242e-05 | F36: -2.222422637e-06 | G36: -7.568130237e-07 | H36: -1.005012728e-05 | J36: -0.0001143184248 | K36: -0.001283499819 | L36: 9.595274953e-09 | M36: -0.0002301971991 | N36: 1.297530853e-07
A37: 15.23400667 | B37: ='DF raw data'!G42 -> -4.606799e-07 | C37: ='DF raw data'!H42 -> -1.6691047e-08 | D37: ='DF raw data'!I42 -> -3.1546228e-06 | F37: -4.61225345e-07 | G37: -1.675016143e-08 | H37: -3.158357873e-06 | J37: -0.0001145491021 | K37: -0.001340790407 | L37: 1.217849215e-09 | M37: -0.00023019659 | N37: 1.363156707e-07
A38: 15.73414667 | B38: ='DF raw data'!G43 -> 4.3936947e-07 | C38: ='DF raw data'!H43 -> -3.2340213e-06 | D38: ='DF raw data'!I43 -> 4.3138748e-06 | F38: 4.398896835e-07 | G38: -3.245475185e-06 | H38: 4.318982428e-06 | J38: -0.0001143290956 | K38: -0.00139797096 | L38: -1.62197411e-06 | M38: -0.0002310078041 | N38: 1.428543875e-07
A39: 16.23428667 | B39: ='DF raw data'!G44 -> 2.6928305e-06 | C39: ='DF raw data'!H44 -> 1.0147658e-05 | D39: ='DF raw data'!I44 -> 1.1152908e-05 | F39: 2.696018811e-06 | G39: 1.018359781e-05 | H39: 1.116611304e-05 | J39: -0.0001129807088 | K39: -0.001454477132 | L39: 3.471250498e-06 | M39: -0.0002292716929 | N39: 1.492445213e-07
A40: 16.73442667 | B40: ='DF raw data'!G45 -> 2.4283027e-06 | C40: ='DF raw data'!H45 -> 1.0547406e-05 | D40: ='DF raw data'!I45 -> 8.9272726e-06 | F40: 2.43117781e-06 | G40: 1.058476159e-05 | H40: 8.937842491e-06 | J40: -0.0001117647795 | K40: -0.001510375169 | L40: 8.765113159e-06 | M40: -0.0002248879092 | N40: 1.555303774e-07
A41: 17.23456667 | B41: ='DF raw data'!G46 -> 3.0660931e-06 | C41: ='DF raw data'!H46 -> -1.2290926e-05 | D41: ='DF raw data'!I46 -> 5.8059518e-06 | F41: 3.069723354e-06 | G41: -1.233445659e-05 | H41: 5.812826047e-06 | J41: -0.0001102294881 | K41: -0.001565505345 | L41: 2.596158041e-06 | M41: -0.0002235894667 | N41: 1.616107194e-07
A42: 17.73470667 | B42: ='DF raw data'!G47 -> 3.5837352e-06 | C42: ='DF raw data'!H47 -> -2.3323191e-06 | D42: ='DF raw data'!I47 -> 6.438549e-06 | F42: 3.587978342e-06 | G42: -2.34057944e-06 | H42: 6.446172242e-06 | J42: -0.0001084349966 | K42: -0.001619738024 | L42: 1.425540641e-06 | M42: -0.0002228764968 | N42: 1.674924562e-07
A43: 18.23484667 | B43: ='DF raw data'!G48 -> 2.4030046e-06 | C43: ='DF raw data'!H48 -> 1.0752483e-05 | D43: ='DF raw data'!I48 -> 5.7001994e-06 | F43: 2.405849757e-06 | G43: 1.079056491e-05 | H43: 5.706948436e-06 | J43: -0.0001072317349 | K43: -0.001673368904 | L43: 6.822333774e-06 | M43: -0.0002194643748 | N43: 1.732666671e-07
A44: 18.73498667 | B44: ='DF raw data'!G49 -> 2.4335754e-06 | C44: ='DF raw data'!H49 -> 6.9804992e-06 | D44: ='DF raw data'!I49 -> 3.4254476e-06 | F44: 2.436456753e-06 | G44: 7.005221929e-06 | H44: 3.42950333e-06 | J44: -0.0001060131654 | K44: -0.001726390329 | L44: 1.032592547e-05 | M44: -0.0002142999664 | N44: 1.789409635e-07
A45: 19.23512667 | B45: ='DF raw data'!G50 -> 5.6151207e-06 | C45: ='DF raw data'!H50 -> 7.4940581e-06 | D45: ='DF raw data'!I50 -> 4.0592417e-06 | F45: 5.621769003e-06 | G45: 7.520599693e-06 | H45: 4.064047842e-06 | J45: -0.0001032014939 | K45: -0.001778005524 | L45: 1.40872782e-05 | M45: -0.0002072543551 | N45: 1.843669822e-07
A46: 19.73526667 | B46: ='DF raw data'!G51 -> 9.9721228e-06 | C46: ='DF raw data'!H51 -> 5.0832969e-06 | D46: ='DF raw data'!I51 -> 4.7999197e-06 | F46: 9.983929793e-06 | G46: 5.101300336e-06 | H46: 4.805602805e-06 | J46: -9.820813122e-05 | K46: -0.001827123339 | L46: 1.663864255e-05 | M46: -0.0001989327044 | N46: 1.89329212e-07
A47: 20.23540667 | B47: ='DF raw data'!G52 -> 9.0396998e-06 | C47: ='DF raw data'!H52 -> -7.616567e-06 | D47: ='DF raw data'!I52 -> 1.7669186e-06 | F47: 9.050402805e-06 | G47: -7.643542481e-06 | H47: 1.769010632e-06 | J47: -9.368166276e-05 | K47: -0.001873977286 | L47: 1.281580121e-05 | M47: -0.0001925230096 | N47: 1.93800713e-07
A48: 20.73554667 | B48: ='DF raw data'!G53 -> 3.2615358e-06 | C48: ='DF raw data'!H53 -> -7.3370393e-06 | D48: ='DF raw data'!I53 -> -1.2656824e-06 | F48: 3.265397458e-06 | G48: -7.363024782e-06 | H48: -1.267180968e-06 | J48: -9.204850688e-05 | K48: -0.001920014426 | L48: 9.133257999e-06 | M48: -0.0001879551019 | N48: 1.980800829e-07
A49: 21.23568667 | B49: ='DF raw data'!G54 -> -3.7597479e-07 | C49: ='DF raw data'!H54 -> 5.3358235e-08 | D49: ='DF raw data'!I54 -> 3.9180118e-06 | F49: -3.764199442e-07 | G49: 5.354721306e-08 | H49: 3.922650726e-06 | J49: -9.223676955e-05 | K49: -0.001966145724 | L49: 9.160039102e-06 | M49: -0.0001833738 | N49: 2.023770497e-07
A50: 21.73582667 | B50: ='DF raw data'!G55 -> -3.0018975e-06 | C50: ='DF raw data'!H55 -> -3.2438948e-06 | D50: ='DF raw data'!I55 -> 8.699124e-06 | F50: -3.005451747e-06 | G50: -3.255383654e-06 | H50: 8.709423763e-06 | J50: -9.373991619e-05 | K50: -0.002013028805 | L50: 7.531891522e-06 | M50: -0.0001796067998 | N50: 2.068002385e-07
A51: 22.23596667 | B51: ='DF raw data'!G56 -> -2.9162582e-06 | C51: ='DF raw data'!H56 -> -2.1589585e-07 | D51: ='DF raw data'!I56 -> 8.8800844e-06 | F51: -2.91971105e-06 | G51: -2.166604851e-07 | H51: 8.89059842e-06 | J51: -9.520018047e-05 | K51: -0.002060642224 | L51: 7.423530947e-06 | M51: -0.000175893995 | N51: 2.113606066e-07
A52: 22.73610667 | B52: ='DF raw data'!G57 -> 9.0187632e-07 | C52: ='DF raw data'!H57 -> 4.0480518e-07 | D52: ='DF raw data'!I57 -> 5.6244603e-06 | F52: 9.029441416e-07 | G52: 4.062388724e-07 | H52: 5.631119661e-06 | J52: -9.474858199e-05 | K52: -0.002108029779 | L52: 7.626707256e-06 | M52: -0.0001720795736 | N52: 2.158796018e-07
A53: 23.23624667 | B53: ='DF raw data'!G58 -> 9.3738709e-07 | C53: ='DF raw data'!H58 -> -1.1000819e-05 | D53: ='DF raw data'!I58 -> 4.7096837e-08 | F53: 9.384969563e-07 | G53: -1.103978044e-05 | H53: 4.715259966e-08 | J53: -9.427920212e-05 | K53: -0.00215518258 | L53: 2.105271469e-06 | M53: -0.0001710266431 | N53: 2.203273469e-07
A54: 23.73638667 | B54: ='DF raw data'!G59 -> -2.2408874e-06 | C54: ='DF raw data'!H59 -> -7.8145749e-06 | D54: ='DF raw data'!I59 -> -6.0161151e-06 | F54: -2.243540611e-06 | G54: -7.842251663e-06 | H54: -6.02323818e-06 | J54: -9.540128652e-05 | K54: -0.002202896579 | L54: -1.816952277e-06 | M54: -0.0001719353737 | N54: 2.248809749e-07
A55: 24.23652667 | B55: ='DF raw data'!G60 -> -5.8037717e-06 | C55: ='DF raw data'!H60 -> -2.9035218e-06 | D55: ='DF raw data'!I60 -> -5.5908317e-06 | F55: -5.810643366e-06 | G55: -2.91380516e-06 | H55: -5.597451245e-06 | J55: -9.830742169e-05 | K55: -0.002252064053 | L55: -3.27426279e-06 | M55: -0.0001735729635 | N55: 2.297198644e-07
A56: 24.73666667 | B56: ='DF raw data'!G61 -> -6.6219195e-06 | C56: ='DF raw data'!H61 -> -1.275308e-06 | D56: ='DF raw data'!I61 -> -7.1897962e-06 | F56: -6.629759853e-06 | G56: -1.279824739e-06 | H56: -7.198308919e-06 | J56: -0.0001016232298 | K56: -0.002302889895 | L56: -3.914354335e-06 | M56: -0.0001755306886 | N56: 2.348926139e-07
A57: 25.23680667 | B57: ='DF raw data'!G62 -> -1.3220146e-06 | C57: ='DF raw data'!H62 -> -3.7645259e-06 | D57: ='DF raw data'!I62 -> -6.7513361e-06 | F57: -1.323579865e-06 | G57: -3.777858665e-06 | H57: -6.759329682e-06 | J57: -0.000102285205 | K57: -0.002354046817 | L57: -5.803812568e-06 | M57: -0.0001784334074 | N57: 2.40142057e-07
A58: 25.73694667 | B58: ='DF raw data'!G63 -> 5.2317118e-06 | C58: ='DF raw data'!H63 -> -8.630348e-06 | D58: ='DF raw data'!I63 -> -3.9585943e-06 | F58: 5.237906147e-06 | G58: -8.660913974e-06 | H58: -3.963281276e-06 | J58: -9.966551864e-05 | K58: -0.00240389353 | L58: -1.013548208e-05 | M58: -0.0001835025675 | N58: 2.451614339e-07
A59: 26.23708667 | B59: ='DF raw data'!G64 -> 4.9824257e-07 | C59: ='DF raw data'!H64 -> -5.7404468e-06 | D59: ='DF raw data'!I64 -> -2.7775647e-07 | F59: 4.988324892e-07 | G59: -5.760777654e-06 | H59: -2.780853337e-07 | J59: -9.941603256e-05 | K59: -0.002453615464 | L59: -1.301667742e-05 | M59: -0.0001900127285 | N59: 2.50189332e-07
A60: 26.73722667 | B60: ='DF raw data'!G65 -> -4.8592674e-06 | C60: ='DF raw data'!H65 -> -7.5658681e-06 | D60: ='DF raw data'!I65 -> 1.6795998e-06 | F60: -4.865020773e-06 | G60: -7.592664022e-06 | H60: 1.681588446e-06 | J60: -0.000101849224 | K60: -0.002504554335 | L60: -1.68140724e-05 | M60: -0.0001984221187 | N60: 2.555188126e-07
A61: 27.23736667 | B61: ='DF raw data'!G66 -> -4.8499223e-06 | C61: ='DF raw data'!H66 -> -5.4372867e-07 | D61: ='DF raw data'!I66 -> -3.751546e-06 | F61: -4.855664608e-06 | G61: -5.456543857e-07 | H61: -3.75598783e-06 | J61: -0.0001042777361 | K61: -0.002556707802 | L61: -1.708697599e-05 | M61: -0.0002069679988 | N61: 2.611032813e-07
A62: 27.73750667 | B62: ='DF raw data'!G67 -> -3.470145e-06 | C62: ='DF raw data'!H67 -> 5.916816e-06 | D62: ='DF raw data'!I67 -> -1.01814e-05 | F62: -3.474253652e-06 | G62: 5.937771498e-06 | H62: -1.019345478e-05 | J62: -0.0001060153494 | K62: -0.002609730319 | L62: -1.411725895e-05 | M62: -0.0002140286047 | N62: 2.668241583e-07
A63: 28.23764667 | B63: ='DF raw data'!G68 -> -3.8182434e-06 | C63: ='DF raw data'!H68 -> -4.3450673e-06 | D63: ='DF raw data'!I68 -> -7.3518536e-06 | F63: -3.8227642e-06 | G63: -4.36045616e-06 | H63: -7.360558195e-06 | J63: -0.0001079272667 | K63: -0.002663709062 | L63: -1.629809749e-05 | M63: -0.0002221799352 | N63: 2.727827877e-07
A64: 28.73778667 | B64: ='DF raw data'!G69 -> 6.0978095e-07 | C64: ='DF raw data'!H69 -> -1.5822341e-05 | D64: ='DF raw data'!I69 -> -2.1674246e-06 | F64: 6.105029306e-07 | G64: -1.587837875e-05 | H64: -2.169990831e-06 | J64: -0.0001076219297 | K64: -0.002717535094 | L64: -2.423950984e-05 | M64: -0.0002343030837 | N64: 2.788695083e-07
A65: 29.23792667 | B65: ='DF raw data'!G70 -> 1.3380838e-06 | C65: ='DF raw data'!H70 -> 5.6053977e-06 | D65: ='DF raw data'!I70 -> -2.740388e-06 | F65: 1.339668091e-06 | G65: 5.625250253e-06 | H65: -2.743632619e-06 | J65: -0.0001069519081 | K65: -0.002771026022 | L65: -2.142609718e-05 | M65: -0.0002450191319 | N65: 2.848200681e-07
A66: 29.73806667 | B66: ='DF raw data'!G71 -> -1.4481043e-06 | C66: ='DF raw data'!H71 -> 3.8668404e-06 | D66: ='DF raw data'!I71 -> 1.0979852e-06 | F66: -1.449818855e-06 | G66: 3.880535531e-06 | H66: 1.099285214e-06 | J66: -0.0001076770205 | K66: -0.002824879607 | L66: -1.948528614e-05 | M66: -0.0002547645029 | N66: 2.908087531e-07
A67: 30.23820667 | B67: ='DF raw data'!G72 -> -3.7408138e-06 | C67: ='DF raw data'!H72 -> 2.3996763e-06 | D67: ='DF raw data'!I72 -> 4.4988296e-06 | F67: -3.745242924e-06 | G67: 2.408175198e-06 | H67: 4.504156214e-06 | J67: -0.0001095501663 | K67: -0.002879670027 | L67: -1.82808614e-05 | M67: -0.0002639074929 | N67: 2.969781944e-07
A68: 30.73834667 | B68: ='DF raw data'!G73 -> -5.4203633e-06 | C68: ='DF raw data'!H73 -> 4.0604427e-06 | D68: ='DF raw data'!I73 -> 4.5799602e-06 | F68: -5.42678101e-06 | G68: 4.074823509e-06 | H68: 4.585382873e-06 | J68: -0.0001122643166 | K68: -0.002935817902 | L68: -1.624287917e-05 | M68: -0.0002720312065 | N68: 3.034135498e-07
A69: 31.23848667 | B69: ='DF raw data'!G74 -> -3.7169175e-06 | C69: ='DF raw data'!H74 -> 1.780707e-06 | D69: ='DF raw data'!I74 -> 5.8871183e-07 | F69: -3.72131833e-06 | G69: 1.787013703e-06 | H69: 5.894088648e-07 | J69: -0.0001141254967 | K69: -0.002992896628 | L69: -1.534912213e-05 | M69: -0.0002797079165 | N69: 3.100455185e-07
A70: 31.73862667 | B70: ='DF raw data'!G75 -> -1.187648e-06 | C70: ='DF raw data'!H75 -> -4.7175963e-06 | D70: ='DF raw data'!I75 -> -6.222363e-06 | F70: -1.189054175e-06 | G70: -4.73430454e-06 | H70: -6.229730278e-06 | J70: -0.0001147201903 | K70: -0.003050272784 | L70: -1.77169372e-05 | M70: -0.0002885688654 | N70: 3.167847109e-07
A71: 32.23876667 | B71: ='DF raw data'!G76 -> -4.1029962e-06 | C71: ='DF raw data'!H76 -> -2.6827001e-06 | D71: ='DF raw data'!I76 -> -7.5774738e-06 | F71: -4.107854148e-06 | G71: =(1-$G$1*($B$2-$G$2))*C71*$M$2/$M$1 -> -2.692201379e-06 | H71: -7.586445529e-06 | J71: -0.0001167746924 | K71: -0.003108676479 | L71: -1.90634148e-05 | M71: -0.0002981032417 | N71: 3.237865422e-07
A72: =A71+$B$1 -> 32.73890667 | B72: ='DF raw data'!G77 -> -7.0563251e-06 | C72: ='DF raw data'!H77 -> 8.4361891e-06 | D72: ='DF raw data'!I77 -> -1.818084e-06 | F72: -7.064679789e-06 | G72: 8.466067424e-06 | H72: -1.820236611e-06 | J72: =F72*$B$1+J71 -> -0.0001203080214 | K72: =J72*$B$1+K71 -> -0.003168847333 | L72: =G72*$B$1+L71 -> -1.482919584e-05 | M72: =L72*$B$1+M71 -> -0.0003055199157 | N72: =(J72^2+L72^2)*$B$1+N71 -> 3.311355618e-07
A73: 33.23904667 | B73: ='DF raw data'!G78 -> -1.8794391e-06 | C73: ='DF raw data'!H78 -> 6.3280386e-06 | D73: ='DF raw data'!I78 -> 1.2563828e-06 | F73: -1.881664356e-06 | G73: 6.350450519e-06 | H73: 1.257870357e-06 | J73: -0.000121249117 | K73: -0.003229488866 | L73: -1.165308152e-05 | M73: -0.0003113480879 | N73: 3.385562104e-07
A74: 33.73918667 | B74: ='DF raw data'!G79 -> 5.9779704e-06 | C74: ='DF raw data'!H79 -> -6.4394771e-06 | D74: ='DF raw data'!I79 -> 2.8655918e-06 | F74: 5.985048317e-06 | G74: -6.462283699e-06 | H74: 2.868984661e-06 | J74: -0.0001182557549 | K74: -0.003288633299 | L74: -1.488512809e-05 | M74: -0.0003187927359 | N74: 3.456611945e-07
A75: 34.23932667 | B75: ='DF raw data'!G80 -> 5.9404574e-06 | C75: ='DF raw data'!H80 -> -3.6752645e-06 | D75: ='DF raw data'!I80 -> 7.3160436e-07 | F75: 5.947490902e-06 | G75: -3.688281129e-06 | H75: 7.324705796e-07 | J75: -0.0001152811768 | K75: -0.003346290027 | L75: -1.672978501e-05 | M75: -0.0003271599705 | N75: 3.52447912e-07
A76: 34.73946667 | B76: ='DF raw data'!G81 -> 3.2505218e-06 | C76: ='DF raw data'!H81 -> -2.6013076e-06 | D76: ='DF raw data'!I81 -> -2.5265513e-06 | F76: 3.254370418e-06 | G76: -2.610520612e-06 | H76: -2.529542737e-06 | J76: -0.000113653536 | K76: -0.003403132706 | L76: -1.803541079e-05 | M76: -0.0003361802009 | N76: 3.590709671e-07
A77: 35.23960667 | B77: ='DF raw data'!G82 -> 1.8834935e-06 | C77: ='DF raw data'!H82 -> -1.2103301e-06 | D77: ='DF raw data'!I82 -> 6.8741019e-07 | F77: 1.885723556e-06 | G77: -1.214616708e-06 | H77: 6.882240837e-07 | J77: -0.0001127104102 | K77: -0.003459503691 | L77: -1.864288919e-05 | M77: -0.0003455042555 | N77: 3.655983912e-07
A78: 35.73974667 | B78: ='DF raw data'!G83 -> -1.6201843e-06 | C78: ='DF raw data'!H83 -> -1.4749166e-06 | D78: ='DF raw data'!I83 -> 2.9799335e-06 | F78: -1.622102598e-06 | G78: -1.48014029e-06 | H78: 2.983461741e-06 | J78: -0.0001135216886 | K78: -0.003516280428 | L78: -1.938316655e-05 | M78: -0.0003551985524 | N78: 3.722316885e-07
A79: 36.23988667 | B79: ='DF raw data'!G84 -> -1.8421262e-06 | C79: ='DF raw data'!H84 -> -5.8788137e-06 | D79: ='DF raw data'!I84 -> 4.0714872e-06 | F79: -1.844307277e-06 | G79: -5.899634606e-06 | H79: 4.076307841e-06 | J79: -0.0001144441005 | K79: -0.003573518501 | L79: -2.233380981e-05 | M79: -0.0003663685841 | N79: 3.790317175e-07
A80: 36.74002667 | B80: ='DF raw data'!G85 -> 1.4231227e-06 | C80: ='DF raw data'!H85 -> -6.690454e-06 | D80: ='DF raw data'!I85 -> 4.8004545e-06 | F80: 1.424807677e-06 | G80: -6.714149481e-06 | H80: 4.806138238e-06 | J80: -0.0001137314972 | K80: -0.003630400172 | L80: -2.569182453e-05 | M80: -0.0003792180932 | N80: 3.858310825e-07
A81: 37.24016667 | B81: ='DF raw data'!G86 -> 2.1866695e-06 | C81: ='DF raw data'!H86 -> -6.7356814e-06 | D81: ='DF raw data'!I86 -> 2.0365292e-06 | F81: 2.189258517e-06 | G81: -6.759537062e-06 | H81: 2.038940451e-06 | J81: -0.0001126365614 | K81: -0.003686734222 | L81: -2.907253939e-05 | M81: -0.000393758433 | N81: 3.925990807e-07
A82: 37.74030667 | B82: ='DF raw data'!G87 -> -2.0979101e-06 | C82: ='DF raw data'!H87 -> -4.3187829e-06 | D82: ='DF raw data'!I87 -> 9.8377814e-07 | F82: -2.100394026e-06 | G82: -4.334078669e-06 | H82: 9.849429333e-07 | J82: -0.0001136870525 | K82: -0.003743593664 | L82: -3.12401855e-05 | M82: -0.0004093828994 | N82: 3.995513744e-07
A83: 38.24044667 | B83: ='DF raw data'!G88 -> -4.5283236e-06 | C83: ='DF raw data'!H88 -> -1.6550439e-06 | D83: ='DF raw data'!I88 -> 7.858147e-06 | F83: -4.533685135e-06 | G83: -1.660905544e-06 | H83: 7.867451046e-06 | J83: -0.0001159545298 | K83: -0.003801587163 | L83: -3.20708708e-05 | M83: -0.0004254228247 | N83: 4.067903976e-07
A84: 38.74058667 | B84: ='DF raw data'!G89 -> -1.3785514e-06 | C84: ='DF raw data'!H89 -> 3.178091e-06 | D84: ='DF raw data'!I89 -> 9.0485992e-06 | F84: -1.380183605e-06 | G84: 3.189346797e-06 | H84: 9.059312741e-06 | J84: -0.0001166448148 | K84: -0.0038599259 | L84: -3.047575089e-05 | M84: -0.0004406649668 | N84: 4.140598246e-07
A85: 39.24072667 | B85: ='DF raw data'!G90 -> 3.8587427e-06 | C85: ='DF raw data'!H90 -> 2.4587825e-06 | D85: ='DF raw data'!I90 -> 2.9177713e-06 | F85: 3.863311451e-06 | G85: 2.467490733e-06 | H85: 2.921225941e-06 | J85: -0.0001147126182 | K85: -0.003917298269 | L85: -2.924166008e-05 | M85: -0.0004552898906 | N85: 4.210688163e-07
A86: 39.74086667 | B86: ='DF raw data'!G91 -> 5.3296999e-06 | C86: ='DF raw data'!H91 -> -2.2957611e-06 | D86: ='DF raw data'!I91 -> -2.1762103e-06 | F86: 5.336010265e-06 | G86: -2.303891963e-06 | H86: -2.178786933e-06 | J86: -0.000112043866 | K86: -0.003973335888 | L86: -3.03939286e-05 | M86: -0.0004704911101 | N86: 4.278095125e-07
A87: 40.24100667 | B87: ='DF raw data'!G92 -> 5.833725e-06 | C87: ='DF raw data'!H92 -> -7.3505144e-06 | D87: ='DF raw data'!I92 -> -2.9812188e-07 | F87: =(1-$G$1*($B$2-$G$2))*B87 -> 5.84063213e-06 | G87: -7.376547607e-06 | H87: -2.984748563e-07 | J87: -0.0001091227323 | K87: -0.004027912532 | L87: -3.408323512e-05 | M87: -0.0004875374993 | N87: 4.343460611e-07
A88: 40.74114667 | B88: ='DF raw data'!G93 -> 4.9571713e-06 | C88: ='DF raw data'!H93 -> -5.2050054e-06 | D88: ='DF raw data'!I93 -> 1.7052221e-06 | F88: 4.963040591e-06 | G88: -5.22343989e-06 | H88: 1.707241083e-06 | J88: -0.0001066405172 | K88: -0.00408124772 | L88: -3.669568635e-05 | M88: -0.0005058904799 | N88: 4.407072284e-07
A89: 41.24128667 | B89: ='DF raw data'!G94 -> -6.3095763e-07 | C89: ='DF raw data'!H94 -> -7.4403142e-06 | D89: ='DF raw data'!I94 -> -6.1618671e-06 | F89: -6.317046838e-07 | G89: -7.466665449e-06 | H89: -6.169162751e-06 | J89: -0.0001069564579 | K89: -0.004134740923 | L89: -4.043006441e-05 | M89: -0.0005261111723 | N89: 4.472461958e-07
A90: 41.74142667 | B90: ='DF raw data'!G95 -> -9.5753821e-06 | C90: ='DF raw data'!H95 -> -5.9698068e-06 | D90: ='DF raw data'!I95 -> -1.3122291e-05 | F90: -9.586719352e-06 | G90: -5.990949975e-06 | H90: -1.313782779e-05 | J90: -0.0001117511598 | K90: -0.004190632148 | L90: -4.342637813e-05 | M90: -0.0005478304411 | N90: 4.544352941e-07
A91: 42.24156667 | B91: ='DF raw data'!G96 -> -1.2302497e-05 | C91: ='DF raw data'!H96 -> 4.6884852e-06 | D91: ='DF raw data'!I96 -> -4.6724531e-06 | F91: -1.231706316e-05 | G91: 4.705090338e-06 | H91: -4.677985284e-06 | J91: -0.0001179114157 | K91: -0.004249604363 | L91: -4.107317425e-05 | M91: -0.0005683727784 | N91: 4.622325306e-07
A92: 42.74170667 | B92: ='DF raw data'!G97 -> -2.7525218e-06 | C92: ='DF raw data'!H97 -> 3.791989e-06 | D92: ='DF raw data'!I97 -> -1.5104711e-06 | F92: -2.755780786e-06 | G92: 3.805419031e-06 | H92: -1.512259498e-06 | J92: -0.0001192896919 | K92: -0.00430926591 | L92: -3.916993197e-05 | M92: -0.0005879632282 | N92: 4.701168947e-07
A93: 43.24184667 | B93: ='DF raw data'!G98 -> 3.6544893e-06 | C93: ='DF raw data'!H98 -> 2.8255745e-06 | D93: ='DF raw data'!I98 -> -2.4807056e-07 | F93: 3.658816215e-06 | G93: 2.835581795e-06 | H93: -2.483642755e-07 | J93: -0.0001174597716 | K93: -0.00436801224 | L93: -3.775174409e-05 | M93: -0.0006068443855 | N93: 4.777300218e-07
A94: 43.74198667 | B94: ='DF raw data'!G99 -> 5.8811838e-06 | C94: ='DF raw data'!H99 -> -1.8849387e-06 | D94: ='DF raw data'!I99 -> -9.6971826e-07 | F94: 5.888147122e-06 | G94: -1.891614559e-06 | H94: -9.708664064e-07 | J94: -0.0001145148737 | K94: -0.004425285709 | L94: -3.86978162e-05 | M94: -0.0006261987113 | N94: 4.85037656e-07
A95: 44.24212667 | B95: ='DF raw data'!G100 -> 3.8958556e-06 | C95: ='DF raw data'!H100 -> 8.9581954e-07 | D95: ='DF raw data'!I100 -> -4.358885e-07 | F95: 3.900468293e-06 | G95: 8.989922506e-07 | H95: -4.36404592e-07 | J95: -0.0001125640935 | K95: -0.004481583515 | L95: -3.824819421e-05 | M95: -0.0006453281631 | N95: 4.921064344e-07
A96: 44.74226667 | B96: ='DF raw data'!G101 -> 5.4790416e-07 | C96: ='DF raw data'!H101 -> 3.4302866e-07 | D96: ='DF raw data'!I101 -> 2.8122845e-06 | F96: 5.485528785e-07 | G96: 3.442435595e-07 | H96: 2.815614245e-06 | J96: -0.0001122897402 | K96: -0.004537744105 | L96: -3.807602424e-05 | M96: -0.0006643715059 | N96: 4.991377874e-07
A97: 45.24240667 | B97: ='DF raw data'!G102 -> -1.8420374e-07 | C97: ='DF raw data'!H102 -> -2.964498e-06 | D97: ='DF raw data'!I102 -> 4.1020353e-06 | F97: -1.844218372e-07 | G97: -2.974997318e-06 | H97: 4.10689211e-06 | J97: -0.000112381977 | K97: -0.004593950827 | L97: -3.95639394e-05 | M97: -0.0006841590145 | N97: 5.062372817e-07
A98: 45.74254667 | B98: ='DF raw data'!G103 -> -1.6455491e-06 | C98: ='DF raw data'!H103 -> 1.0064668e-05 | D98: ='DF raw data'!I103 -> -2.5526392e-06 | F98: -1.64749743e-06 | G98: 1.010031388e-05 | H98: -2.555661525e-06 | J98: -0.0001132059563 | K98: -0.004650569654 | L98: -3.451236841e-05 | M98: -0.0007014200305 | N98: 5.132425887e-07
A99: 46.24268667 | B99: ='DF raw data'!G104 -> 1.7479922e-06 | C99: ='DF raw data'!H104 -> 6.7095061e-06 | D99: ='DF raw data'!I104 -> -2.3921134e-06 | F99: 1.750061823e-06 | G99: 6.733269057e-06 | H99: -2.394945662e-06 | J99: -0.0001123306804 | K99: -0.004706750721 | L99: -3.114479123e-05 | M99: -0.0007169967864 | N99: 5.200385809e-07
A100: 46.74282667 | B100: ='DF raw data'!G105 -> 5.082994e-06 | C100: ='DF raw data'!H105 -> -4.7648282e-06 | D100: ='DF raw data'!I105 -> 9.267419e-07 | F100: 5.089012265e-06 | G100: -4.781703721e-06 | H100: 9.278391624e-07 | J100: -0.0001097854618 | K100: -0.004761658822 | L100: -3.353631253e-05 | M100: -0.0007337696377 | N100: 5.266291917e-07
A101: 47.24296667 | B101: ='DF raw data'!G106 -> 3.2298963e-06 | C101: ='DF raw data'!H106 -> 3.9523693e-06 | D101: ='DF raw data'!I106 -> -2.310117e-06 | F101: 3.233720497e-06 | G101: 3.966367347e-06 | H101: -2.312852179e-06 | J101: -0.0001081681488 | K101: -0.004815758039 | L101: -3.155257356e-05 | M101: -0.0007495503419 | N101: 5.329789258e-07
A102: 47.74310667 | B102: ='DF raw data'!G107 -> 2.1348051e-06 | C102: ='DF raw data'!H107 -> -2.9387447e-06 | D102: ='DF raw data'!I107 -> -6.4467172e-06 | F102: 2.137332709e-06 | G102: -2.949152808e-06 | H102: -6.454350113e-06 | J102: -0.0001070991833 | K102: -0.004869322625 | L102: -3.302756285e-05 | M102: -0.0007660687471 | N102: 5.392612118e-07
A103: 48.24324667 | B103: ='DF raw data'!G108 -> -2.9034422e-06 | C103: ='DF raw data'!H108 -> 6.5663407e-06 | D103: ='DF raw data'!I108 -> -1.8319265e-06 | F103: -2.906879876e-06 | G103: 6.58959661e-06 | H103: -1.834095501e-06 | J103: -0.0001085530302 | K103: -0.004923614338 | L103: -2.9731842e-05 | M103: -0.0007809388306 | N103: 5.455968567e-07
A104: 48.74338667 | B104: ='DF raw data'!G109 -> -5.2821251e-06 | C104: ='DF raw data'!H109 -> 1.7742732e-05 | D104: ='DF raw data'!I109 -> 8.5777283e-06 | F104: -5.288379136e-06 | G104: 1.780557117e-05 | H104: 8.58788433e-06 | J104: -0.0001111979601 | K104: -0.004979228885 | L104: -2.082656363e-05 | M104: -0.0007913550281 | N104: 5.519980146e-07
A105: 49.24352667 | B105: ='DF raw data'!G110 -> -4.2699367e-06 | C105: ='DF raw data'!H110 -> 6.399423e-06 | D105: ='DF raw data'!I110 -> 1.1405347e-05 | F105: -4.274992305e-06 | G105: 6.42208774e-06 | H105: 1.141885093e-05 | J105: -0.0001133360548 | K105: -0.00503591278 | L105: -1.761462067e-05 | M105: -0.0008001648045 | N105: 5.585775244e-07
A106: 49.74366667 | B106: ='DF raw data'!G111 -> -5.0747349e-06 | C106: ='DF raw data'!H111 -> -7.0935348e-06 | D106: ='DF raw data'!I111 -> 7.1897443e-06 | F106: -5.080743386e-06 | G106: -7.118657866e-06 | H106: 7.198256957e-06 | J106: -0.0001158771378 | K106: -0.005093867571 | L106: -2.117494622e-05 | M106: -0.0008107552421 | N106: 5.655174117e-07
A107: 50.24380667 | B107: ='DF raw data'!G112 -> -3.9303154e-06 | C107: ='DF raw data'!H112 -> 1.4970428e-06 | D107: ='DF raw data'!I112 -> 8.3289524e-06 | F107: -3.934968893e-06 | G107: 1.502344854e-06 | H107: 8.33881388e-06 | J107: -0.0001178451731 | K107: -0.005152806656 | L107: -2.042356346e-05 | M107: -0.0008209698831 | N107: 5.726717178e-07
A108: 50.74394667 | B108: ='DF raw data'!G113 -> -6.2374869e-07 | C108: ='DF raw data'!H113 -> 8.8248598e-06 | D108: ='DF raw data'!I113 -> 5.0817757e-06 | F108: -6.244872084e-07 | G108: 8.856114674e-06 | H108: 5.087792522e-06 | J108: -0.0001181575041 | K108: -0.00521190195 | L108: -1.599426627e-05 | M108: -0.0008289692555 | N108: 5.797822143e-07
A109: 51.24408667 | B109: ='DF raw data'!G114 -> 2.0215314e-06 | C109: ='DF raw data'!H114 -> 3.8812868e-07 | D109: ='DF raw data'!I114 -> -2.6471466e-06 | F109: 2.023924893e-06 | G109: 3.895033095e-07 | H109: -2.650280822e-06 | J109: -0.0001171452583 | K109: -0.00527049098 | L109: -1.579946008e-05 | M109: -0.0008368711974 | N109: 5.867704877e-07
A110: 51.74422667 | B110: ='DF raw data'!G115 -> 3.200727e-06 | C110: ='DF raw data'!H115 -> -1.9868748e-06 | D110: ='DF raw data'!I115 -> -5.964001e-06 | F110: 3.204516661e-06 | G110: -1.993911685e-06 | H110: -5.971062377e-06 | J110: -0.0001155425514 | K110: -0.005328278432 | L110: -1.679669507e-05 | M110: -0.0008452718965 | N110: 5.935885013e-07
A111: 52.24436667 | B111: ='DF raw data'!G116 -> 1.1793538e-06 | C111: ='DF raw data'!H116 -> 6.3440493e-06 | D111: ='DF raw data'!I116 -> -7.6634606e-06 | F111: 1.180750155e-06 | G111: 6.366517924e-06 | H111: -7.672534137e-06 | J111: -0.000114952011 | K111: -0.00538577053 | L111: -1.36125448e-05 | M111: -0.0008520800747 | N111: 6.002900103e-07
A112: 52.74450667 | B112: ='DF raw data'!G117 -> -4.5637012e-06 | C112: ='DF raw data'!H117 -> 9.4190109e-06 | D112: ='DF raw data'!I117 -> -7.4440982e-06 | F112: -4.569104622e-06 | G112: 9.45237007e-06 | H112: -7.452912012e-06 | J112: -0.000117237203 | K112: -0.005444405545 | L112: -8.885036431e-06 | M112: -0.0008565238368 | N112: 6.072036984e-07
A113: 53.24464667 | B113: ='DF raw data'!G118 -> -8.3957866e-06 | C113: ='DF raw data'!H118 -> -3.5332778e-07 | D113: ='DF raw data'!I118 -> -8.6392756e-06 | F113: -8.405727211e-06 | G113: -3.545791557e-07 | H113: -8.649504502e-06 | J113: -0.0001214412434 | K113: -0.005505143168 | L113: -9.06237565e-06 | M113: -0.0008610562933 | N113: 6.146208258e-07
A114: 53.74478667 | B114: ='DF raw data'!G119 -> -8.5728725e-06 | C114: ='DF raw data'!H119 -> -2.7287024e-07 | D114: ='DF raw data'!I119 -> -1.2481586e-07 | F114: -8.583022781e-06 | G114: -2.738366604e-07 | H114: -1.24963642e-07 | J114: -0.0001257339564 | K114: -0.005568027749 | L114: -9.199332317e-06 | M114: -0.0008656572474 | N114: 6.225698786e-07
A115: 54.24492667 | B115: ='DF raw data'!G120 -> -3.6927543e-06 | C115: ='DF raw data'!H120 -> -1.185912e-06 | D115: ='DF raw data'!I120 -> 4.9992518e-06 | F115: -3.697126521e-06 | G115: -1.190112127e-06 | H115: 5.005170914e-06 | J115: -0.0001275830373 | K115: -0.00563183713 | L115: -9.794554996e-06 | M115: -0.0008705558961 | N115: 6.307588532e-07
A116: 54.74506667 | B116: ='DF raw data'!G121 -> 3.2960452e-06 | C116: ='DF raw data'!H121 -> -5.7333746e-06 | D116: ='DF raw data'!I121 -> 3.1803532e-07 | F116: 3.299947718e-06 | G116: -5.753680407e-06 | H116: 3.184118738e-07 | J116: -0.0001259326014 | K116: -0.005694821061 | L116: -1.267220072e-05 | M116: -0.0008768937706 | N116: 6.387708984e-07
A117: 55.24520667 | B117: ='DF raw data'!G122 -> 2.4202923e-06 | C117: ='DF raw data'!H122 -> -9.0179528e-06 | D117: ='DF raw data'!I122 -> -1.1822383e-07 | F117: 2.423157926e-06 | G117: -9.049891548e-06 | H117: -1.18363807e-07 | J117: -0.0001247206832 | K117: -0.005757198863 | L117: -1.719841347e-05 | M117: -0.0008854953851 | N117: 6.466986346e-07
A118: 55.74534667 | B118: ='DF raw data'!G123 -> -3.5938315e-06 | C118: ='DF raw data'!H123 -> -4.9039954e-06 | D118: ='DF raw data'!I123 -> 2.6253979e-06 | F118: -3.598086596e-06 | G118: -4.921363807e-06 | H118: 2.628506371e-06 | J118: -0.0001265202302 | K118: -0.005820476691 | L118: -1.965978437e-05 | M118: -0.0008953280297 | N118: 6.548978677e-07
A119: 56.24548667 | B119: ='DF raw data'!G124 -> -3.3552024e-06 | C119: ='DF raw data'!H124 -> 2.0415573e-06 | D119: ='DF raw data'!I124 -> 9.2284175e-08 | F119: -3.35917496e-06 | G119: 2.048787853e-06 | H119: 9.239343946e-08 | J119: -0.000128200288 | K119: -0.005884594783 | L119: -1.863510361e-05 | M119: -0.0009046481904 | N119: 6.632915077e-07
A120: 56.74562667 | B120: ='DF raw data'!G125 -> -1.7663888e-08 | C120: ='DF raw data'!H125 -> -3.4763216e-06 | D120: ='DF raw data'!I125 -> 1.7972666e-06 | F120: -1.768480204e-08 | G120: -3.488633636e-06 | H120: 1.799394564e-06 | J120: -0.0001282091329 | K120: -0.005948717299 | L120: -2.037990884e-05 | M120: -0.000914840998 | N120: 6.717203283e-07
A121: 57.24576667 | B121: ='DF raw data'!G126 -> 1.2772753e-06 | C121: ='DF raw data'!H126 -> -2.9727707e-06 | D121: ='DF raw data'!I126 -> 6.8434633e-06 | F121: 1.278787594e-06 | G121: -2.983299317e-06 | H121: 6.851565961e-06 | J121: -0.00012756956 | K121: -0.006012519939 | L121: -2.187197616e-05 | M121: -0.0009257800482 | N121: 6.800988617e-07
A122: 57.74590667 | B122: ='DF raw data'!G127 -> 2.9171972e-07 | C122: ='DF raw data'!H127 -> 8.5777538e-06 | D122: ='DF raw data'!I127 -> 7.149079e-06 | F122: 2.920651161e-07 | G122: 8.608133502e-06 | H122: 7.15754351e-06 | J122: -0.0001274234866 | K122: -0.006076249521 | L122: -1.756670427e-05 | M122: -0.0009345658596 | N122: 6.88373845e-07
A123: 58.24604667 | B123: ='DF raw data'!G128 -> 4.7037906e-06 | C123: ='DF raw data'!H128 -> -3.0748415e-06 | D123: ='DF raw data'!I128 -> 4.5591946e-06 | F123: 4.709359888e-06 | G123: -3.08573162e-06 | H123: 4.564592686e-06 | J123: -0.0001250681473 | K123: -0.006138801105 | L123: -1.911000208e-05 | M123: -0.0009441235361 | N123: 6.963797029e-07
A124: 58.74618667 | B124: ='DF raw data'!G129 -> 1.434915e-05 | C124: ='DF raw data'!H129 -> -4.4766057e-07 | D124: ='DF raw data'!I129 -> 2.8331156e-06 | F124: 1.436613939e-05 | G124: -4.492460427e-07 | H124: 2.836470009e-06 | J124: -0.0001178830664 | K124: -0.006197759142 | L124: -1.9334688e-05 | M124: -0.0009537935869 | N124: 7.035168244e-07
A125: 59.24632667 | B125: ='DF raw data'!G130 -> 1.3317471e-05 | C125: ='DF raw data'!H130 -> -7.446688e-07 | D125: ='DF raw data'!I130 -> 6.0283742e-06 | F125: 1.333323889e-05 | G125: -7.473061823e-07 | H125: 6.035511795e-06 | J125: -0.0001112145803 | K125: -0.006253382002 | L125: -1.970844571e-05 | M125: -0.000963650569 | N125: 7.098971633e-07
A126: 59.74646667 | B126: ='DF raw data'!G131 -> 4.8640559e-06 | C126: ='DF raw data'!H131 -> -1.5043523e-05 | D126: ='DF raw data'!I131 -> 4.0887894e-06 | F126: 4.869814942e-06 | G126: -1.509680242e-05 | H126: 4.093630527e-06 | J126: -0.000108778991 | K126: -0.006307786726 | L126: -2.725896047e-05 | M126: -0.0009772838655 | N126: 7.161868838e-07
A127: 60.24660667 | B127: ='DF raw data'!G132 -> 1.7078758e-06 | C127: ='DF raw data'!H132 -> -1.4641642e-05 | D127: ='DF raw data'!I132 -> -1.3557988e-06 | F127: 1.709897925e-06 | G127: -1.469349808e-05 | H127: -1.357404066e-06 | J127: -0.0001079238027 | K127: -0.006361763737 | L127: -3.460776661e-05 | M127: -0.0009945925939 | N127: 7.226113045e-07
A128: 60.74674667 | B128: ='DF raw data'!G133 -> 4.2056395e-06 | C128: ='DF raw data'!H133 -> -6.9607704e-06 | D128: ='DF raw data'!I133 -> -1.5755581e-06 | F128: 4.210618977e-06 | G128: -6.985423256e-06 | H128: -1.577423561e-06 | J128: -0.0001058179037 | K128: -0.006414687503 | L128: -3.810145619e-05 | M128: -0.001013648656 | N128: 7.289376503e-07
A129: 61.24688667 | B129: ='DF raw data'!G134 -> 6.7753595e-06 | C129: ='DF raw data'!H134 -> -6.5207132e-07 | D129: ='DF raw data'!I134 -> 4.8620163e-06 | F129: 6.783381526e-06 | G129: -6.543807512e-07 | H129: 4.867772927e-06 | J129: -0.0001024252633 | K129: -0.006465914475 | L129: -3.842873818e-05 | M129: -0.001032868405 | N129: 7.34923177e-07
A130: 61.74702667 | B130: ='DF raw data'!G135 -> 8.1052076e-06 | C130: ='DF raw data'!H135 -> -8.0435348e-06 | D130: ='DF raw data'!I135 -> -2.4893457e-06 | F130: 8.114804166e-06 | G130: -8.072022467e-06 | H130: -2.492293085e-06 | J130: -9.836672513e-05 | K130: -0.006515111608 | L130: -4.24658795e-05 | M130: -0.00105410729 | N130: 7.406644658e-07
A131: 62.24716667 | B131: ='DF raw data'!G136 -> 7.3120914e-06 | C131: ='DF raw data'!H136 -> -6.7642322e-06 | D131: ='DF raw data'!I136 -> -5.2486107e-06 | F131: 7.320748916e-06 | G131: -6.78818898e-06 | H131: -5.254825055e-06 | J131: -9.470532577e-05 | K131: -0.00656247753 | L131: -4.586092433e-05 | M131: -0.001077044173 | N131: 7.462021775e-07
A132: 62.74730667 | B132: ='DF raw data'!G137 -> -4.4859817e-07 | C132: ='DF raw data'!H137 -> -5.1736497e-06 | D132: ='DF raw data'!I137 -> 1.5663895e-06 | F132: -4.491293102e-07 | G132: -5.191973138e-06 | H132: 1.568244105e-06 | J132: -9.49299533e-05 | K132: -0.006609955797 | L132: -4.845763778e-05 | M132: -0.001101279776 | N132: 7.518836873e-07
A133: 63.24744667 | B133: ='DF raw data'!G138 -> -8.8165743e-06 | C133: ='DF raw data'!H138 -> -1.0967058e-05 | D133: ='DF raw data'!I138 -> -3.7331088e-06 | F133: -8.827013124e-06 | G133: -1.100589986e-05 | H133: -3.737528801e-06 | J133: -9.934469564e-05 | K133: -0.006659642053 | L133: -5.396212854e-05 | M133: -0.001128268395 | N133: 7.582761166e-07
A134: 63.74758667 | B134: ='DF raw data'!G139 -> -9.9037234e-06 | C134: ='DF raw data'!H139 -> -5.4018092e-06 | D134: ='DF raw data'!I139 -> -3.0867382e-06 | F134: -9.915449409e-06 | G134: -5.420940707e-06 | H134: -3.090392898e-06 | J134: -0.0001043038085 | K134: -0.00671180856 | L134: -5.667335782e-05 | M134: -0.001156613008 | N134: 7.653236663e-07
A135: 64.24772667 | B135: ='DF raw data'!G140 -> -4.2230117e-06 | C135: ='DF raw data'!H140 -> 5.3574913e-06 | D135: ='DF raw data'!I140 -> 4.2108509e-06 | F135: -4.228011746e-06 | G135: =(1-$G$1*($B$2-$G$2))*C135*$M$2/$M$1 -> 5.376465847e-06 | H135: 4.215836547e-06 | J135: -0.0001064184063 | K135: -0.006765032662 | L135: -5.398437219e-05 | M135: -0.001183612752 | N135: 7.724452546e-07
A136: =A135+$B$1 -> 64.74786667 | B136: ='DF raw data'!G141 -> -3.1094978e-06 | C136: ='DF raw data'!H141 -> -1.2282071e-06 | D136: ='DF raw data'!I141 -> 6.1631467e-06 | F136: -3.113179445e-06 | G136: -1.232557023e-06 | H136: 6.170443866e-06 | J136: =F136*$B$1+J135 -> -0.0001079754319 | K136: =J136*$B$1+K135 -> -0.006819035494 | L136: =G136*$B$1+L135 -> -5.460082326e-05 | M136: =L136*$B$1+M135 -> -0.001210920808 | N136: =(J136^2+L136^2)*$B$1+N135 -> 7.797672761e-07
A137: 65.24800667 | B137: ='DF raw data'!G142 -> -4.7109502e-06 | C137: ='DF raw data'!H142 -> -1.3752469e-06 | D137: ='DF raw data'!I142 -> 9.1489637e-06 | F137: -4.716527965e-06 | G137: -1.380117591e-06 | H137: 9.159796073e-06 | J137: -0.0001103343562 | K137: -0.006874218119 | L137: -5.529107528e-05 | M137: -0.001238574086 | N137: 7.87384795e-07
A138: 65.74814667 | B138: ='DF raw data'!G143 -> -4.7024064e-06 | C138: ='DF raw data'!H143 -> 4.0740524e-06 | D138: ='DF raw data'!I143 -> 2.4228098e-06 | F138: -4.707974049e-06 | G138: 4.08848141e-06 | H138: 2.425678407e-06 | J138: -0.0001126890023 | K138: -0.006930578397 | L138: -5.324626218e-05 | M138: -0.001265204672 | N138: 7.951539576e-07
A139: 66.24828667 | B139: ='DF raw data'!G144 -> -5.7162633e-06 | C139: ='DF raw data'!H144 -> 6.3164298e-06 | D139: ='DF raw data'!I144 -> -8.6573782e-06 | F139: -5.723031356e-06 | G139: 6.338800605e-06 | H139: -8.667628536e-06 | J139: -0.0001155513192 | K139: -0.006988370233 | L139: -5.007597445e-05 | M139: -0.00129024967 | N139: 8.030860332e-07
A140: 66.74842667 | B140: ='DF raw data'!G145 -> -4.0936516e-06 | C140: ='DF raw data'!H145 -> 1.3021545e-05 | D140: ='DF raw data'!I145 -> -4.6128885e-06 | F140: -4.098498483e-06 | G140: 1.306766321e-05 | H140: -4.61835016e-06 | J140: -0.0001176011422 | K140: -0.007047187269 | L140: -4.354031337e-05 | M140: -0.001312025922 | N140: 8.109511286e-07
A141: 67.24856667 | B141: ='DF raw data'!G146 -> -1.9934471e-06 | C141: ='DF raw data'!H146 -> 3.3803663e-06 | D141: ='DF raw data'!I146 -> 5.9204244e-06 | F141: -1.995807341e-06 | G141: 3.392338493e-06 | H141: 5.927434182e-06 | J141: -0.0001185993253 | K141: -0.007106503535 | L141: -4.18436692e-05 | M141: -0.001332953615 | N141: 8.188616893e-07
A142: 67.74870667 | B142: ='DF raw data'!G147 -> -2.9573757e-06 | C142: ='DF raw data'!H147 -> -1.2852121e-05 | D142: ='DF raw data'!I147 -> 6.7982069e-06 | F142: -2.960877233e-06 | G142: -1.289763916e-05 | H142: 6.806255977e-06 | J142: -0.0001200801785 | K142: -0.007166560436 | L142: -4.829429445e-05 | M142: -0.001357107523 | N142: 8.272398286e-07
A143: 68.24884667 | B143: ='DF raw data'!G148 -> -5.1197903e-06 | C143: ='DF raw data'!H148 -> -5.3144176e-06 | D143: ='DF raw data'!I148 -> 7.9692909e-06 | F143: -5.125852132e-06 | G143: -5.333239593e-06 | H143: 7.97872654e-06 | J143: -0.0001226438222 | K143: -0.007227899517 | L143: -5.09616609e-05 | M143: -0.001382595488 | N143: 8.36061597e-07
A144: 68.74898667 | B144: ='DF raw data'!G149 -> -5.3584195e-06 | C144: ='DF raw data'!H149 -> -3.8815051e-07 | D144: ='DF raw data'!I149 -> 1.1292537e-05 | F144: -5.364763869e-06 | G144: -3.895252168e-07 | H144: 1.130590736e-05 | J144: -0.0001253269552 | K144: -0.00729058054 | L144: -5.115647804e-05 | M144: -0.001408180889 | N144: 8.452260778e-07
A145: 69.24912667 | B145: ='DF raw data'!G150 -> -8.5236553e-07 | C145: ='DF raw data'!H150 -> -5.8322257e-07 | D145: ='DF raw data'!I150 -> 8.1861908e-06 | F145: -8.533747308e-07 | G145: -5.852881606e-07 | H145: 8.19588325e-06 | J145: -0.000125753762 | K145: -0.007353475027 | L145: -5.144920406e-05 | M145: -0.001433912694 | N145: 8.544591769e-07
A146: 69.74926667 | B146: ='DF raw data'!G151 -> 4.2253973e-06 | C146: ='DF raw data'!H151 -> 8.2287079e-06 | D146: ='DF raw data'!I151 -> 8.2281222e-06 | F146: 4.23040017e-06 | G146: 8.257851391e-06 | H146: 8.237864297e-06 | J146: -0.0001236379697 | K146: -0.007415311321 | L146: -4.731912227e-05 | M146: -0.00145757888 | N146: 8.632243539e-07
A147: 70.24940667 | B147: ='DF raw data'!G152 -> 3.2976473e-06 | C147: ='DF raw data'!H152 -> -6.1308601e-06 | D147: ='DF raw data'!I152 -> 6.3345246e-06 | F147: 3.301551714e-06 | G147: -6.152573675e-06 | H147: 6.342024677e-06 | J147: -0.0001219867316 | K147: -0.007476321765 | L147: -5.039627046e-05 | M147: -0.00148278407 | N147: 8.719370662e-07
A148: 70.74954667 | B148: ='DF raw data'!G153 -> -2.3311325e-06 | C148: ='DF raw data'!H153 -> -6.7124347e-08 | D148: ='DF raw data'!I153 -> 4.3892173e-06 | F148: -2.333892561e-06 | G148: -6.736208029e-08 | H148: 4.394414133e-06 | J148: -0.0001231540046 | K148: -0.007537916009 | L148: -5.042996094e-05 | M148: -0.001508006111 | N148: 8.807945905e-07
A149: 71.24968667 | B149: ='DF raw data'!G154 -> -8.9289142e-06 | C149: ='DF raw data'!H154 -> 9.3002636e-06 | D149: ='DF raw data'!I154 -> 4.3094838e-06 | F149: -8.939486034e-06 | G149: 9.333202204e-06 | H149: 4.314586229e-06 | J149: -0.0001276249991 | K149: -0.007601746376 | L149: -4.576205318e-05 | M149: -0.001530893544 | N149: 8.89988317e-07
A150: 71.74982667 | B150: ='DF raw data'!G155 -> -1.0718867e-05 | C150: ='DF raw data'!H155 -> 1.2943638e-06 | D150: ='DF raw data'!I155 -> -2.2830544e-07 | F150: -1.073155814e-05 | G150: 1.298948029e-06 | H150: -2.285757536e-07 | J150: -0.0001329922806 | K150: -0.007668261135 | L150: -4.511239732e-05 | M150: -0.001553456059 | N150: 8.998521156e-07
A151: 72.24996667 | B151: ='DF raw data'!G156 -> -7.301162e-06 | C151: ='DF raw data'!H156 -> -3.4285549e-06 | D151: ='DF raw data'!I156 -> -3.2130561e-06 | F151: =(1-$G$1*($B$2-$G$2))*B151 -> -7.309806576e-06 | G151: -3.440697761e-06 | H151: -3.216860358e-06 | J151: -0.0001366482073 | K151: -0.007736604369 | L151: -4.68332279e-05 | M151: -0.001576879229 | N151: 9.102880788e-07
A152: 72.75010667 | B152: ='DF raw data'!G157 -> -2.322188e-06 | C152: ='DF raw data'!H157 -> -4.2057582e-07 | D152: ='DF raw data'!I157 -> -3.3373112e-06 | F152: -2.324937471e-06 | G152: -4.220653671e-07 | H152: -3.341262576e-06 | J152: -0.0001378110015 | K152: -0.007805529164 | L152: -4.704431967e-05 | M152: -0.001600407975 | N152: 9.208935676e-07
A153: 73.25024667 | B153: ='DF raw data'!G158 -> -4.5545562e-06 | C153: ='DF raw data'!H158 -> 3.8717772e-06 | D153: ='DF raw data'!I158 -> -2.3682192e-06 | F153: -4.559948795e-06 | G153: 3.885489815e-06 | H153: -2.371023172e-06 | J153: -0.0001400916143 | K153: -0.007875594584 | L153: -4.510103079e-05 | M153: -0.001622964805 | N153: 9.317264816e-07
A154: 73.75038667 | B154: ='DF raw data'!G159 -> -1.2109726e-05 | C154: ='DF raw data'!H159 -> -2.6536109e-06 | D154: ='DF raw data'!I159 -> 2.7521851e-06 | F154: -1.212406392e-05 | G154: -2.663009154e-06 | H154: 2.755443687e-06 | J154: -0.0001461553436 | K154: -0.007948692717 | L154: -4.643290819e-05 | M154: -0.00164618776 | N154: 9.434884738e-07
A155: 74.25052667 | B155: ='DF raw data'!G160 -> -1.4483001e-05 | C155: ='DF raw data'!H160 -> -8.2886399e-06 | D155: ='DF raw data'!I160 -> 2.3983844e-06 | F155: -1.450014887e-05 | G155: -8.317995652e-06 | H155: 2.401224087e-06 | J155: -0.0001534074481 | K155: -0.008025417918 | L155: -5.059307054e-05 | M155: -0.001671491378 | N155: 9.565388788e-07
A156: 74.75066667 | B156: ='DF raw data'!G161 -> -6.5239983e-06 | C156: ='DF raw data'!H161 -> -4.6072528e-06 | D156: ='DF raw data'!I161 -> -6.2493859e-06 | F156: -6.531722714e-06 | G156: -4.623570238e-06 | H156: -6.256785173e-06 | J156: -0.0001566742239 | K156: -0.008103776965 | L156: -5.290550295e-05 | M156: -0.001697951536 | N156: 9.702156096e-07
A157: 75.25080667 | B157: ='DF raw data'!G162 -> 7.0868123e-06 | C157: ='DF raw data'!H162 -> -8.7009175e-07 | D157: ='DF raw data'!I162 -> -7.3008055e-06 | F157: 7.095203086e-06 | G157: -8.731733409e-07 | H157: -7.309449654e-06 | J157: -0.000153125629 | K157: -0.008180361217 | L157: -5.334221187e-05 | M157: -0.00172463011 | N157: 9.833657155e-07
A158: 75.75094667 | B158: ='DF raw data'!G163 -> 8.8953211e-06 | C158: ='DF raw data'!H163 -> 2.0995976e-06 | D158: ='DF raw data'!I163 -> -8.3407986e-07 | F158: 8.90585316e-06 | G158: 2.107033713e-06 | H158: -8.350674106e-07 | J158: -0.0001486714556 | K158: -0.008254717759 | L158: -5.228840003e-05 | M158: -0.00175078163 | N158: 9.957878319e-07
A159: 76.25108667 | B159: ='DF raw data'!G164 -> -6.6693559e-07 | C159: ='DF raw data'!H164 -> 5.2041833e-06 | D159: ='DF raw data'!I164 -> 5.9848494e-06 | F159: -6.677252417e-07 | G159: 5.222614878e-06 | H159: 5.991935462e-06 | J159: -0.0001490054117 | K159: -0.008329241325 | L159: -4.967636142e-05 | M159: -0.001775626766 | N159: 1.008126463e-06
A160: 76.75122667 | B160: ='DF raw data'!G165 -> -5.0955605e-06 | C160: ='DF raw data'!H165 -> -2.5085756e-06 | D160: ='DF raw data'!I165 -> 6.5445706e-06 | F160: -5.101593644e-06 | G160: -2.517460185e-06 | H160: 6.552319372e-06 | J160: -0.0001515569228 | K160: -0.008405041005 | L160: -5.093544396e-05 | M160: -0.001801101619 | N160: 1.020912002e-06
A161: 77.25136667 | B161: ='DF raw data'!G166 -> -1.4744036e-06 | C161: ='DF raw data'!H166 -> -4.3689506e-06 | D161: ='DF raw data'!I166 -> 1.416312e-06 | F161: -1.476149294e-06 | G161: -4.384424047e-06 | H161: 1.417988913e-06 | J161: -0.0001522952041 | K161: -0.008481209928 | L161: -5.31282698e-05 | M161: -0.001827673192 | N161: 1.033923865e-06
A162: 77.75150667 | B162: ='DF raw data'!G167 -> 1.2006469e-06 | C162: ='DF raw data'!H167 -> -2.0175503e-07 | D162: ='DF raw data'!I167 -> 6.2837671e-07 | F162: 1.202068466e-06 | G162: -2.024695828e-07 | H162: 6.29120708e-07 | J162: -0.0001516940016 | K162: -0.008557078166 | L162: -5.322953294e-05 | M162: -0.00185429541 | N162: 1.04684971e-06
A163: 78.25164667 | B163: ='DF raw data'!G168 -> -3.9012798e-06 | C163: ='DF raw data'!H168 -> 3.7834507e-06 | D163: ='DF raw data'!I168 -> 5.2721543e-07 | F163: -3.905898915e-06 | G163: 3.796850491e-06 | H163: 5.278396531e-07 | J163: -0.0001536474978 | K163: -0.008633923425 | L163: -5.133057614e-05 | M163: -0.001879967885 | N163: 1.059974575e-06
A164: 78.75178667 | B164: ='DF raw data'!G169 -> -9.0630137e-06 | C164: ='DF raw data'!H169 -> 7.0386704e-06 | D164: ='DF raw data'!I169 -> -5.7662401e-08 | F164: -9.073744308e-06 | G164: 7.063599153e-06 | H164: -5.773067328e-08 | J164: -0.0001581856403 | K164: -0.008713038392 | L164: -4.779778765e-05 | M164: -0.00190387347 | N164: 1.07363206e-06
A165: 79.25192667 | B165: ='DF raw data'!G170 -> -1.2975866e-05 | C165: ='DF raw data'!H170 -> -8.6468935e-06 | D165: ='DF raw data'!I170 -> -1.7094649e-06 | F165: -1.299122943e-05 | G165: -8.677518073e-06 | H165: -1.711488906e-06 | J165: -0.0001646830738 | K165: -0.008795402984 | L165: -5.213776154e-05 | M165: -0.00192994965 | N165: 1.088555668e-06
A166: 79.75206667 | B166: ='DF raw data'!G171 -> -1.3663385e-05 | C166: ='DF raw data'!H171 -> -4.222049e-06 | D166: ='DF raw data'!I171 -> 1.7521189e-07 | F166: -1.367956245e-05 | G166: -4.237002168e-06 | H166: 1.754193409e-07 | J166: -0.0001715247702 | K166: -0.008881189383 | L166: -5.425685581e-05 | M166: -0.001957085674 | N166: 1.104742476e-06
A167: 80.25220667 | B167: ='DF raw data'!G172 -> -6.3728776e-06 | C167: ='DF raw data'!H172 -> 5.8675832e-06 | D167: ='DF raw data'!I172 -> 1.3775784e-06 | F167: -6.380423087e-06 | G167: 5.888364331e-06 | H167: 1.379209453e-06 | J167: -0.000174715875 | K167: -0.00896857178 | L167: -5.131184927e-05 | M167: -0.001982748782 | N167: 1.12132639e-06
A168: 80.75234667 | B168: ='DF raw data'!G173 -> 5.0852191e-07 | C168: ='DF raw data'!H173 -> 7.3690535e-07 | D168: ='DF raw data'!I173 -> -8.4187159e-06 | F168: 5.091239999e-07 | G168: 7.395152366e-07 | H168: -8.42868366e-06 | J168: -0.0001744612417 | K168: -0.009055826826 | L168: -5.094198812e-05 | M168: -0.002008226908 | N168: 1.13784692e-06
A169: 81.25248667 | B169: ='DF raw data'!G174 -> -2.2828726e-06 | C169: ='DF raw data'!H174 -> -2.3859575e-06 | D169: ='DF raw data'!I174 -> -9.6785843e-06 | F169: -2.285575521e-06 | G169: -2.39440781e-06 | H169: -9.690043744e-06 | J169: -0.0001756043494 | K169: -0.009143653585 | L169: -5.213952724e-05 | M169: -0.002034303971 | N169: 1.154629326e-06
A170: 81.75262667 | B170: ='DF raw data'!G175 -> -4.6407299e-06 | C170: ='DF raw data'!H175 -> -1.3252931e-05 | D170: ='DF raw data'!I175 -> 2.506163e-07 | F170: -4.646224524e-06 | G170: -1.329986871e-05 | H170: 2.509130297e-07 | J170: -0.0001779281122 | K170: -0.009232642551 | L170: -5.879132358e-05 | M170: -0.002063707864 | N170: 1.172191659e-06
A171: 82.25276667 | B171: ='DF raw data'!G176 -> 1.5522162e-06 | C171: ='DF raw data'!H176 -> -1.2939112e-05 | D171: ='DF raw data'!I176 -> 2.9218313e-06 | F171: 1.554054024e-06 | G171: -1.298493826e-05 | H171: 2.925290748e-06 | J171: -0.0001771508676 | K171: -0.009321242786 | L171: -6.52856106e-05 | M171: -0.002096359809 | N171: 1.190018969e-06
A172: 82.75290667 | B172: ='DF raw data'!G177 -> 7.3658916e-06 | C172: ='DF raw data'!H177 -> -9.4474526e-06 | D172: ='DF raw data'!I177 -> 1.8417918e-06 | F172: 7.374612816e-06 | G172: -9.480912501e-06 | H172: 1.843972481e-06 | J172: -0.0001734625287 | K172: -0.009407998335 | L172: -7.002739418e-05 | M172: -0.00213138331 | N172: 1.207520411e-06
A173: 83.25304667 | B173: ='DF raw data'!G178 -> 6.6607504e-06 | C173: ='DF raw data'!H178 -> -8.6531654e-06 | D173: ='DF raw data'!I178 -> 2.4566866e-06 | F173: 6.668636728e-06 | G173: -8.683812186e-06 | H173: 2.459595317e-06 | J173: -0.0001701272768 | K173: -0.009493085791 | L173: -7.4370516e-05 | M173: -0.00216857898 | N173: 1.224762369e-06
A174: 83.75318667 | B174: ='DF raw data'!G179 -> 2.5652057e-06 | C174: ='DF raw data'!H179 -> -6.3125481e-07 | D174: ='DF raw data'!I179 -> -1.1006309e-06 | F174: 2.568242904e-06 | G174: -6.334905157e-07 | H174: -1.101934047e-06 | J174: -0.0001688427958 | K174: -0.009577530827 | L174: -7.468734995e-05 | M174: -0.002205933111 | N174: 1.241810186e-06
A175: 84.25332667 | B175: ='DF raw data'!G180 -> 3.3433039e-06 | C175: ='DF raw data'!H180 -> -1.173772e-06 | D175: ='DF raw data'!I180 -> -4.2540273e-06 | F175: 3.347262372e-06 | G175: -1.177929131e-06 | H175: -4.259064068e-06 | J175: -0.000167168696 | K175: -0.009661138579 | L175: -7.527647943e-05 | M175: -0.00224358189 | N175: 1.258620853e-06
A176: 84.75346667 | B176: ='DF raw data'!G181 -> 3.5944149e-06 | C176: ='DF raw data'!H181 -> 7.9000893e-07 | D176: ='DF raw data'!I181 -> -6.0564457e-06 | F176: 3.598670687e-06 | G176: 7.928068928e-07 | H176: -6.063616532e-06 | J176: -0.0001653688568 | K176: -0.009743846159 | L176: -7.487996499e-05 | M176: -0.002281032355 | N176: 1.2751024e-06
A177: 85.25360667 | B177: ='DF raw data'!G182 -> -1.6430794e-06 | C177: ='DF raw data'!H182 -> 9.9393219e-08 | D177: ='DF raw data'!I182 -> -8.9528112e-06 | F177: -1.645024806e-06 | G177: 9.974523847e-08 | H177: -8.963411328e-06 | J177: -0.0001661915995 | K177: -0.009826965225 | L177: -7.48300784e-05 | M177: -0.002318457871 | N177: 1.291716645e-06
A178: 85.75374667 | B178: ='DF raw data'!G183 -> -6.4355554e-06 | C178: ='DF raw data'!H183 -> -3.7390419e-06 | D178: ='DF raw data'!I183 -> -1.0252148e-05 | F178: -6.443175098e-06 | G178: -3.752284409e-06 | H178: -1.026428654e-05 | J178: -0.0001694140891 | K178: -0.009911695988 | L178: -7.670674593e-05 | M178: -0.002356821983 | N178: 1.309014016e-06
A179: 86.25388667 | B179: ='DF raw data'!G184 -> -6.8328482e-06 | C179: ='DF raw data'!H184 -> -1.2219389e-06 | D179: ='DF raw data'!I184 -> -9.3114722e-06 | F179: -6.840938292e-06 | G179: -1.226266623e-06 | H179: -9.322496983e-06 | J179: -0.000172835516 | K179: -0.009998137943 | L179: -7.732005092e-05 | M179: -0.002395492833 | N179: 1.326944288e-06
A180: 86.75402667 | B180: ='DF raw data'!G185 -> -5.6094641e-06 | C180: ='DF raw data'!H185 -> -1.0335389e-06 | D180: ='DF raw data'!I185 -> -1.0291747e-05 | F180: -5.616105705e-06 | G180: -1.037199369e-06 | H180: -1.030393243e-05 | J180: -0.0001756443551 | K180: -0.01008598471 | L180: -7.783879581e-05 | M180: -0.002434423128 | N180: 1.345404364e-06
A181: 87.25416667 | B181: ='DF raw data'!G186 -> -2.927472e-06 | C181: ='DF raw data'!H186 -> -1.7072125e-06 | D181: ='DF raw data'!I186 -> -6.4793317e-06 | F181: -2.930938127e-06 | G181: -1.713258909e-06 | H181: -6.487003229e-06 | J181: -0.0001771102345 | K181: -0.01017456462 | L181: -7.869566512e-05 | M181: -0.002473781978 | N181: 1.364190144e-06
A182: 87.75430667 | B182: ='DF raw data'!G187 -> 4.7580579e-06 | C182: ='DF raw data'!H187 -> 5.5462879e-06 | D182: ='DF raw data'!I187 -> -4.0051823e-06 | F182: 4.763691441e-06 | G182: 5.565931105e-06 | H182: -4.009924436e-06 | J182: -0.0001747277218 | K182: -0.01026195295 | L182: -7.591192034e-05 | M182: -0.002511748566 | N182: 1.382341423e-06
A183: 88.25444667 | B183: ='DF raw data'!G188 -> 8.014963e-06 | C183: ='DF raw data'!H188 -> 7.3507581e-06 | D183: ='DF raw data'!I188 -> -4.490827e-06 | F183: 8.024452716e-06 | G183: 7.37679217e-06 | H183: -4.496144139e-06 | J183: -0.0001707143721 | K183: -0.01034733403 | L183: -7.22224915e-05 | M183: -0.002547869923 | N183: 1.399525976e-06
A184: 88.75458667 | B184: ='DF raw data'!G189 -> 5.3046692e-06 | C184: ='DF raw data'!H189 -> -9.5615178e-07 | D184: ='DF raw data'!I189 -> -1.7193165e-06 | F184: 5.310949928e-06 | G184: -9.595381684e-07 | H184: -1.721352171e-06 | J184: -0.0001680581536 | K184: -0.01043138664 | L184: -7.270239492e-05 | M184: -0.002584231299 | N184: 1.416295261e-06
A185: 89.25472667 | B185: ='DF raw data'!G190 -> 3.4382215e-06 | C185: ='DF raw data'!H190 -> 2.8346476e-06 | D185: ='DF raw data'!I190 -> -1.147419e-06 | F185: 3.442292354e-06 | G185: 2.844687029e-06 | H185: -1.148777544e-06 | J185: -0.0001663365255 | K185: -0.01051457819 | L185: -7.127965315e-05 | M185: -0.002619881105 | N185: 1.43267416e-06
A186: 89.75486667 | B186: ='DF raw data'!G191 -> 7.7425148e-07 | C186: ='DF raw data'!H191 -> 1.3429344e-06 | D186: ='DF raw data'!I191 -> -3.4270929e-06 | F186: 7.751681938e-07 | G186: 1.347690651e-06 | H186: -3.431150578e-06 | J186: -0.0001659488328 | K186: -0.01059757584 | L186: -7.060561915e-05 | M186: -0.002655193799 | N186: 1.448940798e-06
A187: 90.25500667 | B187: ='DF raw data'!G192 -> -3.7573009e-06 | C187: ='DF raw data'!H192 -> -6.6700377e-06 | D187: ='DF raw data'!I192 -> -3.6489187e-06 | F187: -3.761749544e-06 | G187: -6.693660872e-06 | H187: -3.65323902e-06 | J187: -0.0001678302343 | K187: -0.01068151445 | L187: -7.39533867e-05 | M187: -0.002692180846 | N187: 1.465763552e-06
A188: 90.75514667 | B188: ='DF raw data'!G193 -> -4.6215059e-06 | C188: ='DF raw data'!H193 -> 2.5323025e-06 | D188: ='DF raw data'!I193 -> -6.9480052e-06 | F188: -4.626977763e-06 | G188: 2.541271118e-06 | H188: -6.956231638e-06 | J188: -0.0001701443709 | K188: -0.01076661046 | L188: -7.268239536e-05 | M188: -0.002728532219 | N188: 1.482884263e-06
A189: 91.25528667 | B189: ='DF raw data'!G194 -> 5.3181748e-07 | C189: ='DF raw data'!H194 -> 2.4606525e-06 | D189: ='DF raw data'!I194 -> -2.7972933e-06 | F189: 5.324471519e-07 | G189: 2.469367356e-06 | H189: -2.800605295e-06 | J189: -0.0001698780728 | K189: -0.01085157327 | L189: -7.144736597e-05 | M189: -0.002764265905 | N189: 1.499870661e-06
A190: 91.75542667 | B190: ='DF raw data'!G195 -> 3.8924513e-06 | C190: ='DF raw data'!H195 -> -1.2314274e-05 | D190: ='DF raw data'!I195 -> 4.3667201e-06 | F190: 3.897059962e-06 | G190: -1.235788728e-05 | H190: 4.371890297e-06 | J190: -0.0001679289972 | K190: -0.01093556128 | L190: -7.762803971e-05 | M190: -0.002803090792 | N190: 1.516988583e-06
A191: 92.25556667 | B191: ='DF raw data'!G196 -> 4.7019885e-06 | C191: ='DF raw data'!H196 -> -1.5022975e-05 | D191: ='DF raw data'!I196 -> -3.9737683e-06 | F191: 4.707555654e-06 | G191: -1.507618165e-05 | H191: -3.978473242e-06 | J191: -0.0001655745603 | K191: -0.01101837174 | L191: -8.51682412e-05 | M191: -0.002845686836 | N191: 1.534327719e-06
A192: 92.75570667 | B192: ='DF raw data'!G197 -> 5.1304528e-06 | C192: ='DF raw data'!H197 -> -4.8604961e-06 | D192: ='DF raw data'!I197 -> -3.7312461e-06 | F192: 5.136527256e-06 | G192: -4.877710446e-06 | H192: -3.735663895e-06 | J192: -0.0001630055776 | K192: -0.01109989735 | L192: -8.76077793e-05 | M192: -0.002889502991 | N192: 1.551455484e-06
A193: 93.25584667 | B193: ='DF raw data'!G198 -> -1.5772007e-09 | C193: ='DF raw data'!H198 -> 1.0951691e-05 | D193: ='DF raw data'!I198 -> 4.6799901e-06 | F193: -1.579068106e-09 | G193: 1.099047844e-05 | H193: 4.685531208e-06 | J193: -0.0001630063674 | K193: -0.01118142336 | L193: -8.211100142e-05 | M193: -0.002930569987 | N193: 1.568116794e-06
A194: 93.75598667 | B194: ='DF raw data'!G199 -> -4.5076313e-06 | C194: ='DF raw data'!H199 -> 1.5697562e-05 | D194: ='DF raw data'!I199 -> 8.2717816e-06 | F194: -4.512968335e-06 | G194: 1.575315782e-05 | H194: 8.281575389e-06 | J194: -0.0001652634833 | K194: -0.01126407824 | L194: -7.423221707e-05 | M194: -0.002967696488 | N194: 1.58453261e-06
A195: 94.25612667 | B195: ='DF raw data'!G200 -> -4.5821239e-06 | C195: ='DF raw data'!H200 -> 2.7716706e-06 | D195: ='DF raw data'!I200 -> 1.7012967e-06 | F195: -4.587549135e-06 | G195: 2.781486984e-06 | H195: 1.703311035e-06 | J195: -0.0001675579002 | K195: -0.01134788064 | L195: -7.284108417e-05 | M195: -0.003004127228 | N195: 1.60122802e-06
A196: 94.75626667 | B196: ='DF raw data'!G201 -> -1.6777223e-06 | C196: ='DF raw data'!H201 -> -6.8173395e-06 | D196: ='DF raw data'!I201 -> -2.8277068e-06 | F196: -1.679708723e-06 | G196: -6.841484369e-06 | H196: -2.831054805e-06 | J196: -0.0001683979897 | K196: -0.01143210322 | L196: -7.626278416e-05 | M196: -0.003042269297 | N196: 1.618319752e-06
A197: 95.25640667 | B197: ='DF raw data'!G202 -> -8.711221e-07 | C197: ='DF raw data'!H202 -> 7.119128e-06 | D197: ='DF raw data'!I202 -> -9.8602368e-07 | F197: -8.721535086e-07 | G197: 7.144341709e-06 | H197: -9.87191132e-07 | J197: -0.0001688341885 | K197: -0.01151654395 | L197: -7.26896131e-05 | M197: -0.00307862428 | N197: 1.635218864e-06
A198: 95.75654667 | B198: ='DF raw data'!G203 -> -3.6620495e-06 | C198: ='DF raw data'!H203 -> 6.5517961e-06 | D198: ='DF raw data'!I203 -> -3.7686482e-06 | F198: -3.666385367e-06 | G198: 6.575000498e-06 | H198: -3.773110279e-06 | J198: -0.0001706678945 | K198: -0.01160190179 | L198: -6.940119235e-05 | M198: -0.003113334593 | N198: 1.652195644e-06
A199: 96.25668667 | B199: ='DF raw data'!G204 -> -2.3658422e-06 | C199: ='DF raw data'!H204 -> 2.8865506e-06 | D199: ='DF raw data'!I204 -> -3.7074865e-06 | F199: -2.368643357e-06 | G199: =(1-$G$1*($B$2-$G$2))*C199*$M$2/$M$1 -> 2.896773853e-06 | H199: -3.711876164e-06 | J199: -0.0001718525478 | K199: -0.01168785212 | L199: -6.795239987e-05 | M199: -0.003147320306 | N199: 1.669275838e-06
A200: =A199+$B$1 -> 96.75682667 | B200: ='DF raw data'!G205 -> -4.4286667e-06 | C200: ='DF raw data'!H205 -> 5.7472316e-06 | D200: ='DF raw data'!I205 -> 3.3622196e-06 | F200: -4.433910241e-06 | G200: 5.767586484e-06 | H200: 3.366200468e-06 | J200: =F200*$B$1+J199 -> -0.0001740701237 | K200: =J200*$B$1+K199 -> -0.01177491155 | L200: =G200*$B$1+L199 -> -6.506779917e-05 | M200: =L200*$B$1+M199 -> -0.003179863315 | N200: =(J200^2+L200^2)*$B$1+N199 -> 1.686547786e-06
A201: 97.25696667 | B201: ='DF raw data'!G206 -> -8.0139798e-06 | C201: ='DF raw data'!H206 -> -2.2812164e-06 | D201: ='DF raw data'!I206 -> 1.2852684e-06 | F201: -8.023468352e-06 | G201: -2.28929575e-06 | H201: 1.286790158e-06 | J201: -0.0001780829811 | K201: -0.01186397797 | L201: -6.621276754e-05 | M201: -0.003212978969 | N201: 1.704601679e-06
... 1002 more rows

Sheet 20 mm
A1: dz | B1: ='DF raw data'!K7 -> 0.50012 | C1: mm | F1: T_coeff | G1: -0.0008 | H1: /degC | L1: Hallref | M1: ='PI vs gap'!B50 -> 0.50533 | N1: T | P1: IBy total | Q1: =L1203*1000 -> 10.42559358 | R1: muTm | X1: DF ref | Y1: 21
A2: Tref | B2: ='DF raw data'!K8 -> 21.48 | C2: degC | F2: Tcorr | G2: 20 | H2: degC | L2: NMRref | M2: ='PI vs gap'!B51 -> 0.50652 | N2: T | P2: JBy total | Q2: =M1203 -> 2.265498687 | R2: muTm^2
A3: Encoder | B3: ='DF raw data'!K9 -> 17214976 | P3: PI total | Q3: =N1203 -> 203.2359334 | R3: T^2mm^3
A5: z [mm] | B5: Bx | C5: By | D5: Bz | F5: Bx_corr | G5: By_corr | H5: Bz_corr | J5: Ix | K5: Jx | L5: Iy | M5: Jy | N5: PI
A6: ='PI vs gap'!B53 -> -0.2703333333 | B6: ='DF raw data'!J11 -> 1.6740822e-05 | C6: ='DF raw data'!K11 -> 6.033377e-07 | D6: ='DF raw data'!L11 -> 7.9327601e-06 | F6: =(1-$G$1*($B$2-$G$2))*B6 -> 1.676064313e-05 | G6: =(1-$G$1*($B$2-$G$2))*C6*$M$2/$M$1 -> 6.054745321e-07 | H6: =(1-$G$1*($B$2-$G$2))*D6 -> 7.942152488e-06 | J6: =F6*$B$1 -> 8.382332844e-06 | K6: =J6*$B$1 -> 4.192172302e-06 | L6: =G6*$B$1 -> 3.02809923e-07 | M6: =L6*$B$1 -> 1.514412987e-07 | N6: =(J6^2+L6^2)*$B$1 -> 3.51860415e-11
A7: =A6+$B$1 -> 0.2297866667 | B7: ='DF raw data'!J12 -> 1.6436044e-05 | C7: ='DF raw data'!K12 -> 8.6363189e-06 | D7: ='DF raw data'!L12 -> 6.4649771e-06 | F7: =(1-$G$1*($B$2-$G$2))*B7 -> 1.645550428e-05 | G7: =(1-$G$1*($B$2-$G$2))*C7*$M$2/$M$1 -> 8.666906021e-06 | H7: 6.472631633e-06 | J7: =F7*$B$1+J6 -> 1.661205964e-05 | K7: =J7*$B$1+K6 -> 1.250019557e-05 | L7: =G7*$B$1+L6 -> 4.637302962e-06 | M7: =L7*$B$1+M6 -> 2.470649256e-06 | N7: =(J7^2+L7^2)*$B$1+N6 -> 1.839542895e-10
A8: =A7+$B$1 -> 0.7299066667 | B8: ='DF raw data'!J13 -> 1.6790016e-05 | C8: ='DF raw data'!K13 -> -1.8916173e-06 | D8: ='DF raw data'!L13 -> 1.5549501e-06 | F8: 1.680989538e-05 | G8: -1.898316813e-06 | H8: 1.556791161e-06 | J8: =F8*$B$1+J7 -> 2.501902452e-05 | K8: =J8*$B$1+K7 -> 2.501271011e-05 | L8: =G8*$B$1+L7 -> 3.687916758e-06 | M8: =L8*$B$1+M7 -> 4.315050185e-06 | N8: =(J8^2+L8^2)*$B$1+N7 -> 5.038071947e-10
A9: 1.230026667 | B9: ='DF raw data'!J14 -> 1.6533299e-05 | C9: ='DF raw data'!K14 -> 4.7036856e-06 | D9: ='DF raw data'!L14 -> -5.4217003e-07 | F9: 1.655287443e-05 | G9: 4.720344573e-06 | H9: -5.428119593e-07 | J9: 3.329744808e-05 | K9: 4.166542985e-05 | L9: 6.048655486e-06 | M9: 7.340103767e-06 | N9: 1.076597772e-09
A10: 1.730146667 | B10: ='DF raw data'!J15 -> 1.6520349e-05 | C10: ='DF raw data'!K15 -> 5.729341e-06 | D10: ='DF raw data'!L15 -> 3.8233788e-06 | F10: 1.653990909e-05 | G10: 5.749632521e-06 | H10: 3.82790568e-06 | J10: 4.156938741e-05 | K10: 6.245511188e-05 | L10: 8.924161702e-06 | M10: 1.180325552e-05 | N10: 1.980642007e-09
A11: 2.230266667 | B11: ='DF raw data'!J16 -> 1.7218616e-05 | C11: ='DF raw data'!K16 -> -1.325094e-05 | D11: ='DF raw data'!L16 -> 3.933857e-06 | F11: 1.723900284e-05 | G11: -1.329787066e-05 | H11: 3.938514687e-06 | J11: 5.019095751e-05 | K11: 8.755661355e-05 | L11: 2.27363063e-06 | M11: 1.294034367e-05 | N11: 3.243095729e-09
A12: 2.730386667 | B12: ='DF raw data'!J17 -> 1.6867112e-05 | C12: ='DF raw data'!K17 -> -3.8319149e-06 | D12: ='DF raw data'!L17 -> 2.31846e-06 | F12: 1.688708266e-05 | G12: -3.845486336e-06 | H12: 2.321205057e-06 | J12: 5.863652529e-05 | K12: 0.0001168819126 | L12: 3.504260038e-07 | M12: 1.311559872e-05 | N12: 4.962690781e-09
A13: 3.230506667 | B13: ='DF raw data'!J18 -> 1.6635426e-05 | C13: ='DF raw data'!K18 -> 2.1844469e-06 | D13: ='DF raw data'!L18 -> 4.049632e-07 | F13: 1.665512234e-05 | G13: 2.192183523e-06 | H13: 4.054426764e-07 | J13: 6.696608508e-05 | K13: 0.0001503729911 | L13: 1.446780827e-06 | M13: 1.383916275e-05 | N13: 7.20650403e-09
A14: 3.730626667 | B14: ='DF raw data'!J19 -> 1.6898617e-05 | C14: ='DF raw data'!K19 -> -6.1957135e-06 | D14: ='DF raw data'!L19 -> -6.6720663e-06 | F14: 1.691862496e-05 | G14: -6.217656766e-06 | H14: -6.679966026e-06 | J14: 7.54274278e-05 | K14: 0.0001880957562 | L14: -1.662793674e-06 | M14: 1.300756638e-05 | N14: 1.005321795e-08
A15: 4.230746667 | B15: ='DF raw data'!J20 -> 1.6655851e-05 | C15: ='DF raw data'!K20 -> -1.3518293e-07 | D15: ='DF raw data'!L20 -> -9.9125155e-06 | F15: 1.667557153e-05 | G15: -1.356617054e-07 | H15: -9.924251918e-06 | J15: 8.376721463e-05 | K15: 0.0002299894156 | L15: -1.730640806e-06 | M15: 1.21420383e-05 | N15: 1.356403103e-08
A16: 4.730866667 | B16: ='DF raw data'!J21 -> 1.6496253e-05 | C16: ='DF raw data'!K21 -> 4.3215523e-06 | D16: ='DF raw data'!L21 -> -8.9448204e-06 | F16: 1.651578456e-05 | G16: 4.336857877e-06 | H16: -8.955411067e-06 | J16: 9.202708881e-05 | K16: 0.0002760140033 | L16: 4.38308555e-07 | M16: 1.236124517e-05 | N16: 1.779963592e-08
A17: 5.230986667 | B17: ='DF raw data'!J22 -> 1.6990665e-05 | C17: ='DF raw data'!K22 -> -8.3987279e-06 | D17: ='DF raw data'!L22 -> -4.344804e-06 | F17: 1.701078195e-05 | G17: -8.428473549e-06 | H17: -4.349948248e-06 | J17: 0.0001005345211 | K17: 0.000326293328 | L17: -3.776939636e-06 | M17: 1.047232212e-05 | N17: 2.28615781e-08
A18: 5.731106667 | B18: ='DF raw data'!J23 -> 1.6930457e-05 | C18: ='DF raw data'!K23 -> -5.4147631e-06 | D18: ='DF raw data'!L23 -> 3.1439938e-06 | F18: 1.695050266e-05 | G18: -5.433940485e-06 | H18: 3.147716289e-06 | J18: 0.0001090118065 | K18: 0.0003808123126 | L18: -6.494561952e-06 | M18: 7.224261796e-06 | N18: 2.882588583e-08
A19: 6.231226667 | B19: ='DF raw data'!J24 -> 1.6804101e-05 | C19: ='DF raw data'!K24 -> -1.3855308e-06 | D19: ='DF raw data'!L24 -> 6.4328974e-06 | F19: 1.682399706e-05 | G19: -1.390437914e-06 | H19: 6.440513951e-06 | J19: 0.0001174258239 | K19: 0.0004395393156 | L19: -7.189947761e-06 | M19: 3.628425122e-06 | N19: 3.574780642e-08
A20: 6.731346667 | B20: ='DF raw data'!J25 -> 1.6586764e-05 | C20: ='DF raw data'!K25 -> 4.183189e-06 | D20: ='DF raw data'!L25 -> 4.7408262e-06 | F20: 1.660640273e-05 | G20: 4.198004538e-06 | H20: 4.746439338e-06 | J20: 0.000125731018 | K20: 0.0005024199124 | L20: -5.090441732e-06 | M20: 1.082593403e-06 | N20: 4.366680727e-08
A21: 7.231466667 | B21: ='DF raw data'!J26 -> 1.6834205e-05 | C21: ='DF raw data'!K26 -> -2.1136395e-06 | D21: ='DF raw data'!L26 -> 7.7983877e-06 | F21: 1.68541367e-05 | G21: -2.121125345e-06 | H21: 7.807620991e-06 | J21: 0.0001341601088 | K21: 0.000569516066 | L21: -6.151258939e-06 | M21: -1.993774218e-06 | N21: 5.268735808e-08
A22: 7.731586667 | B22: ='DF raw data'!J27 -> 1.4536156e-05 | C22: ='DF raw data'!K27 -> -7.8009716e-06 | D22: ='DF raw data'!L27 -> 8.3205723e-06 | F22: 1.455336681e-05 | G22: -7.828600184e-06 | H22: 8.330423858e-06 | J22: 0.0001414385387 | K22: 0.000640252308 | L22: -1.006649846e-05 | M22: -7.028231429e-06 | N22: 6.274286813e-08
A23: 8.231706667 | B23: ='DF raw data'!J28 -> 8.3431432e-06 | C23: ='DF raw data'!K28 -> -1.8602616e-06 | D23: ='DF raw data'!L28 -> 7.8248759e-06 | F23: =(1-$G$1*($B$2-$G$2))*B23 -> 8.353021482e-06 | G23: -1.866850061e-06 | H23: 7.834140553e-06 | J23: 0.0001456160518 | K23: 0.0007130778078 | L23: -1.100014752e-05 | M23: -1.252962521e-05 | N23: 7.340794602e-08
A24: 8.731826667 | B24: ='DF raw data'!J29 -> 4.4960393e-06 | C24: ='DF raw data'!K29 -> -8.0618992e-07 | D24: ='DF raw data'!L29 -> 6.5017789e-06 | F24: 4.501362611e-06 | G24: -8.090451907e-07 | H24: 6.509477006e-06 | J24: 0.0001478672732 | K24: 0.0007870291884 | L24: -1.14047672e-05 | M24: -1.823337738e-05 | N24: 8.4407985e-08
A25: 9.231946667 | B25: ='DF raw data'!J30 -> 3.4853199e-06 | C25: ='DF raw data'!K30 -> 9.6537015e-06 | D25: ='DF raw data'!L30 -> 1.5299245e-06 | F25: 3.489446519e-06 | G25: 9.68789187e-06 | H25: 1.531735931e-06 | J25: 0.0001496124152 | K25: 0.0008618533495 | L25: -6.559658715e-06 | M25: -2.151399389e-05 | N25: 9.562412818e-08
A26: 9.732066667 | B26: ='DF raw data'!J31 -> 6.1656428e-06 | C26: ='DF raw data'!K31 -> 7.3080528e-06 | D26: ='DF raw data'!L31 -> -2.7610824e-06 | F26: 6.172942921e-06 | G26: 7.333935621e-06 | H26: -2.764351522e-06 | J26: 0.0001526996274 | K26: 0.0009382214872 | L26: -2.891810832e-06 | M26: -2.296024632e-05 | N26: 1.072896966e-07
A27: 10.23218667 | B27: ='DF raw data'!J32 -> 6.7654537e-06 | C27: ='DF raw data'!K32 -> -2.4863032e-06 | D27: ='DF raw data'!L32 -> -2.1394646e-06 | F27: 6.773463997e-06 | G27: -2.495108903e-06 | H27: -2.141997726e-06 | J27: 0.0001560871723 | K27: 0.001016283804 | L27: -4.139664696e-06 | M27: -2.503057543e-05 | N27: 1.194827934e-07
A28: 10.73230667 | B28: ='DF raw data'!J33 -> 4.0319974e-06 | C28: ='DF raw data'!K33 -> -5.1441702e-06 | D28: ='DF raw data'!L33 -> -5.3864119e-07 | F28: 4.036771285e-06 | G28: -5.16238923e-06 | H28: -5.392789412e-07 | J28: 0.0001581060423 | K28: 0.001095355798 | L28: -6.721478798e-06 | M28: -2.839212141e-05 | N28: 1.320071479e-07
A29: 11.23242667 | B29: ='DF raw data'!J34 -> 4.7899192e-07 | C29: ='DF raw data'!K34 -> 2.3723121e-06 | D29: ='DF raw data'!L34 -> -2.2822262e-06 | F29: 4.795590464e-07 | G29: 2.380714082e-06 | H29: -2.284928356e-06 | J29: 0.0001583458794 | K29: 0.001174547739 | L29: -5.530836071e-06 | M29: -3.115820315e-05 | N29: 1.445621642e-07
A30: 11.73254667 | B30: ='DF raw data'!J35 -> -1.1399488e-06 | C30: ='DF raw data'!K35 -> 3.4419979e-06 | D30: ='DF raw data'!L35 -> -5.2400196e-06 | F30: -1.141298499e-06 | G30: 3.454188372e-06 | H30: -5.246223783e-06 | J30: 0.0001577750932 | K30: 0.001253454218 | L30: -3.803327383e-06 | M30: -3.306032324e-05 | N30: 1.570188758e-07
A31: 12.23266667 | B31: ='DF raw data'!J36 -> -2.2941988e-07 | C31: ='DF raw data'!K36 -> -6.4851147e-06 | D31: ='DF raw data'!L36 -> -6.4874425e-06 | F31: -2.296915131e-07 | G31: -6.508082933e-06 | H31: -6.495123632e-06 | J31: 0.0001576602199 | K31: 0.001332303248 | L31: -7.058149819e-06 | M31: -3.659024512e-05 | N31: 1.694751458e-07
A32: 12.73278667 | B32: ='DF raw data'!J37 -> -2.5437562e-06 | C32: ='DF raw data'!K37 -> 1.2777899e-05 | D32: ='DF raw data'!L37 -> -6.2559034e-06 | F32: -2.546768007e-06 | G32: 1.282315429e-05 | H32: -6.26331039e-06 | J32: 0.0001563865302 | K32: 0.001410515279 | L32: -6.450338942e-07 | M32: -3.691283947e-05 | N32: 1.817066621e-07
A33: 13.23290667 | B33: ='DF raw data'!J38 -> -3.9774004e-06 | C33: ='DF raw data'!K38 -> 3.5319288e-06 | D33: ='DF raw data'!L38 -> -5.0947333e-06 | F33: -3.982109642e-06 | G33: 3.544437779e-06 | H33: -5.100765464e-06 | J33: 0.0001543949976 | K33: 0.001487731305 | L33: 1.127610328e-06 | M33: -3.6348899e-05 | N33: 1.936290662e-07
A34: 13.73302667 | B34: ='DF raw data'!J39 -> -3.3425467e-06 | C34: ='DF raw data'!K39 -> 1.2459211e-06 | D34: ='DF raw data'!L39 -> 2.7378496e-07 | F34: -3.346504275e-06 | G34: 1.25033376e-06 | H34: 2.741091214e-07 | J34: 0.0001527213438 | K34: 0.001564110304 | L34: 1.752927248e-06 | M34: -3.547222502e-05 | N34: 2.052953062e-07
A35: 14.23314667 | B35: ='DF raw data'!J40 -> -1.6688047e-06 | C35: ='DF raw data'!K40 -> -5.8210453e-06 | D35: ='DF raw data'!L40 -> 3.7652769e-06 | F35: -1.670780565e-06 | G35: -5.841661609e-06 | H35: 3.769734988e-06 | J35: 0.0001518857531 | K35: 0.001640071407 | L35: -1.168604556e-06 | M35: -3.605666753e-05 | N35: 2.168333985e-07
A36: 14.73326667 | B36: ='DF raw data'!J41 -> 1.4717563e-06 | C36: ='DF raw data'!K41 -> -4.6585001e-06 | D36: ='DF raw data'!L41 -> 1.3910956e-06 | F36: 1.473498859e-06 | G36: -4.67499904e-06 | H36: 1.392742657e-06 | J36: 0.0001526226793 | K36: 0.001716401061 | L36: -3.506665076e-06 | M36: -3.781042087e-05 | N36: 2.284891847e-07
A37: 15.23338667 | B37: ='DF raw data'!J42 -> 3.4779775e-06 | C37: ='DF raw data'!K42 -> 3.5530109e-06 | D37: ='DF raw data'!L42 -> -5.4809484e-06 | F37: 3.482095425e-06 | G37: 3.565594545e-06 | H37: -5.487437843e-06 | J37: 0.0001543641449 | K37: 0.001793601657 | L37: -1.723439932e-06 | M37: -3.867234765e-05 | N37: 2.404076742e-07
A38: 15.73350667 | B38: ='DF raw data'!J43 -> 2.7805793e-06 | C38: ='DF raw data'!K43 -> 1.2052988e-05 | D38: ='DF raw data'!L43 -> -8.9627229e-06 | F38: 2.783871506e-06 | G38: 1.209567589e-05 | H38: -8.973334764e-06 | J38: 0.0001557564147 | K38: 0.001871498555 | L38: 4.325849493e-06 | M38: -3.65089038e-05 | N38: 2.525499745e-07
A39: 16.23362667 | B39: ='DF raw data'!J44 -> 2.2716815e-06 | C39: ='DF raw data'!K44 -> 4.1068679e-06 | D39: ='DF raw data'!L44 -> -5.0337717e-06 | F39: 2.274371171e-06 | G39: 4.121413132e-06 | H39: -5.039731686e-06 | J39: 0.0001568938732 | K39: 0.001949964319 | L39: 6.387050629e-06 | M39: -3.331461204e-05 | N39: 2.648811742e-07
A40: 16.73374667 | B40: ='DF raw data'!J45 -> -1.1298697e-06 | C40: ='DF raw data'!K45 -> -6.3233455e-07 | D40: ='DF raw data'!L45 -> -1.17277e-06 | F40: -1.131207466e-06 | G40: -6.345740798e-07 | H40: -1.17415856e-06 | J40: 0.0001563281337 | K40: 0.002028147145 | L40: 6.06968744e-06 | M40: -3.027903996e-05 | N40: 2.771217745e-07
A41: 17.23386667 | B41: ='DF raw data'!J46 -> -5.8248247e-06 | C41: ='DF raw data'!K46 -> -3.7732054e-06 | D41: ='DF raw data'!L46 -> -9.6119243e-07 | F41: -5.831721292e-06 | G41: -3.786568905e-06 | H41: -9.623304818e-07 | J41: 0.0001534115733 | K41: 0.002104871341 | L41: 4.175948599e-06 | M41: -2.819056454e-05 | N41: 2.889008755e-07
A42: 17.73398667 | B42: ='DF raw data'!J47 -> -5.9617278e-06 | C42: ='DF raw data'!K47 -> -1.3304744e-07 | D42: ='DF raw data'!L47 -> -1.5541248e-06 | F42: -5.968786486e-06 | G42: -1.335186521e-07 | H42: -1.555964884e-06 | J42: 0.0001504264638 | K42: 0.002180102624 | L42: 4.109173251e-06 | M42: -2.613548482e-05 | N42: 3.00226096e-07
A43: 18.23410667 | B43: ='DF raw data'!J48 -> -6.2079003e-08 | C43: ='DF raw data'!K48 -> 4.4054768e-06 | D43: ='DF raw data'!L48 -> 1.3698643e-06 | F43: -6.215250454e-08 | G43: 4.421079611e-06 | H43: 1.371486219e-06 | J43: 0.0001503953801 | K43: 0.002255318362 | L43: 6.320243586e-06 | M43: -2.29746046e-05 | N43: 3.11558173e-07
A44: 18.73422667 | B44: ='DF raw data'!J49 -> 2.5555671e-06 | C44: ='DF raw data'!K49 -> -1.8032908e-06 | D44: ='DF raw data'!L49 -> 2.853021e-06 | F44: 2.558592891e-06 | G44: -1.809677488e-06 | H44: 2.856398977e-06 | J44: 0.0001516749835 | K44: 0.002331174055 | L44: 5.415187681e-06 | M44: -2.026636093e-05 | N44: 3.230782496e-07
A45: 19.23434667 | B45: ='DF raw data'!J50 -> 1.447593e-06 | C45: ='DF raw data'!K50 -> -5.03303e-06 | D45: ='DF raw data'!L50 -> 3.0984063e-06 | F45: 1.44930695e-06 | G45: -5.050855407e-06 | H45: 3.102074813e-06 | J45: 0.0001523998109 | K45: 0.002407392248 | L45: 2.889153875e-06 | M45: -1.88214373e-05 | N45: 3.346980625e-07
A46: 19.73446667 | B46: ='DF raw data'!J51 -> -7.4686142e-07 | C46: ='DF raw data'!K51 -> -1.1939085e-05 | D46: ='DF raw data'!L51 -> 1.4002123e-06 | F46: -7.477457039e-07 | G46: -1.198136948e-05 | H46: 1.401870151e-06 | J46: 0.0001520258484 | K46: 0.002483423415 | L46: -3.102968629e-06 | M46: -2.037329397e-05 | N46: 3.462615805e-07
A47: 20.23458667 | B47: ='DF raw data'!J52 -> -1.1971531e-06 | C47: ='DF raw data'!K52 -> -6.4314763e-06 | D47: ='DF raw data'!L52 -> -6.3175162e-07 | F47: -1.198570529e-06 | G47: -6.454254563e-06 | H47: -6.324996139e-07 | J47: 0.0001514264193 | K47: 0.002559154796 | L47: -6.330870421e-06 | M47: -2.353948888e-05 | N47: 3.577493571e-07
A48: 20.73470667 | B48: ='DF raw data'!J53 -> -3.4188413e-06 | C48: ='DF raw data'!K53 -> 1.285415e-06 | D48: ='DF raw data'!L53 -> -1.7555815e-06 | F48: -3.422889208e-06 | G48: 1.289967535e-06 | H48: -1.757660108e-06 | J48: 0.0001497145639 | K48: 0.002634030044 | L48: -5.685731857e-06 | M48: -2.63830371e-05 | N48: 3.689754398e-07
A49: 21.23482667 | B49: ='DF raw data'!J54 -> -6.0345515e-06 | C49: ='DF raw data'!K54 -> -9.0521235e-06 | D49: ='DF raw data'!L54 -> -3.6567674e-06 | F49: -6.041696409e-06 | G49: -9.08418327e-06 | H49: -3.661097013e-06 | J49: 0.0001466929907 | K49: 0.002707394142 | L49: -1.022891359e-05 | M49: -3.149872137e-05 | N49: 3.797897667e-07
A50: 21.73494667 | B50: ='DF raw data'!J55 -> -5.2071923e-06 | C50: ='DF raw data'!K55 -> -9.3767476e-06 | D50: ='DF raw data'!L55 -> -3.1600741e-06 | F50: -5.213357616e-06 | G50: -9.409957086e-06 | H50: -3.163815628e-06 | J50: 0.0001440856863 | K50: 0.002779454276 | L50: -1.493502133e-05 | M50: -3.896802423e-05 | N50: 3.902841547e-07
A51: 22.23506667 | B51: ='DF raw data'!J56 -> -3.0778851e-06 | C51: ='DF raw data'!K56 -> 6.0880558e-07 | D51: ='DF raw data'!L56 -> -1.5699645e-06 | F51: -3.081529316e-06 | G51: 6.109617776e-07 | H51: -1.571823338e-06 | J51: 0.0001425445519 | K51: 0.002850743657 | L51: -1.462946713e-05 | M51: -4.628451333e-05 | N51: 4.00553104e-07
A52: 22.73518667 | B52: ='DF raw data'!J57 -> 1.2466772e-06 | C52: ='DF raw data'!K57 -> 9.2876581e-07 | D52: ='DF raw data'!L57 -> 1.0305027e-06 | F52: 1.248153266e-06 | G52: 9.320552059e-07 | H52: 1.031722815e-06 | J52: 0.0001431687783 | K52: 0.002922345227 | L52: -1.416332768e-05 | M52: -5.336787677e-05 | N52: 4.109045372e-07
A53: 23.23530667 | B53: ='DF raw data'!J58 -> 4.0693772e-06 | C53: ='DF raw data'!K58 -> -2.4932408e-06 | D53: ='DF raw data'!L58 -> 1.6443316e-06 | F53: 4.074195343e-06 | G53: -2.502071074e-06 | H53: 1.646278489e-06 | J53: 0.0001452063648 | K53: 0.002994965834 | L53: -1.541466346e-05 | M53: -6.107705826e-05 | N53: 4.21568346e-07
A54: 23.73542667 | B54: ='DF raw data'!J59 -> 2.1491298e-06 | C54: ='DF raw data'!K59 -> 9.0719595e-06 | D54: ='DF raw data'!L59 -> 6.7871638e-06 | F54: 2.15167437e-06 | G54: 9.104089523e-06 | H54: 6.795199802e-06 | J54: 0.0001462824602 | K54: 0.003068124618 | L54: -1.086152621e-05 | M54: -6.650912475e-05 | N54: 4.323291934e-07
A55: 24.23554667 | B55: ='DF raw data'!J60 -> 1.3104897e-06 | C55: ='DF raw data'!K60 -> 2.4150111e-06 | D55: ='DF raw data'!L60 -> 8.7180324e-06 | F55: 1.31204132e-06 | G55: 2.423564309e-06 | H55: 8.72835455e-06 | J55: 0.0001469386383 | K55: 0.00314161157 | L55: -9.64945323e-06 | M55: -7.13350093e-05 | N55: 4.431738332e-07
A56: 24.73566667 | B56: ='DF raw data'!J61 -> 4.3529285e-06 | C56: ='DF raw data'!K61 -> -1.3137261e-05 | D56: ='DF raw data'!L61 -> 1.2154576e-06 | F56: 4.358082367e-06 | G56: -1.318378904e-05 | H56: 1.216896702e-06 | J56: 0.0001491182025 | K56: 0.003216188565 | L56: -1.62429298e-05 | M56: -7.945842336e-05 | N56: 4.544265688e-07
A57: 25.23578667 | B57: ='DF raw data'!J62 -> 7.9113406e-06 | C57: ='DF raw data'!K62 -> -1.0672195e-05 | D57: ='DF raw data'!L62 -> -6.6462403e-06 | F57: 7.920707627e-06 | G57: -1.070999255e-05 | H57: -6.654109449e-06 | J57: 0.0001530795068 | K57: 0.003292746688 | L57: -2.159921128e-05 | M57: -9.02606209e-05 | N57: 4.663793674e-07
A58: 25.73590667 | B58: ='DF raw data'!J63 -> 7.7483392e-06 | C58: ='DF raw data'!K63 -> -8.4567682e-06 | D58: ='DF raw data'!L63 -> -1.0060334e-05 | F58: 7.757513234e-06 | G58: -8.486719409e-06 | H58: -1.007224544e-05 | J58: 0.0001569591943 | K58: 0.00337124512 | L58: -2.584358939e-05 | M58: -0.0001031855168 | N58: 4.790344438e-07
A59: 26.23602667 | B59: ='DF raw data'!J64 -> 4.249534e-06 | C59: ='DF raw data'!K64 -> 1.1241034e-06 | D59: ='DF raw data'!L64 -> -1.0007023e-05 | F59: 4.254565448e-06 | G59: 1.12808462e-06 | H59: -1.001887132e-05 | J59: 0.0001590869876 | K59: 0.003450807704 | L59: -2.527941171e-05 | M59: -0.0001158282562 | N59: 4.920114167e-07
A60: 26.73614667 | B60: ='DF raw data'!J65 -> 4.5770066e-06 | C60: ='DF raw data'!K65 -> -1.736443e-06 | D60: ='DF raw data'!L65 -> -9.6488275e-06 | F60: 4.582425776e-06 | G60: -1.742592934e-06 | H60: -9.660251712e-06 | J60: 0.0001613787504 | K60: 0.003531516445 | L60: -2.615091729e-05 | M60: -0.000128906853 | N60: 5.053781097e-07
A61: 27.23626667 | B61: ='DF raw data'!J66 -> 3.7502484e-06 | C61: ='DF raw data'!K66 -> 6.6826757e-08 | D61: ='DF raw data'!L66 -> -7.4530094e-06 | F61: 3.754688694e-06 | G61: 6.706343632e-08 | H61: -7.461833763e-06 | J61: 0.0001632565453 | K61: 0.003613164308 | L61: -2.611737752e-05 | M61: -0.0001419686758 | N61: 5.190487983e-07
A62: 27.73638667 | B62: ='DF raw data'!J67 -> 2.5077557e-07 | C62: ='DF raw data'!K67 -> -2.688713e-06 | D62: ='DF raw data'!L67 -> -2.2441548e-06 | F62: 2.510724883e-07 | G62: -2.698235574e-06 | H62: -2.246811879e-06 | J62: 0.0001633821116 | K62: 0.00369487497 | L62: -2.74668191e-05 | M62: -0.0001557053814 | N62: 5.327761624e-07
A63: 28.23650667 | B63: ='DF raw data'!J68 -> 7.2816755e-07 | C63: ='DF raw data'!K68 -> -5.4382426e-06 | D63: ='DF raw data'!L68 -> -8.6738744e-08 | F63: 7.290297004e-07 | G63: -5.457503142e-06 | H63: -8.684144267e-08 | J63: 0.000163746714 | K63: 0.003776767977 | L63: -3.019622557e-05 | M63: -0.0001708071177 | N63: 5.466418885e-07
A64: 28.73662667 | B64: ='DF raw data'!J69 -> 2.1763633e-06 | C64: ='DF raw data'!K69 -> 3.1372517e-06 | D64: ='DF raw data'!L69 -> -1.622275e-06 | F64: 2.178940114e-06 | G64: 3.148362857e-06 | H64: -1.624195774e-06 | J64: 0.0001648364455 | K64: 0.00385920598 | L64: -2.862166634e-05 | M64: -0.0001851213855 | N64: 5.606403742e-07
A65: 29.23674667 | B65: ='DF raw data'!J70 -> 1.1665112e-06 | C65: ='DF raw data'!K70 -> 3.3337899e-06 | D65: ='DF raw data'!L70 -> -9.8901205e-07 | F65: 1.167892349e-06 | G65: 3.345597134e-06 | H65: -9.901830403e-07 | J65: 0.0001654205318 | K65: 0.003941936096 | L65: -2.69484663e-05 | M65: -0.0001985988524 | N65: 5.746888311e-07
A66: 29.73686667 | B66: ='DF raw data'!J71 -> 5.1463616e-07 | C66: ='DF raw data'!K71 -> -8.4243466e-06 | D66: ='DF raw data'!L71 -> 2.3121372e-06 | F66: 5.152454892e-07 | G66: -8.454182982e-06 | H66: 2.31487477e-06 | J66: 0.0001656782164 | K66: 0.004024795086 | L66: -3.117657229e-05 | M66: -0.0002141908798 | N66: 5.889028666e-07
A67: 30.23698667 | B67: ='DF raw data'!J72 -> -2.9592047e-06 | C67: ='DF raw data'!K72 -> -4.6757077e-06 | D67: ='DF raw data'!L72 -> 4.6599648e-06 | F67: -2.962708398e-06 | G67: -4.692267584e-06 | H67: 4.665482198e-06 | J67: 0.0001641965067 | K67: 0.004106913043 | L67: -3.352326916e-05 | M67: -0.0002309565372 | N67: 6.029483879e-07
A68: 30.73710667 | B68: ='DF raw data'!J73 -> -5.155061e-06 | C68: ='DF raw data'!K73 -> -7.7349277e-06 | D68: ='DF raw data'!L73 -> 3.1850593e-06 | F68: -5.161164592e-06 | G68: -7.762322377e-06 | H68: 3.18883041e-06 | J68: 0.000161615305 | K68: 0.004187740089 | L68: -3.740536182e-05 | M68: -0.0002496637067 | N68: 6.167110241e-07
A69: 31.23722667 | B69: ='DF raw data'!J74 -> -2.2510599e-06 | C69: ='DF raw data'!K74 -> -1.016869e-06 | D69: ='DF raw data'!L74 -> -3.5074866e-06 | F69: -2.253725155e-06 | G69: -1.02047043e-06 | H69: -3.511639464e-06 | J69: 0.000160488172 | K69: 0.004268003434 | L69: -3.79157195e-05 | M69: -0.0002686261163 | N69: 6.30311315e-07
A70: 31.73734667 | B70: ='DF raw data'!J75 -> 1.7207815e-07 | C70: ='DF raw data'!K75 -> 1.297424e-06 | D70: ='DF raw data'!L75 -> -2.0314494e-06 | F70: 1.722818905e-07 | G70: 1.302019067e-06 | H70: -2.033854636e-06 | J70: 0.0001605743336 | K70: 0.004348309869 | L70: -3.726455372e-05 | M70: -0.0002872628649 | N70: 6.439009575e-07
A71: 32.23746667 | B71: ='DF raw data'!J76 -> -2.6667087e-06 | C71: ='DF raw data'!K76 -> 6.568197e-06 | D71: ='DF raw data'!L76 -> 4.3026353e-06 | F71: -2.669866083e-06 | G71: =(1-$G$1*($B$2-$G$2))*C71*$M$2/$M$1 -> 6.591459485e-06 | H71: 4.30772962e-06 | J71: 0.0001592390802 | K71: 0.004427948518 | L71: -3.3968033e-05 | M71: -0.0003042509576 | N71: 6.571595948e-07
A72: =A71+$B$1 -> 32.73758667 | B72: ='DF raw data'!J77 -> -3.1170671e-06 | C72: ='DF raw data'!K77 -> 4.5830684e-06 | D72: ='DF raw data'!L77 -> 4.4971725e-06 | F72: -3.120757707e-06 | G72: 4.599300185e-06 | H72: 4.502497152e-06 | J72: =F72*$B$1+J71 -> 0.0001576783269 | K72: =J72*$B$1+K71 -> 0.004506806603 | L72: =G72*$B$1+L71 -> -3.166783099e-05 | M72: =L72*$B$1+M71 -> -0.0003200886732 | N72: =(J72^2+L72^2)*$B$1+N71 -> 6.700953518e-07
A73: 33.23770667 | B73: ='DF raw data'!J78 -> 5.1784008e-07 | C73: ='DF raw data'!K78 -> 7.3678284e-06 | D73: ='DF raw data'!L78 -> 2.6490322e-06 | F73: 5.184532027e-07 | G73: 7.393922927e-06 | H73: 2.652168654e-06 | J73: 0.0001579376157 | K73: 0.004585794363 | L73: -2.796998226e-05 | M73: -0.0003340770208 | N73: 6.829617441e-07
A74: 33.73782667 | B74: ='DF raw data'!J79 -> 4.1120966e-06 | C74: ='DF raw data'!K79 -> -5.2172936e-06 | D74: ='DF raw data'!L79 -> -2.1798644e-06 | F74: 4.116965322e-06 | G74: -5.23577161e-06 | H74: -2.182445359e-06 | J74: 0.0001599965924 | K74: 0.004665811859 | L74: -3.058849636e-05 | M74: -0.0003493749396 | N74: 6.962322111e-07
A75: 34.23794667 | B75: ='DF raw data'!J80 -> 4.6191253e-06 | C75: ='DF raw data'!K80 -> -8.0950513e-06 | D75: ='DF raw data'!L80 -> -5.190172e-06 | F75: 4.624594344e-06 | G75: -8.123721422e-06 | H75: -5.196317164e-06 | J75: 0.0001623094445 | K75: 0.004746986058 | L75: -3.465133191e-05 | M75: -0.0003667047637 | N75: 7.100080518e-07
A76: 34.73806667 | B76: ='DF raw data'!J81 -> 2.5407487e-06 | C76: ='DF raw data'!K81 -> -1.0389859e-05 | D76: ='DF raw data'!L81 -> -4.4415051e-06 | F76: 2.543756946e-06 | G76: -1.042665661e-05 | H76: -4.446763842e-06 | J76: 0.0001635816282 | K76: 0.004828796502 | L76: -3.986591142e-05 | M76: -0.0003866425033 | N76: 7.241855736e-07
A77: 35.23818667 | B77: ='DF raw data'!J82 -> 3.4916425e-07 | C77: ='DF raw data'!K82 -> -9.0942804e-06 | D77: ='DF raw data'!L82 -> -2.9671994e-06 | F77: 3.495776605e-07 | G77: -9.126489476e-06 | H77: -2.970712564e-06 | J77: 0.000163756459 | K77: 0.004910694383 | L77: -4.443025133e-05 | M77: -0.0004088629606 | N77: 7.38584141e-07
A78: 35.73830667 | B78: ='DF raw data'!J83 -> 2.2708807e-06 | C78: ='DF raw data'!K83 -> -6.2256031e-06 | D78: ='DF raw data'!L83 -> -2.7817789e-06 | F78: 2.273569423e-06 | G78: -6.247652225e-06 | H78: -2.785072526e-06 | J78: 0.0001648935165 | K78: 0.004993160928 | L78: -4.755482716e-05 | M78: -0.0004326460808 | N78: 7.533133418e-07
A79: 36.23842667 | B79: ='DF raw data'!J84 -> 6.6714038e-06 | C79: ='DF raw data'!K84 -> -6.0754928e-06 | D79: ='DF raw data'!L84 -> -6.8819777e-06 | F79: 6.679302742e-06 | G79: -6.097010282e-06 | H79: -6.890125962e-06 | J79: 0.0001682339694 | K79: 0.005077298101 | L79: -5.060406395e-05 | M79: -0.0004579541852 | N79: 7.687487653e-07
A80: 36.73854667 | B80: ='DF raw data'!J85 -> 6.5364366e-06 | C80: ='DF raw data'!K85 -> -9.9207346e-06 | D80: ='DF raw data'!L85 -> -5.6468657e-06 | F80: 6.544175741e-06 | G80: -9.955870717e-06 | H80: -5.653551589e-06 | J80: 0.0001715068426 | K80: 0.005163072103 | L80: -5.558319401e-05 | M80: -0.0004857524522 | N80: 7.850047101e-07
A81: 37.23866667 | B81: ='DF raw data'!J86 -> 2.5462889e-06 | C81: ='DF raw data'!K86 -> -7.7015675e-06 | D81: ='DF raw data'!L86 -> -1.1927352e-06 | F81: 2.549303706e-06 | G81: -7.728844026e-06 | H81: -1.194147398e-06 | J81: 0.0001727818004 | K81: 0.005249483737 | L81: -5.944854348e-05 | M81: -0.0005154838578 | N81: 8.017025565e-07
A82: 37.73878667 | B82: ='DF raw data'!J87 -> -1.2444785e-06 | C82: ='DF raw data'!K87 -> 3.7490901e-07 | D82: ='DF raw data'!L87 -> -3.8856365e-07 | F82: -1.245951963e-06 | G82: 3.762368196e-07 | H82: -3.890237094e-07 | J82: 0.0001721586749 | K82: 0.005335583734 | L82: -5.926037993e-05 | M82: -0.000545121159 | N82: 8.182817356e-07
A83: 38.23890667 | B83: ='DF raw data'!J88 -> -6.48491e-06 | C83: ='DF raw data'!K88 -> 9.4131328e-06 | D83: ='DF raw data'!L88 -> -1.9001366e-06 | F83: -6.492588133e-06 | G83: 9.446471151e-06 | H83: -1.902386362e-06 | J83: 0.0001689116017 | K83: 0.005420059804 | L83: -5.453601077e-05 | M83: -0.0005723957087 | N83: 8.34038169e-07
A84: 38.73902667 | B84: ='DF raw data'!J89 -> -7.4048507e-06 | C84: ='DF raw data'!K89 -> 3.3209806e-06 | D84: ='DF raw data'!L89 -> -4.6176087e-06 | F84: -7.413618043e-06 | G84: 3.332742467e-06 | H84: -4.623075949e-06 | J84: 0.000165203903 | K84: 0.00550268158 | L84: -5.286923961e-05 | M84: -0.0005988366728 | N84: 8.490855226e-07
A85: 39.23914667 | B85: ='DF raw data'!J90 -> -3.7009911e-06 | C85: ='DF raw data'!K90 -> 6.488809e-06 | D85: ='DF raw data'!L90 -> -2.3791274e-06 | F85: -3.705373073e-06 | G85: 6.511790317e-06 | H85: -2.381944287e-06 | J85: 0.0001633507719 | K85: 0.005584376568 | L85: -4.961256304e-05 | M85: -0.0006236489078 | N85: 8.636614605e-07
A86: 39.73926667 | B86: ='DF raw data'!J91 -> -1.7047158e-06 | C86: ='DF raw data'!K91 -> 1.012737e-05 | D86: ='DF raw data'!L91 -> -4.8333663e-07 | F86: -1.706734184e-06 | G86: 1.016323795e-05 | H86: -4.839089006e-07 | J86: 0.0001624972 | K86: 0.005665644667 | L86: -4.452972447e-05 | M86: -0.0006459191136 | N86: 8.778589852e-07
A87: 40.23938667 | B87: ='DF raw data'!J92 -> -1.9022941e-06 | C87: ='DF raw data'!K92 -> 2.5467023e-06 | D87: ='DF raw data'!L92 -> 3.9915626e-06 | F87: =(1-$G$1*($B$2-$G$2))*B87 -> -1.904546416e-06 | G87: 2.555721917e-06 | H87: 3.99628861e-06 | J87: 0.0001615446982 | K87: 0.005746436402 | L87: -4.325155683e-05 | M87: -0.0006675500822 | N87: 8.918460347e-07
A88: 40.73950667 | B88: ='DF raw data'!J93 -> 6.4012505e-07 | C88: ='DF raw data'!K93 -> -4.2197889e-06 | D88: ='DF raw data'!L93 -> 1.3555646e-05 | F88: 6.408829581e-07 | G88: -4.234734063e-06 | H88: 1.357169588e-05 | J88: 0.0001618652166 | K88: 0.005827388434 | L88: -4.536943203e-05 | M88: -0.0006902402426 | N88: 9.059787926e-07
A89: 41.23962667 | B89: ='DF raw data'!J94 -> 5.3117174e-06 | C89: ='DF raw data'!K94 -> 4.1560344e-07 | D89: ='DF raw data'!L94 -> 1.5684978e-05 | F89: 5.318006473e-06 | G89: 4.170753765e-07 | H89: 1.570354901e-05 | J89: 0.000164524858 | K89: 0.005909670606 | L89: -4.516084429e-05 | M89: -0.000712826084 | N89: 9.205362509e-07
A90: 41.73974667 | B90: ='DF raw data'!J95 -> 7.9176152e-06 | C90: ='DF raw data'!K95 -> -3.0436712e-07 | D90: ='DF raw data'!L95 -> 9.341109e-06 | F90: 7.926989656e-06 | G90: -3.054450925e-07 | H90: 9.352168873e-06 | J90: 0.0001684893041 | K90: 0.005993935477 | L90: -4.531360349e-05 | M90: -0.0007354883234 | N90: 9.357608881e-07
A91: 42.23986667 | B91: ='DF raw data'!J96 -> 6.8401459e-06 | C91: ='DF raw data'!K96 -> 7.6544967e-07 | D91: ='DF raw data'!L96 -> 1.9751731e-06 | F91: 6.848244633e-06 | G91: 7.681606516e-07 | H91: 1.977511705e-06 | J91: 0.0001719142482 | K91: 0.00607991323 | L91: -4.492943098e-05 | M91: -0.0007579584304 | N91: 9.515512581e-07
A92: 42.73998667 | B92: ='DF raw data'!J97 -> 2.2788065e-07 | C92: ='DF raw data'!K97 -> 5.1357247e-06 | D92: ='DF raw data'!L97 -> 9.8617761e-07 | F92: 2.281504607e-07 | G92: 5.153913819e-06 | H92: 9.873452443e-07 | J92: 0.0001720283508 | K92: 0.006165948049 | L92: -4.23518556e-05 | M92: -0.0007791394405 | N92: 9.672487411e-07
A93: 43.24010667 | B93: ='DF raw data'!J98 -> -2.3062616e-06 | C93: ='DF raw data'!K98 -> 2.5024062e-06 | D93: ='DF raw data'!L98 -> 1.2005491e-06 | F93: -2.308992214e-06 | G93: 2.511268934e-06 | H93: 1.20197055e-06 | J93: 0.0001708735776 | K93: 0.006251405343 | L93: -4.109591978e-05 | M93: -0.0007996923319 | N93: 9.826957746e-07
A94: 43.74022667 | B94: ='DF raw data'!J99 -> -1.4827071e-06 | C94: ='DF raw data'!K99 -> -6.5793165e-06 | D94: ='DF raw data'!L99 -> -3.8204075e-07 | F94: -1.484462625e-06 | G94: -6.602618367e-06 | H94: -3.824930862e-07 | J94: 0.0001701311681 | K94: 0.006336491343 | L94: -4.439802128e-05 | M94: -0.0008218966703 | N94: 9.981573838e-07
A95: 44.24034667 | B95: ='DF raw data'!J100 -> -3.9029082e-06 | C95: ='DF raw data'!K100 -> -6.6204111e-06 | D95: ='DF raw data'!L100 -> -6.9442053e-06 | F95: -3.907529243e-06 | G95: -6.643858511e-06 | H95: -6.952427239e-06 | J95: 0.0001681769346 | K95: 0.006420599991 | L95: -4.77207478e-05 | M95: -0.0008457627707 | N95: 1.013441427e-06
A96: 44.74046667 | B96: ='DF raw data'!J101 -> -5.1597335e-06 | C96: ='DF raw data'!K101 -> -1.8935607e-07 | D96: ='DF raw data'!L101 -> -7.9566253e-06 | F96: -5.165842624e-06 | G96: -1.900267096e-07 | H96: -7.966045944e-06 | J96: 0.0001655933934 | K96: 0.006503416559 | L96: -4.781578396e-05 | M96: -0.0008696764005 | N96: 1.028298752e-06
A97: 45.24058667 | B97: ='DF raw data'!J102 -> -5.1690955e-07 | C97: ='DF raw data'!K102 -> 1.1126292e-06 | D97: ='DF raw data'!L102 -> 3.4122729e-06 | F97: -5.175215709e-07 | G97: 1.116569782e-06 | H97: 3.416313031e-06 | J97: 0.0001653345705 | K97: 0.006586103685 | L97: -4.725736508e-05 | M97: -0.000893310754 | N97: 1.04308669e-06
A98: 45.74070667 | B98: ='DF raw data'!J103 -> 7.789924e-06 | C98: ='DF raw data'!K103 -> -1.698015e-06 | D98: ='DF raw data'!L103 -> 1.0184884e-05 | F98: 7.79914727e-06 | G98: -1.704028834e-06 | H98: 1.01969429e-05 | J98: 0.00016923508 | K98: 0.006670741533 | L98: -4.810958398e-05 | M98: -0.0009173713191 | N98: 1.058567927e-06
A99: 46.24082667 | B99: ='DF raw data'!J104 -> 1.2743332e-05 | C99: ='DF raw data'!K104 -> 4.1733875e-07 | D99: ='DF raw data'!L104 -> 7.4785289e-06 | F99: 1.275842011e-05 | G99: 4.188168324e-07 | H99: 7.487383478e-06 | J99: 0.0001756158211 | K99: 0.006758570517 | L99: -4.790012531e-05 | M99: -0.0009413271298 | N99: 1.075139572e-06
A100: 46.74094667 | B100: ='DF raw data'!J105 -> 8.4017493e-06 | C100: ='DF raw data'!K105 -> -9.0877465e-06 | D100: ='DF raw data'!L105 -> 4.3822997e-06 | F100: 8.411696971e-06 | G100: -9.119932435e-06 | H100: 4.387488343e-06 | J100: 0.000179822679 | K100: 0.006848503435 | L100: -5.246118591e-05 | M100: -0.0009675640181 | N100: 1.092687969e-06
A101: 47.24106667 | B101: ='DF raw data'!J106 -> 5.8565746e-07 | C101: ='DF raw data'!K106 -> -2.3398018e-06 | D101: ='DF raw data'!L106 -> 1.1416503e-06 | F101: 5.863508784e-07 | G101: -2.348088641e-06 | H101: 1.143002014e-06 | J101: 0.0001801159248 | K101: 0.006938583012 | L101: -5.363551201e-05 | M101: -0.0009943882103 | N101: 1.110351464e-06
A102: 47.74118667 | B102: ='DF raw data'!J107 -> -1.5205541e-06 | C102: ='DF raw data'!K107 -> -1.1860568e-06 | D102: ='DF raw data'!L107 -> -6.0306616e-07 | F102: -1.522354436e-06 | G102: -1.19025744e-06 | H102: -6.037801903e-07 | J102: 0.0001793545649 | K102: 0.007028281817 | L102: -5.423078356e-05 | M102: -0.00102151011 | N102: 1.127910196e-06
A103: 48.24130667 | B103: ='DF raw data'!J108 -> 7.256312e-07 | C103: ='DF raw data'!K108 -> 4.1718458e-06 | D103: ='DF raw data'!L108 -> -1.5322645e-07 | F103: 7.264903473e-07 | G103: 4.186621164e-06 | H103: -1.534078701e-07 | J103: 0.0001797178972 | K103: 0.007118162332 | L103: -5.213697058e-05 | M103: -0.001047584852 | N103: 1.145422791e-06
A104: 48.74142667 | B104: ='DF raw data'!J109 -> 3.0064596e-06 | C104: ='DF raw data'!K109 -> 1.4462284e-05 | D104: ='DF raw data'!L109 -> 3.8000303e-07 | F104: 3.010019248e-06 | G104: 1.451350485e-05 | H104: 3.804529536e-07 | J104: 0.0001812232681 | K104: 0.007208795712 | L104: -4.487847653e-05 | M104: -0.001070029475 | N104: 1.162854949e-06
A105: 49.24154667 | B105: ='DF raw data'!J110 -> 2.3905625e-06 | C105: ='DF raw data'!K110 -> 1.1479254e-05 | D105: ='DF raw data'!L110 -> 4.9268215e-07 | F105: 2.393392926e-06 | G105: 1.15199099e-05 | H105: 4.932654857e-07 | J105: 0.0001824202517 | K105: 0.007300027729 | L105: -3.911713919e-05 | M105: -0.001089592739 | N105: 1.180262776e-06
A106: 49.74166667 | B106: ='DF raw data'!J111 -> -2.9216249e-06 | C106: ='DF raw data'!K111 -> 4.3136797e-06 | D106: ='DF raw data'!L111 -> 1.0898709e-06 | F106: -2.925084104e-06 | G106: 4.328957395e-06 | H106: 1.091161307e-06 | J106: 0.0001809573587 | K106: 0.007390528123 | L106: -3.695214102e-05 | M106: -0.001108073244 | N106: 1.197322382e-06
A107: 50.24178667 | B107: ='DF raw data'!J112 -> -6.86665e-06 | C107: ='DF raw data'!K112 -> 7.4908467e-06 | D107: ='DF raw data'!L112 -> 3.5262799e-06 | F107: -6.874780114e-06 | G107: 7.517376919e-06 | H107: 3.530455015e-06 | J107: 0.0001775191436 | K107: 0.007479308997 | L107: -3.319255048e-05 | M107: -0.001124673502 | N107: 1.213633692e-06
A108: 50.74190667 | B108: ='DF raw data'!J113 -> -7.132046e-06 | C108: ='DF raw data'!K113 -> 1.6951715e-06 | D108: ='DF raw data'!L113 -> 3.1802681e-06 | F108: -7.140490342e-06 | G108: 1.701175263e-06 | H108: 3.184033537e-06 | J108: 0.0001739480416 | K108: 0.007566303892 | L108: -3.23417587e-05 | M108: -0.001140848262 | N108: 1.229289404e-06
A109: 51.24202667 | B109: ='DF raw data'!J114 -> -6.2729805e-06 | C109: ='DF raw data'!K114 -> 5.1936304e-06 | D109: ='DF raw data'!L114 -> 1.1208192e-06 | F109: -6.280407709e-06 | G109: 5.212024603e-06 | H109: 1.12214625e-06 | J109: 0.0001708070841 | K109: 0.00765172793 | L109: -2.973512096e-05 | M109: -0.001155719391 | N109: 1.244322629e-06
A110: 51.74214667 | B110: ='DF raw data'!J115 -> -4.9631562e-06 | C110: ='DF raw data'!K115 -> 1.6065544e-05 | D110: ='DF raw data'!L115 -> 3.5930657e-07 | F110: -4.969032577e-06 | G110: 1.61224431e-05 | H110: 3.59731989e-07 | J110: 0.0001683219715 | K110: 0.007735909115 | L110: -2.167196472e-05 | M110: -0.001166557974 | N110: 1.258727066e-06
A111: 52.24226667 | B111: ='DF raw data'!J116 -> -3.3444824e-06 | C111: ='DF raw data'!K116 -> 3.4636148e-06 | D111: ='DF raw data'!L116 -> 9.8444957e-07 | F111: -3.348442267e-06 | G111: 3.475881833e-06 | H111: 9.856151583e-07 | J111: 0.0001666473486 | K111: 0.007819252787 | L111: -1.993360669e-05 | M111: -0.001176527169 | N111: 1.27281479e-06
A112: 52.74238667 | B112: ='DF raw data'!J117 -> -3.1138811e-07 | C112: ='DF raw data'!K117 -> 5.6717008e-06 | D112: ='DF raw data'!L117 -> 1.6370335e-07 | F112: -3.117567935e-07 | G112: 5.691788178e-06 | H112: 1.638971748e-07 | J112: 0.0001664914328 | K112: 0.007902518482 | L112: -1.708702959e-05 | M112: -0.001185072735 | N112: 1.286823833e-06
A113: 53.24250667 | B113: ='DF raw data'!J118 -> 1.4456572e-06 | C113: ='DF raw data'!K118 -> 1.6133992e-05 | D113: ='DF raw data'!L118 -> -4.4756475e-06 | F113: 1.447368858e-06 | G113: 1.619113352e-05 | H113: -4.480946667e-06 | J113: 0.0001672152909 | K113: 0.007986146194 | L113: -8.989519897e-06 | M113: -0.001189568573 | N113: 1.30084808e-06
A114: 53.74262667 | B114: ='DF raw data'!J119 -> -1.5991181e-06 | C114: ='DF raw data'!K119 -> 2.2348838e-06 | D114: ='DF raw data'!L119 -> -4.7723465e-06 | F114: -1.601011456e-06 | G114: 2.242799054e-06 | H114: -4.777996958e-06 | J114: 0.0001664145931 | K114: 0.00806937346 | L114: -7.867851234e-06 | M114: -0.001193503443 | N114: 1.314729271e-06
A115: 54.24274667 | B115: ='DF raw data'!J120 -> -6.2647036e-06 | C115: ='DF raw data'!K120 -> -1.1755353e-05 | D115: ='DF raw data'!L120 -> -1.1950635e-06 | F115: -6.272121009e-06 | G115: -1.179698676e-05 | H115: -1.196478455e-06 | J115: 0.0001632777799 | K115: 0.008151031943 | L115: -1.376776025e-05 | M115: -0.001200388975 | N115: 1.328157085e-06
A116: 54.74286667 | B116: ='DF raw data'!J121 -> -7.1940558e-06 | C116: ='DF raw data'!K121 -> 2.6609166e-06 | D116: ='DF raw data'!L121 -> -4.9831056e-07 | F116: -7.202573562e-06 | G116: 2.670340728e-06 | H116: -4.989005597e-07 | J116: 0.0001596756288 | K116: 0.008230888919 | L116: -1.243226945e-05 | M116: -0.001206606602 | N116: 1.340985597e-06
A117: 55.24298667 | B117: ='DF raw data'!J122 -> -4.1069611e-06 | C117: ='DF raw data'!K122 -> -6.3306097e-06 | D117: ='DF raw data'!L122 -> -8.9237642e-07 | F117: -4.111823742e-06 | G117: -6.353030725e-06 | H117: -8.934329937e-07 | J117: 0.0001576192235 | K117: 0.008309717445 | L117: -1.560954717e-05 | M117: -0.001214413249 | N117: 1.353532346e-06
A118: 55.74310667 | B118: ='DF raw data'!J123 -> -1.626085e-06 | C118: ='DF raw data'!K123 -> -8.9564519e-06 | D118: ='DF raw data'!L123 -> 5.1759105e-08 | F118: -1.628010285e-06 | G118: -8.988172831e-06 | H118: 5.182038778e-08 | J118: 0.000156805023 | K118: 0.008388138773 | L118: -2.010471217e-05 | M118: -0.001224468017 | N118: 1.366031353e-06
A119: 56.24322667 | B119: ='DF raw data'!J124 -> -9.4437297e-07 | C119: ='DF raw data'!K124 -> -5.5294294e-07 | D119: ='DF raw data'!L124 -> 4.1894032e-07 | F119: -9.454911076e-07 | G119: -5.549012897e-07 | H119: 4.194363453e-07 | J119: 0.000156332164 | K119: 0.008466323615 | L119: -2.03822294e-05 | M119: -0.001234661578 | N119: 1.378461926e-06
A120: 56.74334667 | B120: ='DF raw data'!J125 -> -1.76993e-06 | C120: ='DF raw data'!K125 -> 4.1508983e-06 | D120: ='DF raw data'!L125 -> 4.3809027e-06 | F120: -1.772025597e-06 | G120: 4.165599474e-06 | H120: 4.386089689e-06 | J120: 0.0001554459386 | K120: 0.008544065237 | L120: -1.829892979e-05 | M120: -0.001243813239 | N120: 1.390714011e-06
A121: 57.24346667 | B121: ='DF raw data'!J126 -> -3.0382359e-06 | C121: ='DF raw data'!K126 -> 6.3461748e-06 | D121: ='DF raw data'!L126 -> 1.1107122e-05 | F121: -3.041833171e-06 | G121: 6.368650952e-06 | H121: 1.112027283e-05 | J121: 0.0001539246569 | K121: 0.008621046037 | L121: -1.511384008e-05 | M121: -0.001251371972 | N121: 1.402677496e-06
A122: 57.74358667 | B122: ='DF raw data'!J127 -> -1.4034089e-06 | C122: ='DF raw data'!K127 -> 7.5858488e-06 | D122: ='DF raw data'!L127 -> 1.2091923e-05 | F122: -1.405070536e-06 | G122: 7.612715487e-06 | H122: 1.210623984e-05 | J122: 0.0001532219531 | K122: 0.0086976754 | L122: -1.130656881e-05 | M122: -0.001257026614 | N122: 1.414482731e-06
A123: 58.24370667 | B123: ='DF raw data'!J128 -> 5.6801735e-08 | C123: ='DF raw data'!K128 -> 6.8232549e-07 | D123: ='DF raw data'!L128 -> 9.2685677e-06 | F123: 5.686898825e-08 | G123: 6.84742072e-07 | H123: 9.279541684e-06 | J123: 0.0001532503944 | K123: 0.008774318987 | L123: -1.09641156e-05 | M123: -0.001262509987 | N123: 1.426288511e-06
A124: 58.74382667 | B124: ='DF raw data'!J129 -> -3.4153036e-06 | C124: ='DF raw data'!K129 -> 4.7427793e-06 | D124: ='DF raw data'!L129 -> 6.6065381e-06 | F124: -3.419347319e-06 | G124: 4.75957673e-06 | H124: 6.614360241e-06 | J124: 0.0001515403104 | K124: 0.008850107327 | L124: -8.583756089e-06 | M124: -0.001266802895 | N124: 1.437810349e-06
A125: 59.24394667 | B125: ='DF raw data'!J130 -> -3.8503094e-06 | C125: ='DF raw data'!K130 -> 4.0329478e-06 | D125: ='DF raw data'!L130 -> 4.248393e-06 | F125: -3.854868166e-06 | G125: 4.047231231e-06 | H125: 4.253423097e-06 | J125: 0.0001496124137 | K125: 0.008924931488 | L125: -6.559654806e-06 | M125: -0.00127008351 | N125: 1.449026492e-06
A126: 59.74406667 | B126: ='DF raw data'!J131 -> -2.4432984e-06 | C126: ='DF raw data'!K131 -> 2.2303473e-06 | D126: ='DF raw data'!L131 -> 2.0907116e-06 | F126: -2.446191265e-06 | G126: 2.238246488e-06 | H126: 2.093187003e-06 | J126: 0.0001483890246 | K126: 0.008999143807 | L126: -5.440262973e-06 | M126: -0.001272804294 | N126: 1.460053587e-06
A127: 60.24418667 | B127: ='DF raw data'!J132 -> -4.1559551e-06 | C127: ='DF raw data'!K132 -> -1.2026023e-06 | D127: ='DF raw data'!L132 -> 1.7747132e-06 | F127: -4.160875751e-06 | G127: -1.206861539e-06 | H127: 1.77681446e-06 | J127: 0.0001463080874 | K127: 0.009072315407 | L127: -6.043838566e-06 | M127: -0.001275826939 | N127: 1.470777453e-06
A128: 60.74430667 | B128: ='DF raw data'!J133 -> -8.0750151e-06 | C128: ='DF raw data'!K133 -> 5.3461991e-07 | D128: ='DF raw data'!L133 -> 2.1519388e-06 | F128: -8.084575918e-06 | G128: 5.365133653e-07 | H128: 2.154486696e-06 | J128: 0.0001422648293 | K128: 0.009143464894 | L128: -5.775517501e-06 | M128: -0.00127871539 | N128: 1.480916205e-06
A129: 61.24442667 | B129: ='DF raw data'!J134 -> -9.0249259e-06 | C129: ='DF raw data'!K134 -> -3.8719472e-06 | D129: ='DF raw data'!L134 -> -1.6889628e-06 | F129: -9.035611412e-06 | G129: -3.885660417e-06 | H129: -1.690962532e-06 | J129: 0.0001377459393 | K129: 0.009212354393 | L129: -7.718813989e-06 | M129: -0.001282575724 | N129: 1.490435251e-06
A130: 61.74454667 | B130: ='DF raw data'!J135 -> -7.4475702e-06 | C130: ='DF raw data'!K135 -> -8.6535756e-06 | D130: ='DF raw data'!L135 -> -4.9372015e-06 | F130: -7.456388123e-06 | G130: -8.684223839e-06 | H130: -4.943047147e-06 | J130: 0.0001340168505 | K130: 0.0092793789 | L130: -1.206196802e-05 | M130: -0.001288608155 | N130: 1.499490427e-06
A131: 62.24466667 | B131: ='DF raw data'!J136 -> -5.8589335e-06 | C131: ='DF raw data'!K136 -> -2.7827803e-06 | D131: ='DF raw data'!L136 -> -3.6988297e-06 | F131: -5.865870477e-06 | G131: -2.792636031e-06 | H131: -3.703209114e-06 | J131: 0.0001310832113 | K131: 0.009344936236 | L131: -1.345862115e-05 | M131: -0.001295339081 | N131: 1.508174482e-06
A132: 62.74478667 | B132: ='DF raw data'!J137 -> -5.3638532e-06 | C132: ='DF raw data'!K137 -> 1.0211025e-05 | D132: ='DF raw data'!L137 -> -1.282717e-06 | F132: -5.370204002e-06 | G132: 1.024718923e-05 | H132: -1.284235737e-06 | J132: 0.0001283974649 | K132: 0.009409150376 | L132: -8.333796868e-06 | M132: -0.001299506979 | N132: 1.516454149e-06
A133: 63.24490667 | B133: ='DF raw data'!J138 -> -6.9851972e-06 | C133: ='DF raw data'!K138 -> 5.2590121e-06 | D133: ='DF raw data'!L138 -> 4.8915331e-07 | F133: -6.993467673e-06 | G133: 5.277637864e-06 | H133: 4.897324675e-07 | J133: 0.0001248998918 | K133: 0.00947161531 | L133: -5.694344619e-06 | M133: -0.001302354835 | N133: 1.524272229e-06
A134: 63.74502667 | B134: ='DF raw data'!J139 -> -5.2312889e-06 | C134: ='DF raw data'!K139 -> -8.7056133e-06 | D134: ='DF raw data'!L139 -> -3.0896467e-07 | F134: -5.237482746e-06 | G134: -8.73644584e-06 | H134: -3.093304842e-07 | J134: 0.000122280522 | K134: 0.009532770244 | L134: -1.006361591e-05 | M134: -0.00130738785 | N134: 1.531800937e-06
A135: 64.24514667 | B135: ='DF raw data'!J140 -> 1.7673229e-06 | C135: ='DF raw data'!K140 -> 2.7643225e-06 | D135: ='DF raw data'!L140 -> -7.1494128e-07 | F135: 1.76941541e-06 | G135: =(1-$G$1*($B$2-$G$2))*C135*$M$2/$M$1 -> 2.77411286e-06 | H135: -7.157877705e-07 | J135: 0.000123165442 | K135: 0.009594367745 | L135: -8.676226589e-06 | M135: -0.001311727005 | N135: 1.539425268e-06
A136: =A135+$B$1 -> 64.74526667 | B136: ='DF raw data'!J141 -> 5.5683695e-06 | C136: ='DF raw data'!K141 -> 3.1352508e-06 | D136: ='DF raw data'!L141 -> 3.3584308e-06 | F136: 5.574962449e-06 | G136: 3.146354871e-06 | H136: 3.362407182e-06 | J136: =F136*$B$1+J135 -> 0.0001259535922 | K136: =J136*$B$1+K135 -> 0.009657359656 | L136: =G136*$B$1+L135 -> -7.102671591e-06 | M136: =L136*$B$1+M135 -> -0.001315279193 | N136: =(J136^2+L136^2)*$B$1+N135 -> 1.547384555e-06
A137: 65.24538667 | B137: ='DF raw data'!J142 -> 1.9211136e-06 | C137: ='DF raw data'!K142 -> -1.977598e-07 | D137: ='DF raw data'!L142 -> 3.0854951e-06 | F137: 1.923388199e-06 | G137: -1.984602029e-07 | H137: 3.089148326e-06 | J137: 0.0001269155171 | K137: 0.009720832644 | L137: -7.201925508e-06 | M137: -0.00131888102 | N137: 1.555466203e-06
A138: 65.74550667 | B138: ='DF raw data'!J143 -> -2.8562104e-06 | C138: ='DF raw data'!K143 -> -1.0685064e-06 | D138: ='DF raw data'!L143 -> -3.0531212e-06 | F138: -2.859592153e-06 | G138: -1.072290713e-06 | H138: -3.056736096e-06 | J138: 0.0001254853779 | K138: 0.009783590391 | L138: -7.738199539e-06 | M138: -0.001322751048 | N138: 1.563371329e-06
A139: 66.24562667 | B139: ='DF raw data'!J144 -> -4.2240399e-06 | C139: ='DF raw data'!K144 -> 8.230968e-06 | D139: ='DF raw data'!L144 -> -8.1614762e-06 | F139: -4.229041163e-06 | G139: 8.260119496e-06 | H139: -8.171139388e-06 | J139: 0.0001233703498 | K139: 0.009845290371 | L139: -3.607148577e-06 | M139: -0.001324555055 | N139: 1.570989785e-06
A140: 66.74574667 | B140: ='DF raw data'!J145 -> -2.9144826e-06 | C140: ='DF raw data'!K145 -> 1.1102454e-05 | D140: ='DF raw data'!L145 -> -1.0484413e-05 | F140: -2.917933347e-06 | G140: 1.114177539e-05 | H140: -1.049682654e-05 | J140: 0.000121911033 | K140: 0.009906260517 | L140: 1.965076133e-06 | M140: -0.001323572282 | N140: 1.578424649e-06
A141: 67.24586667 | B141: ='DF raw data'!J146 -> -1.0185316e-06 | C141: ='DF raw data'!K146 -> 1.248857e-06 | D141: ='DF raw data'!L146 -> -6.349745e-06 | F141: -1.019737541e-06 | G141: 1.253280058e-06 | H141: -6.357263098e-06 | J141: 0.0001214010419 | K141: 0.009966975606 | L141: 2.591866556e-06 | M141: -0.001322276037 | N141: 1.585798884e-06
A142: 67.74598667 | B142: ='DF raw data'!J147 -> 4.145119e-07 | C142: ='DF raw data'!K147 -> 5.5338724e-06 | D142: ='DF raw data'!L147 -> 1.3701514e-07 | F142: 4.150026821e-07 | G142: 5.553471633e-06 | H142: 1.371773659e-07 | J142: 0.000121608593 | K142: 0.0100277945 | L142: 5.369268789e-06 | M142: -0.001319590759 | N142: 1.593209402e-06
A143: 68.24610667 | B143: ='DF raw data'!J148 -> -1.3246446e-06 | C143: ='DF raw data'!K148 -> 4.4611161e-06 | D143: ='DF raw data'!L148 -> 2.6872453e-07 | F143: -1.326212979e-06 | G143: 4.476915968e-06 | H143: 2.690426998e-07 | J143: 0.0001209453274 | K143: 0.01008828167 | L143: 7.608264003e-06 | M143: -0.001315785714 | N143: 1.600553993e-06
A144: 68.74622667 | B144: ='DF raw data'!J149 -> -6.8620443e-06 | C144: ='DF raw data'!K149 -> 9.1600205e-06 | D144: ='DF raw data'!L149 -> 2.1036228e-06 | F144: -6.87016896e-06 | G144: 9.192462407e-06 | H144: 2.106113489e-06 | J144: 0.0001175094185 | K144: 0.01014705048 | L144: 1.22055983e-05 | M144: -0.00130968145 | N144: 1.607534388e-06
A145: 69.24634667 | B145: ='DF raw data'!J150 -> -9.5130645e-06 | C145: ='DF raw data'!K150 -> 9.412598e-06 | D145: ='DF raw data'!L150 -> 8.7706085e-06 | F145: -9.524327968e-06 | G145: 9.445934457e-06 | H145: 8.7809929e-06 | J145: 0.0001127461116 | K145: 0.01020343707 | L145: 1.692969904e-05 | M145: -0.001301214569 | N145: 1.614035098e-06
A146: 69.74646667 | B146: ='DF raw data'!J151 -> -6.7854826e-06 | C146: ='DF raw data'!K151 -> 6.9061689e-06 | D146: ='DF raw data'!L151 -> 1.1742648e-05 | F146: -6.793516611e-06 | G146: 6.930628375e-06 | H146: 1.17565513e-05 | J146: 0.0001093485381 | K146: 0.01025812446 | L146: 2.039584491e-05 | M146: -0.001291014199 | N146: 1.620223129e-06
A147: 70.24658667 | B147: ='DF raw data'!J152 -> -4.9334704e-07 | C147: ='DF raw data'!K152 -> 4.3974733e-06 | D147: ='DF raw data'!L152 -> 8.8561301e-06 | F147: -4.939311629e-07 | G147: 4.413047765e-06 | H147: 8.866615758e-06 | J147: 0.0001091015132 | K147: 0.01031268831 | L147: 2.260289835e-05 | M147: -0.001279710037 | N147: 1.626431634e-06
A148: 70.74670667 | B148: ='DF raw data'!J153 -> 2.984699e-06 | C148: ='DF raw data'!K153 -> 4.0635032e-06 | D148: ='DF raw data'!L153 -> -8.0758605e-07 | F148: 2.988232884e-06 | G148: 4.077894848e-06 | H148: -8.085422319e-07 | J148: 0.0001105959882 | K148: 0.01036799957 | L148: 2.464233513e-05 | M148: -0.001267385913 | N148: 1.632852534e-06
A149: 71.24682667 | B149: ='DF raw data'!J154 -> 1.6376285e-06 | C149: ='DF raw data'!K154 -> 6.8542658e-06 | D149: ='DF raw data'!L154 -> -3.3749077e-06 | F149: 1.639567452e-06 | G149: 6.87854145e-06 | H149: -3.378903591e-06 | J149: 0.0001114159687 | K149: 0.01042372093 | L149: 2.808243128e-05 | M149: -0.001253341327 | N149: 1.639455189e-06
A150: 71.74694667 | B150: ='DF raw data'!J155 -> -2.2830995e-06 | C150: ='DF raw data'!K155 -> 2.9709997e-06 | D150: ='DF raw data'!L155 -> -1.0830538e-06 | F150: -2.28580269e-06 | G150: 2.981522045e-06 | H150: -1.084336136e-06 | J150: 0.0001102727931 | K150: 0.01047887056 | L150: 2.957355008e-05 | M150: -0.001238551003 | N150: 1.645974095e-06
A151: 72.24706667 | B151: ='DF raw data'!J156 -> -5.4101774e-06 | C151: ='DF raw data'!K156 -> 1.0718716e-05 | D151: ='DF raw data'!L156 -> -3.4091192e-06 | F151: =(1-$G$1*($B$2-$G$2))*B151 -> -5.41658305e-06 | G151: 1.075667832e-05 | H151: -3.413155597e-06 | J151: 0.0001075638515 | K151: 0.01053266539 | L151: 3.495318004e-05 | M151: -0.001221070219 | N151: 1.652371483e-06
A152: 72.74718667 | B152: ='DF raw data'!J157 -> -5.7269035e-06 | C152: ='DF raw data'!K157 -> 1.0282009e-05 | D152: ='DF raw data'!L157 -> -3.4477182e-06 | F152: -5.733684154e-06 | G152: 1.031842464e-05 | H152: -3.451800298e-06 | J152: 0.0001046963214 | K152: 0.01058502611 | L152: 4.011363057e-05 | M152: -0.00120100859 | N152: 1.658658203e-06
A153: 73.24730667 | B153: ='DF raw data'!J158 -> -2.4080546e-06 | C153: ='DF raw data'!K158 -> 6.7204392e-06 | D153: ='DF raw data'!L158 -> -2.0727805e-06 | F153: -2.410905737e-06 | G153: 6.744240879e-06 | H153: -2.075234672e-06 | J153: 0.0001034905793 | K153: 0.01063678382 | L153: 4.348656032e-05 | M153: -0.001179260091 | N153: 1.664960406e-06
A154: 73.74742667 | B154: ='DF raw data'!J159 -> 7.228943e-07 | C154: ='DF raw data'!K159 -> 6.9778189e-06 | D154: ='DF raw data'!L159 -> 6.8808163e-07 | F154: 7.237502069e-07 | G154: 7.002532137e-06 | H154: 6.888963186e-07 | J154: 0.0001038525412 | K154: 0.01068872256 | L154: 4.698866669e-05 | M154: -0.001155760119 | N154: 1.671458607e-06
A155: 74.24754667 | B155: ='DF raw data'!J160 -> 7.940493e-07 | C155: ='DF raw data'!K160 -> -3.3594508e-06 | D155: ='DF raw data'!L160 -> 5.5968462e-06 | F155: 7.949894544e-07 | G155: -3.371348916e-06 | H155: 5.603472866e-06 | J155: 0.0001042501313 | K155: 0.01074086013 | L155: 4.530258767e-05 | M155: -0.001133103389 | N155: 1.677920365e-06
A156: 74.74766667 | B156: ='DF raw data'!J161 -> -2.4458348e-06 | C156: ='DF raw data'!K161 -> 5.2011028e-06 | D156: ='DF raw data'!L161 -> 6.824635e-06 | F156: -2.448730668e-06 | G156: 5.219523468e-06 | H156: 6.832715368e-06 | J156: 0.0001030254722 | K156: 0.01079238523 | L156: 4.791297575e-05 | M156: -0.001109141152 | N156: 1.684376865e-06
A157: 75.24778667 | B157: ='DF raw data'!J162 -> -5.8429137e-06 | C157: ='DF raw data'!K162 -> 1.3519621e-05 | D157: ='DF raw data'!L162 -> 2.3462796e-06 | F157: -5.84983171e-06 | G157: 1.356750324e-05 | H157: 2.349057595e-06 | J157: 0.0001000998543 | K157: 0.01084244717 | L157: 5.469835547e-05 | M157: -0.00108178541 | N157: 1.690884372e-06
A158: 75.74790667 | B158: ='DF raw data'!J163 -> -7.959472e-06 | C158: ='DF raw data'!K163 -> 3.0585295e-06 | D158: ='DF raw data'!L163 -> -3.7235861e-06 | F158: -7.968896015e-06 | G158: 3.069361848e-06 | H158: -3.727994826e-06 | J158: 9.611445004e-05 | K158: 0.01089051593 | L158: 5.623340471e-05 | M158: -0.00105366196 | N158: 1.697085951e-06
A159: 76.24802667 | B159: ='DF raw data'!J164 -> -1.1647845e-05 | C159: ='DF raw data'!K164 -> 1.0518124e-08 | D159: ='DF raw data'!L164 -> -5.1559641e-06 | F159: -1.166163605e-05 | G159: 1.055537588e-08 | H159: -5.162068761e-06 | J159: 9.028223262e-05 | K159: 0.01093566788 | L159: 5.623868367e-05 | M159: -0.001025535869 | N159: 1.702744145e-06
A160: 76.74814667 | B160: ='DF raw data'!J165 -> -1.2412594e-05 | C160: ='DF raw data'!K165 -> -4.2498795e-07 | D160: ='DF raw data'!L165 -> -4.4906214e-06 | F160: -1.242729051e-05 | G160: -4.264931234e-07 | H160: -4.495938296e-06 | J160: 8.406709609e-05 | K160: 0.01097771152 | L160: 5.602538593e-05 | M160: -0.0009975164533 | N160: 1.70784843e-06
A161: 77.24826667 | B161: ='DF raw data'!J166 -> -1.1055845e-05 | C161: ='DF raw data'!K166 -> 1.4249824e-06 | D161: ='DF raw data'!L166 -> -4.7247581e-06 | F161: -1.106893512e-05 | G161: 1.430029239e-06 | H161: -4.730352214e-06 | J161: 7.853130026e-05 | K161: 0.01101698659 | L161: 5.674057215e-05 | M161: -0.0009691393584 | N161: 1.712542885e-06
A162: 77.74838667 | B162: ='DF raw data'!J167 -> -1.0882563e-05 | C162: ='DF raw data'!K167 -> -2.2634806e-06 | D162: ='DF raw data'!L167 -> -4.6472255e-06 | F162: -1.089544795e-05 | G162: -2.271497135e-06 | H162: -4.652727815e-06 | J162: 7.308226883e-05 | K162: 0.01105353649 | L162: 5.5604551e-05 | M162: -0.0009413304103 | N162: 1.716760339e-06
A163: 78.24850667 | B163: ='DF raw data'!J168 -> -1.0696132e-05 | C163: ='DF raw data'!K168 -> -9.7237962e-06 | D163: ='DF raw data'!L168 -> -2.2471525e-06 | F163: -1.070879622e-05 | G163: -9.758234823e-06 | H163: -2.249813129e-06 | J163: 6.772658566e-05 | K163: 0.01108740791 | L163: 5.07242626e-05 | M163: -0.0009159621921 | N163: 1.720341119e-06
A164: 78.74862667 | B164: ='DF raw data'!J169 -> -1.2129242e-05 | C164: ='DF raw data'!K169 -> -5.3703288e-06 | D164: ='DF raw data'!L169 -> -2.0361097e-06 | F164: -1.214360302e-05 | G164: -5.389348813e-06 | H164: -2.038520454e-06 | J164: 6.165332692e-05 | K164: 0.01111824198 | L164: 4.802894147e-05 | M164: -0.0008919419579 | N164: 1.723395807e-06
A165: 79.24874667 | B165: ='DF raw data'!J170 -> -1.4162097e-05 | C165: ='DF raw data'!K170 -> -4.3975115e-06 | D165: ='DF raw data'!L170 -> -3.7805569e-06 | F165: -1.417886492e-05 | G165: -4.413086101e-06 | H165: -3.785033079e-06 | J165: 5.456219299e-05 | K165: 0.01114552962 | L165: 4.582186885e-05 | M165: -0.0008690255249 | N165: 1.725934755e-06
A166: 79.74886667 | B166: ='DF raw data'!J171 -> -1.4201079e-05 | C166: ='DF raw data'!K171 -> -8.4288257e-07 | D166: ='DF raw data'!L171 -> -4.0024483e-06 | F166: -1.421789308e-05 | G166: -8.458677946e-07 | H166: -4.007187199e-06 | J166: 4.745154031e-05 | K166: 0.01116926108 | L166: 4.539883345e-05 | M166: -0.0008463206603 | N166: 1.728091624e-06
A167: 80.24898667 | B167: ='DF raw data'!J172 -> -1.2757154e-05 | C167: ='DF raw data'!K172 -> 9.0480762e-06 | D167: ='DF raw data'!L172 -> -2.6653781e-06 | F167: -1.277225847e-05 | G167: 9.080121636e-06 | H167: -2.668533908e-06 | J167: 4.10638784e-05 | K167: 0.01118979795 | L167: 4.993998389e-05 | M167: -0.0008213446755 | N167: 1.730182248e-06
A168: 80.74910667 | B168: ='DF raw data'!J173 -> -1.113007e-05 | C168: ='DF raw data'!K173 -> 1.3776159e-06 | D168: ='DF raw data'!L173 -> 3.4386699e-07 | F168: -1.1143248e-05 | G168: 1.382494982e-06 | H168: 3.442741285e-07 | J168: 3.549091721e-05 | K168: 0.01120754767 | L168: 5.063139728e-05 | M168: -0.0007960229011 | N168: 1.732094278e-06
A169: 81.24922667 | B169: ='DF raw data'!J174 -> -7.0721717e-06 | C169: ='DF raw data'!K174 -> -4.7281455e-06 | D169: ='DF raw data'!L174 -> 5.4367231e-09 | F169: -7.080545151e-06 | G169: -4.744891102e-06 | H169: 5.44316018e-09 | J169: 3.194979497e-05 | K169: 0.0112235264 | L169: 4.825838234e-05 | M169: -0.0007718879189 | N169: 1.733769511e-06
A170: 81.74934667 | B170: ='DF raw data'!J175 -> -3.9575943e-07 | C170: ='DF raw data'!K175 -> -1.8712046e-06 | D170: ='DF raw data'!L175 -> -1.0253518e-06 | F170: -3.962280092e-07 | G170: -1.877831817e-06 | H170: -1.026565817e-06 | J170: 3.175163342e-05 | K170: 0.01123940603 | L170: 4.731924109e-05 | M170: -0.0007482226201 | N170: 1.735393539e-06
A171: 82.24946667 | B171: ='DF raw data'!J176 -> 8.2567034e-08 | C171: ='DF raw data'!K176 -> -8.2086552e-07 | D171: ='DF raw data'!L176 -> -1.6644028e-06 | F171: 8.266479337e-08 | G171: -8.237727671e-07 | H171: -1.666373453e-06 | J171: 3.179297573e-05 | K171: 0.01125530633 | L171: 4.690725585e-05 | M171: -0.0007247633633 | N171: 1.736999466e-06
A172: 82.74958667 | B172: ='DF raw data'!J177 -> -7.3422398e-06 | C172: ='DF raw data'!K177 -> 5.8475571e-06 | D172: ='DF raw data'!L177 -> -5.3862333e-08 | F172: -7.350933012e-06 | G172: 5.868267305e-06 | H172: -5.3926106e-08 | J172: 2.811662711e-05 | K172: 0.01126936802 | L172: 4.98420937e-05 | M172: -0.0006998363354 | N172: 1.738637248e-06
A173: 83.24970667 | B173: ='DF raw data'!J178 -> -1.3253236e-05 | C173: ='DF raw data'!K178 -> 6.8685413e-06 | D173: ='DF raw data'!L178 -> 1.1664067e-06 | F173: -1.326892783e-05 | G173: 6.89286751e-06 | H173: 1.167787726e-06 | J173: 2.148057093e-05 | K173: 0.01128011088 | L173: 5.32893546e-05 | M173: -0.0006731852634 | N173: 1.74028823e-06
A174: 83.74982667 | B174: ='DF raw data'!J179 -> -1.346897e-05 | C174: ='DF raw data'!K179 -> 2.3816544e-06 | D174: ='DF raw data'!L179 -> -8.4159387e-07 | F174: -1.348491726e-05 | G174: 2.39008947e-06 | H174: -8.425903171e-07 | J174: 1.473649411e-05 | K174: 0.0112874809 | L174: 5.448468614e-05 | M174: -0.0006459363821 | N174: 1.741881485e-06
A175: 84.24994667 | B175: ='DF raw data'!J180 -> -1.0095921e-05 | C175: ='DF raw data'!K180 -> 2.6477071e-06 | D175: ='DF raw data'!L180 -> -1.7374134e-06 | F175: -1.010787457e-05 | G175: 2.657084445e-06 | H175: -1.739470497e-06 | J175: 9.681343876e-06 | K175: 0.01129232273 | L175: 5.581354721e-05 | M175: -0.0006180229109 | N175: 1.74348631e-06
A176: 84.75006667 | B176: ='DF raw data'!J181 -> -3.5974629e-06 | C176: ='DF raw data'!K181 -> -1.9575891e-07 | D176: ='DF raw data'!L181 -> -1.4969761e-07 | F176: -3.601722296e-06 | G176: -1.964522264e-07 | H176: -1.49874852e-07 | J176: 7.880050522e-06 | K176: 0.0112962637 | L176: 5.571529753e-05 | M176: -0.0005901585763 | N176: 1.745069835e-06
A177: 85.25018667 | B177: ='DF raw data'!J182 -> 4.2489996e-06 | C177: ='DF raw data'!K182 -> 7.1354663e-07 | D177: ='DF raw data'!L182 -> 2.1103422e-06 | F177: 4.254030416e-06 | G177: 7.160737874e-07 | H177: 2.112840845e-06 | J177: 1.000757621e-05 | K177: 0.01130126869 | L177: 5.607342035e-05 | M177: -0.0005621151373 | N177: 1.746692414e-06
A178: 85.75030667 | B178: ='DF raw data'!J183 -> 7.163414e-06 | C178: ='DF raw data'!K183 -> 4.3574446e-06 | D178: ='DF raw data'!L183 -> 2.0467176e-06 | F178: 7.171895482e-06 | G178: 4.372877296e-06 | H178: 2.049140914e-06 | J178: 1.359438458e-05 | K178: 0.01130806751 | L178: 5.826038374e-05 | M178: -0.0005329779542 | N178: 1.748482383e-06
A179: 86.25042667 | B179: ='DF raw data'!J184 -> 4.1049548e-06 | C179: ='DF raw data'!K184 -> 6.4439782e-06 | D179: ='DF raw data'!L184 -> -5.3112149e-07 | F179: 4.109815066e-06 | G179: 6.466800741e-06 | H179: -5.317503378e-07 | J179: 1.564978529e-05 | K179: 0.01131589428 | L179: 6.149456013e-05 | M179: -0.0005022232948 | N179: 1.750496115e-06
A180: 86.75054667 | B180: ='DF raw data'!J185 -> 1.9050087e-07 | C180: ='DF raw data'!K185 -> 3.70872e-06 | D180: ='DF raw data'!L185 -> -7.0336159e-07 | F180: 1.90726423e-07 | G180: 3.721855118e-06 | H180: -7.041943701e-07 | J180: 1.574517139e-05 | K180: 0.01132376876 | L180: 6.335593431e-05 | M180: -0.0004705377249 | N180: 1.752627569e-06
A181: 87.25066667 | B181: ='DF raw data'!J186 -> -4.1735102e-06 | C181: ='DF raw data'!K186 -> 2.7683243e-06 | D181: ='DF raw data'!L186 -> 6.5786821e-07 | F181: -4.178451636e-06 | G181: 2.778128833e-06 | H181: 6.58647126e-07 | J181: 1.365544416e-05 | K181: 0.01133059812 | L181: 6.47453321e-05 | M181: -0.0004381572894 | N181: 1.754817309e-06
A182: 87.75078667 | B182: ='DF raw data'!J187 -> -8.5447973e-06 | C182: ='DF raw data'!K187 -> 9.7712518e-06 | D182: ='DF raw data'!L187 -> 6.6878215e-07 | F182: -8.55491434e-06 | G182: 9.805858496e-06 | H182: 6.695739881e-07 | J182: 9.376960399e-06 | K182: 0.01133528772 | L182: 6.964943805e-05 | M182: -0.0004033242125 | N182: 1.757287387e-06
A183: 88.25090667 | B183: ='DF raw data'!J188 -> -8.7776198e-06 | C183: ='DF raw data'!K188 -> 1.114942e-05 | D183: ='DF raw data'!L188 -> 3.5459832e-06 | F183: -8.788012502e-06 | G183: 1.118890773e-05 | H183: 3.550181644e-06 | J183: 4.981899587e-06 | K183: 0.01133777927 | L183: 7.524523459e-05 | M183: -0.0003656925658 | N183: 1.760131402e-06
A184: 88.75102667 | B184: ='DF raw data'!J189 -> -5.1598668e-06 | C184: ='DF raw data'!K189 -> 9.9360341e-06 | D184: ='DF raw data'!L189 -> 5.986321e-06 | F184: -5.165976082e-06 | G184: 9.971224403e-06 | H184: 5.993408804e-06 | J184: 2.398291629e-06 | K184: 0.01133897871 | L184: 8.023204334e-05 | M184: -0.0003255669162 | N184: 1.763353641e-06
A185: 89.25114667 | B185: ='DF raw data'!J190 -> -4.6564602e-07 | C185: ='DF raw data'!K190 -> 8.8572751e-06 | D185: ='DF raw data'!L190 -> 2.7279e-06 | F185: -4.661973449e-07 | G185: 8.888644778e-06 | H185: 2.731129834e-06 | J185: 2.165137012e-06 | K185: 0.01134006153 | L185: 8.467743236e-05 | M185: -0.0002832180388 | N185: 1.76694198e-06
A186: 89.75126667 | B186: ='DF raw data'!J191 -> 2.7954645e-06 | C186: ='DF raw data'!K191 -> 4.2372239e-06 | D186: ='DF raw data'!L191 -> -1.6351862e-06 | F186: 2.79877433e-06 | G186: 4.252230812e-06 | H186: -1.63712226e-06 | J186: 3.56486003e-06 | K186: 0.01134184439 | L186: 8.680405804e-05 | M186: -0.0002398055933 | N186: 1.770716712e-06
A187: 90.25138667 | B187: ='DF raw data'!J192 -> 3.4225752e-06 | C187: ='DF raw data'!K192 -> 7.0267861e-06 | D187: ='DF raw data'!L192 -> 8.086115e-07 | F187: 3.426627529e-06 | G187: 7.051672763e-06 | H187: 8.09568896e-07 | J187: 5.27858499e-06 | K187: 0.01134448432 | L187: 9.033074062e-05 | M187: -0.0001946293833 | N187: 1.774811448e-06
A188: 90.75150667 | B188: ='DF raw data'!J193 -> 2.0769069e-06 | C188: ='DF raw data'!K193 -> 1.3649046e-05 | D188: ='DF raw data'!L193 -> 3.2574042e-06 | F188: 2.079365958e-06 | G188: 1.369738662e-05 | H188: 3.261260967e-06 | J188: 6.318517493e-06 | K188: 0.01134764433 | L188: 9.718107762e-05 | M188: -0.0001460271827 | N188: 1.779554628e-06
A189: 91.25162667 | B189: ='DF raw data'!J194 -> 1.0124535e-06 | C189: ='DF raw data'!K194 -> 1.4647213e-05 | D189: ='DF raw data'!L194 -> 6.2150662e-06 | F189: 1.013652245e-06 | G189: 1.469908881e-05 | H189: 6.222424838e-06 | J189: 6.825465254e-06 | K189: 0.01135105789 | L189: 0.0001045323859 | M189: -9.374844588e-05 | N189: 1.785042749e-06
A190: 91.75174667 | B190: ='DF raw data'!J195 -> -2.1153583e-06 | C190: ='DF raw data'!K195 -> 5.0632743e-06 | D190: ='DF raw data'!L195 -> 7.5991898e-06 | F190: -2.117862884e-06 | G190: 5.081206823e-06 | H190: 7.608187241e-06 | J190: 5.766279668e-06 | K190: 0.01135394172 | L190: 0.0001070735991 | M190: -4.019879751e-05 | N190: 1.790793131e-06
A191: 92.25186667 | B191: ='DF raw data'!J196 -> -9.2645569e-06 | C191: ='DF raw data'!K196 -> 1.8301384e-05 | D191: ='DF raw data'!L196 -> 4.6655528e-06 | F191: -9.275526135e-06 | G191: 1.836620174e-05 | H191: 4.671076815e-06 | J191: 1.127403537e-06 | K191: 0.01135450556 | L191: 0.0001162589039 | M191: 1.79446055e-05 | N191: 1.797553455e-06
A192: 92.75198667 | B192: ='DF raw data'!J197 -> -9.9271783e-06 | C192: ='DF raw data'!K197 -> 1.6161077e-05 | D192: ='DF raw data'!L197 -> 5.4596762e-06 | F192: -9.938932079e-06 | G192: 1.621831444e-05 | H192: 5.466140457e-06 | J192: -3.843255174e-06 | K192: 0.01135258347 | L192: 0.0001243700073 | M192: 8.014453355e-05 | N192: 1.805296648e-06
A193: 93.25210667 | B193: ='DF raw data'!J198 -> -4.6155251e-06 | C193: ='DF raw data'!K198 -> -1.8121428e-07 | D193: ='DF raw data'!L198 -> 4.1726539e-06 | F193: -4.620989882e-06 | G193: -1.818560839e-07 | H193: 4.177594322e-06 | J193: -6.154304634e-06 | K193: 0.01134950558 | L193: 0.0001242790574 | M193: 0.0001422989758 | N193: 1.813040086e-06
A194: 93.75222667 | B194: ='DF raw data'!J199 -> -5.1527245e-06 | C194: ='DF raw data'!K199 -> 3.9873166e-06 | D194: ='DF raw data'!L199 -> 3.8173471e-07 | F194: -5.158825326e-06 | G194: 4.001438419e-06 | H194: 3.821866839e-07 | J194: -8.734336356e-06 | K194: 0.01134513736 | L194: 0.0001262802568 | M194: 0.0002054542578 | N194: 1.821053504e-06
A195: 94.25234667 | B195: ='DF raw data'!J200 -> -9.8897981e-06 | C195: ='DF raw data'!K200 -> 8.0293585e-06 | D195: ='DF raw data'!L200 -> -3.7788943e-06 | F195: -9.901507621e-06 | G195: 8.057795959e-06 | H195: -3.783368511e-06 | J195: -1.368627835e-05 | K195: 0.01133829258 | L195: 0.0001303101217 | M195: 0.0002706249559 | N195: 1.829639585e-06
A196: 94.75246667 | B196: ='DF raw data'!J201 -> -1.3218793e-05 | C196: ='DF raw data'!K201 -> 1.1291789e-05 | D196: ='DF raw data'!L201 -> -5.045948e-06 | F196: -1.323444405e-05 | G196: 1.133178096e-05 | H196: -5.051922402e-06 | J196: -2.030508851e-05 | K196: 0.0113281376 | L196: 0.000135977372 | M196: 0.0003386299592 | N196: 1.839092925e-06
A197: 95.25258667 | B197: ='DF raw data'!J202 -> -1.1557333e-05 | C197: ='DF raw data'!K202 -> 1.1794008e-05 | D197: ='DF raw data'!L202 -> -2.371142e-06 | F197: -1.157101688e-05 | G197: 1.183577866e-05 | H197: -2.373949432e-06 | J197: -2.609198547e-05 | K197: 0.01131508847 | L197: 0.0001418966817 | M197: 0.0004095953276 | N197: 1.849503153e-06
A198: 95.75270667 | B198: ='DF raw data'!J203 -> -6.580829e-06 | C198: ='DF raw data'!K203 -> 1.1152891e-05 | D198: ='DF raw data'!L203 -> 1.7487562e-06 | F198: -6.588620702e-06 | G198: 1.119239103e-05 | H198: 1.750826727e-06 | J198: -2.938708645e-05 | K198: 0.0113003914 | L198: 0.0001474942203 | M198: 0.000483360137 | N198: 1.86081494e-06
A199: 96.25282667 | B199: ='DF raw data'!J204 -> -3.8212738e-06 | C199: ='DF raw data'!K204 -> 5.7717707e-06 | D199: ='DF raw data'!L204 -> 3.8948579e-06 | F199: -3.825798188e-06 | G199: =(1-$G$1*($B$2-$G$2))*C199*$M$2/$M$1 -> 5.792212494e-06 | H199: 3.899469412e-06 | J199: -3.130044464e-05 | K199: 0.01128473742 | L199: 0.0001503910216 | M199: 0.0005585736948 | N199: 1.87261636e-06
A200: =A199+$B$1 -> 96.75294667 | B200: ='DF raw data'!J205 -> -3.4959369e-06 | C200: ='DF raw data'!K205 -> -4.0927653e-06 | D200: ='DF raw data'!L205 -> -9.0748495e-07 | F200: -3.500076089e-06 | G200: -4.107260585e-06 | H200: -9.085594122e-07 | J200: =F200*$B$1+J199 -> -3.30509027e-05 | K200: =J200*$B$1+K199 -> 0.01126820801 | L200: =G200*$B$1+L199 -> 0.0001483368984 | M200: =L200*$B$1+M199 -> 0.0006327599444 | N200: =(J200^2+L200^2)*$B$1+N199 -> 1.88416723e-06
A201: 97.25306667 | B201: ='DF raw data'!J206 -> -3.3630388e-06 | C201: ='DF raw data'!K206 -> 5.9754527e-08 | D201: ='DF raw data'!L206 -> -1.0416328e-05 | F201: -3.367020638e-06 | G201: 5.996615871e-08 | H201: -1.042866093e-05 | J201: -3.473481706e-05 | K201: 0.01125083643 | L201: 0.0001483668887 | M201: 0.0007069611927 | N201: 1.895779637e-06
... 1002 more rows

Sheet 30 mm
A1: dz | B1: ='DF raw data'!N7 -> 0.50013 | C1: mm | F1: T_coeff | G1: -0.0008 | H1: /degC | L1: Hallref | M1: ='PI vs gap'!B50 -> 0.50533 | N1: T | P1: IBy total | Q1: =L1203*1000 -> 9.465317492 | R1: muTm | X1: DF ref | Y1: 22
A2: Tref | B2: ='DF raw data'!N8 -> 21.47 | C2: degC | F2: Tcorr | G2: 20 | H2: degC | L2: NMRref | M2: ='PI vs gap'!B51 -> 0.50652 | N2: T | P2: JBy total | Q2: =M1203 -> 2.125725922 | R2: muTm^2
A3: Encoder | B3: ='DF raw data'!N9 -> 17174973 | P3: PI total | Q3: =N1203 -> 68.36389952 | R3: T^2mm^3
A5: z [mm] | B5: Bx | C5: By | D5: Bz | F5: Bx_corr | G5: By_corr | H5: Bz_corr | J5: Ix | K5: Jx | L5: Iy | M5: Jy | N5: PI
A6: ='PI vs gap'!B53 -> -0.2703333333 | B6: ='DF raw data'!M11 -> 8.6789987e-06 | C6: ='DF raw data'!N11 -> 2.0152697e-06 | D6: ='DF raw data'!O11 -> -1.8428174e-06 | F6: =(1-$G$1*($B$2-$G$2))*B6 -> 8.689205202e-06 | G6: =(1-$G$1*($B$2-$G$2))*C6*$M$2/$M$1 -> 2.02239099e-06 | H6: =(1-$G$1*($B$2-$G$2))*D6 -> -1.844984553e-06 | J6: =F6*$B$1 -> 4.345732198e-06 | K6: =J6*$B$1 -> 2.173431044e-06 | L6: =G6*$B$1 -> 1.011458406e-06 | M6: =L6*$B$1 -> 5.058606926e-07 | N6: =(J6^2+L6^2)*$B$1 -> 9.956806318e-12
A7: =A6+$B$1 -> 0.2297966667 | B7: ='DF raw data'!M12 -> 8.8361267e-06 | C7: ='DF raw data'!N12 -> -2.4544056e-06 | D7: ='DF raw data'!O12 -> -3.0515721e-06 | F7: =(1-$G$1*($B$2-$G$2))*B7 -> 8.846517985e-06 | G7: =(1-$G$1*($B$2-$G$2))*C7*$M$2/$M$1 -> -2.46307865e-06 | H7: -3.055160749e-06 | J7: =F7*$B$1+J6 -> 8.770141238e-06 | K7: =J7*$B$1+K6 -> 6.559641781e-06 | L7: =G7*$B$1+L6 -> -2.204011192e-07 | M7: =L7*$B$1+M6 -> 3.956314808e-07 | N7: =(J7^2+L7^2)*$B$1+N6 -> 4.844878862e-11
A8: =A7+$B$1 -> 0.7299266667 | B8: ='DF raw data'!M13 -> 8.5625206e-06 | C8: ='DF raw data'!N13 -> 4.8767511e-06 | D8: ='DF raw data'!O13 -> -3.8090247e-06 | F8: 8.572590124e-06 | G8: 4.89398391e-06 | H8: -3.813504113e-06 | J8: =F8*$B$1+J7 -> 1.305755074e-05 | K8: =J8*$B$1+K7 -> 1.309011463e-05 | L8: =G8*$B$1+L7 -> 2.227227054e-06 | M8: =L8*$B$1+M7 -> 1.509534547e-06 | N8: =(J8^2+L8^2)*$B$1+N7 -> 1.362016842e-10
A9: 1.230056667 | B9: ='DF raw data'!M14 -> 8.6065083e-06 | C9: ='DF raw data'!N14 -> 3.9693118e-06 | D9: ='DF raw data'!O14 -> -1.8762286e-06 | F9: 8.616629554e-06 | G9: 3.983338023e-06 | H9: -1.878435045e-06 | J9: 1.736698568e-05 | K9: 2.177586518e-05 | L9: 4.219413899e-06 | M9: 3.619790021e-06 | N9: 2.959510308e-10
A10: 1.730186667 | B10: ='DF raw data'!M15 -> 9.0148151e-06 | C10: ='DF raw data'!N15 -> -6.7402175e-06 | D10: ='DF raw data'!O15 -> 4.1556348e-07 | F10: 9.025416523e-06 | G10: -6.764035178e-06 | H10: 4.160521827e-07 | J10: 2.188086724e-05 | K10: 3.271914331e-05 | L10: 8.365169854e-07 | M10: 4.038157261e-06 | N10: 5.357494181e-10
A11: 2.230316667 | B11: ='DF raw data'!M16 -> 8.665048e-06 | C11: ='DF raw data'!N16 -> 2.5709965e-06 | D11: ='DF raw data'!O16 -> -1.421132e-06 | F11: 8.675238096e-06 | G11: 2.580081543e-06 | H11: -1.422803251e-06 | J11: 2.621961407e-05 | K11: 4.583235889e-05 | L11: 2.126893168e-06 | M11: 5.10188034e-06 | N11: 8.818352953e-10
A12: 2.730446667 | B12: ='DF raw data'!M17 -> 8.5125257e-06 | C12: ='DF raw data'!N17 -> 5.9719209e-06 | D12: ='DF raw data'!O17 -> -5.9293043e-06 | F12: 8.52253643e-06 | G12: 5.993023675e-06 | H12: -5.936277162e-06 | J12: 3.048199021e-05 | K12: 6.107731666e-05 | L12: 5.124184098e-06 | M12: 7.664638533e-06 | N12: 1.359663994e-09
A13: 3.230576667 | B13: ='DF raw data'!M18 -> 8.5239399e-06 | C13: ='DF raw data'!N18 -> 5.7653747e-06 | D13: ='DF raw data'!O18 -> -4.8663014e-06 | F13: 8.533964053e-06 | G13: 5.785747609e-06 | H13: -4.87202417e-06 | J13: 3.475008166e-05 | K13: 7.8456875e-05 | L13: 8.01781005e-06 | M13: 1.167458587e-05 | N13: 1.995756061e-09
A14: 3.730706667 | B14: ='DF raw data'!M19 -> 8.519467e-06 | C14: ='DF raw data'!N19 -> 7.3499546e-06 | D14: ='DF raw data'!O19 -> 4.2405563e-06 | F14: 8.529485893e-06 | G14: 7.375926886e-06 | H14: 4.245543194e-06 | J14: 3.901593344e-05 | K14: 9.796991379e-05 | L14: 1.170673236e-05 | M14: 1.752947393e-05 | N14: 2.825617091e-09
A15: 4.230836667 | B15: ='DF raw data'!M20 -> 8.7827939e-06 | C15: ='DF raw data'!N20 -> 7.5851909e-07 | D15: ='DF raw data'!O20 -> 7.6413389e-06 | F15: 8.793122466e-06 | G15: 7.611994432e-07 | H15: 7.650325115e-06 | J15: 4.341363778e-05 | K15: 0.0001196823765 | L15: 1.208743104e-05 | M15: 2.357476082e-05 | N15: 3.841306069e-09
A16: 4.730966667 | B16: ='DF raw data'!M21 -> 8.8183042e-06 | C16: ='DF raw data'!N21 -> -7.3853101e-07 | D16: ='DF raw data'!O21 -> 3.8904154e-06 | F16: 8.828674526e-06 | G16: -7.41140732e-07 | H16: 3.894990529e-06 | J16: 4.782912277e-05 | K16: 0.0001436031556 | L16: 1.171676433e-05 | M16: 2.943466616e-05 | N16: 5.054075082e-09
A17: 5.231096667 | B17: ='DF raw data'!M22 -> 8.5315487e-06 | C17: ='DF raw data'!N22 -> 6.8760241e-06 | D17: ='DF raw data'!O22 -> 2.42443e-06 | F17: 8.541581801e-06 | G17: 6.900321674e-06 | H17: 2.42728113e-06 | J17: 5.210102407e-05 | K17: 0.0001696604408 | L17: 1.516782221e-05 | M17: 3.702054908e-05 | N17: 6.526747647e-09
A18: 5.731226667 | B18: ='DF raw data'!M23 -> 8.2883807e-06 | C18: ='DF raw data'!N23 -> 1.3691083e-05 | D18: ='DF raw data'!O23 -> 4.0960012e-06 | F18: 8.298127836e-06 | G18: 1.373946272e-05 | H18: 4.100818097e-06 | J18: 5.625116675e-05 | K18: 0.0001977933368 | L18: 2.203933969e-05 | M18: 4.804308404e-05 | N18: 8.352185265e-09
A19: 6.231356667 | B19: ='DF raw data'!M24 -> 8.5246738e-06 | C19: ='DF raw data'!N24 -> 7.4773784e-06 | D19: ='DF raw data'!O24 -> 6.0906286e-06 | F19: 8.534698816e-06 | G19: 7.503800959e-06 | H19: 6.097791179e-06 | J19: 6.051962567e-05 | K19: 0.0002280610172 | L19: 2.579221567e-05 | M19: 6.094254486e-05 | N19: 1.051667963e-08
A20: 6.731486667 | B20: ='DF raw data'!M25 -> 8.8475408e-06 | C20: ='DF raw data'!N25 -> -1.3660424e-06 | D20: ='DF raw data'!O25 -> 5.8792511e-06 | F20: 8.857945508e-06 | G20: -1.370869538e-06 | H20: 5.886165099e-06 | J20: 6.494974995e-05 | K20: 0.0002605443356 | L20: 2.510660269e-05 | M20: 7.349911006e-05 | N20: 1.294171573e-08
A21: 7.231616667 | B21: ='DF raw data'!M26 -> 8.5867505e-06 | C21: ='DF raw data'!N26 -> 5.148006e-06 | D21: ='DF raw data'!O26 -> 2.1281967e-06 | F21: 8.596848519e-06 | G21: 5.166197335e-06 | H21: 2.130699459e-06 | J21: 6.92492918e-05 | K21: 0.0002951779839 | L21: 2.769037296e-05 | M21: 8.734789629e-05 | N21: 1.57235494e-08
A22: 7.731746667 | B22: ='DF raw data'!M27 -> 7.7352288e-06 | C22: ='DF raw data'!N27 -> -1.7265625e-06 | D22: ='DF raw data'!O27 -> 1.744579e-06 | F22: 7.744325429e-06 | G22: -1.732663595e-06 | H22: 1.746630625e-06 | J22: 7.312246128e-05 | K22: 0.0003317487205 | L22: 2.682381591e-05 | M22: 0.0001007632913 | N22: 1.875754376e-08
A23: 8.231876667 | B23: ='DF raw data'!M28 -> 6.4930214e-06 | C23: ='DF raw data'!N28 -> -3.7985551e-06 | D23: ='DF raw data'!O28 -> 2.2511895e-06 | F23: =(1-$G$1*($B$2-$G$2))*B23 -> 6.500657193e-06 | G23: -3.811977926e-06 | H23: 2.253836899e-06 | J23: 7.637363496e-05 | K23: 0.0003699454666 | L23: 2.491733139e-05 | M23: 0.0001132251963 | N23: 2.198528552e-08
A24: 8.732006667 | B24: ='DF raw data'!M29 -> 7.3514188e-06 | C24: ='DF raw data'!N29 -> 8.3737592e-07 | D24: ='DF raw data'!O29 -> 7.6603544e-07 | F24: 7.360064069e-06 | G24: 8.40334927e-07 | H24: 7.669362977e-07 | J24: 8.00546238e-05 | K24: 0.0004099831856 | L24: 2.53376081e-05 | M24: 0.0001258972942 | N24: 2.55115707e-08
A25: 9.232136667 | B25: ='DF raw data'!M30 -> 6.0467346e-06 | C25: ='DF raw data'!N30 -> 1.0397166e-05 | D25: ='DF raw data'!O30 -> -3.9332799e-06 | F25: 6.05384556e-06 | G25: 1.043390611e-05 | H25: -3.937905437e-06 | J25: 8.308233358e-05 | K25: 0.0004515351531 | L25: 3.055591757e-05 | M25: 0.0001411792253 | N25: 2.943075855e-08
A26: 9.732266667 | B26: ='DF raw data'!M31 -> 3.1686991e-06 | C26: ='DF raw data'!N31 -> 1.6146543e-05 | D26: ='DF raw data'!O31 -> -8.6172213e-06 | F26: 3.17242549e-06 | G26: 1.620359949e-05 | H26: -8.627355152e-06 | J26: 8.466895874e-05 | K26: 0.0004938806394 | L26: 3.865982378e-05 | M26: 0.000160514163 | N26: 3.376359207e-08
A27: 10.23239667 | B27: ='DF raw data'!M32 -> 2.744373e-06 | C27: ='DF raw data'!N32 -> 5.6339491e-06 | D27: ='DF raw data'!O32 -> -8.0035925e-06 | F27: 2.747600383e-06 | G27: 5.653857595e-06 | H27: -8.013004725e-06 | J27: 8.604311612e-05 | K27: 0.0005369133831 | L27: 4.148748758e-05 | M27: 0.0001812633001 | N27: 3.8327093e-08
A28: 10.73252667 | B28: ='DF raw data'!M33 -> 3.0002236e-06 | C28: ='DF raw data'!N33 -> -6.5815725e-06 | D28: ='DF raw data'!O33 -> -1.3842611e-06 | F28: 3.003751863e-06 | G28: -6.60482958e-06 | H28: -1.385888991e-06 | J28: 8.754538254e-05 | K28: 0.0005806974552 | L28: 3.818421416e-05 | M28: 0.0002003603711 | N28: 4.2889393e-08
A29: 11.23265667 | B29: ='DF raw data'!M34 -> 9.2344845e-07 | C29: ='DF raw data'!N34 -> -1.5334913e-06 | D29: ='DF raw data'!O34 -> 2.3233342e-06 | F29: 9.245344254e-07 | G29: -1.538910146e-06 | H29: 2.326066441e-06 | J29: 8.800776994e-05 | K29: 0.0006247127812 | L29: 3.741455903e-05 | M29: 0.0002190725146 | N29: 4.746319027e-08
A30: 11.73278667 | B30: ='DF raw data'!M35 -> 2.0627945e-06 | C30: ='DF raw data'!N35 -> 2.8785439e-06 | D30: ='DF raw data'!O35 -> 5.8467749e-06 | F30: 2.065220346e-06 | G30: 2.888715713e-06 | H30: 5.853650707e-06 | J30: 8.90406486e-05 | K30: 0.0006692446808 | L30: 3.885929242e-05 | M30: 0.0002385072125 | N30: 5.218355811e-08
A31: 12.23291667 | B31: ='DF raw data'!M36 -> 1.3944992e-06 | C31: ='DF raw data'!N36 -> -1.8080859e-06 | D31: ='DF raw data'!O36 -> 7.4162499e-06 | F31: 1.396139131e-06 | G31: -1.814475072e-06 | H31: 7.42497141e-06 | J31: 8.973889966e-05 | K31: 0.0007141257967 | L31: 3.7951819e-05 | M31: 0.0002574880557 | N31: 5.693149759e-08
A32: 12.73304667 | B32: ='DF raw data'!M37 -> -1.2338299e-07 | C32: ='DF raw data'!N37 -> -1.2618325e-06 | D32: ='DF raw data'!O37 -> 6.9491734e-06 | F32: -1.235280884e-07 | G32: -1.266291395e-06 | H32: 6.957345628e-06 | J32: 8.967711956e-05 | K32: 0.0007589760145 | L32: 3.731850869e-05 | M32: 0.0002761521615 | N32: 6.165005252e-08
A33: 13.23317667 | B33: ='DF raw data'!M38 -> -4.7210842e-06 | C33: ='DF raw data'!N38 -> 1.0253866e-05 | D33: ='DF raw data'!O38 -> 4.1519061e-06 | F33: -4.726636195e-06 | G33: 1.029009974e-05 | H33: 4.156788742e-06 | J33: 8.7313187e-05 | K33: 0.0008026439587 | L33: 4.246489627e-05 | M33: 0.00029739013 | N33: 6.636470804e-08
A34: 13.73330667 | B34: ='DF raw data'!M39 -> -6.4182555e-06 | C34: ='DF raw data'!N39 -> 2.8713407e-06 | D34: ='DF raw data'!O39 -> -2.3940838e-06 | F34: -6.425803368e-06 | G34: 2.881487059e-06 | H34: -2.396899243e-06 | J34: 8.409944996e-05 | K34: 0.0008447046166 | L34: 4.390601439e-05 | M34: 0.000319348845 | N34: 7.086610589e-08
A35: 14.23343667 | B35: ='DF raw data'!M40 -> -3.7299883e-06 | C35: ='DF raw data'!N40 -> -7.3897422e-06 | D35: ='DF raw data'!O40 -> -7.0958622e-06 | F35: -3.734374766e-06 | G35: -7.415855082e-06 | H35: -7.104206934e-06 | J35: 8.223177711e-05 | K35: 0.0008858311953 | L35: 4.019712279e-05 | M35: 0.000339452632 | N35: 7.505613193e-08
A36: 14.73356667 | B36: ='DF raw data'!M41 -> 9.625636e-07 | C36: ='DF raw data'!N41 -> -7.4517843e-06 | D36: ='DF raw data'!O41 -> -6.156718e-06 | F36: 9.636955748e-07 | G36: -7.478116418e-06 | H36: -6.1639583e-06 | J36: 8.271375017e-05 | K36: 0.0009271988232 | L36: 3.645709243e-05 | M36: 0.0003576859177 | N36: 7.914253615e-08
A37: 15.23369667 | B37: ='DF raw data'!M42 -> 4.2704655e-06 | C37: ='DF raw data'!N42 -> -9.5535097e-07 | D37: ='DF raw data'!O42 -> -3.0577603e-06 | F37: 4.275487567e-06 | G37: -9.587268614e-07 | H37: -3.061356226e-06 | J37: 8.485204977e-05 | K37: 0.0009696358788 | L37: 3.597760436e-05 | M37: 0.0003756793969 | N37: 8.339076959e-08
A38: 15.73382667 | B38: ='DF raw data'!M43 -> 2.2165852e-06 | C38: ='DF raw data'!N43 -> 3.1081731e-06 | D38: ='DF raw data'!O43 -> -8.0297752e-07 | F38: 2.219191904e-06 | G38: 3.119156346e-06 | H38: -8.039218216e-07 | J38: 8.596193422e-05 | K38: 0.001012628021 | L38: 3.753758802e-05 | M38: 0.0003944530708 | N38: 8.779117572e-08
A39: 16.23395667 | B39: ='DF raw data'!M44 -> 5.4257617e-07 | C39: ='DF raw data'!N44 -> -9.2519571e-07 | D39: ='DF raw data'!O44 -> 2.0011475e-06 | F39: 5.432142396e-07 | G39: -9.284650428e-07 | H39: 2.003500849e-06 | J39: 8.623361196e-05 | K39: 0.001055756037 | L39: 3.70732348e-05 | M39: 0.0004129945078 | N39: 9.219765139e-08
A40: 16.73408667 | B40: ='DF raw data'!M45 -> -1.6122991e-07 | C40: ='DF raw data'!N45 -> 3.359281e-06 | D40: ='DF raw data'!O45 -> 5.2384685e-06 | F40: -1.614195164e-07 | G40: 3.371151578e-06 | H40: 5.244628939e-06 | J40: 8.615288121e-05 | K40: 0.001098843678 | L40: 3.875924884e-05 | M40: 0.0004323791709 | N40: 9.666111074e-08
A41: 17.23421667 | B41: ='DF raw data'!M46 -> 1.7812454e-06 | C41: ='DF raw data'!N46 -> 3.0335873e-06 | D41: ='DF raw data'!O46 -> 6.3334164e-06 | F41: 1.783340145e-06 | G41: 3.044306985e-06 | H41: 6.340864498e-06 | J41: 8.704478312e-05 | K41: 0.001142377385 | L41: 4.028179809e-05 | M41: 0.0004525253066 | N41: 1.012620154e-07
A42: 17.73434667 | B42: ='DF raw data'!M47 -> 6.5110435e-06 | C42: ='DF raw data'!N47 -> -1.3504282e-06 | D42: ='DF raw data'!O47 -> 4.8415395e-06 | F42: 6.518700487e-06 | G42: -1.355200162e-06 | H42: 4.84723315e-06 | J42: 9.030498079e-05 | K42: 0.001187541615 | L42: 3.960402184e-05 | M42: 0.000472332466 | N42: 1.061250135e-07
A43: 18.23447667 | B43: ='DF raw data'!M48 -> 4.7628091e-06 | C43: ='DF raw data'!N48 -> -6.0510679e-06 | D43: ='DF raw data'!O48 -> -5.7116915e-07 | F43: 4.768410164e-06 | G43: -6.072450354e-06 | H43: -5.718408449e-07 | J43: 9.268980577e-05 | K43: 0.001233898568 | L43: 3.656700724e-05 | M43: 0.0004906207233 | N43: 1.110905773e-07
A44: 18.73460667 | B44: ='DF raw data'!M49 -> -1.6826498e-06 | C44: ='DF raw data'!N49 -> 5.6154026e-06 | D44: ='DF raw data'!O49 -> -5.9456097e-06 | F44: -1.684628596e-06 | G44: 5.635245558e-06 | H44: -5.952601737e-06 | J44: 9.184727247e-05 | K44: 0.001279834144 | L44: 3.93853626e-05 | M44: 0.0005103185247 | N44: 1.160854398e-07
A45: 19.23473667 | B45: ='DF raw data'!M50 -> -4.2651186e-06 | C45: ='DF raw data'!N50 -> 7.8250896e-06 | D45: ='DF raw data'!O50 -> -6.4200713e-06 | F45: -4.270134379e-06 | G45: 7.852740854e-06 | H45: -6.427621304e-06 | J45: 8.971165016e-05 | K45: 0.001324701632 | L45: 4.331275389e-05 | M45: 0.0005319805323 | N45: 1.210488173e-07
A46: 19.73486667 | B46: ='DF raw data'!M51 -> -5.7484913e-06 | C46: ='DF raw data'!N51 -> 3.5188609e-06 | D46: ='DF raw data'!O51 -> -2.8913773e-06 | F46: -5.755251526e-06 | G46: 3.53129538e-06 | H46: -2.89477756e-06 | J46: 8.683327622e-05 | K46: 0.001368129558 | L46: 4.507886064e-05 | M46: 0.0005545258229 | N46: 1.258361224e-07
A47: 20.23499667 | B47: ='DF raw data'!M52 -> -6.2880272e-06 | C47: ='DF raw data'!N52 -> -1.1446859e-06 | D47: ='DF raw data'!O52 -> -3.4248944e-07 | F47: -6.29542192e-06 | G47: -1.148730838e-06 | H47: -3.428922076e-07 | J47: 8.368474685e-05 | K47: 0.001409982811 | L47: 4.450434589e-05 | M47: 0.0005767837814 | N47: 1.303291772e-07
A48: 20.73512667 | B48: ='DF raw data'!M53 -> -1.9017214e-06 | C48: ='DF raw data'!N53 -> 5.4170283e-07 | D48: ='DF raw data'!O53 -> 1.4265178e-06 | F48: -1.903957824e-06 | G48: 5.43617027e-07 | H48: 1.428195385e-06 | J48: 8.273252043e-05 | K48: 0.001451359826 | L48: 4.477622507e-05 | M48: 0.0005991777149 | N48: 1.347551177e-07
A49: 21.23525667 | B49: ='DF raw data'!M54 -> 1.707287e-06 | C49: ='DF raw data'!N54 -> 2.0140692e-06 | D49: ='DF raw data'!O54 -> 2.7995966e-06 | F49: 1.70929477e-06 | G49: 2.021186248e-06 | H49: 2.802888926e-06 | J49: 8.358739002e-05 | K49: 0.001493164387 | L49: 4.578708095e-05 | M49: 0.0006220772077 | N49: 1.392979529e-07
A50: 21.73538667 | B50: ='DF raw data'!M55 -> 2.3260543e-06 | C50: ='DF raw data'!N55 -> 2.6749335e-06 | D50: ='DF raw data'!O55 -> -3.5546611e-07 | F50: 2.32878974e-06 | G50: 2.684385822e-06 | H50: -3.558841381e-07 | J50: 8.475208763e-05 | K50: 0.001535551449 | L50: 4.712962283e-05 | M50: 0.0006456481459 | N50: 1.440012342e-07
A51: 22.23551667 | B51: ='DF raw data'!M56 -> 1.4370186e-06 | C51: ='DF raw data'!N56 -> 9.7789382e-08 | D51: ='DF raw data'!O56 -> -2.3407729e-06 | F51: 1.438708534e-06 | G51: 9.813493703e-08 | H51: -2.343525649e-06 | J51: 8.547162893e-05 | K51: 0.001578298375 | L51: 4.717870306e-05 | M51: 0.0006692436307 | N51: 1.48768088e-07
A52: 22.73564667 | B52: ='DF raw data'!M57 -> 4.2001116e-06 | C52: ='DF raw data'!N57 -> 1.4399343e-06 | D52: ='DF raw data'!O57 -> 2.3479597e-06 | F52: 4.205050931e-06 | G52: 1.445022547e-06 | H52: 2.350720901e-06 | J52: 8.757470105e-05 | K52: 0.00162209711 | L52: 4.790140219e-05 | M52: 0.000693200559 | N52: 1.537513196e-07
A53: 23.23577667 | B53: ='DF raw data'!M58 -> 4.6302448e-06 | C53: ='DF raw data'!N58 -> -2.7635574e-06 | D53: ='DF raw data'!O58 -> 1.0254252e-05 | F53: 4.635689968e-06 | G53: -2.773322889e-06 | H53: 1.0266311e-05 | J53: 8.989314868e-05 | K53: 0.001667055371 | L53: 4.651438021e-05 | M53: 0.0007164637959 | N53: 1.588748342e-07
A54: 23.73590667 | B54: ='DF raw data'!M59 -> 4.5593538e-07 | C54: ='DF raw data'!N59 -> -7.5110324e-06 | D54: ='DF raw data'!O59 -> 9.1032643e-06 | F54: 4.5647156e-07 | G54: -7.537573881e-06 | H54: 9.113969739e-06 | J54: 9.01214438e-05 | K54: 0.001712127808 | L54: 4.274461338e-05 | M54: 0.0007378416594 | N54: 1.638506159e-07
A55: 24.23603667 | B55: ='DF raw data'!M60 -> -6.9088668e-07 | C55: ='DF raw data'!N60 -> -9.9758281e-06 | D55: ='DF raw data'!O60 -> 1.9140944e-06 | F55: -6.916991627e-07 | G55: -1.001107935e-05 | H55: 1.916345375e-06 | J55: 8.97755043e-05 | K55: 0.001757027231 | L55: 3.773777227e-05 | M55: 0.0007567154515 | N55: 1.685937391e-07
A56: 24.73616667 | B56: ='DF raw data'!M61 -> -5.2080912e-07 | C56: ='DF raw data'!N61 -> -6.2761642e-06 | D56: ='DF raw data'!O61 -> -3.7987729e-06 | F56: -5.214215915e-07 | G56: -6.298342069e-06 | H56: -3.803240257e-06 | J56: 8.951472571e-05 | K56: 0.001801796231 | L56: 3.458778245e-05 | M56: 0.0007740138391 | N56: 1.731995367e-07
A57: 25.23629667 | B57: ='DF raw data'!M62 -> -4.1347931e-08 | C57: ='DF raw data'!N62 -> -6.4138544e-06 | D57: ='DF raw data'!O62 -> -6.7270221e-06 | F57: -4.139655617e-08 | G57: -6.43651882e-06 | H57: -6.734933078e-06 | J57: 8.949402205e-05 | K57: 0.001846554876 | L57: 3.136868629e-05 | M57: 0.0007897022602 | N57: 1.776972931e-07
A58: 25.73642667 | B58: ='DF raw data'!M63 -> 2.2924125e-06 | C58: ='DF raw data'!N63 -> 2.9858206e-06 | D58: ='DF raw data'!O63 -> -3.4087016e-06 | F58: 2.295108377e-06 | G58: 2.996371493e-06 | H58: -3.412710233e-06 | J58: 9.064187461e-05 | K58: 0.001891887597 | L58: 3.286726157e-05 | M58: 0.0008061401637 | N58: 1.823466047e-07
A59: 26.23655667 | B59: ='DF raw data'!M64 -> 1.6624314e-06 | C59: ='DF raw data'!N64 -> 2.9195076e-06 | D59: ='DF raw data'!O64 -> 4.2624533e-06 | F59: 1.664386419e-06 | G59: 2.929824165e-06 | H59: 4.267465945e-06 | J59: 9.147428419e-05 | K59: 0.001937636631 | L59: 3.433255453e-05 | M59: 0.0008233109042 | N59: 1.871209802e-07
A60: 26.73668667 | B60: ='DF raw data'!M65 -> -4.1031844e-06 | C60: ='DF raw data'!N65 -> 1.1405214e-06 | D60: ='DF raw data'!O65 -> 9.0307194e-06 | F60: -4.108009745e-06 | G60: 1.144551622e-06 | H60: 9.041339526e-06 | J60: 8.941974527e-05 | K60: 0.001982358128 | L60: 3.490497913e-05 | M60: 0.0008407679314 | N60: 1.917293023e-07
A61: 27.23681667 | B61: ='DF raw data'!M66 -> -4.0403734e-06 | C61: ='DF raw data'!N66 -> -7.4480289e-07 | D61: ='DF raw data'!O66 -> 1.7623505e-06 | F61: -4.045124879e-06 | G61: -7.474347748e-07 | H61: 1.764423024e-06 | J61: 8.739665697e-05 | K61: 0.002026067818 | L61: 3.453116458e-05 | M61: 0.0008580380028 | N61: 1.961457387e-07
A62: 27.73694667 | B62: ='DF raw data'!M67 -> 4.212794e-06 | C62: ='DF raw data'!N67 -> 1.1296063e-05 | D62: ='DF raw data'!O67 -> -4.2449528e-06 | F62: 4.217748246e-06 | G62: 1.133597952e-05 | H62: -4.249944864e-06 | J62: 8.95060794e-05 | K62: 0.002070832493 | L62: 4.020062801e-05 | M62: 0.0008781435428 | N62: 2.009607047e-07
A63: 28.23707667 | B63: ='DF raw data'!M68 -> 8.0536229e-06 | C63: ='DF raw data'!N68 -> 3.5403432e-06 | D63: ='DF raw data'!O68 -> -1.3547752e-06 | F63: 8.063093961e-06 | G63: 3.552853591e-06 | H63: -1.356368416e-06 | J63: 9.353867458e-05 | K63: 0.002117613991 | L63: 4.197751668e-05 | M63: 0.0008991377583 | N63: 2.06217869e-07
A64: 28.73720667 | B64: ='DF raw data'!M69 -> 4.514568e-06 | C64: ='DF raw data'!N69 -> -1.656113e-06 | D64: ='DF raw data'!O69 -> 3.7002682e-08 | F64: 4.519877132e-06 | G64: -1.66196515e-06 | H64: 3.704619715e-08 | J64: 9.579920073e-05 | K64: 0.002165526045 | L64: 4.114631805e-05 | M64: 0.0009197162663 | N64: 2.116545353e-07
A65: 29.23733667 | B65: ='DF raw data'!M70 -> -8.4461061e-07 | C65: ='DF raw data'!N70 -> -9.1347056e-06 | D65: ='DF raw data'!O70 -> -2.4497886e-06 | F65: -8.456038721e-07 | G65: -9.1669846e-06 | H65: -2.452669551e-06 | J65: 9.537628887e-05 | K65: 0.002213226588 | L65: 3.656163404e-05 | M65: 0.0009380018363 | N65: 2.168725864e-07
A66: 29.73746667 | B66: ='DF raw data'!M71 -> 6.5771894e-07 | C66: ='DF raw data'!N71 -> -2.6646688e-07 | D66: ='DF raw data'!O71 -> -4.9950822e-06 | F66: 6.584924175e-07 | G66: -2.67408485e-07 | H66: -5.000956417e-06 | J66: 9.570562068e-05 | K66: 0.00226109184 | L66: 3.642789503e-05 | M66: 0.0009562205195 | N66: 2.221172284e-07
A67: 30.23759667 | B67: ='DF raw data'!M72 -> 3.7874663e-06 | C67: ='DF raw data'!N72 -> 3.4836609e-07 | D67: ='DF raw data'!O72 -> -4.6866071e-06 | F67: 3.79192036e-06 | G67: 3.495970995e-07 | H67: -4.69211855e-06 | J67: 9.760207381e-05 | K67: 0.002309905566 | L67: 3.660273903e-05 | M67: 0.0009745266474 | N67: 2.275516036e-07
A68: 30.73772667 | B68: ='DF raw data'!M73 -> -4.6100158e-07 | C68: ='DF raw data'!N73 -> -5.8361215e-06 | D68: ='DF raw data'!O73 -> -3.7117234e-06 | F68: -4.615437179e-07 | G68: -5.856744405e-06 | H68: -3.716088387e-06 | J68: 9.737124195e-05 | K68: 0.002358603845 | L68: 3.367360545e-05 | M68: 0.0009913678276 | N68: 2.328605188e-07
A69: 31.23785667 | B69: ='DF raw data'!M74 -> -3.7590244e-06 | C69: ='DF raw data'!N74 -> 6.9748935e-06 | D69: ='DF raw data'!O74 -> -6.2627362e-07 | F69: -3.763445013e-06 | G69: 6.999540445e-06 | H69: -6.270101178e-07 | J69: 9.548903019e-05 | K69: 0.002406360774 | L69: 3.717428561e-05 | M69: 0.001009959803 | N69: 2.38111925e-07
A70: 31.73798667 | B70: ='DF raw data'!M75 -> 1.5442182e-06 | C70: ='DF raw data'!N75 -> 2.6047533e-06 | D70: ='DF raw data'!O75 -> -9.9245437e-07 | F70: 1.546034201e-06 | G70: 2.613957629e-06 | H70: -9.936214963e-07 | J70: 9.626224828e-05 | K70: 0.002454504412 | L70: 3.848160424e-05 | M70: 0.001029205608 | N70: 2.434869493e-07
A71: 32.23811667 | B71: ='DF raw data'!M76 -> 5.4371785e-06 | C71: ='DF raw data'!N76 -> 2.2497011e-06 | D71: ='DF raw data'!O76 -> -1.9035134e-06 | F71: 5.443572622e-06 | G71: =(1-$G$1*($B$2-$G$2))*C71*$M$2/$M$1 -> 2.257650793e-06 | H71: -1.905751932e-06 | J71: 9.898474225e-05 | K71: 0.002504009651 | L71: 3.961072313e-05 | M71: 0.001049016119 | N71: 2.491719213e-07
A72: =A71+$B$1 -> 32.73824667 | B72: ='DF raw data'!M77 -> 1.1656821e-06 | C72: ='DF raw data'!N77 -> 4.9581399e-06 | D72: ='DF raw data'!O77 -> 5.788869e-07 | F72: 1.167052942e-06 | G72: 4.975660311e-06 | H72: 5.79567671e-07 | J72: =F72*$B$1+J71 -> 9.956842044e-05 | K72: =J72*$B$1+K71 -> 0.002553806805 | L72: =G72*$B$1+L71 -> 4.209920013e-05 | M72: =L72*$B$1+M71 -> 0.001070071192 | N72: =(J72^2+L72^2)*$B$1+N71 -> 2.55016547e-07
A73: 33.23837667 | B73: ='DF raw data'!M78 -> 1.029847e-06 | C73: ='DF raw data'!N78 -> 3.6384205e-07 | D73: ='DF raw data'!O78 -> 2.5904164e-06 | F73: 1.0310581e-06 | G73: 3.651277463e-07 | H73: 2.59346273e-06 | J73: 0.0001000840835 | K73: 0.002603861858 | L73: 4.228181147e-05 | M73: 0.001091217594 | N73: 2.609203693e-07
A74: 33.73850667 | B74: ='DF raw data'!M79 -> 8.5585152e-06 | C74: ='DF raw data'!N79 -> 1.4035072e-06 | D74: ='DF raw data'!O79 -> 3.2521648e-06 | F74: 8.568580014e-06 | G74: 1.408466726e-06 | H74: 3.255989346e-06 | J74: 0.0001043694875 | K74: 0.002656060169 | L74: 4.298622793e-05 | M74: 0.001112716296 | N74: 2.672924284e-07
A75: 34.23863667 | B75: ='DF raw data'!M80 -> 1.1771166e-05 | C75: ='DF raw data'!N80 -> 1.7664283e-06 | D75: ='DF raw data'!O80 -> 6.9058487e-06 | F75: 1.178500889e-05 | G75: 1.772670268e-06 | H75: 6.913969978e-06 | J75: 0.0001102635239 | K75: 0.002711206266 | L75: 4.387279351e-05 | M75: 0.001134658397 | N75: 2.743356926e-07
